Workbook

Sheet Main Menu
A1: MAIN MENU
A3: Almond Production Spreadsheet
A4: Updated 7th January, 2015
A5: Version 150107
A8: INTRODUCTION | K8: FOLIAR NUTRITION
A9: Read Me | K9: Foliar Nutrient Program
A11: Setup / Interview
A15: IRRIGATION | K15: TREE & FRUIT ANALYSIS
A16: Irrigation Diary | K16: Leaf Analysis Critical Values
A18: Irrigation Diary - Summary | K18: Nutrient Removal Calculator
A20: Water Use Graph
A22: Pumping Cost Calculator
A26: FERTIGATION - Optimisation Treatments | K26: FERTIGATION - User Defined
A27: Fertiliser Program Table | K27: Fertiliser Program Table
A29: Nitrogen Graph | K29: Nitrogen Graph
A31: Phosphorus Graph | K31: Phosphorus Graph
A33: Potassium Graph | K33: Potassium Graph

Sheet Read Me

Sheet Setup
A2: IRRIGATION & FERTILISER DIARY SETUP | L2: NOTES / WORKING PAGE
A4: FIRST MONDAY OF FINANCIAL YEAR:
A5: 2014-07-07
A7: PATCH INFORMATION
A8: Irrigation System: | C8: Drip | I8: Irrigation System Type
I9: Sprinkler
A10: Hectares (Ha): | C10: 27 | I10: Drip
A12: Row Spacing (m): | C12: 3.35
A13: Tree Spacing (m): | C13: 2.4
A15: APPLICATION RATE
A16: Calculations by: | C16: Theoretical Drip | I16: Calculations by
I17: Theoretical Drip
A18: =IF(AND(C$8="Sprinkler",C$16="Theoretical Sprinkler"), "Sprinkler Flow Rate (L/Hr):", "") ->  | C18: 0 | I18: Theoretical Sprinkler
A19: =IF(AND(C$8="Sprinkler",C$16="Theoretical Sprinkler"), "Sprinkler Spacing Down the Row (m):", "") ->  | C19: 0 | I19: Water Meter
A20: =IF(AND(C$8="Sprinkler",C$16="Theoretical Sprinkler"), "Sprinkler Spacing Across the Row/s (m):","") ->  | C20: 0
A21: =IF(AND(C$8="Sprinkler",C$16="Theoretical"), "Application Rate (mm/hr):","") ->  | C21: =IF(AND(C8="Sprinkler",C16="Theoretical Sprinkler"),(C18/C19/C20),0) -> 0
B22: OR
A23: =IF(AND(C$8="Drip",C$16="Theoretical Drip"), "No. of Drip Laterals:","") -> No. of Drip Laterals: | C23: 1
A24: =IF(AND(C$8="Drip",C$16="Theoretical Drip"), "Dripper Flow Rate (L/Hr):","") -> Dripper Flow Rate (L/Hr): | C24: 3.5
A25: =IF(AND(C$8="Drip",C$16="Theoretical Drip"), "Dripper Spacing (m):","") -> Dripper Spacing (m): | C25: 0.9
A26: =IF(AND(C$8="Drip",C$16="Theoretical"), "Application Rate (mm/hr):","") ->  | C26: =IF(AND(C8="Drip",C16="Theoretical Drip"),(C23*(C24/C12/C25)),0) -> 1.160862355
B27: OR
A28: =IF(C$16="Water Meter", "Start Meter Reading (kL)","") ->  | C28: 0
A29: =IF(C$16="Water Meter", "Finish Meter Reading (kL)","") ->  | C29: 0
A30: =IF(C$16="Water Meter", "Water Used (kL)","") ->  | C30: =C29-C28 -> 0
A31: =IF(C$16="Water Meter", "Run Time (min)","") ->  | C31: 0
A32: =IF(C$16="Water Meter", "Shift Area (Ha)","") ->  | C32: 0
A33: =IF(C$16="Water Meter", "Application Rate (mm/hr)","") ->  | C33: =IF(C16="Water Meter",(C30/10)/C32,0) -> 0
A35: IRRIGATION PROGRAM:
D38: Go to the crop factor section to choose between Class A Evaporation Pan or Automated Weather Station as the preferred climatic data input
B42: OR
A51: FERTILISER PROGRAM:
A52: Program: | B52: 4
B54: N | C54: P | D54: K
B55: (kg/ha) | C55: (kg/ha) | D55: (kg/ha)
A56: CT Trial 1 | B56: 240 | C56: 50 | D56: 400
A57: CT Trial 2 | B57: 320 | C57: 50 | D57: 600
A58: CT Trial 3 | B58: 320 | C58: 50 | D58: 400
A59: User Defined 4 | B59: 50 | C59: 10 | D59: 50

Sheet Crop Factor
A2: IRRIGATION STRATEGY - CROP FACTOR | H2: NOTES / WORKING PAGE
A5: Crop Factor | C5: 1
H6: Weather Station
A7: BOM Weather Station | C7: Loxton_RS | H7: Loxton_RS
H8: Mildura_AP
A9: Approximate Water Budget | C9: =C5*VLOOKUP(Weather_Station, Annual_Etc, 2, FALSE) -> 15.18440202 | D9: ML/Ha | H9: Griffith_CSIRO
H10: Parafield_AP
A11: Kpan adjustment factor | B11: 0.7 | H11: Hillston_AP
A13: Preferred Weather Input: | B13: Auto Weather Stn | D13: 1 | H13: Weather Input
H14: Evaporation Pan
H15: Auto Weather Stn

Sheet Fixed WU Figure
A2: IRRIGATION STRATEGY - FIXED WATER USE FIGURE | L2: NOTES / WORKING PAGE
A5: Water Use Figure
A6: 0 | B6: ML/Ha
B8: mm Early Season Wetup | C8: = | D8: =IF(A8>0,A8/100/A6,0) -> 0 | E8: of seasonal water use
E10: Cumm | F10: Mthly | G10: Mthly
B11: Monthly % | C11: Monthly % (adj) | D11: ML/Ha | E11: ML/Ha | F11: mm | G11: mm/day | I11: Monthly % (CT) | J11: days | K11: mm/mth
A12: Jul | B12: 0.037 | C12: =IF(A$6>0,((A$6-(A$8/100))/A$6)*B12,B12) -> 0.037 | D12: =IF(A$6>0,A$6*C12,"N/A") -> N/A | E12: =IF(D12="N/A","N/A",D12) -> N/A | F12: =IF(D12="N/A",D12,D12*100) -> N/A | G12: =IF(D12="N/A","N/A",D12*100/J12) -> N/A | I12: 0.037 | J12: 31 | K12: =D12*100 -> 
A13: Aug | B13: 0.0364 | C13: 0.0364 | D13: N/A | E13: =IF(D13="N/A","N/A",D13+E12) -> N/A | F13: N/A | G13: =IF(D13="N/A","N/A",D13*100/J13) -> N/A | I13: 0.0364 | J13: 31
A14: Sep | B14: 0.051 | C14: 0.051 | D14: N/A | E14: N/A | F14: N/A | G14: N/A | I14: 0.051 | J14: 30
A15: Oct | B15: 0.118 | C15: 0.118 | D15: N/A | E15: N/A | F15: N/A | G15: N/A | I15: 0.118 | J15: 31
A16: Nov | B16: 0.1567 | C16: 0.1567 | D16: N/A | E16: N/A | F16: N/A | G16: N/A | I16: 0.1567 | J16: 30
A17: Dec | B17: 0.1622 | C17: 0.1622 | D17: N/A | E17: N/A | F17: N/A | G17: N/A | I17: 0.1622 | J17: 31
A18: Jan | B18: 0.1771 | C18: 0.1771 | D18: N/A | E18: N/A | F18: N/A | G18: N/A | I18: 0.1771 | J18: 31
A19: Feb | B19: 0.1165 | C19: 0.1165 | D19: N/A | E19: N/A | F19: N/A | G19: N/A | I19: 0.1165 | J19: 28
A20: Mar | B20: 0.0959 | C20: 0.0959 | D20: N/A | E20: N/A | F20: N/A | G20: N/A | I20: 0.0959 | J20: 31
A21: Apr | B21: 0.039 | C21: 0.039 | D21: N/A | E21: N/A | F21: N/A | G21: N/A | I21: 0.039 | J21: 30
A22: May | B22: 0.0102 | C22: 0.0102 | D22: N/A | E22: N/A | F22: N/A | G22: N/A | I22: 0.0102 | J22: 31
A23: Jun | B23: 0 | C23: 0 | D23: N/A | E23: N/A | F23: N/A | G23: N/A | I23: 0 | J23: 30
A24: SUBTOTAL | B24: =SUM(B12:B23) -> 1 | C24: =SUM(C12:C23) -> 1 | D24: =SUM(D12:D23) -> 0 | E24: =E23 -> N/A | F24: =SUM(F12:F23) -> 0 | I24: =SUM(I12:I23) -> 1 | J24: =SUM(J12:J23) -> 365
A25: TOTAL | B25: =IF(SUM(C12:C23,D8)=100%,SUM(C12:C23,D8),"ERROR") -> 1

Sheet Evap (hidden)
B1: Mean | C1: Griffith_CSIRO Epan | F1: Loxton_RS Epan | I1: Mildura_AP Epan | L1: Parafield_AP Epan | O1: Hillston_AP Epan | T1: Griffith_CSIRO Epan | X1: Loxton_RS Epan | AB1: Mildura_AP Epan | AF1: Parafield_AP Epan | AJ1: Hillston_AP Epan
B2: 1 | C2: Evap | D2: ETc | E2: ETc Cum | F2: Evap | G2: ETc | H2: ETc Cum | I2: Evap | J2: ETc | K2: ETc Cum | L2: Evap | M2: ETc | N2: ETc Cum | O2: Evap | P2: ETc | Q2: ETc Cum | T2: Evap | U2: ETc | V2: ETc Cum | W2: User Def | X2: Evap | Y2: ETc | Z2: ETc Cum | AA2: User Def | AB2: Evap | AC2: ETc | AD2: ETc Cum | AE2: User Def | AF2: Evap | AG2: ETc | AH2: ETc Cum | AI2: User Def | AJ2: Evap | AK2: ETc | AL2: ETc Cum | AM2: User Def
A3: Date | B3: cf | C3: (mm) | D3: (mm) | E3: (mm) | F3: (mm) | G3: (mm) | H3: (mm) | I3: (mm) | J3: (mm) | K3: (mm) | L3: (mm) | M3: (mm) | N3: (mm) | O3: (mm) | P3: (mm) | Q3: (mm) | S3: Date | T3: (mm) | U3: (ML/Ha) | V3: (ML/Ha) | W3: (ML/Ha) | X3: (mm) | Y3: (ML/Ha) | Z3: (ML/Ha) | AA3: (ML/Ha) | AB3: (mm) | AC3: (ML/Ha) | AD3: (ML/Ha) | AE3: (ML/Ha) | AF3: (mm) | AG3: (ML/Ha) | AH3: (ML/Ha) | AI3: (ML/Ha) | AJ3: (mm) | AK3: (ML/Ha) | AL3: (ML/Ha) | AM3: (ML/Ha)
A4: 2008-07-01 | B4: ='Irrig Diary'!E17 -> 0 | C4: 1.6 | D4: =$B4*C4 -> 0 | E4: =D4 -> 0 | F4: 1.7 | G4: =$B4*F4 -> 0 | H4: =G4 -> 0 | I4: 2 | J4: =$B4*I4 -> 0 | K4: =J4 -> 0 | L4: 1.9 | M4: =$B4*L4 -> 0 | N4: =M4 -> 0 | O4: 1.5 | P4: =$B4*O4 -> 0 | Q4: =P4 -> 0 | S4: Jul | T4: =SUM(C4:C34) -> 49.6 | U4: =SUM(D4:D34)/100 -> 0 | V4: =U4 -> 0 | W4: =IF('Crop Factor'!C$7="Griffith_CSIRO",'Crop Factor'!C$5*Evap!V4,"") ->  | X4: =SUM(F4:F34) -> 52.7 | Y4: =SUM(G4:G34)/100 -> 0 | Z4: =Y4 -> 0 | AA4: =IF('Crop Factor'!C$7="Loxton_RS",'Crop Factor'!C$5*Evap!Z4,"") -> 0 | AB4: =SUM(I4:I34) -> 62 | AC4: =SUM(J4:J34)/100 -> 0 | AD4: =AC4 -> 0 | AE4: =IF('Crop Factor'!C$7="Mildura_AP",'Crop Factor'!C$5*Evap!AD4,"") ->  | AF4: =SUM(L4:L34) -> 58.9 | AG4: =SUM(M4:M34)/100 -> 0 | AH4: =AG4 -> 0 | AI4: =IF('Crop Factor'!C$7="Parafield_AP",'Crop Factor'!C$5*Evap!AH4,"") ->  | AJ4: =SUM(O4:O34) -> 46.5 | AK4: =SUM(P4:P34)/100 -> 0 | AL4: =AK4 -> 0 | AM4: =IF('Crop Factor'!G$7="Hillston_AP",'Crop Factor'!G$5*Evap!AL4,"") -> 
A5: 2008-07-02 | B5: ='Irrig Diary'!E18 -> 0 | C5: 1.6 | D5: =$B5*C5 -> 0 | E5: =E4+D5 -> 0 | F5: 1.7 | G5: =$B5*F5 -> 0 | H5: =H4+G5 -> 0 | I5: 2 | J5: 0 | K5: =K4+J5 -> 0 | L5: 1.9 | M5: 0 | N5: =N4+M5 -> 0 | O5: 1.5 | P5: =$B5*O5 -> 0 | Q5: =Q4+P5 -> 0 | S5: Aug | T5: =SUM(C35:C65) -> 71.3 | U5: =SUM(D35:D65)/100 -> 0.194235 | V5: =(V4+U5) -> 0.194235 | W5: =IF('Crop Factor'!C$7="Griffith_CSIRO",'Crop Factor'!C$5*Evap!V5,"") ->  | X5: =SUM(F35:F65) -> 83.7 | Y5: =SUM(G35:G65)/100 -> 0.228015 | Z5: =Z4+Y5 -> 0.228015 | AA5: =IF('Crop Factor'!C$7="Loxton_RS",'Crop Factor'!C$5*Evap!Z5,"") -> 0.228015 | AB5: =SUM(I35:I65) -> 93 | AC5: =SUM(J35:J65)/100 -> 0.25335 | AD5: =AD4+AC5 -> 0.25335 | AE5: =IF('Crop Factor'!C$7="Mildura_AP",'Crop Factor'!C$5*Evap!AD5,"") ->  | AF5: =SUM(L35:L65) -> 83.7 | AG5: =SUM(M35:M65)/100 -> 0.228015 | AH5: =AH4+AG5 -> 0.228015 | AI5: =IF('Crop Factor'!C$7="Parafield_AP",'Crop Factor'!C$5*Evap!AH5,"") ->  | AJ5: =SUM(O35:O65) -> 65.1 | AK5: =SUM(P35:P65)/100 -> 0.177345 | AL5: =AL4+AK5 -> 0.177345 | AM5: =IF('Crop Factor'!G$7="Hillston_AP",'Crop Factor'!G$5*Evap!AL5,"") -> 
A6: 2008-07-03 | B6: ='Irrig Diary'!E19 -> 0 | C6: 1.6 | D6: 0 | E6: =E5+D6 -> 0 | F6: 1.7 | G6: 0 | H6: =H5+G6 -> 0 | I6: 2 | J6: 0 | K6: =K5+J6 -> 0 | L6: 1.9 | M6: 0 | N6: =N5+M6 -> 0 | O6: 1.5 | P6: 0 | Q6: =Q5+P6 -> 0 | S6: Sep | T6: =SUM(C66:C95) -> 102 | U6: =SUM(D66:D95)/100 -> 0.63325 | V6: =(V5+U6) -> 0.827485 | W6: =IF('Crop Factor'!C$7="Griffith_CSIRO",'Crop Factor'!C$5*Evap!V6,"") ->  | X6: =SUM(F66:F95) -> 123 | Y6: =SUM(G66:G95)/100 -> 0.763625 | Z6: =Z5+Y6 -> 0.99164 | AA6: =IF('Crop Factor'!C$7="Loxton_RS",'Crop Factor'!C$5*Evap!Z6,"") -> 0.99164 | AB6: =SUM(I66:I95) -> 138 | AC6: =SUM(J66:J95)/100 -> 0.85675 | AD6: =AD5+AC6 -> 1.1101 | AE6: =IF('Crop Factor'!C$7="Mildura_AP",'Crop Factor'!C$5*Evap!AD6,"") ->  | AF6: =SUM(L66:L95) -> 114 | AG6: =SUM(M66:M95)/100 -> 0.70775 | AH6: =AH5+AG6 -> 0.935765 | AI6: =IF('Crop Factor'!C$7="Parafield_AP",'Crop Factor'!C$5*Evap!AH6,"") ->  | AJ6: =SUM(O66:O95) -> 108 | AK6: =SUM(P66:P95)/100 -> 0.6705 | AL6: =AL5+AK6 -> 0.847845 | AM6: =IF('Crop Factor'!G$7="Hillston_AP",'Crop Factor'!G$5*Evap!AL6,"") -> 
A7: 2008-07-04 | B7: ='Irrig Diary'!E20 -> 0 | C7: 1.6 | D7: 0 | E7: 0 | F7: 1.7 | G7: 0 | H7: 0 | I7: 2 | J7: 0 | K7: 0 | L7: 1.9 | M7: 0 | N7: 0 | O7: 1.5 | P7: 0 | Q7: 0 | S7: Oct | T7: =SUM(C96:C126) -> 151.9 | U7: =SUM(D96:D126)/100 -> 1.483475 | V7: 2.31096 | W7: =IF('Crop Factor'!C$7="Griffith_CSIRO",'Crop Factor'!C$5*Evap!V7,"") ->  | X7: =SUM(F96:F126) -> 182.9 | Y7: =SUM(G96:G126)/100 -> 1.786225 | Z7: 2.777865 | AA7: =IF('Crop Factor'!C$7="Loxton_RS",'Crop Factor'!C$5*Evap!Z7,"") -> 2.777865 | AB7: =SUM(I96:I126) -> 201.5 | AC7: =SUM(J96:J126)/100 -> 1.967875 | AD7: 3.077975 | AE7: =IF('Crop Factor'!C$7="Mildura_AP",'Crop Factor'!C$5*Evap!AD7,"") ->  | AF7: =SUM(L96:L126) -> 176.7 | AG7: =SUM(M96:M126)/100 -> 1.725675 | AH7: 2.66144 | AI7: =IF('Crop Factor'!C$7="Parafield_AP",'Crop Factor'!C$5*Evap!AH7,"") ->  | AJ7: =SUM(O96:O126) -> 161.2 | AK7: =SUM(P96:P126)/100 -> 1.5743 | AL7: 2.422145 | AM7: =IF('Crop Factor'!G$7="Hillston_AP",'Crop Factor'!G$5*Evap!AL7,"") -> 
A8: 2008-07-05 | B8: ='Irrig Diary'!E21 -> 0 | C8: 1.6 | D8: 0 | E8: 0 | F8: 1.7 | G8: 0 | H8: 0 | I8: 2 | J8: 0 | K8: 0 | L8: 1.9 | M8: 0 | N8: 0 | O8: 1.5 | P8: 0 | Q8: 0 | S8: Nov | T8: =SUM(C127:C156) -> 213 | U8: =SUM(D127:D156)/100 -> 2.2409375 | V8: 4.5518975 | W8: =IF('Crop Factor'!C$7="Griffith_CSIRO",'Crop Factor'!C$5*Evap!V8,"") ->  | X8: =SUM(F127:F156) -> 225 | Y8: =SUM(G127:G156)/100 -> 2.3671875 | Z8: 5.1450525 | AA8: =IF('Crop Factor'!C$7="Loxton_RS",'Crop Factor'!C$5*Evap!Z8,"") -> 5.1450525 | AB8: =SUM(I127:I156) -> 255 | AC8: =SUM(J127:J156)/100 -> 2.6828125 | AD8: 5.7607875 | AE8: =IF('Crop Factor'!C$7="Mildura_AP",'Crop Factor'!C$5*Evap!AD8,"") ->  | AF8: =SUM(L127:L156) -> 234 | AG8: =SUM(M127:M156)/100 -> 2.461875 | AH8: 5.123315 | AI8: =IF('Crop Factor'!C$7="Parafield_AP",'Crop Factor'!C$5*Evap!AH8,"") ->  | AJ8: =SUM(O127:O156) -> 210 | AK8: =SUM(P127:P156)/100 -> 2.209375 | AL8: 4.63152 | AM8: =IF('Crop Factor'!G$7="Hillston_AP",'Crop Factor'!G$5*Evap!AL8,"") -> 
A9: 2008-07-06 | B9: ='Irrig Diary'!E22 -> 0 | C9: 1.6 | D9: 0 | E9: 0 | F9: 1.7 | G9: 0 | H9: 0 | I9: 2 | J9: 0 | K9: 0 | L9: 1.9 | M9: 0 | N9: 0 | O9: 1.5 | P9: 0 | Q9: 0 | S9: Dec | T9: =SUM(C157:C187) -> 251.1 | U9: =SUM(D157:D187)/100 -> 2.63503125 | V9: 7.18692875 | W9: =IF('Crop Factor'!C$7="Griffith_CSIRO",'Crop Factor'!C$5*Evap!V9,"") ->  | X9: =SUM(F157:F187) -> 266.6 | Y9: =SUM(G157:G187)/100 -> 2.7976875 | Z9: 7.94274 | AA9: =IF('Crop Factor'!C$7="Loxton_RS",'Crop Factor'!C$5*Evap!Z9,"") -> 7.94274 | AB9: =SUM(I157:I187) -> 313.1 | AC9: =SUM(J157:J187)/100 -> 3.28565625 | AD9: 9.04644375 | AE9: =IF('Crop Factor'!C$7="Mildura_AP",'Crop Factor'!C$5*Evap!AD9,"") ->  | AF9: =SUM(L157:L187) -> 294.5 | AG9: =SUM(M157:M187)/100 -> 3.09046875 | AH9: 8.21378375 | AI9: =IF('Crop Factor'!C$7="Parafield_AP",'Crop Factor'!C$5*Evap!AH9,"") ->  | AJ9: =SUM(O157:O187) -> 266.6 | AK9: =SUM(P157:P187)/100 -> 2.7976875 | AL9: 7.4292075 | AM9: =IF('Crop Factor'!G$7="Hillston_AP",'Crop Factor'!G$5*Evap!AL9,"") -> 
A10: 2008-07-07 | B10: ='Irrig Diary'!E23 -> 0 | C10: 1.6 | D10: 0 | E10: 0 | F10: 1.7 | G10: 0 | H10: 0 | I10: 2 | J10: 0 | K10: 0 | L10: 1.9 | M10: 0 | N10: 0 | O10: 1.5 | P10: 0 | Q10: 0 | S10: Jan | T10: =SUM(C188:C218) -> 269.7 | U10: =SUM(D188:D218)/100 -> 2.72745 | V10: 9.91437875 | W10: =IF('Crop Factor'!C$7="Griffith_CSIRO",'Crop Factor'!C$5*Evap!V10,"") ->  | X10: =SUM(F188:F218) -> 294.5 | Y10: =SUM(G188:G218)/100 -> 2.97825 | Z10: 10.92099 | AA10: =IF('Crop Factor'!C$7="Loxton_RS",'Crop Factor'!C$5*Evap!Z10,"") -> 10.92099 | AB10: =SUM(I188:I218) -> 328.6 | AC10: =SUM(J188:J218)/100 -> 3.3231 | AD10: 12.36954375 | AE10: =IF('Crop Factor'!C$7="Mildura_AP",'Crop Factor'!C$5*Evap!AD10,"") ->  | AF10: =SUM(L188:L218) -> 322.4 | AG10: =SUM(M188:M218)/100 -> 3.2604 | AH10: 11.47418375 | AI10: =IF('Crop Factor'!C$7="Parafield_AP",'Crop Factor'!C$5*Evap!AH10,"") ->  | AJ10: =SUM(O188:O218) -> 272.8 | AK10: =SUM(P188:P218)/100 -> 2.7588 | AL10: 10.1880075 | AM10: =IF('Crop Factor'!G$7="Hillston_AP",'Crop Factor'!G$5*Evap!AL10,"") -> 
A11: 2008-07-08 | B11: ='Irrig Diary'!E24 -> 0 | C11: 1.6 | D11: 0 | E11: 0 | F11: 1.7 | G11: 0 | H11: 0 | I11: 2 | J11: 0 | K11: 0 | L11: 1.9 | M11: 0 | N11: 0 | O11: 1.5 | P11: 0 | Q11: 0 | S11: Feb | T11: =SUM(C219:C246) -> 224 | U11: =SUM(D219:D246)/100 -> 1.81 | V11: 11.72437875 | W11: =IF('Crop Factor'!C$7="Griffith_CSIRO",'Crop Factor'!C$5*Evap!V11,"") ->  | X11: =SUM(F219:F246) -> 235.2 | Y11: =SUM(G219:G246)/100 -> 1.9005 | Z11: 12.82149 | AA11: =IF('Crop Factor'!C$7="Loxton_RS",'Crop Factor'!C$5*Evap!Z11,"") -> 12.82149 | AB11: =SUM(I219:I246) -> 274.4 | AC11: =SUM(J219:J246)/100 -> 2.21725 | AD11: 14.58679375 | AE11: =IF('Crop Factor'!C$7="Mildura_AP",'Crop Factor'!C$5*Evap!AD11,"") ->  | AF11: =SUM(L219:L246) -> 277.2 | AG11: =SUM(M219:M246)/100 -> 2.239875 | AH11: 13.71405875 | AI11: =IF('Crop Factor'!C$7="Parafield_AP",'Crop Factor'!C$5*Evap!AH11,"") ->  | AJ11: =SUM(O219:O246) -> 226.8 | AK11: =SUM(P219:P246)/100 -> 1.832625 | AL11: 12.0206325 | AM11: =IF('Crop Factor'!G$7="Hillston_AP",'Crop Factor'!G$5*Evap!AL11,"") -> 
A12: 2008-07-09 | B12: ='Irrig Diary'!E25 -> 0 | C12: 1.6 | D12: 0 | E12: 0 | F12: 1.7 | G12: 0 | H12: 0 | I12: 2 | J12: 0 | K12: 0 | L12: 1.9 | M12: 0 | N12: 0 | O12: 1.5 | P12: 0 | Q12: 0 | S12: Mar | T12: =SUM(C247:C277) -> 186 | U12: =SUM(D247:D277)/100 -> 1.3905 | V12: 13.11487875 | W12: =IF('Crop Factor'!C$7="Griffith_CSIRO",'Crop Factor'!C$5*Evap!V12,"") ->  | X12: =SUM(F247:F277) -> 201.5 | Y12: =SUM(G247:G277)/100 -> 1.506375 | Z12: 14.327865 | AA12: =IF('Crop Factor'!C$7="Loxton_RS",'Crop Factor'!C$5*Evap!Z12,"") -> 14.327865 | AB12: =SUM(I247:I277) -> 232.5 | AC12: =SUM(J247:J277)/100 -> 1.738125 | AD12: 16.32491875 | AE12: =IF('Crop Factor'!C$7="Mildura_AP",'Crop Factor'!C$5*Evap!AD12,"") ->  | AF12: =SUM(L247:L277) -> 223.2 | AG12: =SUM(M247:M277)/100 -> 1.6686 | AH12: 15.38265875 | AI12: =IF('Crop Factor'!C$7="Parafield_AP",'Crop Factor'!C$5*Evap!AH12,"") ->  | AJ12: =SUM(O247:O277) -> 186 | AK12: =SUM(P247:P277)/100 -> 1.3905 | AL12: 13.4111325 | AM12: =IF('Crop Factor'!G$7="Hillston_AP",'Crop Factor'!G$5*Evap!AL12,"") -> 
A13: 2008-07-10 | B13: ='Irrig Diary'!E26 -> 0 | C13: 1.6 | D13: 0 | E13: 0 | F13: 1.7 | G13: 0 | H13: 0 | I13: 2 | J13: 0 | K13: 0 | L13: 1.9 | M13: 0 | N13: 0 | O13: 1.5 | P13: 0 | Q13: 0 | S13: Apr | T13: =SUM(C278:C307) -> 105 | U13: =SUM(D278:D307)/100 -> 0.4913125 | V13: 13.60619125 | W13: =IF('Crop Factor'!C$7="Griffith_CSIRO",'Crop Factor'!C$5*Evap!V13,"") ->  | X13: =SUM(F278:F307) -> 120 | Y13: =SUM(G278:G307)/100 -> 0.5615 | Z13: 14.889365 | AA13: =IF('Crop Factor'!C$7="Loxton_RS",'Crop Factor'!C$5*Evap!Z13,"") -> 14.889365 | AB13: =SUM(I278:I307) -> 141 | AC13: =SUM(J278:J307)/100 -> 0.6597625 | AD13: 16.98468125 | AE13: =IF('Crop Factor'!C$7="Mildura_AP",'Crop Factor'!C$5*Evap!AD13,"") ->  | AF13: =SUM(L278:L307) -> 135 | AG13: =SUM(M278:M307)/100 -> 0.6316875 | AH13: 16.01434625 | AI13: =IF('Crop Factor'!C$7="Parafield_AP",'Crop Factor'!C$5*Evap!AH13,"") ->  | AJ13: =SUM(O278:O307) -> 114 | AK13: =SUM(P278:P307)/100 -> 0.533425 | AL13: 13.9445575 | AM13: =IF('Crop Factor'!G$7="Hillston_AP",'Crop Factor'!G$5*Evap!AL13,"") -> 
A14: 2008-07-11 | B14: ='Irrig Diary'!E27 -> 0 | C14: 1.6 | D14: 0 | E14: 0 | F14: 1.7 | G14: 0 | H14: 0 | I14: 2 | J14: 0 | K14: 0 | L14: 1.9 | M14: 0 | N14: 0 | O14: 1.5 | P14: 0 | Q14: 0 | S14: May | T14: =SUM(C308:C338) -> 62 | U14: =SUM(D308:D338)/100 -> 0.2299452381 | V14: 13.83613649 | W14: =IF('Crop Factor'!C$7="Griffith_CSIRO",'Crop Factor'!C$5*Evap!V14,"") ->  | X14: =SUM(F308:F338) -> 71.3 | Y14: =SUM(G308:G338)/100 -> 0.2644370238 | Z14: 15.15380202 | AA14: =IF('Crop Factor'!C$7="Loxton_RS",'Crop Factor'!C$5*Evap!Z14,"") -> 15.15380202 | AB14: =SUM(I308:I338) -> 83.7 | AC14: =SUM(J308:J338)/100 -> 0.3104260714 | AD14: 17.29510732 | AE14: =IF('Crop Factor'!C$7="Mildura_AP",'Crop Factor'!C$5*Evap!AD14,"") ->  | AF14: =SUM(L308:L338) -> 83.7 | AG14: =SUM(M308:M338)/100 -> 0.3104260714 | AH14: 16.32477232 | AI14: =IF('Crop Factor'!C$7="Parafield_AP",'Crop Factor'!C$5*Evap!AH14,"") ->  | AJ14: =SUM(O308:O338) -> 68.2 | AK14: =SUM(P308:P338)/100 -> 0.2529397619 | AL14: 14.19749726 | AM14: =IF('Crop Factor'!G$7="Hillston_AP",'Crop Factor'!G$5*Evap!AL14,"") -> 
A15: 2008-07-12 | B15: ='Irrig Diary'!E28 -> 0 | C15: 1.6 | D15: 0 | E15: 0 | F15: 1.7 | G15: 0 | H15: 0 | I15: 2 | J15: 0 | K15: 0 | L15: 1.9 | M15: 0 | N15: 0 | O15: 1.5 | P15: 0 | Q15: 0 | S15: Jun | T15: =SUM(C339:C368) -> 42 | U15: =SUM(D339:D368)/100 -> 0.0252 | V15: 13.86133649 | W15: =IF('Crop Factor'!C$7="Griffith_CSIRO",'Crop Factor'!C$5*Evap!V15,"") ->  | X15: =SUM(F339:F368) -> 51 | Y15: =SUM(G339:G368)/100 -> 0.0306 | Z15: 15.18440202 | AA15: =IF('Crop Factor'!C$7="Loxton_RS",'Crop Factor'!C$5*Evap!Z15,"") -> 15.18440202 | AB15: =SUM(I339:I368) -> 57 | AC15: =SUM(J339:J368)/100 -> 0.0342 | AD15: 17.32930732 | AE15: =IF('Crop Factor'!C$7="Mildura_AP",'Crop Factor'!C$5*Evap!AD15,"") ->  | AF15: =SUM(L339:L368) -> 51 | AG15: =SUM(M339:M368)/100 -> 0.0306 | AH15: 16.35537232 | AI15: =IF('Crop Factor'!C$7="Parafield_AP",'Crop Factor'!C$5*Evap!AH15,"") ->  | AJ15: =SUM(O339:O368) -> 39 | AK15: =SUM(P339:P368)/100 -> 0.0234 | AL15: 14.22089726 | AM15: =IF('Crop Factor'!G$7="Hillston_AP",'Crop Factor'!G$5*Evap!AL15,"") -> 
A16: 2008-07-13 | B16: ='Irrig Diary'!E29 -> 0 | C16: 1.6 | D16: 0 | E16: 0 | F16: 1.7 | G16: 0 | H16: 0 | I16: 2 | J16: 0 | K16: 0 | L16: 1.9 | M16: 0 | N16: 0 | O16: 1.5 | P16: 0 | Q16: 0 | T16: =C369 -> 1727.6 | U16: =D369/100 -> 13.86133649 | V16: =V15 -> 13.86133649 | W16: =W15 ->  | X16: =F369 -> 1907.4 | Y16: =G369/100 -> 15.18440202 | Z16: =Z15 -> 15.18440202 | AA16: =AA15 -> 15.18440202 | AB16: =I369 -> 2179.8 | AC16: =J369/100 -> 17.32930732 | AD16: =AD15 -> 17.32930732 | AE16: =AE15 ->  | AF16: =L369 -> 2054.3 | AG16: =M369/100 -> 16.35537232 | AH16: =AH15 -> 16.35537232 | AI16: =AI15 ->  | AJ16: =O369 -> 1764.2 | AK16: =P369/100 -> 14.22089726 | AL16: =AL15 -> 14.22089726 | AM16: =AM15 -> 
A17: 2008-07-14 | B17: ='Irrig Diary'!E30 -> 0 | C17: 1.6 | D17: 0 | E17: 0 | F17: 1.7 | G17: 0 | H17: 0 | I17: 2 | J17: 0 | K17: 0 | L17: 1.9 | M17: 0 | N17: 0 | O17: 1.5 | P17: 0 | Q17: 0
A18: 2008-07-15 | B18: ='Irrig Diary'!E31 -> 0 | C18: 1.6 | D18: 0 | E18: 0 | F18: 1.7 | G18: 0 | H18: 0 | I18: 2 | J18: 0 | K18: 0 | L18: 1.9 | M18: 0 | N18: 0 | O18: 1.5 | P18: 0 | Q18: 0 | T18: ETc | W18: Jul | X18: Aug | Y18: Sep | Z18: Oct | AA18: Nov | AB18: Dec | AC18: Jan | AD18: Feb | AE18: Mar | AF18: Apr | AG18: May | AH18: Jun | AI18: TOTAL
A19: 2008-07-16 | B19: ='Irrig Diary'!E32 -> 0 | C19: 1.6 | D19: 0 | E19: 0 | F19: 1.7 | G19: 0 | H19: 0 | I19: 2 | J19: 0 | K19: 0 | L19: 1.9 | M19: 0 | N19: 0 | O19: 1.5 | P19: 0 | Q19: 0 | T19: (ML/Ha) | W19: (ML/Ha) | X19: (ML/Ha) | Y19: (ML/Ha) | Z19: (ML/Ha) | AA19: (ML/Ha) | AB19: (ML/Ha) | AC19: (ML/Ha) | AD19: (ML/Ha) | AE19: (ML/Ha) | AF19: (ML/Ha) | AG19: (ML/Ha) | AH19: (ML/Ha) | AI19: (ML/Ha)
A20: 2008-07-17 | B20: ='Irrig Diary'!E33 -> 0 | C20: 1.6 | D20: 0 | E20: 0 | F20: 1.7 | G20: 0 | H20: 0 | I20: 2 | J20: 0 | K20: 0 | L20: 1.9 | M20: 0 | N20: 0 | O20: 1.5 | P20: 0 | Q20: 0 | S20: Griffith_CSIRO | T20: =U16 -> 13.86133649 | V20: Griffith_CSIRO | W20: =W4 ->  | X20: =W5 ->  | Y20: =W6 ->  | Z20: =W7 ->  | AA20: =W8 ->  | AB20: =W9 ->  | AC20: =W10 ->  | AD20: =W11 ->  | AE20: =W12 ->  | AF20: =W13 ->  | AG20: =W14 ->  | AH20: =W15 ->  | AI20: =W16 -> 
A21: 2008-07-18 | B21: ='Irrig Diary'!E34 -> 0 | C21: 1.6 | D21: 0 | E21: 0 | F21: 1.7 | G21: 0 | H21: 0 | I21: 2 | J21: 0 | K21: 0 | L21: 1.9 | M21: 0 | N21: 0 | O21: 1.5 | P21: 0 | Q21: 0 | S21: Loxton_RS | T21: =Y16 -> 15.18440202 | V21: Loxton_RS | W21: =AA4 -> 0 | X21: =AA5 -> 0.228015 | Y21: =AA6 -> 0.99164 | Z21: =AA7 -> 2.777865 | AA21: =AA8 -> 5.1450525 | AB21: =AA9 -> 7.94274 | AC21: =AA10 -> 10.92099 | AD21: =AA11 -> 12.82149 | AE21: =AA12 -> 14.327865 | AF21: =AA13 -> 14.889365 | AG21: =AA14 -> 15.15380202 | AH21: =AA15 -> 15.18440202 | AI21: =AA16 -> 15.18440202
A22: 2008-07-19 | B22: ='Irrig Diary'!E35 -> 0 | C22: 1.6 | D22: 0 | E22: 0 | F22: 1.7 | G22: 0 | H22: 0 | I22: 2 | J22: 0 | K22: 0 | L22: 1.9 | M22: 0 | N22: 0 | O22: 1.5 | P22: 0 | Q22: 0 | S22: Mildura_AP | T22: =AC16 -> 17.32930732 | V22: Mildura_AP | W22: =AE4 ->  | X22: =AE5 ->  | Y22: =AE6 ->  | Z22: =AE7 ->  | AA22: =AE8 ->  | AB22: =AE9 ->  | AC22: =AE10 ->  | AD22: =AE11 ->  | AE22: =AE12 ->  | AF22: =AE13 ->  | AG22: =AE14 ->  | AH22: =AE15 ->  | AI22: =AE16 -> 
A23: 2008-07-20 | B23: ='Irrig Diary'!E36 -> 0 | C23: 1.6 | D23: 0 | E23: 0 | F23: 1.7 | G23: 0 | H23: 0 | I23: 2 | J23: 0 | K23: 0 | L23: 1.9 | M23: 0 | N23: 0 | O23: 1.5 | P23: 0 | Q23: 0 | S23: Parafield_AP | T23: =AG16 -> 16.35537232 | V23: Parafield_AP | W23: =AI4 ->  | X23: =AI5 ->  | Y23: =AI6 ->  | Z23: =AI7 ->  | AA23: =AI8 ->  | AB23: =AI9 ->  | AC23: =AI10 ->  | AD23: =AI11 ->  | AE23: =AI12 ->  | AF23: =AI14 ->  | AG23: =AI14 ->  | AH23: =AI15 ->  | AI23: =AI16 -> 
A24: 2008-07-21 | B24: ='Irrig Diary'!E37 -> 0 | C24: 1.6 | D24: 0 | E24: 0 | F24: 1.7 | G24: 0 | H24: 0 | I24: 2 | J24: 0 | K24: 0 | L24: 1.9 | M24: 0 | N24: 0 | O24: 1.5 | P24: 0 | Q24: 0 | S24: Hillston_AP | T24: =AK16 -> 14.22089726 | V24: Hillston_AP | W24: =AM4 ->  | X24: =AM5 ->  | Y24: =AM6 ->  | Z24: =AM7 ->  | AA24: =AM8 ->  | AB24: =AM9 ->  | AC24: =AM10 ->  | AD24: =AM11 ->  | AE24: =AM12 ->  | AF24: =AM13 ->  | AG24: =AM14 ->  | AH24: =AM15 ->  | AI24: =AM16 -> 
A25: 2008-07-22 | B25: ='Irrig Diary'!E38 -> 0 | C25: 1.6 | D25: 0 | E25: 0 | F25: 1.7 | G25: 0 | H25: 0 | I25: 2 | J25: 0 | K25: 0 | L25: 1.9 | M25: 0 | N25: 0 | O25: 1.5 | P25: 0 | Q25: 0
A26: 2008-07-23 | B26: ='Irrig Diary'!E39 -> 0 | C26: 1.6 | D26: 0 | E26: 0 | F26: 1.7 | G26: 0 | H26: 0 | I26: 2 | J26: 0 | K26: 0 | L26: 1.9 | M26: 0 | N26: 0 | O26: 1.5 | P26: 0 | Q26: 0
A27: 2008-07-24 | B27: ='Irrig Diary'!E40 -> 0 | C27: 1.6 | D27: 0 | E27: 0 | F27: 1.7 | G27: 0 | H27: 0 | I27: 2 | J27: 0 | K27: 0 | L27: 1.9 | M27: 0 | N27: 0 | O27: 1.5 | P27: 0 | Q27: 0
A28: 2008-07-25 | B28: ='Irrig Diary'!E41 -> 0 | C28: 1.6 | D28: 0 | E28: 0 | F28: 1.7 | G28: 0 | H28: 0 | I28: 2 | J28: 0 | K28: 0 | L28: 1.9 | M28: 0 | N28: 0 | O28: 1.5 | P28: 0 | Q28: 0
A29: 2008-07-26 | B29: ='Irrig Diary'!E42 -> 0 | C29: 1.6 | D29: 0 | E29: 0 | F29: 1.7 | G29: 0 | H29: 0 | I29: 2 | J29: 0 | K29: 0 | L29: 1.9 | M29: 0 | N29: 0 | O29: 1.5 | P29: 0 | Q29: 0
A30: 2008-07-27 | B30: ='Irrig Diary'!E43 -> 0 | C30: 1.6 | D30: 0 | E30: 0 | F30: 1.7 | G30: 0 | H30: 0 | I30: 2 | J30: 0 | K30: 0 | L30: 1.9 | M30: 0 | N30: 0 | O30: 1.5 | P30: 0 | Q30: 0
A31: 2008-07-28 | B31: ='Irrig Diary'!E44 -> 0 | C31: 1.6 | D31: 0 | E31: 0 | F31: 1.7 | G31: 0 | H31: 0 | I31: 2 | J31: 0 | K31: 0 | L31: 1.9 | M31: 0 | N31: 0 | O31: 1.5 | P31: 0 | Q31: 0
A32: 2008-07-29 | B32: ='Irrig Diary'!E45 -> 0 | C32: 1.6 | D32: 0 | E32: 0 | F32: 1.7 | G32: 0 | H32: 0 | I32: 2 | J32: 0 | K32: 0 | L32: 1.9 | M32: 0 | N32: 0 | O32: 1.5 | P32: 0 | Q32: 0
A33: 2008-07-30 | B33: ='Irrig Diary'!E46 -> 0 | C33: 1.6 | D33: 0 | E33: 0 | F33: 1.7 | G33: 0 | H33: 0 | I33: 2 | J33: 0 | K33: 0 | L33: 1.9 | M33: 0 | N33: 0 | O33: 1.5 | P33: 0 | Q33: 0
A34: 2008-07-31 | B34: ='Irrig Diary'!E47 -> 0 | C34: 1.6 | D34: 0 | E34: 0 | F34: 1.7 | G34: 0 | H34: 0 | I34: 2 | J34: 0 | K34: 0 | L34: 1.9 | M34: 0 | N34: 0 | O34: 1.5 | P34: 0 | Q34: 0
A35: 2008-08-01 | B35: ='Irrig Diary'!E48 -> 0 | C35: 2.3 | D35: 0 | E35: 0 | F35: 2.7 | G35: 0 | H35: 0 | I35: 3 | J35: 0 | K35: 0 | L35: 2.7 | M35: 0 | N35: 0 | O35: 2.1 | P35: 0 | Q35: 0
A36: 2008-08-02 | B36: ='Irrig Diary'!E49 -> 0 | C36: 2.3 | D36: 0 | E36: 0 | F36: 2.7 | G36: 0 | H36: 0 | I36: 3 | J36: 0 | K36: 0 | L36: 2.7 | M36: 0 | N36: 0 | O36: 2.1 | P36: 0 | Q36: 0
A37: 2008-08-03 | B37: ='Irrig Diary'!E50 -> 0 | C37: 2.3 | D37: 0 | E37: 0 | F37: 2.7 | G37: 0 | H37: 0 | I37: 3 | J37: 0 | K37: 0 | L37: 2.7 | M37: 0 | N37: 0 | O37: 2.1 | P37: 0 | Q37: 0
A38: 2008-08-04 | B38: ='Irrig Diary'!E51 -> 0 | C38: 2.3 | D38: 0 | E38: 0 | F38: 2.7 | G38: 0 | H38: 0 | I38: 3 | J38: 0 | K38: 0 | L38: 2.7 | M38: 0 | N38: 0 | O38: 2.1 | P38: 0 | Q38: 0
A39: 2008-08-05 | B39: ='Irrig Diary'!E52 -> 0 | C39: 2.3 | D39: 0 | E39: 0 | F39: 2.7 | G39: 0 | H39: 0 | I39: 3 | J39: 0 | K39: 0 | L39: 2.7 | M39: 0 | N39: 0 | O39: 2.1 | P39: 0 | Q39: 0
A40: 2008-08-06 | B40: ='Irrig Diary'!E53 -> 0 | C40: 2.3 | D40: 0 | E40: 0 | F40: 2.7 | G40: 0 | H40: 0 | I40: 3 | J40: 0 | K40: 0 | L40: 2.7 | M40: 0 | N40: 0 | O40: 2.1 | P40: 0 | Q40: 0
A41: 2008-08-07 | B41: ='Irrig Diary'!E54 -> 0 | C41: 2.3 | D41: 0 | E41: 0 | F41: 2.7 | G41: 0 | H41: 0 | I41: 3 | J41: 0 | K41: 0 | L41: 2.7 | M41: 0 | N41: 0 | O41: 2.1 | P41: 0 | Q41: 0
A42: 2008-08-08 | B42: ='Irrig Diary'!E55 -> 0 | C42: 2.3 | D42: 0 | E42: 0 | F42: 2.7 | G42: 0 | H42: 0 | I42: 3 | J42: 0 | K42: 0 | L42: 2.7 | M42: 0 | N42: 0 | O42: 2.1 | P42: 0 | Q42: 0
A43: 2008-08-09 | B43: ='Irrig Diary'!E56 -> 0 | C43: 2.3 | D43: 0 | E43: 0 | F43: 2.7 | G43: 0 | H43: 0 | I43: 3 | J43: 0 | K43: 0 | L43: 2.7 | M43: 0 | N43: 0 | O43: 2.1 | P43: 0 | Q43: 0
A44: 2008-08-10 | B44: ='Irrig Diary'!E57 -> 0 | C44: 2.3 | D44: 0 | E44: 0 | F44: 2.7 | G44: 0 | H44: 0 | I44: 3 | J44: 0 | K44: 0 | L44: 2.7 | M44: 0 | N44: 0 | O44: 2.1 | P44: 0 | Q44: 0
A45: 2008-08-11 | B45: ='Irrig Diary'!E58 -> 0 | C45: 2.3 | D45: 0 | E45: 0 | F45: 2.7 | G45: 0 | H45: 0 | I45: 3 | J45: 0 | K45: 0 | L45: 2.7 | M45: 0 | N45: 0 | O45: 2.1 | P45: 0 | Q45: 0
A46: 2008-08-12 | B46: ='Irrig Diary'!E59 -> 0 | C46: 2.3 | D46: 0 | E46: 0 | F46: 2.7 | G46: 0 | H46: 0 | I46: 3 | J46: 0 | K46: 0 | L46: 2.7 | M46: 0 | N46: 0 | O46: 2.1 | P46: 0 | Q46: 0
A47: 2008-08-13 | B47: ='Irrig Diary'!E60 -> 0.3 | C47: 2.3 | D47: 0.69 | E47: 0.69 | F47: 2.7 | G47: 0.81 | H47: 0.81 | I47: 3 | J47: 0.9 | K47: 0.9 | L47: 2.7 | M47: 0.81 | N47: 0.81 | O47: 2.1 | P47: 0.63 | Q47: 0.63
A48: 2008-08-14 | B48: ='Irrig Diary'!E61 -> 0.3 | C48: 2.3 | D48: 0.69 | E48: 1.38 | F48: 2.7 | G48: 0.81 | H48: 1.62 | I48: 3 | J48: 0.9 | K48: 1.8 | L48: 2.7 | M48: 0.81 | N48: 1.62 | O48: 2.1 | P48: 0.63 | Q48: 1.26
A49: 2008-08-15 | B49: ='Irrig Diary'!E62 -> 0.3 | C49: 2.3 | D49: 0.69 | E49: 2.07 | F49: 2.7 | G49: 0.81 | H49: 2.43 | I49: 3 | J49: 0.9 | K49: 2.7 | L49: 2.7 | M49: 0.81 | N49: 2.43 | O49: 2.1 | P49: 0.63 | Q49: 1.89
A50: 2008-08-16 | B50: ='Irrig Diary'!E63 -> 0.3 | C50: 2.3 | D50: 0.69 | E50: 2.76 | F50: 2.7 | G50: 0.81 | H50: 3.24 | I50: 3 | J50: 0.9 | K50: 3.6 | L50: 2.7 | M50: 0.81 | N50: 3.24 | O50: 2.1 | P50: 0.63 | Q50: 2.52
A51: 2008-08-17 | B51: ='Irrig Diary'!E64 -> 0.4 | C51: 2.3 | D51: 0.92 | E51: 3.68 | F51: 2.7 | G51: 1.08 | H51: 4.32 | I51: 3 | J51: 1.2 | K51: 4.8 | L51: 2.7 | M51: 1.08 | N51: 4.32 | O51: 2.1 | P51: 0.84 | Q51: 3.36
A52: 2008-08-18 | B52: ='Irrig Diary'!E65 -> 0.4 | C52: 2.3 | D52: 0.92 | E52: 4.6 | F52: 2.7 | G52: 1.08 | H52: 5.4 | I52: 3 | J52: 1.2 | K52: 6 | L52: 2.7 | M52: 1.08 | N52: 5.4 | O52: 2.1 | P52: 0.84 | Q52: 4.2
A53: 2008-08-19 | B53: ='Irrig Diary'!E66 -> 0.55 | C53: 2.3 | D53: 1.265 | E53: 5.865 | F53: 2.7 | G53: 1.485 | H53: 6.885 | I53: 3 | J53: 1.65 | K53: 7.65 | L53: 2.7 | M53: 1.485 | N53: 6.885 | O53: 2.1 | P53: 1.155 | Q53: 5.355
A54: 2008-08-20 | B54: ='Irrig Diary'!E67 -> 0.475 | C54: 2.3 | D54: 1.0925 | E54: 6.9575 | F54: 2.7 | G54: 1.2825 | H54: 8.1675 | I54: 3 | J54: 1.425 | K54: 9.075 | L54: 2.7 | M54: 1.2825 | N54: 8.1675 | O54: 2.1 | P54: 0.9975 | Q54: 6.3525
A55: 2008-08-21 | B55: ='Irrig Diary'!E68 -> 0.48 | C55: 2.3 | D55: 1.104 | E55: 8.0615 | F55: 2.7 | G55: 1.296 | H55: 9.4635 | I55: 3 | J55: 1.44 | K55: 10.515 | L55: 2.7 | M55: 1.296 | N55: 9.4635 | O55: 2.1 | P55: 1.008 | Q55: 7.3605
A56: 2008-08-22 | B56: ='Irrig Diary'!E69 -> 0.48 | C56: 2.3 | D56: 1.104 | E56: 9.1655 | F56: 2.7 | G56: 1.296 | H56: 10.7595 | I56: 3 | J56: 1.44 | K56: 11.955 | L56: 2.7 | M56: 1.296 | N56: 10.7595 | O56: 2.1 | P56: 1.008 | Q56: 8.3685
A57: 2008-08-23 | B57: ='Irrig Diary'!E70 -> 0.48 | C57: 2.3 | D57: 1.104 | E57: 10.2695 | F57: 2.7 | G57: 1.296 | H57: 12.0555 | I57: 3 | J57: 1.44 | K57: 13.395 | L57: 2.7 | M57: 1.296 | N57: 12.0555 | O57: 2.1 | P57: 1.008 | Q57: 9.3765
A58: 2008-08-24 | B58: ='Irrig Diary'!E71 -> 0.48 | C58: 2.3 | D58: 1.104 | E58: 11.3735 | F58: 2.7 | G58: 1.296 | H58: 13.3515 | I58: 3 | J58: 1.44 | K58: 14.835 | L58: 2.7 | M58: 1.296 | N58: 13.3515 | O58: 2.1 | P58: 1.008 | Q58: 10.3845
A59: 2008-08-25 | B59: ='Irrig Diary'!E72 -> 0.5 | C59: 2.3 | D59: 1.15 | E59: 12.5235 | F59: 2.7 | G59: 1.35 | H59: 14.7015 | I59: 3 | J59: 1.5 | K59: 16.335 | L59: 2.7 | M59: 1.35 | N59: 14.7015 | O59: 2.1 | P59: 1.05 | Q59: 11.4345
A60: 2008-08-26 | B60: ='Irrig Diary'!E73 -> 0.5 | C60: 2.3 | D60: 1.15 | E60: 13.6735 | F60: 2.7 | G60: 1.35 | H60: 16.0515 | I60: 3 | J60: 1.5 | K60: 17.835 | L60: 2.7 | M60: 1.35 | N60: 16.0515 | O60: 2.1 | P60: 1.05 | Q60: 12.4845
A61: 2008-08-27 | B61: ='Irrig Diary'!E74 -> 0.5 | C61: 2.3 | D61: 1.15 | E61: 14.8235 | F61: 2.7 | G61: 1.35 | H61: 17.4015 | I61: 3 | J61: 1.5 | K61: 19.335 | L61: 2.7 | M61: 1.35 | N61: 17.4015 | O61: 2.1 | P61: 1.05 | Q61: 13.5345
A62: 2008-08-28 | B62: ='Irrig Diary'!E75 -> 0.5 | C62: 2.3 | D62: 1.15 | E62: 15.9735 | F62: 2.7 | G62: 1.35 | H62: 18.7515 | I62: 3 | J62: 1.5 | K62: 20.835 | L62: 2.7 | M62: 1.35 | N62: 18.7515 | O62: 2.1 | P62: 1.05 | Q62: 14.5845
A63: 2008-08-29 | B63: ='Irrig Diary'!E76 -> 0.5 | C63: 2.3 | D63: 1.15 | E63: 17.1235 | F63: 2.7 | G63: 1.35 | H63: 20.1015 | I63: 3 | J63: 1.5 | K63: 22.335 | L63: 2.7 | M63: 1.35 | N63: 20.1015 | O63: 2.1 | P63: 1.05 | Q63: 15.6345
A64: 2008-08-30 | B64: ='Irrig Diary'!E77 -> 0.5 | C64: 2.3 | D64: 1.15 | E64: 18.2735 | F64: 2.7 | G64: 1.35 | H64: 21.4515 | I64: 3 | J64: 1.5 | K64: 23.835 | L64: 2.7 | M64: 1.35 | N64: 21.4515 | O64: 2.1 | P64: 1.05 | Q64: 16.6845
A65: 2008-08-31 | B65: ='Irrig Diary'!E78 -> 0.5 | C65: 2.3 | D65: 1.15 | E65: 19.4235 | F65: 2.7 | G65: 1.35 | H65: 22.8015 | I65: 3 | J65: 1.5 | K65: 25.335 | L65: 2.7 | M65: 1.35 | N65: 22.8015 | O65: 2.1 | P65: 1.05 | Q65: 17.7345
A66: 2008-09-01 | B66: ='Irrig Diary'!E79 -> 0.5 | C66: 3.4 | D66: 1.7 | E66: 21.1235 | F66: 4.1 | G66: 2.05 | H66: 24.8515 | I66: 4.6 | J66: 2.3 | K66: 27.635 | L66: 3.8 | M66: 1.9 | N66: 24.7015 | O66: 3.6 | P66: 1.8 | Q66: 19.5345
A67: 2008-09-02 | B67: ='Irrig Diary'!E80 -> 0.5 | C67: 3.4 | D67: 1.7 | E67: 22.8235 | F67: 4.1 | G67: 2.05 | H67: 26.9015 | I67: 4.6 | J67: 2.3 | K67: 29.935 | L67: 3.8 | M67: 1.9 | N67: 26.6015 | O67: 3.6 | P67: 1.8 | Q67: 21.3345
A68: 2008-09-03 | B68: ='Irrig Diary'!E81 -> 0.5 | C68: 3.4 | D68: =$B68*C68 -> 1.7 | E68: 24.5235 | F68: 4.1 | G68: 2.05 | H68: 28.9515 | I68: 4.6 | J68: =$B68*I68 -> 2.3 | K68: 32.235 | L68: 3.8 | M68: =$B68*L68 -> 1.9 | N68: 28.5015 | O68: 3.6 | P68: =$B68*O68 -> 1.8 | Q68: 23.1345
A69: 2008-09-04 | B69: ='Irrig Diary'!E82 -> 0.5 | C69: 3.4 | D69: 1.7 | E69: 26.2235 | F69: 4.1 | G69: =$B69*F69 -> 2.05 | H69: 31.0015 | I69: 4.6 | J69: 2.3 | K69: 34.535 | L69: 3.8 | M69: 1.9 | N69: 30.4015 | O69: 3.6 | P69: 1.8 | Q69: 24.9345
A70: 2008-09-05 | B70: ='Irrig Diary'!E83 -> 0.5 | C70: 3.4 | D70: 1.7 | E70: =E69+D70 -> 27.9235 | F70: 4.1 | G70: 2.05 | H70: =H69+G70 -> 33.0515 | I70: 4.6 | J70: 2.3 | K70: =K69+J70 -> 36.835 | L70: 3.8 | M70: 1.9 | N70: =N69+M70 -> 32.3015 | O70: 3.6 | P70: 1.8 | Q70: =Q69+P70 -> 26.7345
A71: 2008-09-06 | B71: ='Irrig Diary'!E84 -> 0.5375 | C71: 3.4 | D71: 1.8275 | E71: 29.751 | F71: 4.1 | G71: 2.20375 | H71: 35.25525 | I71: 4.6 | J71: 2.4725 | K71: 39.3075 | L71: 3.8 | M71: 2.0425 | N71: 34.344 | O71: 3.6 | P71: 1.935 | Q71: 28.6695
A72: 2008-09-07 | B72: ='Irrig Diary'!E85 -> 0.5375 | C72: 3.4 | D72: 1.8275 | E72: 31.5785 | F72: 4.1 | G72: 2.20375 | H72: 37.459 | I72: 4.6 | J72: 2.4725 | K72: 41.78 | L72: 3.8 | M72: 2.0425 | N72: 36.3865 | O72: 3.6 | P72: 1.935 | Q72: 30.6045
A73: 2008-09-08 | B73: ='Irrig Diary'!E86 -> 0.5375 | C73: 3.4 | D73: 1.8275 | E73: 33.406 | F73: 4.1 | G73: 2.20375 | H73: 39.66275 | I73: 4.6 | J73: 2.4725 | K73: 44.2525 | L73: 3.8 | M73: 2.0425 | N73: 38.429 | O73: 3.6 | P73: 1.935 | Q73: 32.5395
A74: 2008-09-09 | B74: ='Irrig Diary'!E87 -> 0.5375 | C74: 3.4 | D74: 1.8275 | E74: 35.2335 | F74: 4.1 | G74: 2.20375 | H74: 41.8665 | I74: 4.6 | J74: 2.4725 | K74: 46.725 | L74: 3.8 | M74: 2.0425 | N74: 40.4715 | O74: 3.6 | P74: 1.935 | Q74: 34.4745
A75: 2008-09-10 | B75: ='Irrig Diary'!E88 -> 0.5375 | C75: 3.4 | D75: 1.8275 | E75: 37.061 | F75: 4.1 | G75: 2.20375 | H75: 44.07025 | I75: 4.6 | J75: 2.4725 | K75: 49.1975 | L75: 3.8 | M75: 2.0425 | N75: 42.514 | O75: 3.6 | P75: 1.935 | Q75: 36.4095
A76: 2008-09-11 | B76: ='Irrig Diary'!E89 -> 0.5375 | C76: 3.4 | D76: 1.8275 | E76: 38.8885 | F76: 4.1 | G76: 2.20375 | H76: 46.274 | I76: 4.6 | J76: 2.4725 | K76: 51.67 | L76: 3.8 | M76: 2.0425 | N76: 44.5565 | O76: 3.6 | P76: 1.935 | Q76: 38.3445
A77: 2008-09-12 | B77: ='Irrig Diary'!E90 -> 0.5375 | C77: 3.4 | D77: 1.8275 | E77: 40.716 | F77: 4.1 | G77: 2.20375 | H77: 48.47775 | I77: 4.6 | J77: 2.4725 | K77: 54.1425 | L77: 3.8 | M77: 2.0425 | N77: 46.599 | O77: 3.6 | P77: 1.935 | Q77: 40.2795
A78: 2008-09-13 | B78: ='Irrig Diary'!E91 -> 0.5625 | C78: 3.4 | D78: 1.9125 | E78: 42.6285 | F78: 4.1 | G78: 2.30625 | H78: 50.784 | I78: 4.6 | J78: 2.5875 | K78: 56.73 | L78: 3.8 | M78: 2.1375 | N78: 48.7365 | O78: 3.6 | P78: 2.025 | Q78: 42.3045
A79: 2008-09-14 | B79: ='Irrig Diary'!E92 -> 0.5625 | C79: 3.4 | D79: 1.9125 | E79: 44.541 | F79: 4.1 | G79: 2.30625 | H79: 53.09025 | I79: 4.6 | J79: 2.5875 | K79: 59.3175 | L79: 3.8 | M79: 2.1375 | N79: 50.874 | O79: 3.6 | P79: 2.025 | Q79: 44.3295
A80: 2008-09-15 | B80: ='Irrig Diary'!E93 -> 0.5625 | C80: 3.4 | D80: 1.9125 | E80: 46.4535 | F80: 4.1 | G80: 2.30625 | H80: 55.3965 | I80: 4.6 | J80: 2.5875 | K80: 61.905 | L80: 3.8 | M80: 2.1375 | N80: 53.0115 | O80: 3.6 | P80: 2.025 | Q80: 46.3545
A81: 2008-09-16 | B81: ='Irrig Diary'!E94 -> 0.5625 | C81: 3.4 | D81: 1.9125 | E81: 48.366 | F81: 4.1 | G81: 2.30625 | H81: 57.70275 | I81: 4.6 | J81: 2.5875 | K81: 64.4925 | L81: 3.8 | M81: 2.1375 | N81: 55.149 | O81: 3.6 | P81: 2.025 | Q81: 48.3795
A82: 2008-09-17 | B82: ='Irrig Diary'!E95 -> 0.5625 | C82: 3.4 | D82: 1.9125 | E82: 50.2785 | F82: 4.1 | G82: 2.30625 | H82: 60.009 | I82: 4.6 | J82: 2.5875 | K82: 67.08 | L82: 3.8 | M82: 2.1375 | N82: 57.2865 | O82: 3.6 | P82: 2.025 | Q82: 50.4045
A83: 2008-09-18 | B83: ='Irrig Diary'!E96 -> 0.6 | C83: 3.4 | D83: 2.04 | E83: 52.3185 | F83: 4.1 | G83: 2.46 | H83: 62.469 | I83: 4.6 | J83: 2.76 | K83: 69.84 | L83: 3.8 | M83: 2.28 | N83: 59.5665 | O83: 3.6 | P83: 2.16 | Q83: 52.5645
A84: 2008-09-19 | B84: ='Irrig Diary'!E97 -> 0.6375 | C84: 3.4 | D84: 2.1675 | E84: 54.486 | F84: 4.1 | G84: 2.61375 | H84: 65.08275 | I84: 4.6 | J84: 2.9325 | K84: 72.7725 | L84: 3.8 | M84: 2.4225 | N84: 61.989 | O84: 3.6 | P84: 2.295 | Q84: 54.8595
A85: 2008-09-20 | B85: ='Irrig Diary'!E98 -> 0.6375 | C85: 3.4 | D85: 2.1675 | E85: 56.6535 | F85: 4.1 | G85: 2.61375 | H85: 67.6965 | I85: 4.6 | J85: 2.9325 | K85: 75.705 | L85: 3.8 | M85: 2.4225 | N85: 64.4115 | O85: 3.6 | P85: 2.295 | Q85: 57.1545
A86: 2008-09-21 | B86: ='Irrig Diary'!E99 -> 0.675 | C86: 3.4 | D86: 2.295 | E86: 58.9485 | F86: 4.1 | G86: 2.7675 | H86: 70.464 | I86: 4.6 | J86: 3.105 | K86: 78.81 | L86: 3.8 | M86: 2.565 | N86: 66.9765 | O86: 3.6 | P86: 2.43 | Q86: 59.5845
A87: 2008-09-22 | B87: ='Irrig Diary'!E100 -> 0.675 | C87: 3.4 | D87: 2.295 | E87: 61.2435 | F87: 4.1 | G87: 2.7675 | H87: 73.2315 | I87: 4.6 | J87: 3.105 | K87: 81.915 | L87: 3.8 | M87: 2.565 | N87: 69.5415 | O87: 3.6 | P87: 2.43 | Q87: 62.0145
A88: 2008-09-23 | B88: ='Irrig Diary'!E101 -> 0.7625 | C88: 3.4 | D88: 2.5925 | E88: 63.836 | F88: 4.1 | G88: 3.12625 | H88: 76.35775 | I88: 4.6 | J88: 3.5075 | K88: 85.4225 | L88: 3.8 | M88: 2.8975 | N88: 72.439 | O88: 3.6 | P88: 2.745 | Q88: 64.7595
A89: 2008-09-24 | B89: ='Irrig Diary'!E102 -> 0.7625 | C89: 3.4 | D89: 2.5925 | E89: 66.4285 | F89: 4.1 | G89: 3.12625 | H89: 79.484 | I89: 4.6 | J89: 3.5075 | K89: 88.93 | L89: 3.8 | M89: 2.8975 | N89: 75.3365 | O89: 3.6 | P89: 2.745 | Q89: 67.5045
A90: 2008-09-25 | B90: ='Irrig Diary'!E103 -> 0.8 | C90: 3.4 | D90: 2.72 | E90: 69.1485 | F90: 4.1 | G90: 3.28 | H90: 82.764 | I90: 4.6 | J90: 3.68 | K90: 92.61 | L90: 3.8 | M90: 3.04 | N90: 78.3765 | O90: 3.6 | P90: 2.88 | Q90: 70.3845
A91: 2008-09-26 | B91: ='Irrig Diary'!E104 -> 0.8 | C91: 3.4 | D91: 2.72 | E91: 71.8685 | F91: 4.1 | G91: 3.28 | H91: 86.044 | I91: 4.6 | J91: 3.68 | K91: 96.29 | L91: 3.8 | M91: 3.04 | N91: 81.4165 | O91: 3.6 | P91: 2.88 | Q91: 73.2645
A92: 2008-09-27 | B92: ='Irrig Diary'!E105 -> 0.8 | C92: 3.4 | D92: 2.72 | E92: 74.5885 | F92: 4.1 | G92: 3.28 | H92: 89.324 | I92: 4.6 | J92: 3.68 | K92: 99.97 | L92: 3.8 | M92: 3.04 | N92: 84.4565 | O92: 3.6 | P92: 2.88 | Q92: 76.1445
A93: 2008-09-28 | B93: ='Irrig Diary'!E106 -> 0.8 | C93: 3.4 | D93: 2.72 | E93: 77.3085 | F93: 4.1 | G93: 3.28 | H93: 92.604 | I93: 4.6 | J93: 3.68 | K93: 103.65 | L93: 3.8 | M93: 3.04 | N93: 87.4965 | O93: 3.6 | P93: 2.88 | Q93: 79.0245
A94: 2008-09-29 | B94: ='Irrig Diary'!E107 -> 0.8 | C94: 3.4 | D94: 2.72 | E94: 80.0285 | F94: 4.1 | G94: 3.28 | H94: 95.884 | I94: 4.6 | J94: 3.68 | K94: 107.33 | L94: 3.8 | M94: 3.04 | N94: 90.5365 | O94: 3.6 | P94: 2.88 | Q94: 81.9045
A95: 2008-09-30 | B95: ='Irrig Diary'!E108 -> 0.8 | C95: 3.4 | D95: 2.72 | E95: 82.7485 | F95: 4.1 | G95: 3.28 | H95: 99.164 | I95: 4.6 | J95: 3.68 | K95: 111.01 | L95: 3.8 | M95: 3.04 | N95: 93.5765 | O95: 3.6 | P95: 2.88 | Q95: 84.7845
A96: 2008-10-01 | B96: ='Irrig Diary'!E109 -> 0.8 | C96: 4.9 | D96: 3.92 | E96: 86.6685 | F96: 5.9 | G96: 4.72 | H96: 103.884 | I96: 6.5 | J96: 5.2 | K96: 116.21 | L96: 5.7 | M96: 4.56 | N96: 98.1365 | O96: 5.2 | P96: 4.16 | Q96: 88.9445
A97: 2008-10-02 | B97: ='Irrig Diary'!E110 -> 0.85 | C97: 4.9 | D97: 4.165 | E97: 90.8335 | F97: 5.9 | G97: 5.015 | H97: 108.899 | I97: 6.5 | J97: 5.525 | K97: 121.735 | L97: 5.7 | M97: 4.845 | N97: 102.9815 | O97: 5.2 | P97: 4.42 | Q97: 93.3645
A98: 2008-10-03 | B98: ='Irrig Diary'!E111 -> 0.875 | C98: 4.9 | D98: 4.2875 | E98: 95.121 | F98: 5.9 | G98: 5.1625 | H98: 114.0615 | I98: 6.5 | J98: 5.6875 | K98: 127.4225 | L98: 5.7 | M98: 4.9875 | N98: 107.969 | O98: 5.2 | P98: 4.55 | Q98: 97.9145
A99: 2008-10-04 | B99: ='Irrig Diary'!E112 -> 0.875 | C99: 4.9 | D99: 4.2875 | E99: 99.4085 | F99: 5.9 | G99: 5.1625 | H99: 119.224 | I99: 6.5 | J99: 5.6875 | K99: 133.11 | L99: 5.7 | M99: 4.9875 | N99: 112.9565 | O99: 5.2 | P99: 4.55 | Q99: 102.4645
A100: 2008-10-05 | B100: ='Irrig Diary'!E113 -> 0.9 | C100: 4.9 | D100: 4.41 | E100: 103.8185 | F100: 5.9 | G100: 5.31 | H100: 124.534 | I100: 6.5 | J100: 5.85 | K100: 138.96 | L100: 5.7 | M100: 5.13 | N100: 118.0865 | O100: 5.2 | P100: 4.68 | Q100: 107.1445
A101: 2008-10-06 | B101: ='Irrig Diary'!E114 -> 0.925 | C101: 4.9 | D101: 4.5325 | E101: 108.351 | F101: 5.9 | G101: 5.4575 | H101: 129.9915 | I101: 6.5 | J101: 6.0125 | K101: 144.9725 | L101: 5.7 | M101: 5.2725 | N101: 123.359 | O101: 5.2 | P101: 4.81 | Q101: 111.9545
A102: 2008-10-07 | B102: ='Irrig Diary'!E115 -> 0.925 | C102: 4.9 | D102: 4.5325 | E102: 112.8835 | F102: 5.9 | G102: 5.4575 | H102: 135.449 | I102: 6.5 | J102: 6.0125 | K102: 150.985 | L102: 5.7 | M102: 5.2725 | N102: 128.6315 | O102: 5.2 | P102: 4.81 | Q102: 116.7645
A103: 2008-10-08 | B103: ='Irrig Diary'!E116 -> 0.925 | C103: 4.9 | D103: 4.5325 | E103: 117.416 | F103: 5.9 | G103: 5.4575 | H103: 140.9065 | I103: 6.5 | J103: 6.0125 | K103: 156.9975 | L103: 5.7 | M103: 5.2725 | N103: 133.904 | O103: 5.2 | P103: 4.81 | Q103: 121.5745
A104: 2008-10-09 | B104: ='Irrig Diary'!E117 -> 0.925 | C104: 4.9 | D104: 4.5325 | E104: 121.9485 | F104: 5.9 | G104: 5.4575 | H104: 146.364 | I104: 6.5 | J104: 6.0125 | K104: 163.01 | L104: 5.7 | M104: 5.2725 | N104: 139.1765 | O104: 5.2 | P104: 4.81 | Q104: 126.3845
A105: 2008-10-10 | B105: ='Irrig Diary'!E118 -> 0.925 | C105: 4.9 | D105: 4.5325 | E105: 126.481 | F105: 5.9 | G105: 5.4575 | H105: 151.8215 | I105: 6.5 | J105: 6.0125 | K105: 169.0225 | L105: 5.7 | M105: 5.2725 | N105: 144.449 | O105: 5.2 | P105: 4.81 | Q105: 131.1945
A106: 2008-10-11 | B106: ='Irrig Diary'!E119 -> 0.925 | C106: 4.9 | D106: 4.5325 | E106: 131.0135 | F106: 5.9 | G106: 5.4575 | H106: 157.279 | I106: 6.5 | J106: 6.0125 | K106: 175.035 | L106: 5.7 | M106: 5.2725 | N106: 149.7215 | O106: 5.2 | P106: 4.81 | Q106: 136.0045
A107: 2008-10-12 | B107: ='Irrig Diary'!E120 -> 0.925 | C107: 4.9 | D107: 4.5325 | E107: 135.546 | F107: 5.9 | G107: 5.4575 | H107: 162.7365 | I107: 6.5 | J107: 6.0125 | K107: 181.0475 | L107: 5.7 | M107: 5.2725 | N107: 154.994 | O107: 5.2 | P107: 4.81 | Q107: 140.8145
A108: 2008-10-13 | B108: ='Irrig Diary'!E121 -> 0.975 | C108: 4.9 | D108: 4.7775 | E108: 140.3235 | F108: 5.9 | G108: 5.7525 | H108: 168.489 | I108: 6.5 | J108: 6.3375 | K108: 187.385 | L108: 5.7 | M108: 5.5575 | N108: 160.5515 | O108: 5.2 | P108: 5.07 | Q108: 145.8845
A109: 2008-10-14 | B109: ='Irrig Diary'!E122 -> 0.975 | C109: 4.9 | D109: 4.7775 | E109: 145.101 | F109: 5.9 | G109: 5.7525 | H109: 174.2415 | I109: 6.5 | J109: 6.3375 | K109: 193.7225 | L109: 5.7 | M109: 5.5575 | N109: 166.109 | O109: 5.2 | P109: 5.07 | Q109: 150.9545
A110: 2008-10-15 | B110: ='Irrig Diary'!E123 -> 0.975 | C110: 4.9 | D110: 4.7775 | E110: 149.8785 | F110: 5.9 | G110: 5.7525 | H110: 179.994 | I110: 6.5 | J110: 6.3375 | K110: 200.06 | L110: 5.7 | M110: 5.5575 | N110: 171.6665 | O110: 5.2 | P110: 5.07 | Q110: 156.0245
A111: 2008-10-16 | B111: ='Irrig Diary'!E124 -> 0.975 | C111: 4.9 | D111: 4.7775 | E111: 154.656 | F111: 5.9 | G111: 5.7525 | H111: 185.7465 | I111: 6.5 | J111: 6.3375 | K111: 206.3975 | L111: 5.7 | M111: 5.5575 | N111: 177.224 | O111: 5.2 | P111: 5.07 | Q111: 161.0945
A112: 2008-10-17 | B112: ='Irrig Diary'!E125 -> 1 | C112: 4.9 | D112: 4.9 | E112: 159.556 | F112: 5.9 | G112: 5.9 | H112: 191.6465 | I112: 6.5 | J112: 6.5 | K112: 212.8975 | L112: 5.7 | M112: 5.7 | N112: 182.924 | O112: 5.2 | P112: 5.2 | Q112: 166.2945
A113: 2008-10-18 | B113: ='Irrig Diary'!E126 -> 1 | C113: 4.9 | D113: 4.9 | E113: 164.456 | F113: 5.9 | G113: 5.9 | H113: 197.5465 | I113: 6.5 | J113: 6.5 | K113: 219.3975 | L113: 5.7 | M113: 5.7 | N113: 188.624 | O113: 5.2 | P113: 5.2 | Q113: 171.4945
A114: 2008-10-19 | B114: ='Irrig Diary'!E127 -> 0.9875 | C114: 4.9 | D114: 4.83875 | E114: 169.29475 | F114: 5.9 | G114: 5.82625 | H114: 203.37275 | I114: 6.5 | J114: 6.41875 | K114: 225.81625 | L114: 5.7 | M114: 5.62875 | N114: 194.25275 | O114: 5.2 | P114: 5.135 | Q114: 176.6295
A115: 2008-10-20 | B115: ='Irrig Diary'!E128 -> 0.9875 | C115: 4.9 | D115: 4.83875 | E115: 174.1335 | F115: 5.9 | G115: 5.82625 | H115: 209.199 | I115: 6.5 | J115: 6.41875 | K115: 232.235 | L115: 5.7 | M115: 5.62875 | N115: 199.8815 | O115: 5.2 | P115: 5.135 | Q115: 181.7645
A116: 2008-10-21 | B116: ='Irrig Diary'!E129 -> 1.0125 | C116: 4.9 | D116: 4.96125 | E116: 179.09475 | F116: 5.9 | G116: 5.97375 | H116: 215.17275 | I116: 6.5 | J116: 6.58125 | K116: 238.81625 | L116: 5.7 | M116: 5.77125 | N116: 205.65275 | O116: 5.2 | P116: 5.265 | Q116: 187.0295
A117: 2008-10-22 | B117: ='Irrig Diary'!E130 -> 1.0125 | C117: 4.9 | D117: 4.96125 | E117: 184.056 | F117: 5.9 | G117: 5.97375 | H117: 221.1465 | I117: 6.5 | J117: 6.58125 | K117: 245.3975 | L117: 5.7 | M117: 5.77125 | N117: 211.424 | O117: 5.2 | P117: 5.265 | Q117: 192.2945
A118: 2008-10-23 | B118: ='Irrig Diary'!E131 -> 1.025 | C118: 4.9 | D118: 5.0225 | E118: 189.0785 | F118: 5.9 | G118: 6.0475 | H118: 227.194 | I118: 6.5 | J118: 6.6625 | K118: 252.06 | L118: 5.7 | M118: 5.8425 | N118: 217.2665 | O118: 5.2 | P118: 5.33 | Q118: 197.6245
A119: 2008-10-24 | B119: ='Irrig Diary'!E132 -> 1.05 | C119: 4.9 | D119: 5.145 | E119: 194.2235 | F119: 5.9 | G119: 6.195 | H119: 233.389 | I119: 6.5 | J119: 6.825 | K119: 258.885 | L119: 5.7 | M119: 5.985 | N119: 223.2515 | O119: 5.2 | P119: 5.46 | Q119: 203.0845
A120: 2008-10-25 | B120: ='Irrig Diary'!E133 -> 1.075 | C120: 4.9 | D120: 5.2675 | E120: 199.491 | F120: 5.9 | G120: 6.3425 | H120: 239.7315 | I120: 6.5 | J120: 6.9875 | K120: 265.8725 | L120: 5.7 | M120: 6.1275 | N120: 229.379 | O120: 5.2 | P120: 5.59 | Q120: 208.6745
A121: 2008-10-26 | B121: ='Irrig Diary'!E134 -> 1.075 | C121: 4.9 | D121: 5.2675 | E121: 204.7585 | F121: 5.9 | G121: 6.3425 | H121: 246.074 | I121: 6.5 | J121: 6.9875 | K121: 272.86 | L121: 5.7 | M121: 6.1275 | N121: 235.5065 | O121: 5.2 | P121: 5.59 | Q121: 214.2645
A122: 2008-10-27 | B122: ='Irrig Diary'!E135 -> 1.075 | C122: 4.9 | D122: 5.2675 | E122: 210.026 | F122: 5.9 | G122: 6.3425 | H122: 252.4165 | I122: 6.5 | J122: 6.9875 | K122: 279.8475 | L122: 5.7 | M122: 6.1275 | N122: 241.634 | O122: 5.2 | P122: 5.59 | Q122: 219.8545
A123: 2008-10-28 | B123: ='Irrig Diary'!E136 -> 1.075 | C123: 4.9 | D123: 5.2675 | E123: 215.2935 | F123: 5.9 | G123: 6.3425 | H123: 258.759 | I123: 6.5 | J123: 6.9875 | K123: 286.835 | L123: 5.7 | M123: 6.1275 | N123: 247.7615 | O123: 5.2 | P123: 5.59 | Q123: 225.4445
A124: 2008-10-29 | B124: ='Irrig Diary'!E137 -> 1.075 | C124: 4.9 | D124: 5.2675 | E124: 220.561 | F124: 5.9 | G124: 6.3425 | H124: 265.1015 | I124: 6.5 | J124: 6.9875 | K124: 293.8225 | L124: 5.7 | M124: 6.1275 | N124: 253.889 | O124: 5.2 | P124: 5.59 | Q124: 231.0345
A125: 2008-10-30 | B125: ='Irrig Diary'!E138 -> 1.075 | C125: 4.9 | D125: 5.2675 | E125: 225.8285 | F125: 5.9 | G125: 6.3425 | H125: 271.444 | I125: 6.5 | J125: 6.9875 | K125: 300.81 | L125: 5.7 | M125: 6.1275 | N125: 260.0165 | O125: 5.2 | P125: 5.59 | Q125: 236.6245
A126: 2008-10-31 | B126: ='Irrig Diary'!E139 -> 1.075 | C126: 4.9 | D126: 5.2675 | E126: 231.096 | F126: 5.9 | G126: 6.3425 | H126: 277.7865 | I126: 6.5 | J126: 6.9875 | K126: 307.7975 | L126: 5.7 | M126: 6.1275 | N126: 266.144 | O126: 5.2 | P126: 5.59 | Q126: 242.2145
A127: 2008-11-01 | B127: ='Irrig Diary'!E140 -> 1.075 | C127: 7.1 | D127: 7.6325 | E127: 238.7285 | F127: 7.5 | G127: 8.0625 | H127: 285.849 | I127: 8.5 | J127: 9.1375 | K127: 316.935 | L127: 7.8 | M127: 8.385 | N127: 274.529 | O127: 7 | P127: 7.525 | Q127: 249.7395
A128: 2008-11-02 | B128: ='Irrig Diary'!E141 -> 1.0625 | C128: 7.1 | D128: 7.54375 | E128: 246.27225 | F128: 7.5 | G128: 7.96875 | H128: 293.81775 | I128: 8.5 | J128: 9.03125 | K128: 325.96625 | L128: 7.8 | M128: 8.2875 | N128: 282.8165 | O128: 7 | P128: 7.4375 | Q128: 257.177
A129: 2008-11-03 | B129: ='Irrig Diary'!E142 -> 1.05 | C129: 7.1 | D129: 7.455 | E129: 253.72725 | F129: 7.5 | G129: 7.875 | H129: 301.69275 | I129: 8.5 | J129: 8.925 | K129: 334.89125 | L129: 7.8 | M129: 8.19 | N129: 291.0065 | O129: 7 | P129: 7.35 | Q129: 264.527
A130: 2008-11-04 | B130: ='Irrig Diary'!E143 -> 1.05 | C130: 7.1 | D130: 7.455 | E130: 261.18225 | F130: 7.5 | G130: 7.875 | H130: 309.56775 | I130: 8.5 | J130: 8.925 | K130: 343.81625 | L130: 7.8 | M130: 8.19 | N130: 299.1965 | O130: 7 | P130: 7.35 | Q130: 271.877
A131: 2008-11-05 | B131: ='Irrig Diary'!E144 -> 1.05 | C131: 7.1 | D131: 7.455 | E131: 268.63725 | F131: 7.5 | G131: 7.875 | H131: 317.44275 | I131: 8.5 | J131: 8.925 | K131: 352.74125 | L131: 7.8 | M131: 8.19 | N131: 307.3865 | O131: 7 | P131: 7.35 | Q131: 279.227
A132: 2008-11-06 | B132: ='Irrig Diary'!E145 -> 1.0625 | C132: 7.1 | D132: =$B132*C132 -> 7.54375 | E132: 276.181 | F132: 7.5 | G132: 7.96875 | H132: 325.4115 | I132: 8.5 | J132: =$B132*I132 -> 9.03125 | K132: 361.7725 | L132: 7.8 | M132: =$B132*L132 -> 8.2875 | N132: 315.674 | O132: 7 | P132: =$B132*O132 -> 7.4375 | Q132: 286.6645
A133: 2008-11-07 | B133: ='Irrig Diary'!E146 -> 1.0625 | C133: 7.1 | D133: 7.54375 | E133: 283.72475 | F133: 7.5 | G133: =$B133*F133 -> 7.96875 | H133: 333.38025 | I133: 8.5 | J133: 9.03125 | K133: 370.80375 | L133: 7.8 | M133: 8.2875 | N133: 323.9615 | O133: 7 | P133: 7.4375 | Q133: 294.102
A134: 2008-11-08 | B134: ='Irrig Diary'!E147 -> 1.0625 | C134: 7.1 | D134: 7.54375 | E134: =E133+D134 -> 291.2685 | F134: 7.5 | G134: 7.96875 | H134: =H133+G134 -> 341.349 | I134: 8.5 | J134: 9.03125 | K134: =K133+J134 -> 379.835 | L134: 7.8 | M134: 8.2875 | N134: =N133+M134 -> 332.249 | O134: 7 | P134: 7.4375 | Q134: =Q133+P134 -> 301.5395
A135: 2008-11-09 | B135: ='Irrig Diary'!E148 -> 1.0625 | C135: 7.1 | D135: 7.54375 | E135: 298.81225 | F135: 7.5 | G135: 7.96875 | H135: 349.31775 | I135: 8.5 | J135: 9.03125 | K135: 388.86625 | L135: 7.8 | M135: 8.2875 | N135: 340.5365 | O135: 7 | P135: 7.4375 | Q135: 308.977
A136: 2008-11-10 | B136: ='Irrig Diary'!E149 -> 1.0625 | C136: 7.1 | D136: 7.54375 | E136: 306.356 | F136: 7.5 | G136: 7.96875 | H136: 357.2865 | I136: 8.5 | J136: 9.03125 | K136: 397.8975 | L136: 7.8 | M136: 8.2875 | N136: 348.824 | O136: 7 | P136: 7.4375 | Q136: 316.4145
A137: 2008-11-11 | B137: ='Irrig Diary'!E150 -> 1.0625 | C137: 7.1 | D137: 7.54375 | E137: 313.89975 | F137: 7.5 | G137: 7.96875 | H137: 365.25525 | I137: 8.5 | J137: 9.03125 | K137: 406.92875 | L137: 7.8 | M137: 8.2875 | N137: 357.1115 | O137: 7 | P137: 7.4375 | Q137: 323.852
A138: 2008-11-12 | B138: ='Irrig Diary'!E151 -> 1.0625 | C138: 7.1 | D138: 7.54375 | E138: 321.4435 | F138: 7.5 | G138: 7.96875 | H138: 373.224 | I138: 8.5 | J138: 9.03125 | K138: 415.96 | L138: 7.8 | M138: 8.2875 | N138: 365.399 | O138: 7 | P138: 7.4375 | Q138: 331.2895
A139: 2008-11-13 | B139: ='Irrig Diary'!E152 -> 1.0625 | C139: 7.1 | D139: 7.54375 | E139: 328.98725 | F139: 7.5 | G139: 7.96875 | H139: 381.19275 | I139: 8.5 | J139: 9.03125 | K139: 424.99125 | L139: 7.8 | M139: 8.2875 | N139: 373.6865 | O139: 7 | P139: 7.4375 | Q139: 338.727
A140: 2008-11-14 | B140: ='Irrig Diary'!E153 -> 1.0625 | C140: 7.1 | D140: 7.54375 | E140: 336.531 | F140: 7.5 | G140: 7.96875 | H140: 389.1615 | I140: 8.5 | J140: 9.03125 | K140: 434.0225 | L140: 7.8 | M140: 8.2875 | N140: 381.974 | O140: 7 | P140: 7.4375 | Q140: 346.1645
A141: 2008-11-15 | B141: ='Irrig Diary'!E154 -> 1.0625 | C141: 7.1 | D141: 7.54375 | E141: 344.07475 | F141: 7.5 | G141: 7.96875 | H141: 397.13025 | I141: 8.5 | J141: 9.03125 | K141: 443.05375 | L141: 7.8 | M141: 8.2875 | N141: 390.2615 | O141: 7 | P141: 7.4375 | Q141: 353.602
A142: 2008-11-16 | B142: ='Irrig Diary'!E155 -> 1.0625 | C142: 7.1 | D142: 7.54375 | E142: 351.6185 | F142: 7.5 | G142: 7.96875 | H142: 405.099 | I142: 8.5 | J142: 9.03125 | K142: 452.085 | L142: 7.8 | M142: 8.2875 | N142: 398.549 | O142: 7 | P142: 7.4375 | Q142: 361.0395
A143: 2008-11-17 | B143: ='Irrig Diary'!E156 -> 1.0625 | C143: 7.1 | D143: 7.54375 | E143: 359.16225 | F143: 7.5 | G143: 7.96875 | H143: 413.06775 | I143: 8.5 | J143: 9.03125 | K143: 461.11625 | L143: 7.8 | M143: 8.2875 | N143: 406.8365 | O143: 7 | P143: 7.4375 | Q143: 368.477
A144: 2008-11-18 | B144: ='Irrig Diary'!E157 -> 1.0625 | C144: 7.1 | D144: 7.54375 | E144: 366.706 | F144: 7.5 | G144: 7.96875 | H144: 421.0365 | I144: 8.5 | J144: 9.03125 | K144: 470.1475 | L144: 7.8 | M144: 8.2875 | N144: 415.124 | O144: 7 | P144: 7.4375 | Q144: 375.9145
A145: 2008-11-19 | B145: ='Irrig Diary'!E158 -> 1.05 | C145: 7.1 | D145: 7.455 | E145: 374.161 | F145: 7.5 | G145: 7.875 | H145: 428.9115 | I145: 8.5 | J145: 8.925 | K145: 479.0725 | L145: 7.8 | M145: 8.19 | N145: 423.314 | O145: 7 | P145: 7.35 | Q145: 383.2645
A146: 2008-11-20 | B146: ='Irrig Diary'!E159 -> 1.0375 | C146: 7.1 | D146: 7.36625 | E146: 381.52725 | F146: 7.5 | G146: 7.78125 | H146: 436.69275 | I146: 8.5 | J146: 8.81875 | K146: 487.89125 | L146: 7.8 | M146: 8.0925 | N146: 431.4065 | O146: 7 | P146: 7.2625 | Q146: 390.527
A147: 2008-11-21 | B147: ='Irrig Diary'!E160 -> 1.0375 | C147: 7.1 | D147: 7.36625 | E147: 388.8935 | F147: 7.5 | G147: 7.78125 | H147: 444.474 | I147: 8.5 | J147: 8.81875 | K147: 496.71 | L147: 7.8 | M147: 8.0925 | N147: 439.499 | O147: 7 | P147: 7.2625 | Q147: 397.7895
A148: 2008-11-22 | B148: ='Irrig Diary'!E161 -> 1.0375 | C148: 7.1 | D148: 7.36625 | E148: 396.25975 | F148: 7.5 | G148: 7.78125 | H148: 452.25525 | I148: 8.5 | J148: 8.81875 | K148: 505.52875 | L148: 7.8 | M148: 8.0925 | N148: 447.5915 | O148: 7 | P148: 7.2625 | Q148: 405.052
A149: 2008-11-23 | B149: ='Irrig Diary'!E162 -> 1.0375 | C149: 7.1 | D149: 7.36625 | E149: 403.626 | F149: 7.5 | G149: 7.78125 | H149: 460.0365 | I149: 8.5 | J149: 8.81875 | K149: 514.3475 | L149: 7.8 | M149: 8.0925 | N149: 455.684 | O149: 7 | P149: 7.2625 | Q149: 412.3145
A150: 2008-11-24 | B150: ='Irrig Diary'!E163 -> 1.0375 | C150: 7.1 | D150: 7.36625 | E150: 410.99225 | F150: 7.5 | G150: 7.78125 | H150: 467.81775 | I150: 8.5 | J150: 8.81875 | K150: 523.16625 | L150: 7.8 | M150: 8.0925 | N150: 463.7765 | O150: 7 | P150: 7.2625 | Q150: 419.577
A151: 2008-11-25 | B151: ='Irrig Diary'!E164 -> 1.0375 | C151: 7.1 | D151: 7.36625 | E151: 418.3585 | F151: 7.5 | G151: 7.78125 | H151: 475.599 | I151: 8.5 | J151: 8.81875 | K151: 531.985 | L151: 7.8 | M151: 8.0925 | N151: 471.869 | O151: 7 | P151: 7.2625 | Q151: 426.8395
A152: 2008-11-26 | B152: ='Irrig Diary'!E165 -> 1.0375 | C152: 7.1 | D152: 7.36625 | E152: 425.72475 | F152: 7.5 | G152: 7.78125 | H152: 483.38025 | I152: 8.5 | J152: 8.81875 | K152: 540.80375 | L152: 7.8 | M152: 8.0925 | N152: 479.9615 | O152: 7 | P152: 7.2625 | Q152: 434.102
A153: 2008-11-27 | B153: ='Irrig Diary'!E166 -> 1.0375 | C153: 7.1 | D153: 7.36625 | E153: 433.091 | F153: 7.5 | G153: 7.78125 | H153: 491.1615 | I153: 8.5 | J153: 8.81875 | K153: 549.6225 | L153: 7.8 | M153: 8.0925 | N153: 488.054 | O153: 7 | P153: 7.2625 | Q153: 441.3645
A154: 2008-11-28 | B154: ='Irrig Diary'!E167 -> 1.0375 | C154: 7.1 | D154: 7.36625 | E154: 440.45725 | F154: 7.5 | G154: 7.78125 | H154: 498.94275 | I154: 8.5 | J154: 8.81875 | K154: 558.44125 | L154: 7.8 | M154: 8.0925 | N154: 496.1465 | O154: 7 | P154: 7.2625 | Q154: 448.627
A155: 2008-11-29 | B155: ='Irrig Diary'!E168 -> 1.0375 | C155: 7.1 | D155: 7.36625 | E155: 447.8235 | F155: 7.5 | G155: 7.78125 | H155: 506.724 | I155: 8.5 | J155: 8.81875 | K155: 567.26 | L155: 7.8 | M155: 8.0925 | N155: 504.239 | O155: 7 | P155: 7.2625 | Q155: 455.8895
A156: 2008-11-30 | B156: ='Irrig Diary'!E169 -> 1.0375 | C156: 7.1 | D156: 7.36625 | E156: 455.18975 | F156: 7.5 | G156: 7.78125 | H156: 514.50525 | I156: 8.5 | J156: 8.81875 | K156: 576.07875 | L156: 7.8 | M156: 8.0925 | N156: 512.3315 | O156: 7 | P156: 7.2625 | Q156: 463.152
A157: 2008-12-01 | B157: ='Irrig Diary'!E170 -> 1.0375 | C157: 8.1 | D157: 8.40375 | E157: 463.5935 | F157: 8.6 | G157: 8.9225 | H157: 523.42775 | I157: 10.1 | J157: 10.47875 | K157: 586.5575 | L157: 9.5 | M157: 9.85625 | N157: 522.18775 | O157: 8.6 | P157: 8.9225 | Q157: 472.0745
A158: 2008-12-02 | B158: ='Irrig Diary'!E171 -> 1.0375 | C158: 8.1 | D158: 8.40375 | E158: 471.99725 | F158: 8.6 | G158: 8.9225 | H158: 532.35025 | I158: 10.1 | J158: 10.47875 | K158: 597.03625 | L158: 9.5 | M158: 9.85625 | N158: 532.044 | O158: 8.6 | P158: 8.9225 | Q158: 480.997
A159: 2008-12-03 | B159: ='Irrig Diary'!E172 -> 1.0375 | C159: 8.1 | D159: 8.40375 | E159: 480.401 | F159: 8.6 | G159: 8.9225 | H159: 541.27275 | I159: 10.1 | J159: 10.47875 | K159: 607.515 | L159: 9.5 | M159: 9.85625 | N159: 541.90025 | O159: 8.6 | P159: 8.9225 | Q159: 489.9195
A160: 2008-12-04 | B160: ='Irrig Diary'!E173 -> 1.0375 | C160: 8.1 | D160: 8.40375 | E160: 488.80475 | F160: 8.6 | G160: 8.9225 | H160: 550.19525 | I160: 10.1 | J160: 10.47875 | K160: 617.99375 | L160: 9.5 | M160: 9.85625 | N160: 551.7565 | O160: 8.6 | P160: 8.9225 | Q160: 498.842
A161: 2008-12-05 | B161: ='Irrig Diary'!E174 -> 1.0375 | C161: 8.1 | D161: 8.40375 | E161: 497.2085 | F161: 8.6 | G161: 8.9225 | H161: 559.11775 | I161: 10.1 | J161: 10.47875 | K161: 628.4725 | L161: 9.5 | M161: 9.85625 | N161: 561.61275 | O161: 8.6 | P161: 8.9225 | Q161: 507.7645
A162: 2008-12-06 | B162: ='Irrig Diary'!E175 -> 1.0375 | C162: 8.1 | D162: 8.40375 | E162: 505.61225 | F162: 8.6 | G162: 8.9225 | H162: 568.04025 | I162: 10.1 | J162: 10.47875 | K162: 638.95125 | L162: 9.5 | M162: 9.85625 | N162: 571.469 | O162: 8.6 | P162: 8.9225 | Q162: 516.687
A163: 2008-12-07 | B163: ='Irrig Diary'!E176 -> 1.04375 | C163: 8.1 | D163: 8.454375 | E163: 514.066625 | F163: 8.6 | G163: 8.97625 | H163: 577.0165 | I163: 10.1 | J163: 10.541875 | K163: 649.493125 | L163: 9.5 | M163: 9.915625 | N163: 581.384625 | O163: 8.6 | P163: 8.97625 | Q163: 525.66325
A164: 2008-12-08 | B164: ='Irrig Diary'!E177 -> 1.04375 | C164: 8.1 | D164: 8.454375 | E164: 522.521 | F164: 8.6 | G164: 8.97625 | H164: 585.99275 | I164: 10.1 | J164: 10.541875 | K164: 660.035 | L164: 9.5 | M164: 9.915625 | N164: 591.30025 | O164: 8.6 | P164: 8.97625 | Q164: 534.6395
A165: 2008-12-09 | B165: ='Irrig Diary'!E178 -> 1.04375 | C165: 8.1 | D165: 8.454375 | E165: 530.975375 | F165: 8.6 | G165: 8.97625 | H165: 594.969 | I165: 10.1 | J165: 10.541875 | K165: 670.576875 | L165: 9.5 | M165: 9.915625 | N165: 601.215875 | O165: 8.6 | P165: 8.97625 | Q165: 543.61575
A166: 2008-12-10 | B166: ='Irrig Diary'!E179 -> 1.04375 | C166: 8.1 | D166: 8.454375 | E166: 539.42975 | F166: 8.6 | G166: 8.97625 | H166: 603.94525 | I166: 10.1 | J166: 10.541875 | K166: 681.11875 | L166: 9.5 | M166: 9.915625 | N166: 611.1315 | O166: 8.6 | P166: 8.97625 | Q166: 552.592
A167: 2008-12-11 | B167: ='Irrig Diary'!E180 -> 1.05625 | C167: 8.1 | D167: 8.555625 | E167: 547.985375 | F167: 8.6 | G167: 9.08375 | H167: 613.029 | I167: 10.1 | J167: 10.668125 | K167: 691.786875 | L167: 9.5 | M167: 10.034375 | N167: 621.165875 | O167: 8.6 | P167: 9.08375 | Q167: 561.67575
A168: 2008-12-12 | B168: ='Irrig Diary'!E181 -> 1.04375 | C168: 8.1 | D168: 8.454375 | E168: 556.43975 | F168: 8.6 | G168: 8.97625 | H168: 622.00525 | I168: 10.1 | J168: 10.541875 | K168: 702.32875 | L168: 9.5 | M168: 9.915625 | N168: 631.0815 | O168: 8.6 | P168: 8.97625 | Q168: 570.652
A169: 2008-12-13 | B169: ='Irrig Diary'!E182 -> 1.04375 | C169: 8.1 | D169: 8.454375 | E169: 564.894125 | F169: 8.6 | G169: 8.97625 | H169: 630.9815 | I169: 10.1 | J169: 10.541875 | K169: 712.870625 | L169: 9.5 | M169: 9.915625 | N169: 640.997125 | O169: 8.6 | P169: 8.97625 | Q169: 579.62825
A170: 2008-12-14 | B170: ='Irrig Diary'!E183 -> 1.05 | C170: 8.1 | D170: 8.505 | E170: 573.399125 | F170: 8.6 | G170: 9.03 | H170: 640.0115 | I170: 10.1 | J170: 10.605 | K170: 723.475625 | L170: 9.5 | M170: 9.975 | N170: 650.972125 | O170: 8.6 | P170: 9.03 | Q170: 588.65825
A171: 2008-12-15 | B171: ='Irrig Diary'!E184 -> 1.05 | C171: 8.1 | D171: 8.505 | E171: 581.904125 | F171: 8.6 | G171: 9.03 | H171: 649.0415 | I171: 10.1 | J171: 10.605 | K171: 734.080625 | L171: 9.5 | M171: 9.975 | N171: 660.947125 | O171: 8.6 | P171: 9.03 | Q171: 597.68825
A172: 2008-12-16 | B172: ='Irrig Diary'!E185 -> 1.05 | C172: 8.1 | D172: 8.505 | E172: 590.409125 | F172: 8.6 | G172: 9.03 | H172: 658.0715 | I172: 10.1 | J172: 10.605 | K172: 744.685625 | L172: 9.5 | M172: 9.975 | N172: 670.922125 | O172: 8.6 | P172: 9.03 | Q172: 606.71825
A173: 2008-12-17 | B173: ='Irrig Diary'!E186 -> 1.05 | C173: 8.1 | D173: 8.505 | E173: 598.914125 | F173: 8.6 | G173: 9.03 | H173: 667.1015 | I173: 10.1 | J173: 10.605 | K173: 755.290625 | L173: 9.5 | M173: 9.975 | N173: 680.897125 | O173: 8.6 | P173: 9.03 | Q173: 615.74825
A174: 2008-12-18 | B174: ='Irrig Diary'!E187 -> 1.05 | C174: 8.1 | D174: 8.505 | E174: 607.419125 | F174: 8.6 | G174: 9.03 | H174: 676.1315 | I174: 10.1 | J174: 10.605 | K174: 765.895625 | L174: 9.5 | M174: 9.975 | N174: 690.872125 | O174: 8.6 | P174: 9.03 | Q174: 624.77825
A175: 2008-12-19 | B175: ='Irrig Diary'!E188 -> 1.05 | C175: 8.1 | D175: 8.505 | E175: 615.924125 | F175: 8.6 | G175: 9.03 | H175: 685.1615 | I175: 10.1 | J175: 10.605 | K175: 776.500625 | L175: 9.5 | M175: 9.975 | N175: 700.847125 | O175: 8.6 | P175: 9.03 | Q175: 633.80825
A176: 2008-12-20 | B176: ='Irrig Diary'!E189 -> 1.05 | C176: 8.1 | D176: 8.505 | E176: 624.429125 | F176: 8.6 | G176: 9.03 | H176: 694.1915 | I176: 10.1 | J176: 10.605 | K176: 787.105625 | L176: 9.5 | M176: 9.975 | N176: 710.822125 | O176: 8.6 | P176: 9.03 | Q176: 642.83825
A177: 2008-12-21 | B177: ='Irrig Diary'!E190 -> 1.0625 | C177: 8.1 | D177: 8.60625 | E177: 633.035375 | F177: 8.6 | G177: 9.1375 | H177: 703.329 | I177: 10.1 | J177: 10.73125 | K177: 797.836875 | L177: 9.5 | M177: 10.09375 | N177: 720.915875 | O177: 8.6 | P177: 9.1375 | Q177: 651.97575
A178: 2008-12-22 | B178: ='Irrig Diary'!E191 -> 1.0625 | C178: 8.1 | D178: 8.60625 | E178: 641.641625 | F178: 8.6 | G178: 9.1375 | H178: 712.4665 | I178: 10.1 | J178: 10.73125 | K178: 808.568125 | L178: 9.5 | M178: 10.09375 | N178: 731.009625 | O178: 8.6 | P178: 9.1375 | Q178: 661.11325
A179: 2008-12-23 | B179: ='Irrig Diary'!E192 -> 1.0625 | C179: 8.1 | D179: 8.60625 | E179: 650.247875 | F179: 8.6 | G179: 9.1375 | H179: 721.604 | I179: 10.1 | J179: 10.73125 | K179: 819.299375 | L179: 9.5 | M179: 10.09375 | N179: 741.103375 | O179: 8.6 | P179: 9.1375 | Q179: 670.25075
A180: 2008-12-24 | B180: ='Irrig Diary'!E193 -> 1.0625 | C180: 8.1 | D180: 8.60625 | E180: 658.854125 | F180: 8.6 | G180: 9.1375 | H180: 730.7415 | I180: 10.1 | J180: 10.73125 | K180: 830.030625 | L180: 9.5 | M180: 10.09375 | N180: 751.197125 | O180: 8.6 | P180: 9.1375 | Q180: 679.38825
A181: 2008-12-25 | B181: ='Irrig Diary'!E194 -> 1.0625 | C181: 8.1 | D181: 8.60625 | E181: 667.460375 | F181: 8.6 | G181: 9.1375 | H181: 739.879 | I181: 10.1 | J181: 10.73125 | K181: 840.761875 | L181: 9.5 | M181: 10.09375 | N181: 761.290875 | O181: 8.6 | P181: 9.1375 | Q181: 688.52575
A182: 2008-12-26 | B182: ='Irrig Diary'!E195 -> 1.0625 | C182: 8.1 | D182: 8.60625 | E182: 676.066625 | F182: 8.6 | G182: 9.1375 | H182: 749.0165 | I182: 10.1 | J182: 10.73125 | K182: 851.493125 | L182: 9.5 | M182: 10.09375 | N182: 771.384625 | O182: 8.6 | P182: 9.1375 | Q182: 697.66325
A183: 2008-12-27 | B183: ='Irrig Diary'!E196 -> 1.0625 | C183: 8.1 | D183: 8.60625 | E183: 684.672875 | F183: 8.6 | G183: 9.1375 | H183: 758.154 | I183: 10.1 | J183: 10.73125 | K183: 862.224375 | L183: 9.5 | M183: 10.09375 | N183: 781.478375 | O183: 8.6 | P183: 9.1375 | Q183: 706.80075
A184: 2008-12-28 | B184: ='Irrig Diary'!E197 -> 1.05 | C184: 8.1 | D184: 8.505 | E184: 693.177875 | F184: 8.6 | G184: 9.03 | H184: 767.184 | I184: 10.1 | J184: 10.605 | K184: 872.829375 | L184: 9.5 | M184: 9.975 | N184: 791.453375 | O184: 8.6 | P184: 9.03 | Q184: 715.83075
A185: 2008-12-29 | B185: ='Irrig Diary'!E198 -> 1.05 | C185: 8.1 | D185: 8.505 | E185: 701.682875 | F185: 8.6 | G185: 9.03 | H185: 776.214 | I185: 10.1 | J185: 10.605 | K185: 883.434375 | L185: 9.5 | M185: 9.975 | N185: 801.428375 | O185: 8.6 | P185: 9.03 | Q185: 724.86075
A186: 2008-12-30 | B186: ='Irrig Diary'!E199 -> 1.05 | C186: 8.1 | D186: 8.505 | E186: 710.187875 | F186: 8.6 | G186: 9.03 | H186: 785.244 | I186: 10.1 | J186: 10.605 | K186: 894.039375 | L186: 9.5 | M186: 9.975 | N186: 811.403375 | O186: 8.6 | P186: 9.03 | Q186: 733.89075
A187: 2008-12-31 | B187: ='Irrig Diary'!E200 -> 1.05 | C187: 8.1 | D187: 8.505 | E187: 718.692875 | F187: 8.6 | G187: 9.03 | H187: 794.274 | I187: 10.1 | J187: 10.605 | K187: 904.644375 | L187: 9.5 | M187: 9.975 | N187: 821.378375 | O187: 8.6 | P187: 9.03 | Q187: 742.92075
A188: 2009-01-01 | B188: ='Irrig Diary'!E201 -> 1.05 | C188: 8.7 | D188: 9.135 | E188: 727.827875 | F188: 9.5 | G188: 9.975 | H188: 804.249 | I188: 10.6 | J188: 11.13 | K188: 915.774375 | L188: 10.4 | M188: 10.92 | N188: 832.298375 | O188: 8.8 | P188: 9.24 | Q188: 752.16075
A189: 2009-01-02 | B189: ='Irrig Diary'!E202 -> 1.05 | C189: 8.7 | D189: 9.135 | E189: 736.962875 | F189: 9.5 | G189: 9.975 | H189: 814.224 | I189: 10.6 | J189: 11.13 | K189: 926.904375 | L189: 10.4 | M189: 10.92 | N189: 843.218375 | O189: 8.8 | P189: 9.24 | Q189: 761.40075
A190: 2009-01-03 | B190: ='Irrig Diary'!E203 -> 1.05 | C190: 8.7 | D190: 9.135 | E190: 746.097875 | F190: 9.5 | G190: 9.975 | H190: 824.199 | I190: 10.6 | J190: 11.13 | K190: 938.034375 | L190: 10.4 | M190: 10.92 | N190: 854.138375 | O190: 8.8 | P190: 9.24 | Q190: 770.64075
A191: 2009-01-04 | B191: ='Irrig Diary'!E204 -> 1.05 | C191: 8.7 | D191: 9.135 | E191: 755.232875 | F191: 9.5 | G191: 9.975 | H191: 834.174 | I191: 10.6 | J191: 11.13 | K191: 949.164375 | L191: 10.4 | M191: 10.92 | N191: 865.058375 | O191: 8.8 | P191: 9.24 | Q191: 779.88075
A192: 2009-01-05 | B192: ='Irrig Diary'!E205 -> 1.05 | C192: 8.7 | D192: 9.135 | E192: 764.367875 | F192: 9.5 | G192: 9.975 | H192: 844.149 | I192: 10.6 | J192: 11.13 | K192: 960.294375 | L192: 10.4 | M192: 10.92 | N192: 875.978375 | O192: 8.8 | P192: 9.24 | Q192: 789.12075
A193: 2009-01-06 | B193: ='Irrig Diary'!E206 -> 1.025 | C193: 8.7 | D193: 8.9175 | E193: 773.285375 | F193: 9.5 | G193: 9.7375 | H193: 853.8865 | I193: 10.6 | J193: 10.865 | K193: 971.159375 | L193: 10.4 | M193: 10.66 | N193: 886.638375 | O193: 8.8 | P193: 9.02 | Q193: 798.14075
A194: 2009-01-07 | B194: ='Irrig Diary'!E207 -> 1.025 | C194: 8.7 | D194: 8.9175 | E194: 782.202875 | F194: 9.5 | G194: 9.7375 | H194: 863.624 | I194: 10.6 | J194: 10.865 | K194: 982.024375 | L194: 10.4 | M194: 10.66 | N194: 897.298375 | O194: 8.8 | P194: 9.02 | Q194: 807.16075
A195: 2009-01-08 | B195: ='Irrig Diary'!E208 -> 1.025 | C195: 8.7 | D195: 8.9175 | E195: 791.120375 | F195: 9.5 | G195: 9.7375 | H195: 873.3615 | I195: 10.6 | J195: 10.865 | K195: 992.889375 | L195: 10.4 | M195: 10.66 | N195: 907.958375 | O195: 8.8 | P195: 9.02 | Q195: 816.18075
A196: 2009-01-09 | B196: ='Irrig Diary'!E209 -> 1.025 | C196: 8.7 | D196: =$B196*C196 -> 8.9175 | E196: 800.037875 | F196: 9.5 | G196: 9.7375 | H196: 883.099 | I196: 10.6 | J196: =$B196*I196 -> 10.865 | K196: 1003.754375 | L196: 10.4 | M196: =$B196*L196 -> 10.66 | N196: 918.618375 | O196: 8.8 | P196: =$B196*O196 -> 9.02 | Q196: 825.20075
A197: 2009-01-10 | B197: ='Irrig Diary'!E210 -> 1.025 | C197: 8.7 | D197: 8.9175 | E197: 808.955375 | F197: 9.5 | G197: =$B197*F197 -> 9.7375 | H197: 892.8365 | I197: 10.6 | J197: 10.865 | K197: 1014.619375 | L197: 10.4 | M197: 10.66 | N197: 929.278375 | O197: 8.8 | P197: 9.02 | Q197: 834.22075
A198: 2009-01-11 | B198: ='Irrig Diary'!E211 -> 1.0375 | C198: 8.7 | D198: 9.02625 | E198: =E197+D198 -> 817.981625 | F198: 9.5 | G198: 9.85625 | H198: =H197+G198 -> 902.69275 | I198: 10.6 | J198: 10.9975 | K198: =K197+J198 -> 1025.616875 | L198: 10.4 | M198: 10.79 | N198: =N197+M198 -> 940.068375 | O198: 8.8 | P198: 9.13 | Q198: =Q197+P198 -> 843.35075
A199: 2009-01-12 | B199: ='Irrig Diary'!E212 -> 1.0375 | C199: 8.7 | D199: 9.02625 | E199: 827.007875 | F199: 9.5 | G199: 9.85625 | H199: 912.549 | I199: 10.6 | J199: 10.9975 | K199: 1036.614375 | L199: 10.4 | M199: 10.79 | N199: 950.858375 | O199: 8.8 | P199: 9.13 | Q199: 852.48075
A200: 2009-01-13 | B200: ='Irrig Diary'!E213 -> 1.0375 | C200: 8.7 | D200: 9.02625 | E200: 836.034125 | F200: 9.5 | G200: 9.85625 | H200: 922.40525 | I200: 10.6 | J200: 10.9975 | K200: 1047.611875 | L200: 10.4 | M200: 10.79 | N200: 961.648375 | O200: 8.8 | P200: 9.13 | Q200: 861.61075
... 170 more rows

Sheet Irrig Diary Summary
A2: IRRIGATION DIARY SUMMARY | O2: NOTES / WORKING PAGE
C4: Evap | D4: Plant | E4: Plant | F4: Irrig | G4: Cumm Seasonal Water Use | J4: Water Meter Reading (KL) | L4: Water Used
A5: Month | B5: Rainfall | C5: Readings | D5: Req | E5: Req | F5: Applied | G5: Actual | H5: =IF('Fixed WU Figure'!A6>0,'Fixed WU Figure'!A6,"") ->  | I5: =IF(AND('Crop Factor'!C5>0%,'Fixed WU Figure'!A6=0),'Crop Factor'!C9,"") -> 15.18440202
B6: (mm) | C6: (mm) | D6: (mm) | E6: (hrs) | F6: (hrs) | G6: (ML/Ha) | H6: (ML/Ha) | I6: (ML/Ha) | J6: Start | K6: Finish | L6: (KL) | M6: (ML)
A7: Jul | B7: =SUM('Irrig Diary'!G17:G47) -> 0 | C7: =SUM('Irrig Diary'!H17:H47) -> 0 | D7: =SUM('Irrig Diary'!I17:I47) -> 0 | E7: =SUM('Irrig Diary'!K17:K47) -> 0 | F7: =SUM('Irrig Diary'!M17:M47) -> 0 | G7: =IF('Irrig Diary'!P$15>0,('Irrig Diary Summary'!F7*'Irrig Diary'!P$15)/100,"") -> 0 | H7: =IF(H$5="",H$5,'Fixed WU Figure'!E12) ->  | I7: =IF(I$5="","",VLOOKUP(Weather_Station,Mthly_Etc,2,FALSE)) -> 0 | J7: 0 | K7: 0 | L7: =K7-J7 -> 0 | M7: =L7/1000 -> 0
A8: Aug | B8: =SUM('Irrig Diary'!G48:G78) -> 0 | C8: =SUM('Irrig Diary'!H48:H78) -> 0 | D8: =SUM('Irrig Diary'!I48:I78) -> 0 | E8: =SUM('Irrig Diary'!K48:K78) -> 0 | F8: =SUM('Irrig Diary'!M48:M78) -> 0 | G8: =IF('Irrig Diary'!P$15>0,(('Irrig Diary Summary'!F8*'Irrig Diary'!P$15)/100)+G7,"") -> 0 | H8: =IF(H$5="",H$5,'Fixed WU Figure'!E13) ->  | I8: =IF(I$5="","",VLOOKUP(Weather_Station,Mthly_Etc,3,FALSE)) -> 0.228015 | J8: 0 | K8: 0 | L8: 0 | M8: =L8/1000 -> 0
A9: Sep | B9: =SUM('Irrig Diary'!G79:G108) -> 0 | C9: =SUM('Irrig Diary'!H79:H108) -> 0 | D9: =SUM('Irrig Diary'!I79:I108) -> 0 | E9: =SUM('Irrig Diary'!K79:K108) -> 0 | F9: =SUM('Irrig Diary'!M79:M108) -> 0 | G9: =IF('Irrig Diary'!P$15>0,(('Irrig Diary Summary'!F9*'Irrig Diary'!P$15)/100)+G8,"") -> 0 | H9: =IF(H$5="",H$5,'Fixed WU Figure'!E14) ->  | I9: =IF(I$5="","",VLOOKUP(Weather_Station,Mthly_Etc,4,FALSE)) -> 0.99164 | J9: 0 | K9: 0 | L9: 0 | M9: 0
A10: Oct | B10: =SUM('Irrig Diary'!G109:G139) -> 0 | C10: =SUM('Irrig Diary'!H109:H139) -> 0 | D10: =SUM('Irrig Diary'!I109:I139) -> 0 | E10: =SUM('Irrig Diary'!K109:K139) -> 0 | F10: =SUM('Irrig Diary'!M109:M139) -> 0 | G10: =IF('Irrig Diary'!P$15>0,(('Irrig Diary Summary'!F10*'Irrig Diary'!P$15)/100)+G9,"") -> 0 | H10: =IF(H$5="",H$5,'Fixed WU Figure'!E15) ->  | I10: =IF(I$5="","",VLOOKUP(Weather_Station,Mthly_Etc,5,FALSE)) -> 2.777865 | J10: 0 | K10: 0 | L10: 0 | M10: 0
A11: Nov | B11: =SUM('Irrig Diary'!G140:G169) -> 0 | C11: =SUM('Irrig Diary'!H140:H169) -> 0 | D11: =SUM('Irrig Diary'!I140:I169) -> 0 | E11: =SUM('Irrig Diary'!K140:K169) -> 0 | F11: =SUM('Irrig Diary'!M140:M169) -> 0 | G11: =IF('Irrig Diary'!P$15>0,(('Irrig Diary Summary'!F11*'Irrig Diary'!P$15)/100)+G10,"") -> 0 | H11: =IF(H$5="",H$5,'Fixed WU Figure'!E16) ->  | I11: =IF(I$5="","",VLOOKUP(Weather_Station,Mthly_Etc,6,FALSE)) -> 5.1450525 | J11: 0 | K11: 0 | L11: 0 | M11: 0
A12: Dec | B12: =SUM('Irrig Diary'!G170:G200) -> 0 | C12: =SUM('Irrig Diary'!H170:H200) -> 0 | D12: =SUM('Irrig Diary'!I170:I200) -> 0 | E12: =SUM('Irrig Diary'!K170:K200) -> 0 | F12: =SUM('Irrig Diary'!M170:M200) -> 0 | G12: =IF('Irrig Diary'!P$15>0,(('Irrig Diary Summary'!F12*'Irrig Diary'!P$15)/100)+G11,"") -> 0 | H12: =IF(H$5="",H$5,'Fixed WU Figure'!E17) ->  | I12: =IF(I$5="","",VLOOKUP(Weather_Station,Mthly_Etc,7,FALSE)) -> 7.94274 | J12: 0 | K12: 0 | L12: 0 | M12: 0
A13: Jan | B13: =SUM('Irrig Diary'!G201:G231) -> 0 | C13: =SUM('Irrig Diary'!H201:H231) -> 0 | D13: =SUM('Irrig Diary'!I201:I231) -> 0 | E13: =SUM('Irrig Diary'!K201:K231) -> 0 | F13: =SUM('Irrig Diary'!M201:M231) -> 0 | G13: =IF('Irrig Diary'!P$15>0,(('Irrig Diary Summary'!F13*'Irrig Diary'!P$15)/100)+G12,"") -> 0 | H13: =IF(H$5="",H$5,'Fixed WU Figure'!E18) ->  | I13: =IF(I$5="","",VLOOKUP(Weather_Station,Mthly_Etc,8,FALSE)) -> 10.92099 | J13: 0 | K13: 0 | L13: 0 | M13: 0
A14: Feb | B14: =SUM('Irrig Diary'!G232:G260) -> 0 | C14: =SUM('Irrig Diary'!H232:H260) -> 0 | D14: =SUM('Irrig Diary'!I232:I260) -> 0 | E14: =SUM('Irrig Diary'!K232:K260) -> 0 | F14: =SUM('Irrig Diary'!M232:M260) -> 0 | G14: =IF('Irrig Diary'!P$15>0,(('Irrig Diary Summary'!F14*'Irrig Diary'!P$15)/100)+G13,"") -> 0 | H14: =IF(H$5="",H$5,'Fixed WU Figure'!E19) ->  | I14: =IF(I$5="","",VLOOKUP(Weather_Station,Mthly_Etc,9,FALSE)) -> 12.82149 | J14: 0 | K14: 0 | L14: 0 | M14: 0
A15: Mar | B15: =SUM('Irrig Diary'!G261:G291) -> 0 | C15: =SUM('Irrig Diary'!H261:H291) -> 0 | D15: =SUM('Irrig Diary'!I261:I291) -> 0 | E15: =SUM('Irrig Diary'!K261:K291) -> 0 | F15: =SUM('Irrig Diary'!M261:M291) -> 0 | G15: =IF('Irrig Diary'!P$15>0,(('Irrig Diary Summary'!F15*'Irrig Diary'!P$15)/100)+G14,"") -> 0 | H15: =IF(H$5="",H$5,'Fixed WU Figure'!E20) ->  | I15: =IF(I$5="","",VLOOKUP(Weather_Station,Mthly_Etc,10,FALSE)) -> 14.327865 | J15: 0 | K15: 0 | L15: 0 | M15: 0
A16: Apr | B16: =SUM('Irrig Diary'!G292:G321) -> 0 | C16: =SUM('Irrig Diary'!H292:H321) -> 0 | D16: =SUM('Irrig Diary'!I292:I321) -> 0 | E16: =SUM('Irrig Diary'!K292:K321) -> 0 | F16: =SUM('Irrig Diary'!M292:M321) -> 0 | G16: =IF('Irrig Diary'!P$15>0,(('Irrig Diary Summary'!F16*'Irrig Diary'!P$15)/100)+G15,"") -> 0 | H16: =IF(H$5="",H$5,'Fixed WU Figure'!E21) ->  | I16: =IF(I$5="","",VLOOKUP(Weather_Station,Mthly_Etc,11,FALSE)) -> 14.889365 | J16: 0 | K16: 0 | L16: 0 | M16: 0
A17: May | B17: =SUM('Irrig Diary'!G322:G352) -> 0 | C17: =SUM('Irrig Diary'!H322:H352) -> 0 | D17: =SUM('Irrig Diary'!I322:I352) -> 0 | E17: =SUM('Irrig Diary'!K322:K352) -> 0 | F17: =SUM('Irrig Diary'!M322:M352) -> 0 | G17: =IF('Irrig Diary'!P$15>0,(('Irrig Diary Summary'!F17*'Irrig Diary'!P$15)/100)+G16,"") -> 0 | H17: =IF(H$5="",H$5,'Fixed WU Figure'!E22) ->  | I17: =IF(I$5="","",VLOOKUP(Weather_Station,Mthly_Etc,12,FALSE)) -> 15.15380202 | J17: 0 | K17: 0 | L17: 0 | M17: 0
A18: June | B18: =SUM('Irrig Diary'!G353:G382) -> 0 | C18: =SUM('Irrig Diary'!H353:H382) -> 0 | D18: =SUM('Irrig Diary'!I353:I382) -> 0 | E18: =SUM('Irrig Diary'!K353:K382) -> 0 | F18: =SUM('Irrig Diary'!M353:M382) -> 0 | G18: =IF('Irrig Diary'!P$15>0,(('Irrig Diary Summary'!F18*'Irrig Diary'!P$15)/100)+G17,"") -> 0 | H18: =IF(H$5="",H$5,'Fixed WU Figure'!E23) ->  | I18: =IF(I$5="","",VLOOKUP(Weather_Station,Mthly_Etc,13,FALSE)) -> 15.18440202 | J18: 0 | K18: 0 | L18: 0 | M18: 0
A19: TOTAL | B19: =SUM(B7:B18) -> 0 | C19: =SUM(C7:C18) -> 0 | D19: =SUM(D7:D18) -> 0 | E19: =SUM(E7:E18) -> 0 | F19: =SUM(F7:F18) -> 0 | G19: =G18 -> 0 | H19: =H18 ->  | I19: =IF(I$5="","",VLOOKUP(Weather_Station,Mthly_Etc,14,FALSE)) -> 15.18440202 | L19: =SUM(L7:L18) -> 0 | M19: =SUM(M7:M18) -> 0
A21: Volume Conversions | E21: Flow Conversions
A22: 1m3 = | B22: 1,000 L | E22: 1 L/sec = | F22: 3.6 m3 / hr
A23: 1KL = | B23: 1,000 L
A24: 1ML = | B24: 1,000 KL
A25: 1mm applied over 1Ha = 10KL
A26: 100mm = | B26: 1 ML/Ha
A28: Pressure Conversions
A29: 1 psi = | B29: 6.9 kPa
A30: 1 bar = | B30: 100 kPa
A31: 1 MHD (metre) = | B31: 9.8 kPa

Sheet Irrig Diary
A2: IRRIGATION DIARY | Q2: NOTES / WORKING PAGE
A4: Phenological Stage: | H4: Start Date | K4: End Date
A5: Stage 1: | B5: Bud Swell to Early Flowering
A6: Stage 2: | B6: Early Flowering to Petal Fall
A7: Stage 3: | B7: Petall Fall to Early Pit Hardening
A8: Stage 4: | B8: Early Pit Hardening to Early Hull Split
A9: Stage 5: | B9: Early Hull Split until End of Harvest
A10: Stage 6: | B10: End of Harvest to Leaf Drop
A11: Stage 7: | B11: Dormancy (Leaf Drop to Bud Swell)
A13: Date | B13: Day | C13: Phenological | D13: =IF('Crop Factor'!B13="Evaporation Pan","Crop Factor (cf)","Crop Co-efficient (Kc)") -> Crop Co-efficient (Kc) | E13: Mean 100% cf | F13: Mean 100% Kc | G13: Rainfall | H13: =IF('Crop Factor'!B13="Evaporation Pan","Evap Reading (mm)","Evapo-transpiration Reading (mm)") -> Evapo-transpiration Reading (mm) | I13: Plant Req | J13: Plant Req | K13: Plant Req | L13: Irrig Req | M13: Irrig Applied | N13: Running Tally
C14: Stage | G14: (mm) | I14: (mm) | J14: (mm) | K14: (hrs) | L14: (hrs) | M14: (hrs) | N14: Sur(+)/Def(-)
E15: Kpan= | F15: ='Crop Factor'!B11 -> 0.7 | I15: unadj for >12mm | N15: (hrs) | O15: Application Rate: | P15: =IF(Setup!C21>0,Setup!C21,IF(Setup!C26>0,Setup!C26,IF(Setup!C33>0,Setup!C33))) -> 1.160862355
A16: SEASONAL TOTAL | D16: =IF(D383>0,D383,"") -> 
A17: 2015-07-01 | B17: =TEXT(A17,"ddd") -> Wed | D17: =IF('Crop Factor'!C$5>0,IF('Crop Factor'!B$13="Evaporation Pan",'Irrig Diary'!E17*'Crop Factor'!C$5,'Irrig Diary'!F17*'Crop Factor'!C$5),"N/A") -> 0 | E17: 0 | F17: =(1/F$15)*E17 -> 0 | I17: =IF(D17="N/A",'Fixed WU Figure'!G$12,D17*H17) -> 0 | J17: =IF(I17>12,12,I17) -> 0 | K17: =IF(OR(I17=0,I17="N/A"),0,I17/P$15) -> 0 | L17: =K17 -> 0 | N17: =IF(K17>0,M17-K17,0) -> 0
A18: =A17+1 -> 2015-07-02 | B18: =TEXT(A18,"ddd") -> Thu | D18: =IF('Crop Factor'!C$5>0,IF('Crop Factor'!B$13="Evaporation Pan",'Irrig Diary'!E18*'Crop Factor'!C$5,'Irrig Diary'!F18*'Crop Factor'!C$5),"N/A") -> 0 | E18: 0 | F18: =(1/F$15)*E18 -> 0 | I18: =IF(D18="N/A",'Fixed WU Figure'!G$12,D18*H18) -> 0 | J18: =IF(I18>12,12,I18) -> 0 | K18: 0 | L18: =K18-N17 -> 0 | N18: =IF(K18>0,M18-K18+N17,0) -> 0
A19: 2015-07-03 | B19: =TEXT(A19,"ddd") -> Fri | D19: =IF('Crop Factor'!C$5>0,IF('Crop Factor'!B$13="Evaporation Pan",'Irrig Diary'!E19*'Crop Factor'!C$5,'Irrig Diary'!F19*'Crop Factor'!C$5),"N/A") -> 0 | E19: 0 | F19: 0 | I19: =IF(D19="N/A",'Fixed WU Figure'!G$12,D19*H19) -> 0 | J19: 0 | K19: 0 | L19: =K19-N18 -> 0 | N19: =IF(K19>0,M19-K19+N18,0) -> 0
A20: 2015-07-04 | B20: Sat | D20: =IF('Crop Factor'!C$5>0,IF('Crop Factor'!B$13="Evaporation Pan",'Irrig Diary'!E20*'Crop Factor'!C$5,'Irrig Diary'!F20*'Crop Factor'!C$5),"N/A") -> 0 | E20: 0 | F20: 0 | I20: =IF(D20="N/A",'Fixed WU Figure'!G$12,D20*H20) -> 0 | J20: 0 | K20: 0 | L20: 0 | N20: 0
A21: 2015-07-05 | B21: Sun | D21: =IF('Crop Factor'!C$5>0,IF('Crop Factor'!B$13="Evaporation Pan",'Irrig Diary'!E21*'Crop Factor'!C$5,'Irrig Diary'!F21*'Crop Factor'!C$5),"N/A") -> 0 | E21: 0 | F21: 0 | I21: =IF(D21="N/A",'Fixed WU Figure'!G$12,D21*H21) -> 0 | J21: 0 | K21: 0 | L21: 0 | N21: 0
A22: 2015-07-06 | B22: Mon | D22: =IF('Crop Factor'!C$5>0,IF('Crop Factor'!B$13="Evaporation Pan",'Irrig Diary'!E22*'Crop Factor'!C$5,'Irrig Diary'!F22*'Crop Factor'!C$5),"N/A") -> 0 | E22: 0 | F22: 0 | I22: =IF(D22="N/A",'Fixed WU Figure'!G$12,D22*H22) -> 0 | J22: 0 | K22: 0 | L22: 0 | N22: 0
A23: =A22+1 -> 2015-07-07 | B23: Tue | D23: =IF('Crop Factor'!C$5>0,IF('Crop Factor'!B$13="Evaporation Pan",'Irrig Diary'!E23*'Crop Factor'!C$5,'Irrig Diary'!F23*'Crop Factor'!C$5),"N/A") -> 0 | E23: 0 | F23: 0 | I23: =IF(D23="N/A",'Fixed WU Figure'!G$12,D23*H23) -> 0 | J23: 0 | K23: 0 | L23: =K23-N22 -> 0 | N23: =IF(K23>0,M23-K23+N22,0) -> 0
A24: 2015-07-08 | B24: Wed | D24: =IF('Crop Factor'!C$5>0,IF('Crop Factor'!B$13="Evaporation Pan",'Irrig Diary'!E24*'Crop Factor'!C$5,'Irrig Diary'!F24*'Crop Factor'!C$5),"N/A") -> 0 | E24: 0 | F24: 0 | I24: =IF(D24="N/A",'Fixed WU Figure'!G$12,D24*H24) -> 0 | J24: 0 | K24: 0 | L24: 0 | N24: 0
A25: 2015-07-09 | B25: Thu | D25: =IF('Crop Factor'!C$5>0,IF('Crop Factor'!B$13="Evaporation Pan",'Irrig Diary'!E25*'Crop Factor'!C$5,'Irrig Diary'!F25*'Crop Factor'!C$5),"N/A") -> 0 | E25: 0 | F25: 0 | I25: =IF(D25="N/A",'Fixed WU Figure'!G$12,D25*H25) -> 0 | J25: 0 | K25: 0 | L25: 0 | N25: 0
A26: 2015-07-10 | B26: Fri | D26: =IF('Crop Factor'!C$5>0,IF('Crop Factor'!B$13="Evaporation Pan",'Irrig Diary'!E26*'Crop Factor'!C$5,'Irrig Diary'!F26*'Crop Factor'!C$5),"N/A") -> 0 | E26: 0 | F26: 0 | I26: =IF(D26="N/A",'Fixed WU Figure'!G$12,D26*H26) -> 0 | J26: 0 | K26: 0 | L26: 0 | N26: 0
A27: 2015-07-11 | B27: Sat | D27: =IF('Crop Factor'!C$5>0,IF('Crop Factor'!B$13="Evaporation Pan",'Irrig Diary'!E27*'Crop Factor'!C$5,'Irrig Diary'!F27*'Crop Factor'!C$5),"N/A") -> 0 | E27: 0 | F27: 0 | I27: =IF(D27="N/A",'Fixed WU Figure'!G$12,D27*H27) -> 0 | J27: 0 | K27: 0 | L27: 0 | N27: 0
A28: 2015-07-12 | B28: Sun | D28: =IF('Crop Factor'!C$5>0,IF('Crop Factor'!B$13="Evaporation Pan",'Irrig Diary'!E28*'Crop Factor'!C$5,'Irrig Diary'!F28*'Crop Factor'!C$5),"N/A") -> 0 | E28: 0 | F28: 0 | I28: =IF(D28="N/A",'Fixed WU Figure'!G$12,D28*H28) -> 0 | J28: 0 | K28: 0 | L28: 0 | N28: 0
A29: 2015-07-13 | B29: Mon | D29: =IF('Crop Factor'!C$5>0,IF('Crop Factor'!B$13="Evaporation Pan",'Irrig Diary'!E29*'Crop Factor'!C$5,'Irrig Diary'!F29*'Crop Factor'!C$5),"N/A") -> 0 | E29: 0 | F29: 0 | I29: =IF(D29="N/A",'Fixed WU Figure'!G$12,D29*H29) -> 0 | J29: 0 | K29: 0 | L29: 0 | N29: 0
A30: 2015-07-14 | B30: Tue | D30: =IF('Crop Factor'!C$5>0,IF('Crop Factor'!B$13="Evaporation Pan",'Irrig Diary'!E30*'Crop Factor'!C$5,'Irrig Diary'!F30*'Crop Factor'!C$5),"N/A") -> 0 | E30: 0 | F30: 0 | I30: =IF(D30="N/A",'Fixed WU Figure'!G$12,D30*H30) -> 0 | J30: 0 | K30: 0 | L30: 0 | N30: 0
A31: 2015-07-15 | B31: Wed | D31: =IF('Crop Factor'!C$5>0,IF('Crop Factor'!B$13="Evaporation Pan",'Irrig Diary'!E31*'Crop Factor'!C$5,'Irrig Diary'!F31*'Crop Factor'!C$5),"N/A") -> 0 | E31: 0 | F31: 0 | I31: =IF(D31="N/A",'Fixed WU Figure'!G$12,D31*H31) -> 0 | J31: 0 | K31: 0 | L31: 0 | N31: 0
A32: 2015-07-16 | B32: Thu | D32: =IF('Crop Factor'!C$5>0,IF('Crop Factor'!B$13="Evaporation Pan",'Irrig Diary'!E32*'Crop Factor'!C$5,'Irrig Diary'!F32*'Crop Factor'!C$5),"N/A") -> 0 | E32: 0 | F32: 0 | I32: =IF(D32="N/A",'Fixed WU Figure'!G$12,D32*H32) -> 0 | J32: 0 | K32: 0 | L32: 0 | N32: 0
A33: 2015-07-17 | B33: Fri | D33: =IF('Crop Factor'!C$5>0,IF('Crop Factor'!B$13="Evaporation Pan",'Irrig Diary'!E33*'Crop Factor'!C$5,'Irrig Diary'!F33*'Crop Factor'!C$5),"N/A") -> 0 | E33: 0 | F33: 0 | I33: =IF(D33="N/A",'Fixed WU Figure'!G$12,D33*H33) -> 0 | J33: 0 | K33: 0 | L33: 0 | N33: 0
A34: 2015-07-18 | B34: Sat | D34: =IF('Crop Factor'!C$5>0,IF('Crop Factor'!B$13="Evaporation Pan",'Irrig Diary'!E34*'Crop Factor'!C$5,'Irrig Diary'!F34*'Crop Factor'!C$5),"N/A") -> 0 | E34: 0 | F34: 0 | I34: =IF(D34="N/A",'Fixed WU Figure'!G$12,D34*H34) -> 0 | J34: 0 | K34: 0 | L34: 0 | N34: 0
A35: 2015-07-19 | B35: Sun | D35: =IF('Crop Factor'!C$5>0,IF('Crop Factor'!B$13="Evaporation Pan",'Irrig Diary'!E35*'Crop Factor'!C$5,'Irrig Diary'!F35*'Crop Factor'!C$5),"N/A") -> 0 | E35: 0 | F35: 0 | I35: =IF(D35="N/A",'Fixed WU Figure'!G$12,D35*H35) -> 0 | J35: 0 | K35: 0 | L35: 0 | N35: 0
A36: 2015-07-20 | B36: Mon | D36: =IF('Crop Factor'!C$5>0,IF('Crop Factor'!B$13="Evaporation Pan",'Irrig Diary'!E36*'Crop Factor'!C$5,'Irrig Diary'!F36*'Crop Factor'!C$5),"N/A") -> 0 | E36: 0 | F36: 0 | I36: =IF(D36="N/A",'Fixed WU Figure'!G$12,D36*H36) -> 0 | J36: 0 | K36: 0 | L36: 0 | N36: 0
A37: 2015-07-21 | B37: Tue | D37: =IF('Crop Factor'!C$5>0,IF('Crop Factor'!B$13="Evaporation Pan",'Irrig Diary'!E37*'Crop Factor'!C$5,'Irrig Diary'!F37*'Crop Factor'!C$5),"N/A") -> 0 | E37: 0 | F37: 0 | I37: =IF(D37="N/A",'Fixed WU Figure'!G$12,D37*H37) -> 0 | J37: 0 | K37: 0 | L37: 0 | N37: 0
A38: 2015-07-22 | B38: Wed | D38: =IF('Crop Factor'!C$5>0,IF('Crop Factor'!B$13="Evaporation Pan",'Irrig Diary'!E38*'Crop Factor'!C$5,'Irrig Diary'!F38*'Crop Factor'!C$5),"N/A") -> 0 | E38: 0 | F38: 0 | I38: =IF(D38="N/A",'Fixed WU Figure'!G$12,D38*H38) -> 0 | J38: 0 | K38: 0 | L38: 0 | N38: 0
A39: 2015-07-23 | B39: Thu | D39: =IF('Crop Factor'!C$5>0,IF('Crop Factor'!B$13="Evaporation Pan",'Irrig Diary'!E39*'Crop Factor'!C$5,'Irrig Diary'!F39*'Crop Factor'!C$5),"N/A") -> 0 | E39: 0 | F39: 0 | I39: =IF(D39="N/A",'Fixed WU Figure'!G$12,D39*H39) -> 0 | J39: 0 | K39: 0 | L39: 0 | N39: 0
A40: 2015-07-24 | B40: Fri | D40: =IF('Crop Factor'!C$5>0,IF('Crop Factor'!B$13="Evaporation Pan",'Irrig Diary'!E40*'Crop Factor'!C$5,'Irrig Diary'!F40*'Crop Factor'!C$5),"N/A") -> 0 | E40: 0 | F40: 0 | I40: =IF(D40="N/A",'Fixed WU Figure'!G$12,D40*H40) -> 0 | J40: 0 | K40: 0 | L40: 0 | N40: 0
A41: 2015-07-25 | B41: Sat | D41: =IF('Crop Factor'!C$5>0,IF('Crop Factor'!B$13="Evaporation Pan",'Irrig Diary'!E41*'Crop Factor'!C$5,'Irrig Diary'!F41*'Crop Factor'!C$5),"N/A") -> 0 | E41: 0 | F41: 0 | I41: =IF(D41="N/A",'Fixed WU Figure'!G$12,D41*H41) -> 0 | J41: 0 | K41: 0 | L41: 0 | N41: 0
A42: 2015-07-26 | B42: Sun | D42: =IF('Crop Factor'!C$5>0,IF('Crop Factor'!B$13="Evaporation Pan",'Irrig Diary'!E42*'Crop Factor'!C$5,'Irrig Diary'!F42*'Crop Factor'!C$5),"N/A") -> 0 | E42: 0 | F42: 0 | I42: =IF(D42="N/A",'Fixed WU Figure'!G$12,D42*H42) -> 0 | J42: 0 | K42: 0 | L42: 0 | N42: 0
A43: 2015-07-27 | B43: Mon | D43: =IF('Crop Factor'!C$5>0,IF('Crop Factor'!B$13="Evaporation Pan",'Irrig Diary'!E43*'Crop Factor'!C$5,'Irrig Diary'!F43*'Crop Factor'!C$5),"N/A") -> 0 | E43: 0 | F43: 0 | I43: =IF(D43="N/A",'Fixed WU Figure'!G$12,D43*H43) -> 0 | J43: 0 | K43: 0 | L43: 0 | N43: 0
A44: 2015-07-28 | B44: Tue | D44: =IF('Crop Factor'!C$5>0,IF('Crop Factor'!B$13="Evaporation Pan",'Irrig Diary'!E44*'Crop Factor'!C$5,'Irrig Diary'!F44*'Crop Factor'!C$5),"N/A") -> 0 | E44: 0 | F44: 0 | I44: =IF(D44="N/A",'Fixed WU Figure'!G$12,D44*H44) -> 0 | J44: 0 | K44: 0 | L44: 0 | N44: 0
A45: 2015-07-29 | B45: Wed | D45: =IF('Crop Factor'!C$5>0,IF('Crop Factor'!B$13="Evaporation Pan",'Irrig Diary'!E45*'Crop Factor'!C$5,'Irrig Diary'!F45*'Crop Factor'!C$5),"N/A") -> 0 | E45: 0 | F45: 0 | I45: =IF(D45="N/A",'Fixed WU Figure'!G$12,D45*H45) -> 0 | J45: 0 | K45: 0 | L45: 0 | N45: 0
A46: 2015-07-30 | B46: Thu | D46: =IF('Crop Factor'!C$5>0,IF('Crop Factor'!B$13="Evaporation Pan",'Irrig Diary'!E46*'Crop Factor'!C$5,'Irrig Diary'!F46*'Crop Factor'!C$5),"N/A") -> 0 | E46: 0 | F46: 0 | I46: =IF(D46="N/A",'Fixed WU Figure'!G$12,D46*H46) -> 0 | J46: 0 | K46: 0 | L46: 0 | N46: 0
A47: 2015-07-31 | B47: Fri | D47: =IF('Crop Factor'!C$5>0,IF('Crop Factor'!B$13="Evaporation Pan",'Irrig Diary'!E47*'Crop Factor'!C$5,'Irrig Diary'!F47*'Crop Factor'!C$5),"N/A") -> 0 | E47: 0 | F47: 0 | I47: =IF(D47="N/A",'Fixed WU Figure'!G$12,D47*H47) -> 0 | J47: 0 | K47: 0 | L47: 0 | N47: 0
A48: 2015-08-01 | B48: Sat | D48: =IF('Crop Factor'!C$5>0,IF('Crop Factor'!B$13="Evaporation Pan",'Irrig Diary'!E48*'Crop Factor'!C$5,'Irrig Diary'!F48*'Crop Factor'!C$5),"N/A") -> 0 | E48: 0 | F48: 0 | I48: =IF(D48="N/A",'Fixed WU Figure'!G$13,D48*H48) -> 0 | J48: 0 | K48: 0 | L48: 0 | N48: 0
A49: 2015-08-02 | B49: Sun | D49: =IF('Crop Factor'!C$5>0,IF('Crop Factor'!B$13="Evaporation Pan",'Irrig Diary'!E49*'Crop Factor'!C$5,'Irrig Diary'!F49*'Crop Factor'!C$5),"N/A") -> 0 | E49: 0 | F49: 0 | I49: =IF(D49="N/A",'Fixed WU Figure'!G$13,D49*H49) -> 0 | J49: 0 | K49: 0 | L49: 0 | N49: 0
A50: 2015-08-03 | B50: Mon | D50: =IF('Crop Factor'!C$5>0,IF('Crop Factor'!B$13="Evaporation Pan",'Irrig Diary'!E50*'Crop Factor'!C$5,'Irrig Diary'!F50*'Crop Factor'!C$5),"N/A") -> 0 | E50: 0 | F50: 0 | I50: =IF(D50="N/A",'Fixed WU Figure'!G$13,D50*H50) -> 0 | J50: 0 | K50: 0 | L50: 0 | N50: 0
A51: 2015-08-04 | B51: Tue | D51: =IF('Crop Factor'!C$5>0,IF('Crop Factor'!B$13="Evaporation Pan",'Irrig Diary'!E51*'Crop Factor'!C$5,'Irrig Diary'!F51*'Crop Factor'!C$5),"N/A") -> 0 | E51: 0 | F51: 0 | I51: =IF(D51="N/A",'Fixed WU Figure'!G$13,D51*H51) -> 0 | J51: 0 | K51: 0 | L51: 0 | N51: 0
A52: 2015-08-05 | B52: Wed | D52: =IF('Crop Factor'!C$5>0,IF('Crop Factor'!B$13="Evaporation Pan",'Irrig Diary'!E52*'Crop Factor'!C$5,'Irrig Diary'!F52*'Crop Factor'!C$5),"N/A") -> 0 | E52: 0 | F52: 0 | I52: =IF(D52="N/A",'Fixed WU Figure'!G$13,D52*H52) -> 0 | J52: 0 | K52: 0 | L52: 0 | N52: 0
A53: 2015-08-06 | B53: Thu | D53: =IF('Crop Factor'!C$5>0,IF('Crop Factor'!B$13="Evaporation Pan",'Irrig Diary'!E53*'Crop Factor'!C$5,'Irrig Diary'!F53*'Crop Factor'!C$5),"N/A") -> 0 | E53: 0 | F53: 0 | I53: =IF(D53="N/A",'Fixed WU Figure'!G$13,D53*H53) -> 0 | J53: 0 | K53: 0 | L53: 0 | N53: 0
A54: 2015-08-07 | B54: Fri | D54: =IF('Crop Factor'!C$5>0,IF('Crop Factor'!B$13="Evaporation Pan",'Irrig Diary'!E54*'Crop Factor'!C$5,'Irrig Diary'!F54*'Crop Factor'!C$5),"N/A") -> 0 | E54: 0 | F54: 0 | I54: =IF(D54="N/A",'Fixed WU Figure'!G$13,D54*H54) -> 0 | J54: 0 | K54: 0 | L54: 0 | N54: 0
A55: 2015-08-08 | B55: Sat | D55: =IF('Crop Factor'!C$5>0,IF('Crop Factor'!B$13="Evaporation Pan",'Irrig Diary'!E55*'Crop Factor'!C$5,'Irrig Diary'!F55*'Crop Factor'!C$5),"N/A") -> 0 | E55: 0 | F55: 0 | I55: =IF(D55="N/A",'Fixed WU Figure'!G$13,D55*H55) -> 0 | J55: 0 | K55: 0 | L55: 0 | N55: 0
A56: 2015-08-09 | B56: Sun | D56: =IF('Crop Factor'!C$5>0,IF('Crop Factor'!B$13="Evaporation Pan",'Irrig Diary'!E56*'Crop Factor'!C$5,'Irrig Diary'!F56*'Crop Factor'!C$5),"N/A") -> 0 | E56: 0 | F56: 0 | I56: =IF(D56="N/A",'Fixed WU Figure'!G$13,D56*H56) -> 0 | J56: 0 | K56: 0 | L56: 0 | N56: 0
A57: 2015-08-10 | B57: Mon | D57: =IF('Crop Factor'!C$5>0,IF('Crop Factor'!B$13="Evaporation Pan",'Irrig Diary'!E57*'Crop Factor'!C$5,'Irrig Diary'!F57*'Crop Factor'!C$5),"N/A") -> 0 | E57: 0 | F57: 0 | I57: =IF(D57="N/A",'Fixed WU Figure'!G$13,D57*H57) -> 0 | J57: 0 | K57: 0 | L57: 0 | N57: 0
A58: 2015-08-11 | B58: Tue | D58: =IF('Crop Factor'!C$5>0,IF('Crop Factor'!B$13="Evaporation Pan",'Irrig Diary'!E58*'Crop Factor'!C$5,'Irrig Diary'!F58*'Crop Factor'!C$5),"N/A") -> 0 | E58: 0 | F58: 0 | I58: =IF(D58="N/A",'Fixed WU Figure'!G$13,D58*H58) -> 0 | J58: 0 | K58: 0 | L58: 0 | N58: 0
A59: 2015-08-12 | B59: Wed | D59: =IF('Crop Factor'!C$5>0,IF('Crop Factor'!B$13="Evaporation Pan",'Irrig Diary'!E59*'Crop Factor'!C$5,'Irrig Diary'!F59*'Crop Factor'!C$5),"N/A") -> 0 | E59: 0 | F59: 0 | I59: =IF(D59="N/A",'Fixed WU Figure'!G$13,D59*H59) -> 0 | J59: 0 | K59: 0 | L59: 0 | N59: 0
A60: 2015-08-13 | B60: Thu | D60: =IF('Crop Factor'!C$5>0,IF('Crop Factor'!B$13="Evaporation Pan",'Irrig Diary'!E60*'Crop Factor'!C$5,'Irrig Diary'!F60*'Crop Factor'!C$5),"N/A") -> 0.4285714286 | E60: 0.3 | F60: 0.4285714286 | I60: =IF(D60="N/A",'Fixed WU Figure'!G$13,D60*H60) -> 0 | J60: 0 | K60: 0 | L60: 0 | N60: 0
A61: 2015-08-14 | B61: Fri | D61: =IF('Crop Factor'!C$5>0,IF('Crop Factor'!B$13="Evaporation Pan",'Irrig Diary'!E61*'Crop Factor'!C$5,'Irrig Diary'!F61*'Crop Factor'!C$5),"N/A") -> 0.4285714286 | E61: 0.3 | F61: 0.4285714286 | I61: =IF(D61="N/A",'Fixed WU Figure'!G$13,D61*H61) -> 0 | J61: 0 | K61: 0 | L61: 0 | N61: 0
A62: 2015-08-15 | B62: Sat | D62: =IF('Crop Factor'!C$5>0,IF('Crop Factor'!B$13="Evaporation Pan",'Irrig Diary'!E62*'Crop Factor'!C$5,'Irrig Diary'!F62*'Crop Factor'!C$5),"N/A") -> 0.4285714286 | E62: 0.3 | F62: 0.4285714286 | I62: =IF(D62="N/A",'Fixed WU Figure'!G$13,D62*H62) -> 0 | J62: 0 | K62: 0 | L62: 0 | N62: 0
A63: 2015-08-16 | B63: Sun | D63: =IF('Crop Factor'!C$5>0,IF('Crop Factor'!B$13="Evaporation Pan",'Irrig Diary'!E63*'Crop Factor'!C$5,'Irrig Diary'!F63*'Crop Factor'!C$5),"N/A") -> 0.4285714286 | E63: 0.3 | F63: 0.4285714286 | I63: =IF(D63="N/A",'Fixed WU Figure'!G$13,D63*H63) -> 0 | J63: 0 | K63: 0 | L63: 0 | N63: 0
A64: 2015-08-17 | B64: Mon | D64: =IF('Crop Factor'!C$5>0,IF('Crop Factor'!B$13="Evaporation Pan",'Irrig Diary'!E64*'Crop Factor'!C$5,'Irrig Diary'!F64*'Crop Factor'!C$5),"N/A") -> 0.5714285714 | E64: 0.4 | F64: 0.5714285714 | I64: =IF(D64="N/A",'Fixed WU Figure'!G$13,D64*H64) -> 0 | J64: 0 | K64: 0 | L64: 0 | N64: 0
A65: 2015-08-18 | B65: Tue | D65: =IF('Crop Factor'!C$5>0,IF('Crop Factor'!B$13="Evaporation Pan",'Irrig Diary'!E65*'Crop Factor'!C$5,'Irrig Diary'!F65*'Crop Factor'!C$5),"N/A") -> 0.5714285714 | E65: 0.4 | F65: 0.5714285714 | I65: =IF(D65="N/A",'Fixed WU Figure'!G$13,D65*H65) -> 0 | J65: 0 | K65: 0 | L65: 0 | N65: 0
A66: 2015-08-19 | B66: Wed | D66: =IF('Crop Factor'!C$5>0,IF('Crop Factor'!B$13="Evaporation Pan",'Irrig Diary'!E66*'Crop Factor'!C$5,'Irrig Diary'!F66*'Crop Factor'!C$5),"N/A") -> 0.7857142857 | E66: 0.55 | F66: 0.7857142857 | I66: =IF(D66="N/A",'Fixed WU Figure'!G$13,D66*H66) -> 0 | J66: 0 | K66: 0 | L66: 0 | N66: 0
A67: 2015-08-20 | B67: Thu | D67: =IF('Crop Factor'!C$5>0,IF('Crop Factor'!B$13="Evaporation Pan",'Irrig Diary'!E67*'Crop Factor'!C$5,'Irrig Diary'!F67*'Crop Factor'!C$5),"N/A") -> 0.6785714286 | E67: 0.475 | F67: 0.6785714286 | I67: =IF(D67="N/A",'Fixed WU Figure'!G$13,D67*H67) -> 0 | J67: 0 | K67: 0 | L67: 0 | N67: 0
A68: 2015-08-21 | B68: Fri | D68: =IF('Crop Factor'!C$5>0,IF('Crop Factor'!B$13="Evaporation Pan",'Irrig Diary'!E68*'Crop Factor'!C$5,'Irrig Diary'!F68*'Crop Factor'!C$5),"N/A") -> 0.6857142857 | E68: 0.48 | F68: 0.6857142857 | I68: =IF(D68="N/A",'Fixed WU Figure'!G$13,D68*H68) -> 0 | J68: 0 | K68: 0 | L68: 0 | N68: 0
A69: 2015-08-22 | B69: Sat | D69: =IF('Crop Factor'!C$5>0,IF('Crop Factor'!B$13="Evaporation Pan",'Irrig Diary'!E69*'Crop Factor'!C$5,'Irrig Diary'!F69*'Crop Factor'!C$5),"N/A") -> 0.6857142857 | E69: 0.48 | F69: 0.6857142857 | I69: =IF(D69="N/A",'Fixed WU Figure'!G$13,D69*H69) -> 0 | J69: 0 | K69: 0 | L69: 0 | N69: 0
A70: 2015-08-23 | B70: Sun | D70: =IF('Crop Factor'!C$5>0,IF('Crop Factor'!B$13="Evaporation Pan",'Irrig Diary'!E70*'Crop Factor'!C$5,'Irrig Diary'!F70*'Crop Factor'!C$5),"N/A") -> 0.6857142857 | E70: 0.48 | F70: 0.6857142857 | I70: =IF(D70="N/A",'Fixed WU Figure'!G$13,D70*H70) -> 0 | J70: 0 | K70: 0 | L70: 0 | N70: 0
A71: 2015-08-24 | B71: Mon | D71: =IF('Crop Factor'!C$5>0,IF('Crop Factor'!B$13="Evaporation Pan",'Irrig Diary'!E71*'Crop Factor'!C$5,'Irrig Diary'!F71*'Crop Factor'!C$5),"N/A") -> 0.6857142857 | E71: 0.48 | F71: 0.6857142857 | I71: =IF(D71="N/A",'Fixed WU Figure'!G$13,D71*H71) -> 0 | J71: 0 | K71: 0 | L71: 0 | N71: 0
A72: 2015-08-25 | B72: Tue | D72: =IF('Crop Factor'!C$5>0,IF('Crop Factor'!B$13="Evaporation Pan",'Irrig Diary'!E72*'Crop Factor'!C$5,'Irrig Diary'!F72*'Crop Factor'!C$5),"N/A") -> 0.7142857143 | E72: 0.5 | F72: 0.7142857143 | I72: =IF(D72="N/A",'Fixed WU Figure'!G$13,D72*H72) -> 0 | J72: 0 | K72: 0 | L72: 0 | N72: 0
A73: 2015-08-26 | B73: Wed | D73: =IF('Crop Factor'!C$5>0,IF('Crop Factor'!B$13="Evaporation Pan",'Irrig Diary'!E73*'Crop Factor'!C$5,'Irrig Diary'!F73*'Crop Factor'!C$5),"N/A") -> 0.7142857143 | E73: 0.5 | F73: 0.7142857143 | I73: =IF(D73="N/A",'Fixed WU Figure'!G$13,D73*H73) -> 0 | J73: 0 | K73: 0 | L73: 0 | N73: 0
A74: 2015-08-27 | B74: Thu | D74: =IF('Crop Factor'!C$5>0,IF('Crop Factor'!B$13="Evaporation Pan",'Irrig Diary'!E74*'Crop Factor'!C$5,'Irrig Diary'!F74*'Crop Factor'!C$5),"N/A") -> 0.7142857143 | E74: 0.5 | F74: 0.7142857143 | I74: =IF(D74="N/A",'Fixed WU Figure'!G$13,D74*H74) -> 0 | J74: 0 | K74: 0 | L74: 0 | N74: 0
A75: 2015-08-28 | B75: Fri | D75: =IF('Crop Factor'!C$5>0,IF('Crop Factor'!B$13="Evaporation Pan",'Irrig Diary'!E75*'Crop Factor'!C$5,'Irrig Diary'!F75*'Crop Factor'!C$5),"N/A") -> 0.7142857143 | E75: 0.5 | F75: 0.7142857143 | I75: =IF(D75="N/A",'Fixed WU Figure'!G$13,D75*H75) -> 0 | J75: 0 | K75: 0 | L75: 0 | N75: 0
A76: 2015-08-29 | B76: Sat | D76: =IF('Crop Factor'!C$5>0,IF('Crop Factor'!B$13="Evaporation Pan",'Irrig Diary'!E76*'Crop Factor'!C$5,'Irrig Diary'!F76*'Crop Factor'!C$5),"N/A") -> 0.7142857143 | E76: 0.5 | F76: 0.7142857143 | I76: =IF(D76="N/A",'Fixed WU Figure'!G$13,D76*H76) -> 0 | J76: 0 | K76: 0 | L76: 0 | N76: 0
A77: 2015-08-30 | B77: Sun | D77: =IF('Crop Factor'!C$5>0,IF('Crop Factor'!B$13="Evaporation Pan",'Irrig Diary'!E77*'Crop Factor'!C$5,'Irrig Diary'!F77*'Crop Factor'!C$5),"N/A") -> 0.7142857143 | E77: 0.5 | F77: 0.7142857143 | I77: =IF(D77="N/A",'Fixed WU Figure'!G$13,D77*H77) -> 0 | J77: 0 | K77: 0 | L77: 0 | N77: 0
A78: 2015-08-31 | B78: Mon | D78: =IF('Crop Factor'!C$5>0,IF('Crop Factor'!B$13="Evaporation Pan",'Irrig Diary'!E78*'Crop Factor'!C$5,'Irrig Diary'!F78*'Crop Factor'!C$5),"N/A") -> 0.7142857143 | E78: 0.5 | F78: 0.7142857143 | I78: =IF(D78="N/A",'Fixed WU Figure'!G$13,D78*H78) -> 0 | J78: 0 | K78: 0 | L78: 0 | N78: 0
A79: 2015-09-01 | B79: Tue | D79: =IF('Crop Factor'!C$5>0,IF('Crop Factor'!B$13="Evaporation Pan",'Irrig Diary'!E79*'Crop Factor'!C$5,'Irrig Diary'!F79*'Crop Factor'!C$5),"N/A") -> 0.7142857143 | E79: 0.5 | F79: 0.7142857143 | I79: =IF(D79="N/A",'Fixed WU Figure'!G$14,D79*H79) -> 0 | J79: 0 | K79: 0 | L79: 0 | N79: 0
A80: 2015-09-02 | B80: Wed | D80: =IF('Crop Factor'!C$5>0,IF('Crop Factor'!B$13="Evaporation Pan",'Irrig Diary'!E80*'Crop Factor'!C$5,'Irrig Diary'!F80*'Crop Factor'!C$5),"N/A") -> 0.7142857143 | E80: 0.5 | F80: 0.7142857143 | I80: =IF(D80="N/A",'Fixed WU Figure'!G$14,D80*H80) -> 0 | J80: 0 | K80: 0 | L80: 0 | N80: 0
A81: 2015-09-03 | B81: Thu | D81: =IF('Crop Factor'!C$5>0,IF('Crop Factor'!B$13="Evaporation Pan",'Irrig Diary'!E81*'Crop Factor'!C$5,'Irrig Diary'!F81*'Crop Factor'!C$5),"N/A") -> 0.7142857143 | E81: 0.5 | F81: 0.7142857143 | I81: =IF(D81="N/A",'Fixed WU Figure'!G$14,D81*H81) -> 0 | J81: 0 | K81: =IF(OR(I81=0,I81="N/A"),0,I81/P$15) -> 0 | L81: 0 | N81: 0
A82: =A81+1 -> 2015-09-04 | B82: Fri | D82: =IF('Crop Factor'!C$5>0,IF('Crop Factor'!B$13="Evaporation Pan",'Irrig Diary'!E82*'Crop Factor'!C$5,'Irrig Diary'!F82*'Crop Factor'!C$5),"N/A") -> 0.7142857143 | E82: 0.5 | F82: =(1/F$15)*E82 -> 0.7142857143 | I82: =IF(D82="N/A",'Fixed WU Figure'!G$14,D82*H82) -> 0 | J82: =IF(I82>12,12,I82) -> 0 | K82: 0 | L82: 0 | N82: 0
A83: 2015-09-05 | B83: =TEXT(A83,"ddd") -> Sat | D83: =IF('Crop Factor'!C$5>0,IF('Crop Factor'!B$13="Evaporation Pan",'Irrig Diary'!E83*'Crop Factor'!C$5,'Irrig Diary'!F83*'Crop Factor'!C$5),"N/A") -> 0.7142857143 | E83: 0.5 | F83: 0.7142857143 | I83: =IF(D83="N/A",'Fixed WU Figure'!G$14,D83*H83) -> 0 | J83: 0 | K83: 0 | L83: =K83-N82 -> 0 | N83: =IF(K83>0,M83-K83+N82,0) -> 0
A84: 2015-09-06 | B84: Sun | D84: =IF('Crop Factor'!C$5>0,IF('Crop Factor'!B$13="Evaporation Pan",'Irrig Diary'!E84*'Crop Factor'!C$5,'Irrig Diary'!F84*'Crop Factor'!C$5),"N/A") -> 0.7678571429 | E84: 0.5375 | F84: 0.7678571429 | I84: =IF(D84="N/A",'Fixed WU Figure'!G$14,D84*H84) -> 0 | J84: 0 | K84: 0 | L84: 0 | N84: 0
A85: 2015-09-07 | B85: Mon | D85: =IF('Crop Factor'!C$5>0,IF('Crop Factor'!B$13="Evaporation Pan",'Irrig Diary'!E85*'Crop Factor'!C$5,'Irrig Diary'!F85*'Crop Factor'!C$5),"N/A") -> 0.7678571429 | E85: 0.5375 | F85: 0.7678571429 | I85: =IF(D85="N/A",'Fixed WU Figure'!G$14,D85*H85) -> 0 | J85: 0 | K85: 0 | L85: 0 | N85: 0
A86: 2015-09-08 | B86: Tue | D86: =IF('Crop Factor'!C$5>0,IF('Crop Factor'!B$13="Evaporation Pan",'Irrig Diary'!E86*'Crop Factor'!C$5,'Irrig Diary'!F86*'Crop Factor'!C$5),"N/A") -> 0.7678571429 | E86: 0.5375 | F86: 0.7678571429 | I86: =IF(D86="N/A",'Fixed WU Figure'!G$14,D86*H86) -> 0 | J86: 0 | K86: 0 | L86: 0 | N86: 0
A87: 2015-09-09 | B87: Wed | D87: =IF('Crop Factor'!C$5>0,IF('Crop Factor'!B$13="Evaporation Pan",'Irrig Diary'!E87*'Crop Factor'!C$5,'Irrig Diary'!F87*'Crop Factor'!C$5),"N/A") -> 0.7678571429 | E87: 0.5375 | F87: 0.7678571429 | I87: =IF(D87="N/A",'Fixed WU Figure'!G$14,D87*H87) -> 0 | J87: 0 | K87: 0 | L87: 0 | N87: 0
A88: 2015-09-10 | B88: Thu | D88: =IF('Crop Factor'!C$5>0,IF('Crop Factor'!B$13="Evaporation Pan",'Irrig Diary'!E88*'Crop Factor'!C$5,'Irrig Diary'!F88*'Crop Factor'!C$5),"N/A") -> 0.7678571429 | E88: 0.5375 | F88: 0.7678571429 | I88: =IF(D88="N/A",'Fixed WU Figure'!G$14,D88*H88) -> 0 | J88: 0 | K88: 0 | L88: 0 | N88: 0
A89: 2015-09-11 | B89: Fri | D89: =IF('Crop Factor'!C$5>0,IF('Crop Factor'!B$13="Evaporation Pan",'Irrig Diary'!E89*'Crop Factor'!C$5,'Irrig Diary'!F89*'Crop Factor'!C$5),"N/A") -> 0.7678571429 | E89: 0.5375 | F89: 0.7678571429 | I89: =IF(D89="N/A",'Fixed WU Figure'!G$14,D89*H89) -> 0 | J89: 0 | K89: 0 | L89: 0 | N89: 0
A90: 2015-09-12 | B90: Sat | D90: =IF('Crop Factor'!C$5>0,IF('Crop Factor'!B$13="Evaporation Pan",'Irrig Diary'!E90*'Crop Factor'!C$5,'Irrig Diary'!F90*'Crop Factor'!C$5),"N/A") -> 0.7678571429 | E90: 0.5375 | F90: 0.7678571429 | I90: =IF(D90="N/A",'Fixed WU Figure'!G$14,D90*H90) -> 0 | J90: 0 | K90: 0 | L90: 0 | N90: 0
A91: 2015-09-13 | B91: Sun | D91: =IF('Crop Factor'!C$5>0,IF('Crop Factor'!B$13="Evaporation Pan",'Irrig Diary'!E91*'Crop Factor'!C$5,'Irrig Diary'!F91*'Crop Factor'!C$5),"N/A") -> 0.8035714286 | E91: 0.5625 | F91: 0.8035714286 | I91: =IF(D91="N/A",'Fixed WU Figure'!G$14,D91*H91) -> 0 | J91: 0 | K91: 0 | L91: 0 | N91: 0
A92: 2015-09-14 | B92: Mon | D92: =IF('Crop Factor'!C$5>0,IF('Crop Factor'!B$13="Evaporation Pan",'Irrig Diary'!E92*'Crop Factor'!C$5,'Irrig Diary'!F92*'Crop Factor'!C$5),"N/A") -> 0.8035714286 | E92: 0.5625 | F92: 0.8035714286 | I92: =IF(D92="N/A",'Fixed WU Figure'!G$14,D92*H92) -> 0 | J92: 0 | K92: 0 | L92: 0 | N92: 0
A93: 2015-09-15 | B93: Tue | D93: =IF('Crop Factor'!C$5>0,IF('Crop Factor'!B$13="Evaporation Pan",'Irrig Diary'!E93*'Crop Factor'!C$5,'Irrig Diary'!F93*'Crop Factor'!C$5),"N/A") -> 0.8035714286 | E93: 0.5625 | F93: 0.8035714286 | I93: =IF(D93="N/A",'Fixed WU Figure'!G$14,D93*H93) -> 0 | J93: 0 | K93: 0 | L93: 0 | N93: 0
A94: 2015-09-16 | B94: Wed | D94: =IF('Crop Factor'!C$5>0,IF('Crop Factor'!B$13="Evaporation Pan",'Irrig Diary'!E94*'Crop Factor'!C$5,'Irrig Diary'!F94*'Crop Factor'!C$5),"N/A") -> 0.8035714286 | E94: 0.5625 | F94: 0.8035714286 | I94: =IF(D94="N/A",'Fixed WU Figure'!G$14,D94*H94) -> 0 | J94: 0 | K94: 0 | L94: 0 | N94: 0
A95: 2015-09-17 | B95: Thu | D95: =IF('Crop Factor'!C$5>0,IF('Crop Factor'!B$13="Evaporation Pan",'Irrig Diary'!E95*'Crop Factor'!C$5,'Irrig Diary'!F95*'Crop Factor'!C$5),"N/A") -> 0.8035714286 | E95: 0.5625 | F95: 0.8035714286 | I95: =IF(D95="N/A",'Fixed WU Figure'!G$14,D95*H95) -> 0 | J95: 0 | K95: 0 | L95: 0 | N95: 0
A96: 2015-09-18 | B96: Fri | D96: =IF('Crop Factor'!C$5>0,IF('Crop Factor'!B$13="Evaporation Pan",'Irrig Diary'!E96*'Crop Factor'!C$5,'Irrig Diary'!F96*'Crop Factor'!C$5),"N/A") -> 0.8571428571 | E96: 0.6 | F96: 0.8571428571 | I96: =IF(D96="N/A",'Fixed WU Figure'!G$14,D96*H96) -> 0 | J96: 0 | K96: 0 | L96: 0 | N96: 0
A97: 2015-09-19 | B97: Sat | D97: =IF('Crop Factor'!C$5>0,IF('Crop Factor'!B$13="Evaporation Pan",'Irrig Diary'!E97*'Crop Factor'!C$5,'Irrig Diary'!F97*'Crop Factor'!C$5),"N/A") -> 0.9107142857 | E97: 0.6375 | F97: 0.9107142857 | I97: =IF(D97="N/A",'Fixed WU Figure'!G$14,D97*H97) -> 0 | J97: 0 | K97: 0 | L97: 0 | N97: 0
A98: 2015-09-20 | B98: Sun | D98: =IF('Crop Factor'!C$5>0,IF('Crop Factor'!B$13="Evaporation Pan",'Irrig Diary'!E98*'Crop Factor'!C$5,'Irrig Diary'!F98*'Crop Factor'!C$5),"N/A") -> 0.9107142857 | E98: 0.6375 | F98: 0.9107142857 | I98: =IF(D98="N/A",'Fixed WU Figure'!G$14,D98*H98) -> 0 | J98: 0 | K98: 0 | L98: 0 | N98: 0
A99: 2015-09-21 | B99: Mon | D99: =IF('Crop Factor'!C$5>0,IF('Crop Factor'!B$13="Evaporation Pan",'Irrig Diary'!E99*'Crop Factor'!C$5,'Irrig Diary'!F99*'Crop Factor'!C$5),"N/A") -> 0.9642857143 | E99: 0.675 | F99: 0.9642857143 | I99: =IF(D99="N/A",'Fixed WU Figure'!G$14,D99*H99) -> 0 | J99: 0 | K99: 0 | L99: 0 | N99: 0
A100: 2015-09-22 | B100: Tue | D100: =IF('Crop Factor'!C$5>0,IF('Crop Factor'!B$13="Evaporation Pan",'Irrig Diary'!E100*'Crop Factor'!C$5,'Irrig Diary'!F100*'Crop Factor'!C$5),"N/A") -> 0.9642857143 | E100: 0.675 | F100: 0.9642857143 | I100: =IF(D100="N/A",'Fixed WU Figure'!G$14,D100*H100) -> 0 | J100: 0 | K100: 0 | L100: 0 | N100: 0
A101: 2015-09-23 | B101: Wed | D101: =IF('Crop Factor'!C$5>0,IF('Crop Factor'!B$13="Evaporation Pan",'Irrig Diary'!E101*'Crop Factor'!C$5,'Irrig Diary'!F101*'Crop Factor'!C$5),"N/A") -> 1.089285714 | E101: 0.7625 | F101: 1.089285714 | I101: =IF(D101="N/A",'Fixed WU Figure'!G$14,D101*H101) -> 0 | J101: 0 | K101: 0 | L101: 0 | N101: 0
A102: 2015-09-24 | B102: Thu | D102: =IF('Crop Factor'!C$5>0,IF('Crop Factor'!B$13="Evaporation Pan",'Irrig Diary'!E102*'Crop Factor'!C$5,'Irrig Diary'!F102*'Crop Factor'!C$5),"N/A") -> 1.089285714 | E102: 0.7625 | F102: 1.089285714 | I102: =IF(D102="N/A",'Fixed WU Figure'!G$14,D102*H102) -> 0 | J102: 0 | K102: 0 | L102: 0 | N102: 0
A103: 2015-09-25 | B103: Fri | D103: =IF('Crop Factor'!C$5>0,IF('Crop Factor'!B$13="Evaporation Pan",'Irrig Diary'!E103*'Crop Factor'!C$5,'Irrig Diary'!F103*'Crop Factor'!C$5),"N/A") -> 1.142857143 | E103: 0.8 | F103: 1.142857143 | I103: =IF(D103="N/A",'Fixed WU Figure'!G$14,D103*H103) -> 0 | J103: 0 | K103: 0 | L103: 0 | N103: 0
A104: 2015-09-26 | B104: Sat | D104: =IF('Crop Factor'!C$5>0,IF('Crop Factor'!B$13="Evaporation Pan",'Irrig Diary'!E104*'Crop Factor'!C$5,'Irrig Diary'!F104*'Crop Factor'!C$5),"N/A") -> 1.142857143 | E104: 0.8 | F104: 1.142857143 | I104: =IF(D104="N/A",'Fixed WU Figure'!G$14,D104*H104) -> 0 | J104: 0 | K104: 0 | L104: 0 | N104: 0
A105: 2015-09-27 | B105: Sun | D105: =IF('Crop Factor'!C$5>0,IF('Crop Factor'!B$13="Evaporation Pan",'Irrig Diary'!E105*'Crop Factor'!C$5,'Irrig Diary'!F105*'Crop Factor'!C$5),"N/A") -> 1.142857143 | E105: 0.8 | F105: 1.142857143 | I105: =IF(D105="N/A",'Fixed WU Figure'!G$14,D105*H105) -> 0 | J105: 0 | K105: 0 | L105: 0 | N105: 0
A106: 2015-09-28 | B106: Mon | D106: =IF('Crop Factor'!C$5>0,IF('Crop Factor'!B$13="Evaporation Pan",'Irrig Diary'!E106*'Crop Factor'!C$5,'Irrig Diary'!F106*'Crop Factor'!C$5),"N/A") -> 1.142857143 | E106: 0.8 | F106: 1.142857143 | I106: =IF(D106="N/A",'Fixed WU Figure'!G$14,D106*H106) -> 0 | J106: 0 | K106: 0 | L106: 0 | N106: 0
A107: 2015-09-29 | B107: Tue | D107: =IF('Crop Factor'!C$5>0,IF('Crop Factor'!B$13="Evaporation Pan",'Irrig Diary'!E107*'Crop Factor'!C$5,'Irrig Diary'!F107*'Crop Factor'!C$5),"N/A") -> 1.142857143 | E107: 0.8 | F107: 1.142857143 | I107: =IF(D107="N/A",'Fixed WU Figure'!G$14,D107*H107) -> 0 | J107: 0 | K107: 0 | L107: 0 | N107: 0
A108: 2015-09-30 | B108: Wed | D108: =IF('Crop Factor'!C$5>0,IF('Crop Factor'!B$13="Evaporation Pan",'Irrig Diary'!E108*'Crop Factor'!C$5,'Irrig Diary'!F108*'Crop Factor'!C$5),"N/A") -> 1.142857143 | E108: 0.8 | F108: 1.142857143 | I108: =IF(D108="N/A",'Fixed WU Figure'!G$14,D108*H108) -> 0 | J108: 0 | K108: 0 | L108: 0 | N108: 0
A109: 2015-10-01 | B109: Thu | D109: =IF('Crop Factor'!C$5>0,IF('Crop Factor'!B$13="Evaporation Pan",'Irrig Diary'!E109*'Crop Factor'!C$5,'Irrig Diary'!F109*'Crop Factor'!C$5),"N/A") -> 1.142857143 | E109: 0.8 | F109: 1.142857143 | I109: =IF(D109="N/A",'Fixed WU Figure'!G$15,D109*H109) -> 0 | J109: 0 | K109: 0 | L109: 0 | N109: 0
A110: 2015-10-02 | B110: Fri | D110: =IF('Crop Factor'!C$5>0,IF('Crop Factor'!B$13="Evaporation Pan",'Irrig Diary'!E110*'Crop Factor'!C$5,'Irrig Diary'!F110*'Crop Factor'!C$5),"N/A") -> 1.214285714 | E110: 0.85 | F110: 1.214285714 | I110: =IF(D110="N/A",'Fixed WU Figure'!G$15,D110*H110) -> 0 | J110: 0 | K110: 0 | L110: 0 | N110: 0
A111: 2015-10-03 | B111: Sat | D111: =IF('Crop Factor'!C$5>0,IF('Crop Factor'!B$13="Evaporation Pan",'Irrig Diary'!E111*'Crop Factor'!C$5,'Irrig Diary'!F111*'Crop Factor'!C$5),"N/A") -> 1.25 | E111: 0.875 | F111: 1.25 | I111: =IF(D111="N/A",'Fixed WU Figure'!G$15,D111*H111) -> 0 | J111: 0 | K111: 0 | L111: 0 | N111: 0
A112: 2015-10-04 | B112: Sun | D112: =IF('Crop Factor'!C$5>0,IF('Crop Factor'!B$13="Evaporation Pan",'Irrig Diary'!E112*'Crop Factor'!C$5,'Irrig Diary'!F112*'Crop Factor'!C$5),"N/A") -> 1.25 | E112: 0.875 | F112: 1.25 | I112: =IF(D112="N/A",'Fixed WU Figure'!G$15,D112*H112) -> 0 | J112: 0 | K112: 0 | L112: 0 | N112: 0
A113: 2015-10-05 | B113: Mon | D113: =IF('Crop Factor'!C$5>0,IF('Crop Factor'!B$13="Evaporation Pan",'Irrig Diary'!E113*'Crop Factor'!C$5,'Irrig Diary'!F113*'Crop Factor'!C$5),"N/A") -> 1.285714286 | E113: 0.9 | F113: 1.285714286 | I113: =IF(D113="N/A",'Fixed WU Figure'!G$15,D113*H113) -> 0 | J113: 0 | K113: 0 | L113: 0 | N113: 0
A114: 2015-10-06 | B114: Tue | D114: =IF('Crop Factor'!C$5>0,IF('Crop Factor'!B$13="Evaporation Pan",'Irrig Diary'!E114*'Crop Factor'!C$5,'Irrig Diary'!F114*'Crop Factor'!C$5),"N/A") -> 1.321428571 | E114: 0.925 | F114: 1.321428571 | I114: =IF(D114="N/A",'Fixed WU Figure'!G$15,D114*H114) -> 0 | J114: 0 | K114: 0 | L114: 0 | N114: 0
A115: 2015-10-07 | B115: Wed | D115: =IF('Crop Factor'!C$5>0,IF('Crop Factor'!B$13="Evaporation Pan",'Irrig Diary'!E115*'Crop Factor'!C$5,'Irrig Diary'!F115*'Crop Factor'!C$5),"N/A") -> 1.321428571 | E115: 0.925 | F115: 1.321428571 | I115: =IF(D115="N/A",'Fixed WU Figure'!G$15,D115*H115) -> 0 | J115: 0 | K115: 0 | L115: 0 | N115: 0
A116: 2015-10-08 | B116: Thu | D116: =IF('Crop Factor'!C$5>0,IF('Crop Factor'!B$13="Evaporation Pan",'Irrig Diary'!E116*'Crop Factor'!C$5,'Irrig Diary'!F116*'Crop Factor'!C$5),"N/A") -> 1.321428571 | E116: 0.925 | F116: 1.321428571 | I116: =IF(D116="N/A",'Fixed WU Figure'!G$15,D116*H116) -> 0 | J116: 0 | K116: 0 | L116: 0 | N116: 0
A117: 2015-10-09 | B117: Fri | D117: =IF('Crop Factor'!C$5>0,IF('Crop Factor'!B$13="Evaporation Pan",'Irrig Diary'!E117*'Crop Factor'!C$5,'Irrig Diary'!F117*'Crop Factor'!C$5),"N/A") -> 1.321428571 | E117: 0.925 | F117: 1.321428571 | I117: =IF(D117="N/A",'Fixed WU Figure'!G$15,D117*H117) -> 0 | J117: 0 | K117: 0 | L117: 0 | N117: 0
A118: 2015-10-10 | B118: Sat | D118: =IF('Crop Factor'!C$5>0,IF('Crop Factor'!B$13="Evaporation Pan",'Irrig Diary'!E118*'Crop Factor'!C$5,'Irrig Diary'!F118*'Crop Factor'!C$5),"N/A") -> 1.321428571 | E118: 0.925 | F118: 1.321428571 | I118: =IF(D118="N/A",'Fixed WU Figure'!G$15,D118*H118) -> 0 | J118: 0 | K118: 0 | L118: 0 | N118: 0
A119: 2015-10-11 | B119: Sun | D119: =IF('Crop Factor'!C$5>0,IF('Crop Factor'!B$13="Evaporation Pan",'Irrig Diary'!E119*'Crop Factor'!C$5,'Irrig Diary'!F119*'Crop Factor'!C$5),"N/A") -> 1.321428571 | E119: 0.925 | F119: 1.321428571 | I119: =IF(D119="N/A",'Fixed WU Figure'!G$15,D119*H119) -> 0 | J119: 0 | K119: 0 | L119: 0 | N119: 0
A120: 2015-10-12 | B120: Mon | D120: =IF('Crop Factor'!C$5>0,IF('Crop Factor'!B$13="Evaporation Pan",'Irrig Diary'!E120*'Crop Factor'!C$5,'Irrig Diary'!F120*'Crop Factor'!C$5),"N/A") -> 1.321428571 | E120: 0.925 | F120: 1.321428571 | I120: =IF(D120="N/A",'Fixed WU Figure'!G$15,D120*H120) -> 0 | J120: 0 | K120: 0 | L120: 0 | N120: 0
A121: 2015-10-13 | B121: Tue | D121: =IF('Crop Factor'!C$5>0,IF('Crop Factor'!B$13="Evaporation Pan",'Irrig Diary'!E121*'Crop Factor'!C$5,'Irrig Diary'!F121*'Crop Factor'!C$5),"N/A") -> 1.392857143 | E121: 0.975 | F121: 1.392857143 | I121: =IF(D121="N/A",'Fixed WU Figure'!G$15,D121*H121) -> 0 | J121: 0 | K121: 0 | L121: 0 | N121: 0
A122: 2015-10-14 | B122: Wed | D122: =IF('Crop Factor'!C$5>0,IF('Crop Factor'!B$13="Evaporation Pan",'Irrig Diary'!E122*'Crop Factor'!C$5,'Irrig Diary'!F122*'Crop Factor'!C$5),"N/A") -> 1.392857143 | E122: 0.975 | F122: 1.392857143 | I122: =IF(D122="N/A",'Fixed WU Figure'!G$15,D122*H122) -> 0 | J122: 0 | K122: 0 | L122: 0 | N122: 0
A123: 2015-10-15 | B123: Thu | D123: =IF('Crop Factor'!C$5>0,IF('Crop Factor'!B$13="Evaporation Pan",'Irrig Diary'!E123*'Crop Factor'!C$5,'Irrig Diary'!F123*'Crop Factor'!C$5),"N/A") -> 1.392857143 | E123: 0.975 | F123: 1.392857143 | I123: =IF(D123="N/A",'Fixed WU Figure'!G$15,D123*H123) -> 0 | J123: 0 | K123: 0 | L123: 0 | N123: 0
A124: 2015-10-16 | B124: Fri | D124: =IF('Crop Factor'!C$5>0,IF('Crop Factor'!B$13="Evaporation Pan",'Irrig Diary'!E124*'Crop Factor'!C$5,'Irrig Diary'!F124*'Crop Factor'!C$5),"N/A") -> 1.392857143 | E124: 0.975 | F124: 1.392857143 | I124: =IF(D124="N/A",'Fixed WU Figure'!G$15,D124*H124) -> 0 | J124: 0 | K124: 0 | L124: 0 | N124: 0
A125: 2015-10-17 | B125: Sat | D125: =IF('Crop Factor'!C$5>0,IF('Crop Factor'!B$13="Evaporation Pan",'Irrig Diary'!E125*'Crop Factor'!C$5,'Irrig Diary'!F125*'Crop Factor'!C$5),"N/A") -> 1.428571429 | E125: 1 | F125: 1.428571429 | I125: =IF(D125="N/A",'Fixed WU Figure'!G$15,D125*H125) -> 0 | J125: 0 | K125: 0 | L125: 0 | N125: 0
A126: 2015-10-18 | B126: Sun | D126: =IF('Crop Factor'!C$5>0,IF('Crop Factor'!B$13="Evaporation Pan",'Irrig Diary'!E126*'Crop Factor'!C$5,'Irrig Diary'!F126*'Crop Factor'!C$5),"N/A") -> 1.428571429 | E126: 1 | F126: 1.428571429 | I126: =IF(D126="N/A",'Fixed WU Figure'!G$15,D126*H126) -> 0 | J126: 0 | K126: 0 | L126: 0 | N126: 0
A127: 2015-10-19 | B127: Mon | D127: =IF('Crop Factor'!C$5>0,IF('Crop Factor'!B$13="Evaporation Pan",'Irrig Diary'!E127*'Crop Factor'!C$5,'Irrig Diary'!F127*'Crop Factor'!C$5),"N/A") -> 1.410714286 | E127: 0.9875 | F127: 1.410714286 | I127: =IF(D127="N/A",'Fixed WU Figure'!G$15,D127*H127) -> 0 | J127: 0 | K127: 0 | L127: 0 | N127: 0
A128: 2015-10-20 | B128: Tue | D128: =IF('Crop Factor'!C$5>0,IF('Crop Factor'!B$13="Evaporation Pan",'Irrig Diary'!E128*'Crop Factor'!C$5,'Irrig Diary'!F128*'Crop Factor'!C$5),"N/A") -> 1.410714286 | E128: 0.9875 | F128: 1.410714286 | I128: =IF(D128="N/A",'Fixed WU Figure'!G$15,D128*H128) -> 0 | J128: 0 | K128: 0 | L128: 0 | N128: 0
A129: 2015-10-21 | B129: Wed | D129: =IF('Crop Factor'!C$5>0,IF('Crop Factor'!B$13="Evaporation Pan",'Irrig Diary'!E129*'Crop Factor'!C$5,'Irrig Diary'!F129*'Crop Factor'!C$5),"N/A") -> 1.446428571 | E129: 1.0125 | F129: 1.446428571 | I129: =IF(D129="N/A",'Fixed WU Figure'!G$15,D129*H129) -> 0 | J129: 0 | K129: 0 | L129: 0 | N129: 0
A130: 2015-10-22 | B130: Thu | D130: =IF('Crop Factor'!C$5>0,IF('Crop Factor'!B$13="Evaporation Pan",'Irrig Diary'!E130*'Crop Factor'!C$5,'Irrig Diary'!F130*'Crop Factor'!C$5),"N/A") -> 1.446428571 | E130: 1.0125 | F130: 1.446428571 | I130: =IF(D130="N/A",'Fixed WU Figure'!G$15,D130*H130) -> 0 | J130: 0 | K130: 0 | L130: 0 | N130: 0
A131: 2015-10-23 | B131: Fri | D131: =IF('Crop Factor'!C$5>0,IF('Crop Factor'!B$13="Evaporation Pan",'Irrig Diary'!E131*'Crop Factor'!C$5,'Irrig Diary'!F131*'Crop Factor'!C$5),"N/A") -> 1.464285714 | E131: 1.025 | F131: 1.464285714 | I131: =IF(D131="N/A",'Fixed WU Figure'!G$15,D131*H131) -> 0 | J131: 0 | K131: 0 | L131: 0 | N131: 0
A132: 2015-10-24 | B132: Sat | D132: =IF('Crop Factor'!C$5>0,IF('Crop Factor'!B$13="Evaporation Pan",'Irrig Diary'!E132*'Crop Factor'!C$5,'Irrig Diary'!F132*'Crop Factor'!C$5),"N/A") -> 1.5 | E132: 1.05 | F132: 1.5 | I132: =IF(D132="N/A",'Fixed WU Figure'!G$15,D132*H132) -> 0 | J132: 0 | K132: 0 | L132: 0 | N132: 0
A133: 2015-10-25 | B133: Sun | D133: =IF('Crop Factor'!C$5>0,IF('Crop Factor'!B$13="Evaporation Pan",'Irrig Diary'!E133*'Crop Factor'!C$5,'Irrig Diary'!F133*'Crop Factor'!C$5),"N/A") -> 1.535714286 | E133: 1.075 | F133: 1.535714286 | I133: =IF(D133="N/A",'Fixed WU Figure'!G$15,D133*H133) -> 0 | J133: 0 | K133: 0 | L133: 0 | N133: 0
A134: 2015-10-26 | B134: Mon | D134: =IF('Crop Factor'!C$5>0,IF('Crop Factor'!B$13="Evaporation Pan",'Irrig Diary'!E134*'Crop Factor'!C$5,'Irrig Diary'!F134*'Crop Factor'!C$5),"N/A") -> 1.535714286 | E134: 1.075 | F134: 1.535714286 | I134: =IF(D134="N/A",'Fixed WU Figure'!G$15,D134*H134) -> 0 | J134: 0 | K134: 0 | L134: 0 | N134: 0
A135: 2015-10-27 | B135: Tue | D135: =IF('Crop Factor'!C$5>0,IF('Crop Factor'!B$13="Evaporation Pan",'Irrig Diary'!E135*'Crop Factor'!C$5,'Irrig Diary'!F135*'Crop Factor'!C$5),"N/A") -> 1.535714286 | E135: 1.075 | F135: 1.535714286 | I135: =IF(D135="N/A",'Fixed WU Figure'!G$15,D135*H135) -> 0 | J135: 0 | K135: 0 | L135: 0 | N135: 0
A136: 2015-10-28 | B136: Wed | D136: =IF('Crop Factor'!C$5>0,IF('Crop Factor'!B$13="Evaporation Pan",'Irrig Diary'!E136*'Crop Factor'!C$5,'Irrig Diary'!F136*'Crop Factor'!C$5),"N/A") -> 1.535714286 | E136: 1.075 | F136: 1.535714286 | I136: =IF(D136="N/A",'Fixed WU Figure'!G$15,D136*H136) -> 0 | J136: 0 | K136: 0 | L136: 0 | N136: 0
A137: 2015-10-29 | B137: Thu | D137: =IF('Crop Factor'!C$5>0,IF('Crop Factor'!B$13="Evaporation Pan",'Irrig Diary'!E137*'Crop Factor'!C$5,'Irrig Diary'!F137*'Crop Factor'!C$5),"N/A") -> 1.535714286 | E137: 1.075 | F137: 1.535714286 | I137: =IF(D137="N/A",'Fixed WU Figure'!G$15,D137*H137) -> 0 | J137: 0 | K137: 0 | L137: 0 | N137: 0
A138: 2015-10-30 | B138: Fri | D138: =IF('Crop Factor'!C$5>0,IF('Crop Factor'!B$13="Evaporation Pan",'Irrig Diary'!E138*'Crop Factor'!C$5,'Irrig Diary'!F138*'Crop Factor'!C$5),"N/A") -> 1.535714286 | E138: 1.075 | F138: 1.535714286 | I138: =IF(D138="N/A",'Fixed WU Figure'!G$15,D138*H138) -> 0 | J138: 0 | K138: 0 | L138: 0 | N138: 0
A139: 2015-10-31 | B139: Sat | D139: =IF('Crop Factor'!C$5>0,IF('Crop Factor'!B$13="Evaporation Pan",'Irrig Diary'!E139*'Crop Factor'!C$5,'Irrig Diary'!F139*'Crop Factor'!C$5),"N/A") -> 1.535714286 | E139: 1.075 | F139: 1.535714286 | I139: =IF(D139="N/A",'Fixed WU Figure'!G$15,D139*H139) -> 0 | J139: 0 | K139: 0 | L139: 0 | N139: 0
A140: 2015-11-01 | B140: Sun | D140: =IF('Crop Factor'!C$5>0,IF('Crop Factor'!B$13="Evaporation Pan",'Irrig Diary'!E140*'Crop Factor'!C$5,'Irrig Diary'!F140*'Crop Factor'!C$5),"N/A") -> 1.535714286 | E140: 1.075 | F140: 1.535714286 | I140: =IF(D140="N/A",'Fixed WU Figure'!G$16,D140*H140) -> 0 | J140: 0 | K140: 0 | L140: 0 | N140: 0
A141: 2015-11-02 | B141: Mon | D141: =IF('Crop Factor'!C$5>0,IF('Crop Factor'!B$13="Evaporation Pan",'Irrig Diary'!E141*'Crop Factor'!C$5,'Irrig Diary'!F141*'Crop Factor'!C$5),"N/A") -> 1.517857143 | E141: 1.0625 | F141: 1.517857143 | I141: =IF(D141="N/A",'Fixed WU Figure'!G$16,D141*H141) -> 0 | J141: 0 | K141: 0 | L141: 0 | N141: 0
A142: 2015-11-03 | B142: Tue | D142: =IF('Crop Factor'!C$5>0,IF('Crop Factor'!B$13="Evaporation Pan",'Irrig Diary'!E142*'Crop Factor'!C$5,'Irrig Diary'!F142*'Crop Factor'!C$5),"N/A") -> 1.5 | E142: 1.05 | F142: 1.5 | I142: =IF(D142="N/A",'Fixed WU Figure'!G$16,D142*H142) -> 0 | J142: 0 | K142: 0 | L142: 0 | N142: 0
A143: 2015-11-04 | B143: Wed | D143: =IF('Crop Factor'!C$5>0,IF('Crop Factor'!B$13="Evaporation Pan",'Irrig Diary'!E143*'Crop Factor'!C$5,'Irrig Diary'!F143*'Crop Factor'!C$5),"N/A") -> 1.5 | E143: 1.05 | F143: 1.5 | I143: =IF(D143="N/A",'Fixed WU Figure'!G$16,D143*H143) -> 0 | J143: 0 | K143: 0 | L143: 0 | N143: 0
A144: 2015-11-05 | B144: Thu | D144: =IF('Crop Factor'!C$5>0,IF('Crop Factor'!B$13="Evaporation Pan",'Irrig Diary'!E144*'Crop Factor'!C$5,'Irrig Diary'!F144*'Crop Factor'!C$5),"N/A") -> 1.5 | E144: 1.05 | F144: 1.5 | I144: =IF(D144="N/A",'Fixed WU Figure'!G$16,D144*H144) -> 0 | J144: 0 | K144: 0 | L144: 0 | N144: 0
A145: 2015-11-06 | B145: Fri | D145: =IF('Crop Factor'!C$5>0,IF('Crop Factor'!B$13="Evaporation Pan",'Irrig Diary'!E145*'Crop Factor'!C$5,'Irrig Diary'!F145*'Crop Factor'!C$5),"N/A") -> 1.517857143 | E145: 1.0625 | F145: 1.517857143 | I145: =IF(D145="N/A",'Fixed WU Figure'!G$16,D145*H145) -> 0 | J145: 0 | K145: =IF(OR(I145=0,I145="N/A"),0,I145/P$15) -> 0 | L145: 0 | N145: 0
A146: =A145+1 -> 2015-11-07 | B146: Sat | D146: =IF('Crop Factor'!C$5>0,IF('Crop Factor'!B$13="Evaporation Pan",'Irrig Diary'!E146*'Crop Factor'!C$5,'Irrig Diary'!F146*'Crop Factor'!C$5),"N/A") -> 1.517857143 | E146: 1.0625 | F146: =(1/F$15)*E146 -> 1.517857143 | I146: =IF(D146="N/A",'Fixed WU Figure'!G$16,D146*H146) -> 0 | J146: =IF(I146>12,12,I146) -> 0 | K146: 0 | L146: 0 | N146: 0
A147: 2015-11-08 | B147: =TEXT(A147,"ddd") -> Sun | D147: =IF('Crop Factor'!C$5>0,IF('Crop Factor'!B$13="Evaporation Pan",'Irrig Diary'!E147*'Crop Factor'!C$5,'Irrig Diary'!F147*'Crop Factor'!C$5),"N/A") -> 1.517857143 | E147: 1.0625 | F147: 1.517857143 | I147: =IF(D147="N/A",'Fixed WU Figure'!G$16,D147*H147) -> 0 | J147: 0 | K147: 0 | L147: =K147-N146 -> 0 | N147: =IF(K147>0,M147-K147+N146,0) -> 0
A148: 2015-11-09 | B148: Mon | D148: =IF('Crop Factor'!C$5>0,IF('Crop Factor'!B$13="Evaporation Pan",'Irrig Diary'!E148*'Crop Factor'!C$5,'Irrig Diary'!F148*'Crop Factor'!C$5),"N/A") -> 1.517857143 | E148: 1.0625 | F148: 1.517857143 | I148: =IF(D148="N/A",'Fixed WU Figure'!G$16,D148*H148) -> 0 | J148: 0 | K148: 0 | L148: 0 | N148: 0
A149: 2015-11-10 | B149: Tue | D149: =IF('Crop Factor'!C$5>0,IF('Crop Factor'!B$13="Evaporation Pan",'Irrig Diary'!E149*'Crop Factor'!C$5,'Irrig Diary'!F149*'Crop Factor'!C$5),"N/A") -> 1.517857143 | E149: 1.0625 | F149: 1.517857143 | I149: =IF(D149="N/A",'Fixed WU Figure'!G$16,D149*H149) -> 0 | J149: 0 | K149: 0 | L149: 0 | N149: 0
A150: 2015-11-11 | B150: Wed | D150: =IF('Crop Factor'!C$5>0,IF('Crop Factor'!B$13="Evaporation Pan",'Irrig Diary'!E150*'Crop Factor'!C$5,'Irrig Diary'!F150*'Crop Factor'!C$5),"N/A") -> 1.517857143 | E150: 1.0625 | F150: 1.517857143 | I150: =IF(D150="N/A",'Fixed WU Figure'!G$16,D150*H150) -> 0 | J150: 0 | K150: 0 | L150: 0 | N150: 0
A151: 2015-11-12 | B151: Thu | D151: =IF('Crop Factor'!C$5>0,IF('Crop Factor'!B$13="Evaporation Pan",'Irrig Diary'!E151*'Crop Factor'!C$5,'Irrig Diary'!F151*'Crop Factor'!C$5),"N/A") -> 1.517857143 | E151: 1.0625 | F151: 1.517857143 | I151: =IF(D151="N/A",'Fixed WU Figure'!G$16,D151*H151) -> 0 | J151: 0 | K151: 0 | L151: 0 | N151: 0
A152: 2015-11-13 | B152: Fri | D152: =IF('Crop Factor'!C$5>0,IF('Crop Factor'!B$13="Evaporation Pan",'Irrig Diary'!E152*'Crop Factor'!C$5,'Irrig Diary'!F152*'Crop Factor'!C$5),"N/A") -> 1.517857143 | E152: 1.0625 | F152: 1.517857143 | I152: =IF(D152="N/A",'Fixed WU Figure'!G$16,D152*H152) -> 0 | J152: 0 | K152: 0 | L152: 0 | N152: 0
A153: 2015-11-14 | B153: Sat | D153: =IF('Crop Factor'!C$5>0,IF('Crop Factor'!B$13="Evaporation Pan",'Irrig Diary'!E153*'Crop Factor'!C$5,'Irrig Diary'!F153*'Crop Factor'!C$5),"N/A") -> 1.517857143 | E153: 1.0625 | F153: 1.517857143 | I153: =IF(D153="N/A",'Fixed WU Figure'!G$16,D153*H153) -> 0 | J153: 0 | K153: 0 | L153: 0 | N153: 0
A154: 2015-11-15 | B154: Sun | D154: =IF('Crop Factor'!C$5>0,IF('Crop Factor'!B$13="Evaporation Pan",'Irrig Diary'!E154*'Crop Factor'!C$5,'Irrig Diary'!F154*'Crop Factor'!C$5),"N/A") -> 1.517857143 | E154: 1.0625 | F154: 1.517857143 | I154: =IF(D154="N/A",'Fixed WU Figure'!G$16,D154*H154) -> 0 | J154: 0 | K154: 0 | L154: 0 | N154: 0
A155: 2015-11-16 | B155: Mon | D155: =IF('Crop Factor'!C$5>0,IF('Crop Factor'!B$13="Evaporation Pan",'Irrig Diary'!E155*'Crop Factor'!C$5,'Irrig Diary'!F155*'Crop Factor'!C$5),"N/A") -> 1.517857143 | E155: 1.0625 | F155: 1.517857143 | I155: =IF(D155="N/A",'Fixed WU Figure'!G$16,D155*H155) -> 0 | J155: 0 | K155: 0 | L155: 0 | N155: 0
A156: 2015-11-17 | B156: Tue | D156: =IF('Crop Factor'!C$5>0,IF('Crop Factor'!B$13="Evaporation Pan",'Irrig Diary'!E156*'Crop Factor'!C$5,'Irrig Diary'!F156*'Crop Factor'!C$5),"N/A") -> 1.517857143 | E156: 1.0625 | F156: 1.517857143 | I156: =IF(D156="N/A",'Fixed WU Figure'!G$16,D156*H156) -> 0 | J156: 0 | K156: 0 | L156: 0 | N156: 0
A157: 2015-11-18 | B157: Wed | D157: =IF('Crop Factor'!C$5>0,IF('Crop Factor'!B$13="Evaporation Pan",'Irrig Diary'!E157*'Crop Factor'!C$5,'Irrig Diary'!F157*'Crop Factor'!C$5),"N/A") -> 1.517857143 | E157: 1.0625 | F157: 1.517857143 | I157: =IF(D157="N/A",'Fixed WU Figure'!G$16,D157*H157) -> 0 | J157: 0 | K157: 0 | L157: 0 | N157: 0
A158: 2015-11-19 | B158: Thu | D158: =IF('Crop Factor'!C$5>0,IF('Crop Factor'!B$13="Evaporation Pan",'Irrig Diary'!E158*'Crop Factor'!C$5,'Irrig Diary'!F158*'Crop Factor'!C$5),"N/A") -> 1.5 | E158: 1.05 | F158: 1.5 | I158: =IF(D158="N/A",'Fixed WU Figure'!G$16,D158*H158) -> 0 | J158: 0 | K158: 0 | L158: 0 | N158: 0
A159: 2015-11-20 | B159: Fri | D159: =IF('Crop Factor'!C$5>0,IF('Crop Factor'!B$13="Evaporation Pan",'Irrig Diary'!E159*'Crop Factor'!C$5,'Irrig Diary'!F159*'Crop Factor'!C$5),"N/A") -> 1.482142857 | E159: 1.0375 | F159: 1.482142857 | I159: =IF(D159="N/A",'Fixed WU Figure'!G$16,D159*H159) -> 0 | J159: 0 | K159: 0 | L159: 0 | N159: 0
A160: 2015-11-21 | B160: Sat | D160: =IF('Crop Factor'!C$5>0,IF('Crop Factor'!B$13="Evaporation Pan",'Irrig Diary'!E160*'Crop Factor'!C$5,'Irrig Diary'!F160*'Crop Factor'!C$5),"N/A") -> 1.482142857 | E160: 1.0375 | F160: 1.482142857 | I160: =IF(D160="N/A",'Fixed WU Figure'!G$16,D160*H160) -> 0 | J160: 0 | K160: 0 | L160: 0 | N160: 0
A161: 2015-11-22 | B161: Sun | D161: =IF('Crop Factor'!C$5>0,IF('Crop Factor'!B$13="Evaporation Pan",'Irrig Diary'!E161*'Crop Factor'!C$5,'Irrig Diary'!F161*'Crop Factor'!C$5),"N/A") -> 1.482142857 | E161: 1.0375 | F161: 1.482142857 | I161: =IF(D161="N/A",'Fixed WU Figure'!G$16,D161*H161) -> 0 | J161: 0 | K161: 0 | L161: 0 | N161: 0
A162: 2015-11-23 | B162: Mon | D162: =IF('Crop Factor'!C$5>0,IF('Crop Factor'!B$13="Evaporation Pan",'Irrig Diary'!E162*'Crop Factor'!C$5,'Irrig Diary'!F162*'Crop Factor'!C$5),"N/A") -> 1.482142857 | E162: 1.0375 | F162: 1.482142857 | I162: =IF(D162="N/A",'Fixed WU Figure'!G$16,D162*H162) -> 0 | J162: 0 | K162: 0 | L162: 0 | N162: 0
A163: 2015-11-24 | B163: Tue | D163: =IF('Crop Factor'!C$5>0,IF('Crop Factor'!B$13="Evaporation Pan",'Irrig Diary'!E163*'Crop Factor'!C$5,'Irrig Diary'!F163*'Crop Factor'!C$5),"N/A") -> 1.482142857 | E163: 1.0375 | F163: 1.482142857 | I163: =IF(D163="N/A",'Fixed WU Figure'!G$16,D163*H163) -> 0 | J163: 0 | K163: 0 | L163: 0 | N163: 0
A164: 2015-11-25 | B164: Wed | D164: =IF('Crop Factor'!C$5>0,IF('Crop Factor'!B$13="Evaporation Pan",'Irrig Diary'!E164*'Crop Factor'!C$5,'Irrig Diary'!F164*'Crop Factor'!C$5),"N/A") -> 1.482142857 | E164: 1.0375 | F164: 1.482142857 | I164: =IF(D164="N/A",'Fixed WU Figure'!G$16,D164*H164) -> 0 | J164: 0 | K164: 0 | L164: 0 | N164: 0
A165: 2015-11-26 | B165: Thu | D165: =IF('Crop Factor'!C$5>0,IF('Crop Factor'!B$13="Evaporation Pan",'Irrig Diary'!E165*'Crop Factor'!C$5,'Irrig Diary'!F165*'Crop Factor'!C$5),"N/A") -> 1.482142857 | E165: 1.0375 | F165: 1.482142857 | I165: =IF(D165="N/A",'Fixed WU Figure'!G$16,D165*H165) -> 0 | J165: 0 | K165: 0 | L165: 0 | N165: 0
A166: 2015-11-27 | B166: Fri | D166: =IF('Crop Factor'!C$5>0,IF('Crop Factor'!B$13="Evaporation Pan",'Irrig Diary'!E166*'Crop Factor'!C$5,'Irrig Diary'!F166*'Crop Factor'!C$5),"N/A") -> 1.482142857 | E166: 1.0375 | F166: 1.482142857 | I166: =IF(D166="N/A",'Fixed WU Figure'!G$16,D166*H166) -> 0 | J166: 0 | K166: 0 | L166: 0 | N166: 0
A167: 2015-11-28 | B167: Sat | D167: =IF('Crop Factor'!C$5>0,IF('Crop Factor'!B$13="Evaporation Pan",'Irrig Diary'!E167*'Crop Factor'!C$5,'Irrig Diary'!F167*'Crop Factor'!C$5),"N/A") -> 1.482142857 | E167: 1.0375 | F167: 1.482142857 | I167: =IF(D167="N/A",'Fixed WU Figure'!G$16,D167*H167) -> 0 | J167: 0 | K167: 0 | L167: 0 | N167: 0
A168: 2015-11-29 | B168: Sun | D168: =IF('Crop Factor'!C$5>0,IF('Crop Factor'!B$13="Evaporation Pan",'Irrig Diary'!E168*'Crop Factor'!C$5,'Irrig Diary'!F168*'Crop Factor'!C$5),"N/A") -> 1.482142857 | E168: 1.0375 | F168: 1.482142857 | I168: =IF(D168="N/A",'Fixed WU Figure'!G$16,D168*H168) -> 0 | J168: 0 | K168: 0 | L168: 0 | N168: 0
A169: 2015-11-30 | B169: Mon | D169: =IF('Crop Factor'!C$5>0,IF('Crop Factor'!B$13="Evaporation Pan",'Irrig Diary'!E169*'Crop Factor'!C$5,'Irrig Diary'!F169*'Crop Factor'!C$5),"N/A") -> 1.482142857 | E169: 1.0375 | F169: 1.482142857 | I169: =IF(D169="N/A",'Fixed WU Figure'!G$16,D169*H169) -> 0 | J169: 0 | K169: 0 | L169: 0 | N169: 0
A170: 2015-12-01 | B170: Tue | D170: =IF('Crop Factor'!C$5>0,IF('Crop Factor'!B$13="Evaporation Pan",'Irrig Diary'!E170*'Crop Factor'!C$5,'Irrig Diary'!F170*'Crop Factor'!C$5),"N/A") -> 1.482142857 | E170: 1.0375 | F170: 1.482142857 | I170: =IF(D170="N/A",'Fixed WU Figure'!G$17,D170*H170) -> 0 | J170: 0 | K170: 0 | L170: 0 | N170: 0
A171: 2015-12-02 | B171: Wed | D171: =IF('Crop Factor'!C$5>0,IF('Crop Factor'!B$13="Evaporation Pan",'Irrig Diary'!E171*'Crop Factor'!C$5,'Irrig Diary'!F171*'Crop Factor'!C$5),"N/A") -> 1.482142857 | E171: 1.0375 | F171: 1.482142857 | I171: =IF(D171="N/A",'Fixed WU Figure'!G$17,D171*H171) -> 0 | J171: 0 | K171: 0 | L171: 0 | N171: 0
A172: 2015-12-03 | B172: Thu | D172: =IF('Crop Factor'!C$5>0,IF('Crop Factor'!B$13="Evaporation Pan",'Irrig Diary'!E172*'Crop Factor'!C$5,'Irrig Diary'!F172*'Crop Factor'!C$5),"N/A") -> 1.482142857 | E172: 1.0375 | F172: 1.482142857 | I172: =IF(D172="N/A",'Fixed WU Figure'!G$17,D172*H172) -> 0 | J172: 0 | K172: 0 | L172: 0 | N172: 0
A173: 2015-12-04 | B173: Fri | D173: =IF('Crop Factor'!C$5>0,IF('Crop Factor'!B$13="Evaporation Pan",'Irrig Diary'!E173*'Crop Factor'!C$5,'Irrig Diary'!F173*'Crop Factor'!C$5),"N/A") -> 1.482142857 | E173: 1.0375 | F173: 1.482142857 | I173: =IF(D173="N/A",'Fixed WU Figure'!G$17,D173*H173) -> 0 | J173: 0 | K173: 0 | L173: 0 | N173: 0
A174: 2015-12-05 | B174: Sat | D174: =IF('Crop Factor'!C$5>0,IF('Crop Factor'!B$13="Evaporation Pan",'Irrig Diary'!E174*'Crop Factor'!C$5,'Irrig Diary'!F174*'Crop Factor'!C$5),"N/A") -> 1.482142857 | E174: 1.0375 | F174: 1.482142857 | I174: =IF(D174="N/A",'Fixed WU Figure'!G$17,D174*H174) -> 0 | J174: 0 | K174: 0 | L174: 0 | N174: 0
A175: 2015-12-06 | B175: Sun | D175: =IF('Crop Factor'!C$5>0,IF('Crop Factor'!B$13="Evaporation Pan",'Irrig Diary'!E175*'Crop Factor'!C$5,'Irrig Diary'!F175*'Crop Factor'!C$5),"N/A") -> 1.482142857 | E175: 1.0375 | F175: 1.482142857 | I175: =IF(D175="N/A",'Fixed WU Figure'!G$17,D175*H175) -> 0 | J175: 0 | K175: 0 | L175: 0 | N175: 0
A176: 2015-12-07 | B176: Mon | D176: =IF('Crop Factor'!C$5>0,IF('Crop Factor'!B$13="Evaporation Pan",'Irrig Diary'!E176*'Crop Factor'!C$5,'Irrig Diary'!F176*'Crop Factor'!C$5),"N/A") -> 1.491071429 | E176: 1.04375 | F176: 1.491071429 | I176: =IF(D176="N/A",'Fixed WU Figure'!G$17,D176*H176) -> 0 | J176: 0 | K176: 0 | L176: 0 | N176: 0
A177: 2015-12-08 | B177: Tue | D177: =IF('Crop Factor'!C$5>0,IF('Crop Factor'!B$13="Evaporation Pan",'Irrig Diary'!E177*'Crop Factor'!C$5,'Irrig Diary'!F177*'Crop Factor'!C$5),"N/A") -> 1.491071429 | E177: 1.04375 | F177: 1.491071429 | I177: =IF(D177="N/A",'Fixed WU Figure'!G$17,D177*H177) -> 0 | J177: 0 | K177: 0 | L177: 0 | N177: 0
A178: 2015-12-09 | B178: Wed | D178: =IF('Crop Factor'!C$5>0,IF('Crop Factor'!B$13="Evaporation Pan",'Irrig Diary'!E178*'Crop Factor'!C$5,'Irrig Diary'!F178*'Crop Factor'!C$5),"N/A") -> 1.491071429 | E178: 1.04375 | F178: 1.491071429 | I178: =IF(D178="N/A",'Fixed WU Figure'!G$17,D178*H178) -> 0 | J178: 0 | K178: 0 | L178: 0 | N178: 0
A179: 2015-12-10 | B179: Thu | D179: =IF('Crop Factor'!C$5>0,IF('Crop Factor'!B$13="Evaporation Pan",'Irrig Diary'!E179*'Crop Factor'!C$5,'Irrig Diary'!F179*'Crop Factor'!C$5),"N/A") -> 1.491071429 | E179: 1.04375 | F179: 1.491071429 | I179: =IF(D179="N/A",'Fixed WU Figure'!G$17,D179*H179) -> 0 | J179: 0 | K179: 0 | L179: 0 | N179: 0
A180: 2015-12-11 | B180: Fri | D180: =IF('Crop Factor'!C$5>0,IF('Crop Factor'!B$13="Evaporation Pan",'Irrig Diary'!E180*'Crop Factor'!C$5,'Irrig Diary'!F180*'Crop Factor'!C$5),"N/A") -> 1.508928571 | E180: 1.05625 | F180: 1.508928571 | I180: =IF(D180="N/A",'Fixed WU Figure'!G$17,D180*H180) -> 0 | J180: 0 | K180: 0 | L180: 0 | N180: 0
A181: 2015-12-12 | B181: Sat | D181: =IF('Crop Factor'!C$5>0,IF('Crop Factor'!B$13="Evaporation Pan",'Irrig Diary'!E181*'Crop Factor'!C$5,'Irrig Diary'!F181*'Crop Factor'!C$5),"N/A") -> 1.491071429 | E181: 1.04375 | F181: 1.491071429 | I181: =IF(D181="N/A",'Fixed WU Figure'!G$17,D181*H181) -> 0 | J181: 0 | K181: 0 | L181: 0 | N181: 0
A182: 2015-12-13 | B182: Sun | D182: =IF('Crop Factor'!C$5>0,IF('Crop Factor'!B$13="Evaporation Pan",'Irrig Diary'!E182*'Crop Factor'!C$5,'Irrig Diary'!F182*'Crop Factor'!C$5),"N/A") -> 1.491071429 | E182: 1.04375 | F182: 1.491071429 | I182: =IF(D182="N/A",'Fixed WU Figure'!G$17,D182*H182) -> 0 | J182: 0 | K182: 0 | L182: 0 | N182: 0
A183: 2015-12-14 | B183: Mon | D183: =IF('Crop Factor'!C$5>0,IF('Crop Factor'!B$13="Evaporation Pan",'Irrig Diary'!E183*'Crop Factor'!C$5,'Irrig Diary'!F183*'Crop Factor'!C$5),"N/A") -> 1.5 | E183: 1.05 | F183: 1.5 | I183: =IF(D183="N/A",'Fixed WU Figure'!G$17,D183*H183) -> 0 | J183: 0 | K183: 0 | L183: 0 | N183: 0
A184: 2015-12-15 | B184: Tue | D184: =IF('Crop Factor'!C$5>0,IF('Crop Factor'!B$13="Evaporation Pan",'Irrig Diary'!E184*'Crop Factor'!C$5,'Irrig Diary'!F184*'Crop Factor'!C$5),"N/A") -> 1.5 | E184: 1.05 | F184: 1.5 | I184: =IF(D184="N/A",'Fixed WU Figure'!G$17,D184*H184) -> 0 | J184: 0 | K184: 0 | L184: 0 | N184: 0
A185: 2015-12-16 | B185: Wed | D185: =IF('Crop Factor'!C$5>0,IF('Crop Factor'!B$13="Evaporation Pan",'Irrig Diary'!E185*'Crop Factor'!C$5,'Irrig Diary'!F185*'Crop Factor'!C$5),"N/A") -> 1.5 | E185: 1.05 | F185: 1.5 | I185: =IF(D185="N/A",'Fixed WU Figure'!G$17,D185*H185) -> 0 | J185: 0 | K185: 0 | L185: 0 | N185: 0
A186: 2015-12-17 | B186: Thu | D186: =IF('Crop Factor'!C$5>0,IF('Crop Factor'!B$13="Evaporation Pan",'Irrig Diary'!E186*'Crop Factor'!C$5,'Irrig Diary'!F186*'Crop Factor'!C$5),"N/A") -> 1.5 | E186: 1.05 | F186: 1.5 | I186: =IF(D186="N/A",'Fixed WU Figure'!G$17,D186*H186) -> 0 | J186: 0 | K186: 0 | L186: 0 | N186: 0
A187: 2015-12-18 | B187: Fri | D187: =IF('Crop Factor'!C$5>0,IF('Crop Factor'!B$13="Evaporation Pan",'Irrig Diary'!E187*'Crop Factor'!C$5,'Irrig Diary'!F187*'Crop Factor'!C$5),"N/A") -> 1.5 | E187: 1.05 | F187: 1.5 | I187: =IF(D187="N/A",'Fixed WU Figure'!G$17,D187*H187) -> 0 | J187: 0 | K187: 0 | L187: 0 | N187: 0
A188: 2015-12-19 | B188: Sat | D188: =IF('Crop Factor'!C$5>0,IF('Crop Factor'!B$13="Evaporation Pan",'Irrig Diary'!E188*'Crop Factor'!C$5,'Irrig Diary'!F188*'Crop Factor'!C$5),"N/A") -> 1.5 | E188: 1.05 | F188: 1.5 | I188: =IF(D188="N/A",'Fixed WU Figure'!G$17,D188*H188) -> 0 | J188: 0 | K188: 0 | L188: 0 | N188: 0
A189: 2015-12-20 | B189: Sun | D189: =IF('Crop Factor'!C$5>0,IF('Crop Factor'!B$13="Evaporation Pan",'Irrig Diary'!E189*'Crop Factor'!C$5,'Irrig Diary'!F189*'Crop Factor'!C$5),"N/A") -> 1.5 | E189: 1.05 | F189: 1.5 | I189: =IF(D189="N/A",'Fixed WU Figure'!G$17,D189*H189) -> 0 | J189: 0 | K189: 0 | L189: 0 | N189: 0
A190: 2015-12-21 | B190: Mon | D190: =IF('Crop Factor'!C$5>0,IF('Crop Factor'!B$13="Evaporation Pan",'Irrig Diary'!E190*'Crop Factor'!C$5,'Irrig Diary'!F190*'Crop Factor'!C$5),"N/A") -> 1.517857143 | E190: 1.0625 | F190: 1.517857143 | I190: =IF(D190="N/A",'Fixed WU Figure'!G$17,D190*H190) -> 0 | J190: 0 | K190: 0 | L190: 0 | N190: 0
A191: 2015-12-22 | B191: Tue | D191: =IF('Crop Factor'!C$5>0,IF('Crop Factor'!B$13="Evaporation Pan",'Irrig Diary'!E191*'Crop Factor'!C$5,'Irrig Diary'!F191*'Crop Factor'!C$5),"N/A") -> 1.517857143 | E191: 1.0625 | F191: 1.517857143 | I191: =IF(D191="N/A",'Fixed WU Figure'!G$17,D191*H191) -> 0 | J191: 0 | K191: 0 | L191: 0 | N191: 0
A192: 2015-12-23 | B192: Wed | D192: =IF('Crop Factor'!C$5>0,IF('Crop Factor'!B$13="Evaporation Pan",'Irrig Diary'!E192*'Crop Factor'!C$5,'Irrig Diary'!F192*'Crop Factor'!C$5),"N/A") -> 1.517857143 | E192: 1.0625 | F192: 1.517857143 | I192: =IF(D192="N/A",'Fixed WU Figure'!G$17,D192*H192) -> 0 | J192: 0 | K192: 0 | L192: 0 | N192: 0
A193: 2015-12-24 | B193: Thu | D193: =IF('Crop Factor'!C$5>0,IF('Crop Factor'!B$13="Evaporation Pan",'Irrig Diary'!E193*'Crop Factor'!C$5,'Irrig Diary'!F193*'Crop Factor'!C$5),"N/A") -> 1.517857143 | E193: 1.0625 | F193: 1.517857143 | I193: =IF(D193="N/A",'Fixed WU Figure'!G$17,D193*H193) -> 0 | J193: 0 | K193: 0 | L193: 0 | N193: 0
A194: 2015-12-25 | B194: Fri | D194: =IF('Crop Factor'!C$5>0,IF('Crop Factor'!B$13="Evaporation Pan",'Irrig Diary'!E194*'Crop Factor'!C$5,'Irrig Diary'!F194*'Crop Factor'!C$5),"N/A") -> 1.517857143 | E194: 1.0625 | F194: 1.517857143 | I194: =IF(D194="N/A",'Fixed WU Figure'!G$17,D194*H194) -> 0 | J194: 0 | K194: 0 | L194: 0 | N194: 0
A195: 2015-12-26 | B195: Sat | D195: =IF('Crop Factor'!C$5>0,IF('Crop Factor'!B$13="Evaporation Pan",'Irrig Diary'!E195*'Crop Factor'!C$5,'Irrig Diary'!F195*'Crop Factor'!C$5),"N/A") -> 1.517857143 | E195: 1.0625 | F195: 1.517857143 | I195: =IF(D195="N/A",'Fixed WU Figure'!G$17,D195*H195) -> 0 | J195: 0 | K195: 0 | L195: 0 | N195: 0
A196: 2015-12-27 | B196: Sun | D196: =IF('Crop Factor'!C$5>0,IF('Crop Factor'!B$13="Evaporation Pan",'Irrig Diary'!E196*'Crop Factor'!C$5,'Irrig Diary'!F196*'Crop Factor'!C$5),"N/A") -> 1.517857143 | E196: 1.0625 | F196: 1.517857143 | I196: =IF(D196="N/A",'Fixed WU Figure'!G$17,D196*H196) -> 0 | J196: 0 | K196: 0 | L196: 0 | N196: 0
A197: 2015-12-28 | B197: Mon | D197: =IF('Crop Factor'!C$5>0,IF('Crop Factor'!B$13="Evaporation Pan",'Irrig Diary'!E197*'Crop Factor'!C$5,'Irrig Diary'!F197*'Crop Factor'!C$5),"N/A") -> 1.5 | E197: 1.05 | F197: 1.5 | I197: =IF(D197="N/A",'Fixed WU Figure'!G$17,D197*H197) -> 0 | J197: 0 | K197: 0 | L197: 0 | N197: 0
A198: 2015-12-29 | B198: Tue | D198: =IF('Crop Factor'!C$5>0,IF('Crop Factor'!B$13="Evaporation Pan",'Irrig Diary'!E198*'Crop Factor'!C$5,'Irrig Diary'!F198*'Crop Factor'!C$5),"N/A") -> 1.5 | E198: 1.05 | F198: 1.5 | I198: =IF(D198="N/A",'Fixed WU Figure'!G$17,D198*H198) -> 0 | J198: 0 | K198: 0 | L198: 0 | N198: 0
A199: 2015-12-30 | B199: Wed | D199: =IF('Crop Factor'!C$5>0,IF('Crop Factor'!B$13="Evaporation Pan",'Irrig Diary'!E199*'Crop Factor'!C$5,'Irrig Diary'!F199*'Crop Factor'!C$5),"N/A") -> 1.5 | E199: 1.05 | F199: 1.5 | I199: =IF(D199="N/A",'Fixed WU Figure'!G$17,D199*H199) -> 0 | J199: 0 | K199: 0 | L199: 0 | N199: 0
A200: 2015-12-31 | B200: Thu | D200: =IF('Crop Factor'!C$5>0,IF('Crop Factor'!B$13="Evaporation Pan",'Irrig Diary'!E200*'Crop Factor'!C$5,'Irrig Diary'!F200*'Crop Factor'!C$5),"N/A") -> 1.5 | E200: 1.05 | F200: 1.5 | I200: =IF(D200="N/A",'Fixed WU Figure'!G$17,D200*H200) -> 0 | J200: 0 | K200: 0 | L200: 0 | N200: 0
A201: 2016-01-01 | B201: Fri | D201: =IF('Crop Factor'!C$5>0,IF('Crop Factor'!B$13="Evaporation Pan",'Irrig Diary'!E201*'Crop Factor'!C$5,'Irrig Diary'!F201*'Crop Factor'!C$5),"N/A") -> 1.5 | E201: 1.05 | F201: 1.5 | I201: =IF(D201="N/A",'Fixed WU Figure'!G$18,D201*H201) -> 0 | J201: 0 | K201: 0 | L201: 0 | N201: 0
A202: 2016-01-02 | B202: Sat | D202: =IF('Crop Factor'!C$5>0,IF('Crop Factor'!B$13="Evaporation Pan",'Irrig Diary'!E202*'Crop Factor'!C$5,'Irrig Diary'!F202*'Crop Factor'!C$5),"N/A") -> 1.5 | E202: 1.05 | F202: 1.5 | I202: =IF(D202="N/A",'Fixed WU Figure'!G$18,D202*H202) -> 0 | J202: 0 | K202: 0 | L202: 0 | N202: 0
A203: 2016-01-03 | B203: Sun | D203: =IF('Crop Factor'!C$5>0,IF('Crop Factor'!B$13="Evaporation Pan",'Irrig Diary'!E203*'Crop Factor'!C$5,'Irrig Diary'!F203*'Crop Factor'!C$5),"N/A") -> 1.5 | E203: 1.05 | F203: 1.5 | I203: =IF(D203="N/A",'Fixed WU Figure'!G$18,D203*H203) -> 0 | J203: 0 | K203: 0 | L203: 0 | N203: 0
... 180 more rows

Sheet Fert Program 1,2,3
A3: Fertiliser Active Percentage: | AE3: NOTES / WORKING PAGE
C5: Ammonium Nitrate | D5: Ammonium Sulphate | E5: Borax | F5: Calcium Nitrate | G5: Copper Sulphate | H5: FertiMix | I5: Iron Chelate | J5: Iron Sulphate | K5: Magnesium Sulphate | L5: Manganese Sulphate | M5: MAP | N5: MKP | O5: Nitric Acid | P5: Phosphoric Acid | Q5: Potassium Chloride | R5: Potassium Nitrate | S5: Potassium Sulphate | T5: Sodium Molybdenum | U5: Sulphuric Acid | V5: Urea | W5: Zinc Oxide | X5: Zinc Sulphate
C6: NH4NO3 | D6: (NH4)2SO4 | E6: Na2B4O7.10H2O | F6: Ca(NO3)2 | G6: CuSO4.5H2O | I6: EDDHA | J6: FeSO4.7H2O | K6: MgSO4.7H2O | L6: MnSO4.H2O | M6: NH4H2PO4 | N6: KH2PO4 | O6: HNO3 | P6: PO4H3 | Q6: KCl | R6: KNO3 | S6: K2SO4 | T6: Na2MoO4 | U6: H2SO4 | V6: CO(NH2)2 | W6: ZnO | X6: ZnSO4.7H2O
A7: N | C7: 0.335 | D7: 0.212 | F7: 0.14 | M7: 0.12 | O7: 0.13 | R7: 0.13 | V7: 0.46
A8: P | M8: 0.26 | N8: 0.235 | P8: 0.316 | Q8: 0.5
A9: K | N9: 0.287 | R9: 0.3833 | S9: 0.4
A10: S | D10: 0.243 | G10: 0.128 | J10: 0.115 | K10: 0.13 | L10: 0.132 | S10: 0.184 | U10: 0.3206 | X10: 0.111
A11: Na | E11: 0.1205 | T11: 0.222
A12: Ca | F12: 0.19
A13: Mg | K13: 0.1
A14: Cl
A15: Cu | G15: 0.25
A16: Zn | W16: 0.654 | X16: 0.22
A17: Mn | L17: 0.33
A18: Fe | I18: 0.06 | J18: 0.18
A19: B | E19: 0.113
A20: Al
A21: Mo | T21: 0.4
A22: NO3- | C22: 1 | F22: 2 | O22: 1 | R22: 1
A23: NH4+ | C23: 1 | D23: 2 | M23: 1 | V23: 2
A24: NO3-:NH4+
A26: Actual Seasonal Fertiliser (Kg) / Hectare (Ha):
B28: Total | C28: Ammonium Nitrate | D28: Ammonium Sulphate | E28: Borax | F28: Calcium Nitrate | G28: Copper Sulphate | H28: FertiMix | I28: Iron Chelate | J28: Iron Sulphate | K28: Magnesium Sulphate | L28: Manganese Sulphate | M28: Mono-Ammonium Phosphate | N28: Mono-Potassium Phosphate | O28: Nitric Acid | P28: Phosphoric Acid | Q28: Potassium Chloride | R28: Potassium Nitrate | S28: Potassium Sulphate | T28: Sodium Molybdenum | U28: Sulphuric Acid | V28: Urea | W28: Zinc Oxide | X28: Zinc Sulphate
B29: Kg/Ha | C29: NH4NO3 | D29: (NH4)2SO4 | E29: Na2B4O7.10H2O | F29: Ca(NO3)2 | G29: CuSO4.5H2O | I29: EDDHA | J29: FeSO4.7H2O | K29: MgSO4.7H2O | L29: MnSO4.H2O | M29: NH4H2PO4 | N29: KH2PO4 | O29: HNO3 | P29: PO4H3 | Q29: KCl | R29: KNO3 | S29: K2SO4 | T29: Na2MoO4 | U29: H2SO4 | V29: CO(NH2)2 | W29: ZnO | X29: ZnSO4.7H2O
A30: N | B30: =SUM(C30:X30) -> 0 | C30: =C7*(SUM(C$589)/$A$534) -> 0 | D30: 0 | E30: 0 | F30: 0 | G30: 0 | H30: 0 | I30: 0 | J30: 0 | K30: 0 | L30: 0 | M30: 0 | N30: 0 | O30: 0 | P30: 0 | Q30: 0 | R30: 0 | S30: 0 | T30: 0 | U30: 0 | V30: 0 | W30: 0 | X30: 0
A31: P | B31: =SUM(C31:X31) -> 0 | C31: =C8*(SUM(C$589)/$A$534) -> 0 | D31: 0 | E31: 0 | F31: 0 | G31: 0 | H31: 0 | I31: 0 | J31: 0 | K31: 0 | L31: 0 | M31: 0 | N31: 0 | O31: 0 | P31: 0 | Q31: 0 | R31: 0 | S31: 0 | T31: 0 | U31: 0 | V31: 0 | W31: 0 | X31: 0
A32: K | B32: =SUM(C32:X32) -> 0 | C32: =C9*(SUM(C$589)/$A$534) -> 0 | D32: 0 | E32: 0 | F32: 0 | G32: 0 | H32: 0 | I32: 0 | J32: 0 | K32: 0 | L32: 0 | M32: 0 | N32: 0 | O32: 0 | P32: 0 | Q32: 0 | R32: 0 | S32: 0 | T32: 0 | U32: 0 | V32: 0 | W32: 0 | X32: 0
A33: S | B33: =SUM(C33:X33) -> 0 | C33: =C10*(SUM(C$589)/$A$534) -> 0 | D33: 0 | E33: 0 | F33: 0 | G33: 0 | H33: 0 | I33: 0 | J33: 0 | K33: 0 | L33: 0 | M33: 0 | N33: 0 | O33: 0 | P33: 0 | Q33: 0 | R33: 0 | S33: 0 | T33: 0 | U33: 0 | V33: 0 | W33: 0 | X33: 0
A34: Na | B34: 0 | C34: =C11*(SUM(C$589)/$A$534) -> 0 | D34: 0 | E34: 0 | F34: 0 | G34: 0 | H34: 0 | I34: 0 | J34: 0 | K34: 0 | L34: 0 | M34: 0 | N34: 0 | O34: 0 | P34: 0 | Q34: 0 | R34: 0 | S34: 0 | T34: 0 | U34: 0 | V34: 0 | W34: 0 | X34: 0
A35: Ca | B35: 0 | C35: =C12*(SUM(C$589)/$A$534) -> 0 | D35: 0 | E35: 0 | F35: 0 | G35: 0 | H35: 0 | I35: 0 | J35: 0 | K35: 0 | L35: 0 | M35: 0 | N35: 0 | O35: 0 | P35: 0 | Q35: 0 | R35: 0 | S35: 0 | T35: 0 | U35: 0 | V35: 0 | W35: 0 | X35: 0
A36: Mg | B36: 0 | C36: =C13*(SUM(C$589)/$A$534) -> 0 | D36: 0 | E36: 0 | F36: 0 | G36: 0 | H36: 0 | I36: 0 | J36: 0 | K36: 0 | L36: 0 | M36: 0 | N36: 0 | O36: 0 | P36: 0 | Q36: 0 | R36: 0 | S36: 0 | T36: 0 | U36: 0 | V36: 0 | W36: 0 | X36: 0
A37: Cl | B37: 0 | C37: =C14*(SUM(C$589)/$A$534) -> 0 | D37: 0 | E37: 0 | F37: 0 | G37: 0 | H37: 0 | I37: 0 | J37: 0 | K37: 0 | L37: 0 | M37: 0 | N37: 0 | O37: 0 | P37: 0 | Q37: 0 | R37: 0 | S37: 0 | T37: 0 | U37: 0 | V37: 0 | W37: 0 | X37: 0
A38: Cu | B38: 0 | C38: =C15*(SUM(C$589)/$A$534) -> 0 | D38: 0 | E38: 0 | F38: 0 | G38: 0 | H38: 0 | I38: 0 | J38: 0 | K38: 0 | L38: 0 | M38: 0 | N38: 0 | O38: 0 | P38: 0 | Q38: 0 | R38: 0 | S38: 0 | T38: 0 | U38: 0 | V38: 0 | W38: 0 | X38: 0
A39: Zn | B39: 0 | C39: =C16*(SUM(C$589)/$A$534) -> 0 | D39: 0 | E39: 0 | F39: 0 | G39: 0 | H39: 0 | I39: 0 | J39: 0 | K39: 0 | L39: 0 | M39: 0 | N39: 0 | O39: 0 | P39: 0 | Q39: 0 | R39: 0 | S39: 0 | T39: 0 | U39: 0 | V39: 0 | W39: 0 | X39: 0
A40: Mn | B40: 0 | C40: =C17*(SUM(C$589)/$A$534) -> 0 | D40: 0 | E40: 0 | F40: 0 | G40: 0 | H40: 0 | I40: 0 | J40: 0 | K40: 0 | L40: 0 | M40: 0 | N40: 0 | O40: 0 | P40: 0 | Q40: 0 | R40: 0 | S40: 0 | T40: 0 | U40: 0 | V40: 0 | W40: 0 | X40: 0
A41: Fe | B41: 0 | C41: =C18*(SUM(C$589)/$A$534) -> 0 | D41: 0 | E41: 0 | F41: 0 | G41: 0 | H41: 0 | I41: 0 | J41: 0 | K41: 0 | L41: 0 | M41: 0 | N41: 0 | O41: 0 | P41: 0 | Q41: 0 | R41: 0 | S41: 0 | T41: 0 | U41: 0 | V41: 0 | W41: 0 | X41: 0
A42: B | B42: 0 | C42: =C19*(SUM(C$589)/$A$534) -> 0 | D42: 0 | E42: 0 | F42: 0 | G42: 0 | H42: 0 | I42: 0 | J42: 0 | K42: 0 | L42: 0 | M42: 0 | N42: 0 | O42: 0 | P42: 0 | Q42: 0 | R42: 0 | S42: 0 | T42: 0 | U42: 0 | V42: 0 | W42: 0 | X42: 0
A43: Al | B43: 0 | C43: =C20*(SUM(C$589)/$A$534) -> 0 | D43: 0 | E43: 0 | F43: 0 | G43: 0 | H43: 0 | I43: 0 | J43: 0 | K43: 0 | L43: 0 | M43: 0 | N43: 0 | O43: 0 | P43: 0 | Q43: 0 | R43: 0 | S43: 0 | T43: 0 | U43: 0 | V43: 0 | W43: 0 | X43: 0
A44: Mo | B44: 0 | C44: =C21*(SUM(C$589)/$A$534) -> 0 | D44: 0 | E44: 0 | F44: 0 | G44: 0 | H44: 0 | I44: 0 | J44: 0 | K44: 0 | L44: 0 | M44: 0 | N44: 0 | O44: 0 | P44: 0 | Q44: 0 | R44: 0 | S44: 0 | T44: 0 | U44: 0 | V44: 0 | W44: 0 | X44: 0
A45: NO3- | B45: 0 | C45: =C22*(SUM(C$589)/$A$534) -> 0 | D45: 0 | E45: 0 | F45: 0 | G45: 0 | H45: 0 | I45: 0 | J45: 0 | K45: 0 | L45: 0 | M45: 0 | N45: 0 | O45: 0 | P45: 0 | Q45: 0 | R45: 0 | S45: 0 | T45: 0 | U45: 0 | V45: 0 | W45: 0 | X45: 0
A46: NH4+ | B46: 0 | C46: =C23*(SUM(C$589)/$A$534) -> 0 | D46: 0 | E46: 0 | F46: 0 | G46: 0 | H46: 0 | I46: 0 | J46: 0 | K46: 0 | L46: 0 | M46: 0 | N46: 0 | O46: 0 | P46: 0 | Q46: 0 | R46: 0 | S46: 0 | T46: 0 | U46: 0 | V46: 0 | W46: 0 | X46: 0
A47: NO3-:NH4+ | B47: =B45/B46 -> 
A49: Proposed Seasonal Fertiliser (Kg) / Hectare (Ha):
B51: Total | C51: Ammonium Nitrate | D51: Ammonium Sulphate | E51: Borax | F51: Calcium Nitrate | G51: Copper Sulphate | H51: FertiMix | I51: Iron Chelate | J51: Iron Sulphate | K51: Magnesium Sulphate | L51: Manganese Sulphate | M51: Mono-Ammonium Phosphate | N51: Mono-Potassium Phosphate | O51: Nitric Acid | P51: Phosphoric Acid | Q51: Potassium Chloride | R51: Potassium Nitrate | S51: Potassium Sulphate | T51: Sodium Molybdenum | U51: Sulphuric Acid | V51: Urea | W51: Zinc Oxide | X51: Zinc Sulphate
B52: Kg/Ha | C52: NH4NO3 | D52: (NH4)2SO4 | E52: Na2B4O7.10H2O | F52: Ca(NO3)2 | G52: CuSO4.5H2O | I52: EDDHA | J52: FeSO4.7H2O | K52: MgSO4.7H2O | L52: MnSO4.H2O | M52: NH4H2PO4 | N52: KH2PO4 | O52: HNO3 | P52: PO4H3 | Q52: KCl | R52: KNO3 | S52: K2SO4 | T52: Na2MoO4 | U52: H2SO4 | V52: CO(NH2)2 | W52: ZnO | X52: ZnSO4.7H2O
A53: N | B53: =SUM(C53:X53) -> 0 | C53: =C7*SUM(C$473) -> 0 | D53: =D7*SUM(D$473) -> 0 | E53: 0 | F53: 0 | G53: 0 | H53: 0 | I53: 0 | J53: 0 | K53: 0 | L53: 0 | M53: 0 | N53: 0 | O53: 0 | P53: 0 | Q53: 0 | R53: 0 | S53: 0 | T53: 0 | U53: 0 | V53: 0 | W53: 0 | X53: 0
A54: P | B54: =SUM(C54:X54) -> 0 | C54: =C8*SUM(C$473) -> 0 | D54: 0 | E54: 0 | F54: 0 | G54: 0 | H54: 0 | I54: 0 | J54: 0 | K54: 0 | L54: 0 | M54: 0 | N54: 0 | O54: 0 | P54: 0 | Q54: 0 | R54: 0 | S54: 0 | T54: 0 | U54: 0 | V54: 0 | W54: 0 | X54: 0
A55: K | B55: 0 | C55: =C9*SUM(C$473) -> 0 | D55: 0 | E55: 0 | F55: 0 | G55: 0 | H55: 0 | I55: 0 | J55: 0 | K55: 0 | L55: 0 | M55: 0 | N55: 0 | O55: 0 | P55: 0 | Q55: 0 | R55: 0 | S55: 0 | T55: 0 | U55: 0 | V55: 0 | W55: 0 | X55: 0
A56: S | B56: 0 | C56: =C10*SUM(C$473) -> 0 | D56: 0 | E56: 0 | F56: 0 | G56: 0 | H56: 0 | I56: 0 | J56: 0 | K56: 0 | L56: 0 | M56: 0 | N56: 0 | O56: 0 | P56: 0 | Q56: 0 | R56: 0 | S56: 0 | T56: 0 | U56: 0 | V56: 0 | W56: 0 | X56: 0
A57: Na | B57: 0 | C57: =C11*SUM(C$473) -> 0 | D57: 0 | E57: 0 | F57: 0 | G57: 0 | H57: 0 | I57: 0 | J57: 0 | K57: 0 | L57: 0 | M57: 0 | N57: 0 | O57: 0 | P57: 0 | Q57: 0 | R57: 0 | S57: 0 | T57: 0 | U57: 0 | V57: 0 | W57: 0 | X57: 0
A58: Ca | B58: 0 | C58: =C12*SUM(C$473) -> 0 | D58: 0 | E58: 0 | F58: 0 | G58: 0 | H58: 0 | I58: 0 | J58: 0 | K58: 0 | L58: 0 | M58: 0 | N58: 0 | O58: 0 | P58: 0 | Q58: 0 | R58: 0 | S58: 0 | T58: 0 | U58: 0 | V58: 0 | W58: 0 | X58: 0
A59: Mg | B59: 0 | C59: =C13*SUM(C$473) -> 0 | D59: 0 | E59: 0 | F59: 0 | G59: 0 | H59: 0 | I59: 0 | J59: 0 | K59: 0 | L59: 0 | M59: 0 | N59: 0 | O59: 0 | P59: 0 | Q59: 0 | R59: 0 | S59: 0 | T59: 0 | U59: 0 | V59: 0 | W59: 0 | X59: 0
A60: Cl | B60: 0 | C60: =C14*SUM(C$473) -> 0 | D60: 0 | E60: 0 | F60: 0 | G60: 0 | H60: 0 | I60: 0 | J60: 0 | K60: 0 | L60: 0 | M60: 0 | N60: 0 | O60: 0 | P60: 0 | Q60: 0 | R60: 0 | S60: 0 | T60: 0 | U60: 0 | V60: 0 | W60: 0 | X60: 0
A61: Cu | B61: 0 | C61: =C15*SUM(C$473) -> 0 | D61: 0 | E61: 0 | F61: 0 | G61: 0 | H61: 0 | I61: 0 | J61: 0 | K61: 0 | L61: 0 | M61: 0 | N61: 0 | O61: 0 | P61: 0 | Q61: 0 | R61: 0 | S61: 0 | T61: 0 | U61: 0 | V61: 0 | W61: 0 | X61: 0
A62: Zn | B62: 0 | C62: =C16*SUM(C$473) -> 0 | D62: 0 | E62: 0 | F62: 0 | G62: 0 | H62: 0 | I62: 0 | J62: 0 | K62: 0 | L62: 0 | M62: 0 | N62: 0 | O62: 0 | P62: 0 | Q62: 0 | R62: 0 | S62: 0 | T62: 0 | U62: 0 | V62: 0 | W62: 0 | X62: 0
A63: Mn | B63: 0 | C63: =C17*SUM(C$473) -> 0 | D63: 0 | E63: 0 | F63: 0 | G63: 0 | H63: 0 | I63: 0 | J63: 0 | K63: 0 | L63: 0 | M63: 0 | N63: 0 | O63: 0 | P63: 0 | Q63: 0 | R63: 0 | S63: 0 | T63: 0 | U63: 0 | V63: 0 | W63: 0 | X63: 0
A64: Fe | B64: 0 | C64: =C18*SUM(C$473) -> 0 | D64: 0 | E64: 0 | F64: 0 | G64: 0 | H64: 0 | I64: 0 | J64: 0 | K64: 0 | L64: 0 | M64: 0 | N64: 0 | O64: 0 | P64: 0 | Q64: 0 | R64: 0 | S64: 0 | T64: 0 | U64: 0 | V64: 0 | W64: 0 | X64: 0
A65: B | B65: 0 | C65: =C19*SUM(C$473) -> 0 | D65: 0 | E65: 0 | F65: 0 | G65: 0 | H65: 0 | I65: 0 | J65: 0 | K65: 0 | L65: 0 | M65: 0 | N65: 0 | O65: 0 | P65: 0 | Q65: 0 | R65: 0 | S65: 0 | T65: 0 | U65: 0 | V65: 0 | W65: 0 | X65: 0
A66: Al | B66: 0 | C66: =C20*SUM(C$473) -> 0 | D66: 0 | E66: 0 | F66: 0 | G66: 0 | H66: 0 | I66: 0 | J66: 0 | K66: 0 | L66: 0 | M66: 0 | N66: 0 | O66: 0 | P66: 0 | Q66: 0 | R66: 0 | S66: 0 | T66: 0 | U66: 0 | V66: 0 | W66: 0 | X66: 0
A67: Mo | B67: 0 | C67: =C21*SUM(C$473) -> 0 | D67: 0 | E67: 0 | F67: 0 | G67: 0 | H67: 0 | I67: 0 | J67: 0 | K67: 0 | L67: 0 | M67: 0 | N67: 0 | O67: 0 | P67: 0 | Q67: 0 | R67: 0 | S67: 0 | T67: 0 | U67: 0 | V67: 0 | W67: 0 | X67: 0
A68: NO3- | B68: 0 | C68: =C22*SUM(C$473) -> 0 | D68: =D22*SUM(D$473) -> 0 | E68: 0 | F68: 0 | G68: 0 | H68: 0 | I68: 0 | J68: 0 | K68: 0 | L68: 0 | M68: 0 | N68: 0 | O68: 0 | P68: 0 | Q68: 0 | R68: 0 | S68: 0 | T68: 0 | U68: 0 | V68: 0 | W68: 0 | X68: 0
A69: NH4+ | B69: 0 | C69: =C23*SUM(C$473) -> 0 | D69: 0 | E69: 0 | F69: 0 | G69: 0 | H69: 0 | I69: 0 | J69: 0 | K69: 0 | L69: 0 | M69: 0 | N69: 0 | O69: 0 | P69: 0 | Q69: 0 | R69: 0 | S69: 0 | T69: 0 | U69: 0 | V69: 0 | W69: 0 | X69: 0
A70: NO3-:NH4+ | B70: =B68/B69 -> 
A72: Actual Weekly N (Kg) / Hectare (Ha):
C74: Ammonium Nitrate | D74: Ammonium Sulphate | E74: Borax | F74: Calcium Nitrate | G74: Copper Sulphate | H74: FertiMix | I74: Iron Chelate | J74: Iron Sulphate | K74: Magnesium Sulphate | L74: Manganese Sulphate | M74: Mono-Ammonium Phosphate | N74: Mono-Potassium Phosphate | O74: Nitric Acid | P74: Phosphoric Acid | Q74: Potassium Chloride | R74: Potassium Nitrate | S74: Potassium Sulphate | T74: Sodium Molybdenum | U74: Sulphuric Acid | V74: Urea | W74: Zinc Oxide | X74: Zinc Sulphate | Y74: Grower Wkly N | Z74: Grower Cumm N | AB74: 240:400 | AC74: 320:600 | AD74: 320:400
C75: NH4NO3 | D75: (NH4)2SO4 | E75: Na2B4O7.10H2O | F75: Ca(NO3)2 | G75: CuSO4.5H2O | I75: EDDHA | J75: FeSO4.7H2O | K75: MgSO4.7H2O | L75: MnSO4.H2O | M75: NH4H2PO4 | N75: KH2PO4 | O75: HNO3 | P75: PO4H3 | Q75: KCl | R75: KNO3 | S75: K2SO4 | T75: Na2MoO4 | U75: H2SO4 | V75: CO(NH2)2 | W75: ZnO | X75: ZnSO4.7H2O | Z75: TOTAL | AB75: TOTAL | AC75: TOTAL | AD75: TOTAL
A76: =A421 -> 2014-07-07 | B76: Week 1 | C76: =(C537*C$7)/Setup!$C$10 -> 0 | D76: =(D537*D$7)/Setup!$C$10 -> 0 | E76: =(E537*E$7)/Setup!$C$10 -> 0 | F76: =(F537*F$7)/Setup!$C$10 -> 0 | G76: =(G537*G$7)/Setup!$C$10 -> 0 | H76: =(H537*H$7)/Setup!$C$10 -> 0 | I76: =(I537*I$7)/Setup!$C$10 -> 0 | J76: =(J537*J$7)/Setup!$C$10 -> 0 | K76: =(K537*K$7)/Setup!$C$10 -> 0 | L76: =(L537*L$7)/Setup!$C$10 -> 0 | M76: =(M537*M$7)/Setup!$C$10 -> 0 | N76: =(N537*N$7)/Setup!$C$10 -> 0 | O76: =(O537*O$7)/Setup!$C$10 -> 0 | P76: =(P537*P$7)/Setup!$C$10 -> 0 | Q76: =(Q537*Q$7)/Setup!$C$10 -> 0 | R76: =(R537*R$7)/Setup!$C$10 -> 0 | S76: =(S537*S$7)/Setup!$C$10 -> 0 | T76: =(T537*T$7)/Setup!$C$10 -> 0 | U76: =(U537*U$7)/Setup!$C$10 -> 0 | V76: =(V537*V$7)/Setup!$C$10 -> 0 | W76: =(W537*W$7)/Setup!$C$10 -> 0 | X76: =(X537*X$7)/Setup!$C$10 -> 0 | Y76: =SUM(C76:X76) -> 0 | Z76: =Y76 -> 0 | AB76: 0 | AC76: 0 | AD76: 0
A77: 2014-07-14 | B77: Week 2 | C77: =(C538*C$7)/Setup!$C$10 -> 0 | D77: =(D538*D$7)/Setup!$C$10 -> 0 | E77: =(E538*E$7)/Setup!$C$10 -> 0 | F77: =(F538*F$7)/Setup!$C$10 -> 0 | G77: =(G538*G$7)/Setup!$C$10 -> 0 | H77: =(H538*H$7)/Setup!$C$10 -> 0 | I77: =(I538*I$7)/Setup!$C$10 -> 0 | J77: =(J538*J$7)/Setup!$C$10 -> 0 | K77: =(K538*K$7)/Setup!$C$10 -> 0 | L77: =(L538*L$7)/Setup!$C$10 -> 0 | M77: =(M538*M$7)/Setup!$C$10 -> 0 | N77: =(N538*N$7)/Setup!$C$10 -> 0 | O77: =(O538*O$7)/Setup!$C$10 -> 0 | P77: =(P538*P$7)/Setup!$C$10 -> 0 | Q77: =(Q538*Q$7)/Setup!$C$10 -> 0 | R77: =(R538*R$7)/Setup!$C$10 -> 0 | S77: =(S538*S$7)/Setup!$C$10 -> 0 | T77: =(T538*T$7)/Setup!$C$10 -> 0 | U77: =(U538*U$7)/Setup!$C$10 -> 0 | V77: =(V538*V$7)/Setup!$C$10 -> 0 | W77: =(W538*W$7)/Setup!$C$10 -> 0 | X77: =(X538*X$7)/Setup!$C$10 -> 0 | Y77: =SUM(C77:X77) -> 0 | Z77: =Z76+Y77 -> 0 | AB77: 0 | AC77: 0 | AD77: 0
A78: 2014-07-21 | B78: Week 3 | C78: =(C539*C$7)/Setup!$C$10 -> 0 | D78: =(D539*D$7)/Setup!$C$10 -> 0 | E78: =(E539*E$7)/Setup!$C$10 -> 0 | F78: =(F539*F$7)/Setup!$C$10 -> 0 | G78: =(G539*G$7)/Setup!$C$10 -> 0 | H78: =(H539*H$7)/Setup!$C$10 -> 0 | I78: =(I539*I$7)/Setup!$C$10 -> 0 | J78: =(J539*J$7)/Setup!$C$10 -> 0 | K78: =(K539*K$7)/Setup!$C$10 -> 0 | L78: =(L539*L$7)/Setup!$C$10 -> 0 | M78: =(M539*M$7)/Setup!$C$10 -> 0 | N78: =(N539*N$7)/Setup!$C$10 -> 0 | O78: =(O539*O$7)/Setup!$C$10 -> 0 | P78: =(P539*P$7)/Setup!$C$10 -> 0 | Q78: =(Q539*Q$7)/Setup!$C$10 -> 0 | R78: =(R539*R$7)/Setup!$C$10 -> 0 | S78: =(S539*S$7)/Setup!$C$10 -> 0 | T78: =(T539*T$7)/Setup!$C$10 -> 0 | U78: =(U539*U$7)/Setup!$C$10 -> 0 | V78: =(V539*V$7)/Setup!$C$10 -> 0 | W78: =(W539*W$7)/Setup!$C$10 -> 0 | X78: =(X539*X$7)/Setup!$C$10 -> 0 | Y78: 0 | Z78: =Z77+Y78 -> 0 | AB78: 0 | AC78: 0 | AD78: 0
A79: 2014-07-28 | B79: Week 4 | C79: =(C540*C$7)/Setup!$C$10 -> 0 | D79: =(D540*D$7)/Setup!$C$10 -> 0 | E79: =(E540*E$7)/Setup!$C$10 -> 0 | F79: =(F540*F$7)/Setup!$C$10 -> 0 | G79: =(G540*G$7)/Setup!$C$10 -> 0 | H79: =(H540*H$7)/Setup!$C$10 -> 0 | I79: =(I540*I$7)/Setup!$C$10 -> 0 | J79: =(J540*J$7)/Setup!$C$10 -> 0 | K79: =(K540*K$7)/Setup!$C$10 -> 0 | L79: =(L540*L$7)/Setup!$C$10 -> 0 | M79: =(M540*M$7)/Setup!$C$10 -> 0 | N79: =(N540*N$7)/Setup!$C$10 -> 0 | O79: =(O540*O$7)/Setup!$C$10 -> 0 | P79: =(P540*P$7)/Setup!$C$10 -> 0 | Q79: =(Q540*Q$7)/Setup!$C$10 -> 0 | R79: =(R540*R$7)/Setup!$C$10 -> 0 | S79: =(S540*S$7)/Setup!$C$10 -> 0 | T79: =(T540*T$7)/Setup!$C$10 -> 0 | U79: =(U540*U$7)/Setup!$C$10 -> 0 | V79: =(V540*V$7)/Setup!$C$10 -> 0 | W79: =(W540*W$7)/Setup!$C$10 -> 0 | X79: =(X540*X$7)/Setup!$C$10 -> 0 | Y79: 0 | Z79: 0 | AB79: 16.25 | AC79: 16.25 | AD79: 16.25
A80: 2014-08-04 | B80: Week 5 | C80: =(C541*C$7)/Setup!$C$10 -> 0 | D80: =(D541*D$7)/Setup!$C$10 -> 0 | E80: =(E541*E$7)/Setup!$C$10 -> 0 | F80: =(F541*F$7)/Setup!$C$10 -> 0 | G80: =(G541*G$7)/Setup!$C$10 -> 0 | H80: =(H541*H$7)/Setup!$C$10 -> 0 | I80: =(I541*I$7)/Setup!$C$10 -> 0 | J80: =(J541*J$7)/Setup!$C$10 -> 0 | K80: =(K541*K$7)/Setup!$C$10 -> 0 | L80: =(L541*L$7)/Setup!$C$10 -> 0 | M80: =(M541*M$7)/Setup!$C$10 -> 0 | N80: =(N541*N$7)/Setup!$C$10 -> 0 | O80: =(O541*O$7)/Setup!$C$10 -> 0 | P80: =(P541*P$7)/Setup!$C$10 -> 0 | Q80: =(Q541*Q$7)/Setup!$C$10 -> 0 | R80: =(R541*R$7)/Setup!$C$10 -> 0 | S80: =(S541*S$7)/Setup!$C$10 -> 0 | T80: =(T541*T$7)/Setup!$C$10 -> 0 | U80: =(U541*U$7)/Setup!$C$10 -> 0 | V80: =(V541*V$7)/Setup!$C$10 -> 0 | W80: =(W541*W$7)/Setup!$C$10 -> 0 | X80: =(X541*X$7)/Setup!$C$10 -> 0 | Y80: 0 | Z80: 0 | AB80: 16.25 | AC80: 16.25 | AD80: 16.25
A81: 2014-08-11 | B81: Week 6 | C81: =(C542*C$7)/Setup!$C$10 -> 0 | D81: =(D542*D$7)/Setup!$C$10 -> 0 | E81: =(E542*E$7)/Setup!$C$10 -> 0 | F81: =(F542*F$7)/Setup!$C$10 -> 0 | G81: =(G542*G$7)/Setup!$C$10 -> 0 | H81: =(H542*H$7)/Setup!$C$10 -> 0 | I81: =(I542*I$7)/Setup!$C$10 -> 0 | J81: =(J542*J$7)/Setup!$C$10 -> 0 | K81: =(K542*K$7)/Setup!$C$10 -> 0 | L81: =(L542*L$7)/Setup!$C$10 -> 0 | M81: =(M542*M$7)/Setup!$C$10 -> 0 | N81: =(N542*N$7)/Setup!$C$10 -> 0 | O81: =(O542*O$7)/Setup!$C$10 -> 0 | P81: =(P542*P$7)/Setup!$C$10 -> 0 | Q81: =(Q542*Q$7)/Setup!$C$10 -> 0 | R81: =(R542*R$7)/Setup!$C$10 -> 0 | S81: =(S542*S$7)/Setup!$C$10 -> 0 | T81: =(T542*T$7)/Setup!$C$10 -> 0 | U81: =(U542*U$7)/Setup!$C$10 -> 0 | V81: =(V542*V$7)/Setup!$C$10 -> 0 | W81: =(W542*W$7)/Setup!$C$10 -> 0 | X81: =(X542*X$7)/Setup!$C$10 -> 0 | Y81: 0 | Z81: 0 | AB81: 0 | AC81: 0 | AD81: 0
A82: 2014-08-18 | B82: Week 7 | C82: =(C543*C$7)/Setup!$C$10 -> 0 | D82: =(D543*D$7)/Setup!$C$10 -> 0 | E82: =(E543*E$7)/Setup!$C$10 -> 0 | F82: =(F543*F$7)/Setup!$C$10 -> 0 | G82: =(G543*G$7)/Setup!$C$10 -> 0 | H82: =(H543*H$7)/Setup!$C$10 -> 0 | I82: =(I543*I$7)/Setup!$C$10 -> 0 | J82: =(J543*J$7)/Setup!$C$10 -> 0 | K82: =(K543*K$7)/Setup!$C$10 -> 0 | L82: =(L543*L$7)/Setup!$C$10 -> 0 | M82: =(M543*M$7)/Setup!$C$10 -> 0 | N82: =(N543*N$7)/Setup!$C$10 -> 0 | O82: =(O543*O$7)/Setup!$C$10 -> 0 | P82: =(P543*P$7)/Setup!$C$10 -> 0 | Q82: =(Q543*Q$7)/Setup!$C$10 -> 0 | R82: =(R543*R$7)/Setup!$C$10 -> 0 | S82: =(S543*S$7)/Setup!$C$10 -> 0 | T82: =(T543*T$7)/Setup!$C$10 -> 0 | U82: =(U543*U$7)/Setup!$C$10 -> 0 | V82: =(V543*V$7)/Setup!$C$10 -> 0 | W82: =(W543*W$7)/Setup!$C$10 -> 0 | X82: =(X543*X$7)/Setup!$C$10 -> 0 | Y82: 0 | Z82: 0 | AB82: 0 | AC82: 0 | AD82: 0
A83: 2014-08-25 | B83: Week 8 | C83: =(C544*C$7)/Setup!$C$10 -> 0 | D83: =(D544*D$7)/Setup!$C$10 -> 0 | E83: =(E544*E$7)/Setup!$C$10 -> 0 | F83: =(F544*F$7)/Setup!$C$10 -> 0 | G83: =(G544*G$7)/Setup!$C$10 -> 0 | H83: =(H544*H$7)/Setup!$C$10 -> 0 | I83: =(I544*I$7)/Setup!$C$10 -> 0 | J83: =(J544*J$7)/Setup!$C$10 -> 0 | K83: =(K544*K$7)/Setup!$C$10 -> 0 | L83: =(L544*L$7)/Setup!$C$10 -> 0 | M83: =(M544*M$7)/Setup!$C$10 -> 0 | N83: =(N544*N$7)/Setup!$C$10 -> 0 | O83: =(O544*O$7)/Setup!$C$10 -> 0 | P83: =(P544*P$7)/Setup!$C$10 -> 0 | Q83: =(Q544*Q$7)/Setup!$C$10 -> 0 | R83: =(R544*R$7)/Setup!$C$10 -> 0 | S83: =(S544*S$7)/Setup!$C$10 -> 0 | T83: =(T544*T$7)/Setup!$C$10 -> 0 | U83: =(U544*U$7)/Setup!$C$10 -> 0 | V83: =(V544*V$7)/Setup!$C$10 -> 0 | W83: =(W544*W$7)/Setup!$C$10 -> 0 | X83: =(X544*X$7)/Setup!$C$10 -> 0 | Y83: 0 | Z83: 0 | AB83: 0 | AC83: 0 | AD83: 0
A84: 2014-09-01 | B84: Week 9 | C84: =(C545*C$7)/Setup!$C$10 -> 0 | D84: =(D545*D$7)/Setup!$C$10 -> 0 | E84: =(E545*E$7)/Setup!$C$10 -> 0 | F84: =(F545*F$7)/Setup!$C$10 -> 0 | G84: =(G545*G$7)/Setup!$C$10 -> 0 | H84: =(H545*H$7)/Setup!$C$10 -> 0 | I84: =(I545*I$7)/Setup!$C$10 -> 0 | J84: =(J545*J$7)/Setup!$C$10 -> 0 | K84: =(K545*K$7)/Setup!$C$10 -> 0 | L84: =(L545*L$7)/Setup!$C$10 -> 0 | M84: =(M545*M$7)/Setup!$C$10 -> 0 | N84: =(N545*N$7)/Setup!$C$10 -> 0 | O84: =(O545*O$7)/Setup!$C$10 -> 0 | P84: =(P545*P$7)/Setup!$C$10 -> 0 | Q84: =(Q545*Q$7)/Setup!$C$10 -> 0 | R84: =(R545*R$7)/Setup!$C$10 -> 0 | S84: =(S545*S$7)/Setup!$C$10 -> 0 | T84: =(T545*T$7)/Setup!$C$10 -> 0 | U84: =(U545*U$7)/Setup!$C$10 -> 0 | V84: =(V545*V$7)/Setup!$C$10 -> 0 | W84: =(W545*W$7)/Setup!$C$10 -> 0 | X84: =(X545*X$7)/Setup!$C$10 -> 0 | Y84: 0 | Z84: 0 | AB84: 0 | AC84: 0 | AD84: 0
A85: 2014-09-08 | B85: Week 10 | C85: =(C546*C$7)/Setup!$C$10 -> 0 | D85: =(D546*D$7)/Setup!$C$10 -> 0 | E85: =(E546*E$7)/Setup!$C$10 -> 0 | F85: =(F546*F$7)/Setup!$C$10 -> 0 | G85: =(G546*G$7)/Setup!$C$10 -> 0 | H85: =(H546*H$7)/Setup!$C$10 -> 0 | I85: =(I546*I$7)/Setup!$C$10 -> 0 | J85: =(J546*J$7)/Setup!$C$10 -> 0 | K85: =(K546*K$7)/Setup!$C$10 -> 0 | L85: =(L546*L$7)/Setup!$C$10 -> 0 | M85: =(M546*M$7)/Setup!$C$10 -> 0 | N85: =(N546*N$7)/Setup!$C$10 -> 0 | O85: =(O546*O$7)/Setup!$C$10 -> 0 | P85: =(P546*P$7)/Setup!$C$10 -> 0 | Q85: =(Q546*Q$7)/Setup!$C$10 -> 0 | R85: =(R546*R$7)/Setup!$C$10 -> 0 | S85: =(S546*S$7)/Setup!$C$10 -> 0 | T85: =(T546*T$7)/Setup!$C$10 -> 0 | U85: =(U546*U$7)/Setup!$C$10 -> 0 | V85: =(V546*V$7)/Setup!$C$10 -> 0 | W85: =(W546*W$7)/Setup!$C$10 -> 0 | X85: =(X546*X$7)/Setup!$C$10 -> 0 | Y85: 0 | Z85: 0 | AB85: 6 | AC85: 6 | AD85: 6
A86: 2014-09-15 | B86: Week 11 | C86: =(C547*C$7)/Setup!$C$10 -> 0 | D86: =(D547*D$7)/Setup!$C$10 -> 0 | E86: =(E547*E$7)/Setup!$C$10 -> 0 | F86: =(F547*F$7)/Setup!$C$10 -> 0 | G86: =(G547*G$7)/Setup!$C$10 -> 0 | H86: =(H547*H$7)/Setup!$C$10 -> 0 | I86: =(I547*I$7)/Setup!$C$10 -> 0 | J86: =(J547*J$7)/Setup!$C$10 -> 0 | K86: =(K547*K$7)/Setup!$C$10 -> 0 | L86: =(L547*L$7)/Setup!$C$10 -> 0 | M86: =(M547*M$7)/Setup!$C$10 -> 0 | N86: =(N547*N$7)/Setup!$C$10 -> 0 | O86: =(O547*O$7)/Setup!$C$10 -> 0 | P86: =(P547*P$7)/Setup!$C$10 -> 0 | Q86: =(Q547*Q$7)/Setup!$C$10 -> 0 | R86: =(R547*R$7)/Setup!$C$10 -> 0 | S86: =(S547*S$7)/Setup!$C$10 -> 0 | T86: =(T547*T$7)/Setup!$C$10 -> 0 | U86: =(U547*U$7)/Setup!$C$10 -> 0 | V86: =(V547*V$7)/Setup!$C$10 -> 0 | W86: =(W547*W$7)/Setup!$C$10 -> 0 | X86: =(X547*X$7)/Setup!$C$10 -> 0 | Y86: 0 | Z86: 0 | AB86: 6 | AC86: 6 | AD86: 6
A87: 2014-09-22 | B87: Week 12 | C87: =(C548*C$7)/Setup!$C$10 -> 0 | D87: =(D548*D$7)/Setup!$C$10 -> 0 | E87: =(E548*E$7)/Setup!$C$10 -> 0 | F87: =(F548*F$7)/Setup!$C$10 -> 0 | G87: =(G548*G$7)/Setup!$C$10 -> 0 | H87: =(H548*H$7)/Setup!$C$10 -> 0 | I87: =(I548*I$7)/Setup!$C$10 -> 0 | J87: =(J548*J$7)/Setup!$C$10 -> 0 | K87: =(K548*K$7)/Setup!$C$10 -> 0 | L87: =(L548*L$7)/Setup!$C$10 -> 0 | M87: =(M548*M$7)/Setup!$C$10 -> 0 | N87: =(N548*N$7)/Setup!$C$10 -> 0 | O87: =(O548*O$7)/Setup!$C$10 -> 0 | P87: =(P548*P$7)/Setup!$C$10 -> 0 | Q87: =(Q548*Q$7)/Setup!$C$10 -> 0 | R87: =(R548*R$7)/Setup!$C$10 -> 0 | S87: =(S548*S$7)/Setup!$C$10 -> 0 | T87: =(T548*T$7)/Setup!$C$10 -> 0 | U87: =(U548*U$7)/Setup!$C$10 -> 0 | V87: =(V548*V$7)/Setup!$C$10 -> 0 | W87: =(W548*W$7)/Setup!$C$10 -> 0 | X87: =(X548*X$7)/Setup!$C$10 -> 0 | Y87: 0 | Z87: 0 | AB87: 6 | AC87: 6 | AD87: 6
A88: 2014-09-29 | B88: Week 13 | C88: =(C549*C$7)/Setup!$C$10 -> 0 | D88: =(D549*D$7)/Setup!$C$10 -> 0 | E88: =(E549*E$7)/Setup!$C$10 -> 0 | F88: =(F549*F$7)/Setup!$C$10 -> 0 | G88: =(G549*G$7)/Setup!$C$10 -> 0 | H88: =(H549*H$7)/Setup!$C$10 -> 0 | I88: =(I549*I$7)/Setup!$C$10 -> 0 | J88: =(J549*J$7)/Setup!$C$10 -> 0 | K88: =(K549*K$7)/Setup!$C$10 -> 0 | L88: =(L549*L$7)/Setup!$C$10 -> 0 | M88: =(M549*M$7)/Setup!$C$10 -> 0 | N88: =(N549*N$7)/Setup!$C$10 -> 0 | O88: =(O549*O$7)/Setup!$C$10 -> 0 | P88: =(P549*P$7)/Setup!$C$10 -> 0 | Q88: =(Q549*Q$7)/Setup!$C$10 -> 0 | R88: =(R549*R$7)/Setup!$C$10 -> 0 | S88: =(S549*S$7)/Setup!$C$10 -> 0 | T88: =(T549*T$7)/Setup!$C$10 -> 0 | U88: =(U549*U$7)/Setup!$C$10 -> 0 | V88: =(V549*V$7)/Setup!$C$10 -> 0 | W88: =(W549*W$7)/Setup!$C$10 -> 0 | X88: =(X549*X$7)/Setup!$C$10 -> 0 | Y88: 0 | Z88: 0 | AB88: 19.4 | AC88: 19.4 | AD88: 19.4
A89: 2014-10-06 | B89: Week 14 | C89: =(C550*C$7)/Setup!$C$10 -> 0 | D89: =(D550*D$7)/Setup!$C$10 -> 0 | E89: =(E550*E$7)/Setup!$C$10 -> 0 | F89: =(F550*F$7)/Setup!$C$10 -> 0 | G89: =(G550*G$7)/Setup!$C$10 -> 0 | H89: =(H550*H$7)/Setup!$C$10 -> 0 | I89: =(I550*I$7)/Setup!$C$10 -> 0 | J89: =(J550*J$7)/Setup!$C$10 -> 0 | K89: =(K550*K$7)/Setup!$C$10 -> 0 | L89: =(L550*L$7)/Setup!$C$10 -> 0 | M89: =(M550*M$7)/Setup!$C$10 -> 0 | N89: =(N550*N$7)/Setup!$C$10 -> 0 | O89: =(O550*O$7)/Setup!$C$10 -> 0 | P89: =(P550*P$7)/Setup!$C$10 -> 0 | Q89: =(Q550*Q$7)/Setup!$C$10 -> 0 | R89: =(R550*R$7)/Setup!$C$10 -> 0 | S89: =(S550*S$7)/Setup!$C$10 -> 0 | T89: =(T550*T$7)/Setup!$C$10 -> 0 | U89: =(U550*U$7)/Setup!$C$10 -> 0 | V89: =(V550*V$7)/Setup!$C$10 -> 0 | W89: =(W550*W$7)/Setup!$C$10 -> 0 | X89: =(X550*X$7)/Setup!$C$10 -> 0 | Y89: 0 | Z89: 0 | AB89: 19.4 | AC89: 19.4 | AD89: 19.4
A90: 2014-10-13 | B90: Week 15 | C90: =(C551*C$7)/Setup!$C$10 -> 0 | D90: =(D551*D$7)/Setup!$C$10 -> 0 | E90: =(E551*E$7)/Setup!$C$10 -> 0 | F90: =(F551*F$7)/Setup!$C$10 -> 0 | G90: =(G551*G$7)/Setup!$C$10 -> 0 | H90: =(H551*H$7)/Setup!$C$10 -> 0 | I90: =(I551*I$7)/Setup!$C$10 -> 0 | J90: =(J551*J$7)/Setup!$C$10 -> 0 | K90: =(K551*K$7)/Setup!$C$10 -> 0 | L90: =(L551*L$7)/Setup!$C$10 -> 0 | M90: =(M551*M$7)/Setup!$C$10 -> 0 | N90: =(N551*N$7)/Setup!$C$10 -> 0 | O90: =(O551*O$7)/Setup!$C$10 -> 0 | P90: =(P551*P$7)/Setup!$C$10 -> 0 | Q90: =(Q551*Q$7)/Setup!$C$10 -> 0 | R90: =(R551*R$7)/Setup!$C$10 -> 0 | S90: =(S551*S$7)/Setup!$C$10 -> 0 | T90: =(T551*T$7)/Setup!$C$10 -> 0 | U90: =(U551*U$7)/Setup!$C$10 -> 0 | V90: =(V551*V$7)/Setup!$C$10 -> 0 | W90: =(W551*W$7)/Setup!$C$10 -> 0 | X90: =(X551*X$7)/Setup!$C$10 -> 0 | Y90: 0 | Z90: 0 | AB90: 19.4 | AC90: 19.4 | AD90: 19.4
A91: 2014-10-20 | B91: Week 16 | C91: =(C552*C$7)/Setup!$C$10 -> 0 | D91: =(D552*D$7)/Setup!$C$10 -> 0 | E91: =(E552*E$7)/Setup!$C$10 -> 0 | F91: =(F552*F$7)/Setup!$C$10 -> 0 | G91: =(G552*G$7)/Setup!$C$10 -> 0 | H91: =(H552*H$7)/Setup!$C$10 -> 0 | I91: =(I552*I$7)/Setup!$C$10 -> 0 | J91: =(J552*J$7)/Setup!$C$10 -> 0 | K91: =(K552*K$7)/Setup!$C$10 -> 0 | L91: =(L552*L$7)/Setup!$C$10 -> 0 | M91: =(M552*M$7)/Setup!$C$10 -> 0 | N91: =(N552*N$7)/Setup!$C$10 -> 0 | O91: =(O552*O$7)/Setup!$C$10 -> 0 | P91: =(P552*P$7)/Setup!$C$10 -> 0 | Q91: =(Q552*Q$7)/Setup!$C$10 -> 0 | R91: =(R552*R$7)/Setup!$C$10 -> 0 | S91: =(S552*S$7)/Setup!$C$10 -> 0 | T91: =(T552*T$7)/Setup!$C$10 -> 0 | U91: =(U552*U$7)/Setup!$C$10 -> 0 | V91: =(V552*V$7)/Setup!$C$10 -> 0 | W91: =(W552*W$7)/Setup!$C$10 -> 0 | X91: =(X552*X$7)/Setup!$C$10 -> 0 | Y91: 0 | Z91: 0 | AB91: 19.4 | AC91: 19.4 | AD91: 19.4
A92: 2014-10-27 | B92: Week 17 | C92: =(C553*C$7)/Setup!$C$10 -> 0 | D92: =(D553*D$7)/Setup!$C$10 -> 0 | E92: =(E553*E$7)/Setup!$C$10 -> 0 | F92: =(F553*F$7)/Setup!$C$10 -> 0 | G92: =(G553*G$7)/Setup!$C$10 -> 0 | H92: =(H553*H$7)/Setup!$C$10 -> 0 | I92: =(I553*I$7)/Setup!$C$10 -> 0 | J92: =(J553*J$7)/Setup!$C$10 -> 0 | K92: =(K553*K$7)/Setup!$C$10 -> 0 | L92: =(L553*L$7)/Setup!$C$10 -> 0 | M92: =(M553*M$7)/Setup!$C$10 -> 0 | N92: =(N553*N$7)/Setup!$C$10 -> 0 | O92: =(O553*O$7)/Setup!$C$10 -> 0 | P92: =(P553*P$7)/Setup!$C$10 -> 0 | Q92: =(Q553*Q$7)/Setup!$C$10 -> 0 | R92: =(R553*R$7)/Setup!$C$10 -> 0 | S92: =(S553*S$7)/Setup!$C$10 -> 0 | T92: =(T553*T$7)/Setup!$C$10 -> 0 | U92: =(U553*U$7)/Setup!$C$10 -> 0 | V92: =(V553*V$7)/Setup!$C$10 -> 0 | W92: =(W553*W$7)/Setup!$C$10 -> 0 | X92: =(X553*X$7)/Setup!$C$10 -> 0 | Y92: 0 | Z92: 0 | AB92: 19.4 | AC92: 19.4 | AD92: 19.4
A93: 2014-11-03 | B93: Week 18 | C93: =(C554*C$7)/Setup!$C$10 -> 0 | D93: =(D554*D$7)/Setup!$C$10 -> 0 | E93: =(E554*E$7)/Setup!$C$10 -> 0 | F93: =(F554*F$7)/Setup!$C$10 -> 0 | G93: =(G554*G$7)/Setup!$C$10 -> 0 | H93: =(H554*H$7)/Setup!$C$10 -> 0 | I93: =(I554*I$7)/Setup!$C$10 -> 0 | J93: =(J554*J$7)/Setup!$C$10 -> 0 | K93: =(K554*K$7)/Setup!$C$10 -> 0 | L93: =(L554*L$7)/Setup!$C$10 -> 0 | M93: =(M554*M$7)/Setup!$C$10 -> 0 | N93: =(N554*N$7)/Setup!$C$10 -> 0 | O93: =(O554*O$7)/Setup!$C$10 -> 0 | P93: =(P554*P$7)/Setup!$C$10 -> 0 | Q93: =(Q554*Q$7)/Setup!$C$10 -> 0 | R93: =(R554*R$7)/Setup!$C$10 -> 0 | S93: =(S554*S$7)/Setup!$C$10 -> 0 | T93: =(T554*T$7)/Setup!$C$10 -> 0 | U93: =(U554*U$7)/Setup!$C$10 -> 0 | V93: =(V554*V$7)/Setup!$C$10 -> 0 | W93: =(W554*W$7)/Setup!$C$10 -> 0 | X93: =(X554*X$7)/Setup!$C$10 -> 0 | Y93: 0 | Z93: 0 | AB93: 11.025 | AC93: 19.4 | AD93: 19.4
A94: 2014-11-10 | B94: Week 19 | C94: =(C555*C$7)/Setup!$C$10 -> 0 | D94: =(D555*D$7)/Setup!$C$10 -> 0 | E94: =(E555*E$7)/Setup!$C$10 -> 0 | F94: =(F555*F$7)/Setup!$C$10 -> 0 | G94: =(G555*G$7)/Setup!$C$10 -> 0 | H94: =(H555*H$7)/Setup!$C$10 -> 0 | I94: =(I555*I$7)/Setup!$C$10 -> 0 | J94: =(J555*J$7)/Setup!$C$10 -> 0 | K94: =(K555*K$7)/Setup!$C$10 -> 0 | L94: =(L555*L$7)/Setup!$C$10 -> 0 | M94: =(M555*M$7)/Setup!$C$10 -> 0 | N94: =(N555*N$7)/Setup!$C$10 -> 0 | O94: =(O555*O$7)/Setup!$C$10 -> 0 | P94: =(P555*P$7)/Setup!$C$10 -> 0 | Q94: =(Q555*Q$7)/Setup!$C$10 -> 0 | R94: =(R555*R$7)/Setup!$C$10 -> 0 | S94: =(S555*S$7)/Setup!$C$10 -> 0 | T94: =(T555*T$7)/Setup!$C$10 -> 0 | U94: =(U555*U$7)/Setup!$C$10 -> 0 | V94: =(V555*V$7)/Setup!$C$10 -> 0 | W94: =(W555*W$7)/Setup!$C$10 -> 0 | X94: =(X555*X$7)/Setup!$C$10 -> 0 | Y94: 0 | Z94: 0 | AB94: 2.1 | AC94: 19.8 | AD94: 19.8
A95: 2014-11-17 | B95: Week 20 | C95: =(C556*C$7)/Setup!$C$10 -> 0 | D95: =(D556*D$7)/Setup!$C$10 -> 0 | E95: =(E556*E$7)/Setup!$C$10 -> 0 | F95: =(F556*F$7)/Setup!$C$10 -> 0 | G95: =(G556*G$7)/Setup!$C$10 -> 0 | H95: =(H556*H$7)/Setup!$C$10 -> 0 | I95: =(I556*I$7)/Setup!$C$10 -> 0 | J95: =(J556*J$7)/Setup!$C$10 -> 0 | K95: =(K556*K$7)/Setup!$C$10 -> 0 | L95: =(L556*L$7)/Setup!$C$10 -> 0 | M95: =(M556*M$7)/Setup!$C$10 -> 0 | N95: =(N556*N$7)/Setup!$C$10 -> 0 | O95: =(O556*O$7)/Setup!$C$10 -> 0 | P95: =(P556*P$7)/Setup!$C$10 -> 0 | Q95: =(Q556*Q$7)/Setup!$C$10 -> 0 | R95: =(R556*R$7)/Setup!$C$10 -> 0 | S95: =(S556*S$7)/Setup!$C$10 -> 0 | T95: =(T556*T$7)/Setup!$C$10 -> 0 | U95: =(U556*U$7)/Setup!$C$10 -> 0 | V95: =(V556*V$7)/Setup!$C$10 -> 0 | W95: =(W556*W$7)/Setup!$C$10 -> 0 | X95: =(X556*X$7)/Setup!$C$10 -> 0 | Y95: 0 | Z95: 0 | AB95: 2.1 | AC95: 19.8 | AD95: 19.8
A96: =A441 -> 2014-11-24 | B96: Week 21 | C96: =(C557*C$7)/Setup!$C$10 -> 0 | D96: =(D557*D$7)/Setup!$C$10 -> 0 | E96: =(E557*E$7)/Setup!$C$10 -> 0 | F96: =(F557*F$7)/Setup!$C$10 -> 0 | G96: =(G557*G$7)/Setup!$C$10 -> 0 | H96: =(H557*H$7)/Setup!$C$10 -> 0 | I96: =(I557*I$7)/Setup!$C$10 -> 0 | J96: =(J557*J$7)/Setup!$C$10 -> 0 | K96: =(K557*K$7)/Setup!$C$10 -> 0 | L96: =(L557*L$7)/Setup!$C$10 -> 0 | M96: =(M557*M$7)/Setup!$C$10 -> 0 | N96: =(N557*N$7)/Setup!$C$10 -> 0 | O96: =(O557*O$7)/Setup!$C$10 -> 0 | P96: =(P557*P$7)/Setup!$C$10 -> 0 | Q96: =(Q557*Q$7)/Setup!$C$10 -> 0 | R96: =(R557*R$7)/Setup!$C$10 -> 0 | S96: =(S557*S$7)/Setup!$C$10 -> 0 | T96: =(T557*T$7)/Setup!$C$10 -> 0 | U96: =(U557*U$7)/Setup!$C$10 -> 0 | V96: =(V557*V$7)/Setup!$C$10 -> 0 | W96: =(W557*W$7)/Setup!$C$10 -> 0 | X96: =(X557*X$7)/Setup!$C$10 -> 0 | Y96: 0 | Z96: 0 | AB96: 0 | AC96: 17.3 | AD96: 17.3
A97: 2014-12-01 | B97: Week 22 | C97: =(C558*C$7)/Setup!$C$10 -> 0 | D97: =(D558*D$7)/Setup!$C$10 -> 0 | E97: =(E558*E$7)/Setup!$C$10 -> 0 | F97: =(F558*F$7)/Setup!$C$10 -> 0 | G97: =(G558*G$7)/Setup!$C$10 -> 0 | H97: =(H558*H$7)/Setup!$C$10 -> 0 | I97: =(I558*I$7)/Setup!$C$10 -> 0 | J97: =(J558*J$7)/Setup!$C$10 -> 0 | K97: =(K558*K$7)/Setup!$C$10 -> 0 | L97: =(L558*L$7)/Setup!$C$10 -> 0 | M97: =(M558*M$7)/Setup!$C$10 -> 0 | N97: =(N558*N$7)/Setup!$C$10 -> 0 | O97: =(O558*O$7)/Setup!$C$10 -> 0 | P97: =(P558*P$7)/Setup!$C$10 -> 0 | Q97: =(Q558*Q$7)/Setup!$C$10 -> 0 | R97: =(R558*R$7)/Setup!$C$10 -> 0 | S97: =(S558*S$7)/Setup!$C$10 -> 0 | T97: =(T558*T$7)/Setup!$C$10 -> 0 | U97: =(U558*U$7)/Setup!$C$10 -> 0 | V97: =(V558*V$7)/Setup!$C$10 -> 0 | W97: =(W558*W$7)/Setup!$C$10 -> 0 | X97: =(X558*X$7)/Setup!$C$10 -> 0 | Y97: 0 | Z97: 0 | AB97: 0 | AC97: 13.8 | AD97: 13.8
A98: 2014-12-08 | B98: Week 23 | C98: =(C559*C$7)/Setup!$C$10 -> 0 | D98: =(D559*D$7)/Setup!$C$10 -> 0 | E98: =(E559*E$7)/Setup!$C$10 -> 0 | F98: =(F559*F$7)/Setup!$C$10 -> 0 | G98: =(G559*G$7)/Setup!$C$10 -> 0 | H98: =(H559*H$7)/Setup!$C$10 -> 0 | I98: =(I559*I$7)/Setup!$C$10 -> 0 | J98: =(J559*J$7)/Setup!$C$10 -> 0 | K98: =(K559*K$7)/Setup!$C$10 -> 0 | L98: =(L559*L$7)/Setup!$C$10 -> 0 | M98: =(M559*M$7)/Setup!$C$10 -> 0 | N98: =(N559*N$7)/Setup!$C$10 -> 0 | O98: =(O559*O$7)/Setup!$C$10 -> 0 | P98: =(P559*P$7)/Setup!$C$10 -> 0 | Q98: =(Q559*Q$7)/Setup!$C$10 -> 0 | R98: =(R559*R$7)/Setup!$C$10 -> 0 | S98: =(S559*S$7)/Setup!$C$10 -> 0 | T98: =(T559*T$7)/Setup!$C$10 -> 0 | U98: =(U559*U$7)/Setup!$C$10 -> 0 | V98: =(V559*V$7)/Setup!$C$10 -> 0 | W98: =(W559*W$7)/Setup!$C$10 -> 0 | X98: =(X559*X$7)/Setup!$C$10 -> 0 | Y98: 0 | Z98: 0 | AB98: 0 | AC98: 4.6 | AD98: 4.6
A99: 2014-12-15 | B99: Week 24 | C99: =(C560*C$7)/Setup!$C$10 -> 0 | D99: =(D560*D$7)/Setup!$C$10 -> 0 | E99: =(E560*E$7)/Setup!$C$10 -> 0 | F99: =(F560*F$7)/Setup!$C$10 -> 0 | G99: =(G560*G$7)/Setup!$C$10 -> 0 | H99: =(H560*H$7)/Setup!$C$10 -> 0 | I99: =(I560*I$7)/Setup!$C$10 -> 0 | J99: =(J560*J$7)/Setup!$C$10 -> 0 | K99: =(K560*K$7)/Setup!$C$10 -> 0 | L99: =(L560*L$7)/Setup!$C$10 -> 0 | M99: =(M560*M$7)/Setup!$C$10 -> 0 | N99: =(N560*N$7)/Setup!$C$10 -> 0 | O99: =(O560*O$7)/Setup!$C$10 -> 0 | P99: =(P560*P$7)/Setup!$C$10 -> 0 | Q99: =(Q560*Q$7)/Setup!$C$10 -> 0 | R99: =(R560*R$7)/Setup!$C$10 -> 0 | S99: =(S560*S$7)/Setup!$C$10 -> 0 | T99: =(T560*T$7)/Setup!$C$10 -> 0 | U99: =(U560*U$7)/Setup!$C$10 -> 0 | V99: =(V560*V$7)/Setup!$C$10 -> 0 | W99: =(W560*W$7)/Setup!$C$10 -> 0 | X99: =(X560*X$7)/Setup!$C$10 -> 0 | Y99: 0 | Z99: 0 | AB99: 0 | AC99: 0 | AD99: 0
A100: 2014-12-22 | B100: Week 25 | C100: =(C561*C$7)/Setup!$C$10 -> 0 | D100: =(D561*D$7)/Setup!$C$10 -> 0 | E100: =(E561*E$7)/Setup!$C$10 -> 0 | F100: =(F561*F$7)/Setup!$C$10 -> 0 | G100: =(G561*G$7)/Setup!$C$10 -> 0 | H100: =(H561*H$7)/Setup!$C$10 -> 0 | I100: =(I561*I$7)/Setup!$C$10 -> 0 | J100: =(J561*J$7)/Setup!$C$10 -> 0 | K100: =(K561*K$7)/Setup!$C$10 -> 0 | L100: =(L561*L$7)/Setup!$C$10 -> 0 | M100: =(M561*M$7)/Setup!$C$10 -> 0 | N100: =(N561*N$7)/Setup!$C$10 -> 0 | O100: =(O561*O$7)/Setup!$C$10 -> 0 | P100: =(P561*P$7)/Setup!$C$10 -> 0 | Q100: =(Q561*Q$7)/Setup!$C$10 -> 0 | R100: =(R561*R$7)/Setup!$C$10 -> 0 | S100: =(S561*S$7)/Setup!$C$10 -> 0 | T100: =(T561*T$7)/Setup!$C$10 -> 0 | U100: =(U561*U$7)/Setup!$C$10 -> 0 | V100: =(V561*V$7)/Setup!$C$10 -> 0 | W100: =(W561*W$7)/Setup!$C$10 -> 0 | X100: =(X561*X$7)/Setup!$C$10 -> 0 | Y100: 0 | Z100: 0 | AB100: 0 | AC100: 0 | AD100: 0
A101: 2014-12-29 | B101: Week 26 | C101: =(C562*C$7)/Setup!$C$10 -> 0 | D101: =(D562*D$7)/Setup!$C$10 -> 0 | E101: =(E562*E$7)/Setup!$C$10 -> 0 | F101: =(F562*F$7)/Setup!$C$10 -> 0 | G101: =(G562*G$7)/Setup!$C$10 -> 0 | H101: =(H562*H$7)/Setup!$C$10 -> 0 | I101: =(I562*I$7)/Setup!$C$10 -> 0 | J101: =(J562*J$7)/Setup!$C$10 -> 0 | K101: =(K562*K$7)/Setup!$C$10 -> 0 | L101: =(L562*L$7)/Setup!$C$10 -> 0 | M101: =(M562*M$7)/Setup!$C$10 -> 0 | N101: =(N562*N$7)/Setup!$C$10 -> 0 | O101: =(O562*O$7)/Setup!$C$10 -> 0 | P101: =(P562*P$7)/Setup!$C$10 -> 0 | Q101: =(Q562*Q$7)/Setup!$C$10 -> 0 | R101: =(R562*R$7)/Setup!$C$10 -> 0 | S101: =(S562*S$7)/Setup!$C$10 -> 0 | T101: =(T562*T$7)/Setup!$C$10 -> 0 | U101: =(U562*U$7)/Setup!$C$10 -> 0 | V101: =(V562*V$7)/Setup!$C$10 -> 0 | W101: =(W562*W$7)/Setup!$C$10 -> 0 | X101: =(X562*X$7)/Setup!$C$10 -> 0 | Y101: 0 | Z101: 0 | AB101: 0 | AC101: 0 | AD101: 0
A102: 2015-01-05 | B102: Week 27 | C102: =(C563*C$7)/Setup!$C$10 -> 0 | D102: =(D563*D$7)/Setup!$C$10 -> 0 | E102: =(E563*E$7)/Setup!$C$10 -> 0 | F102: =(F563*F$7)/Setup!$C$10 -> 0 | G102: =(G563*G$7)/Setup!$C$10 -> 0 | H102: =(H563*H$7)/Setup!$C$10 -> 0 | I102: =(I563*I$7)/Setup!$C$10 -> 0 | J102: =(J563*J$7)/Setup!$C$10 -> 0 | K102: =(K563*K$7)/Setup!$C$10 -> 0 | L102: =(L563*L$7)/Setup!$C$10 -> 0 | M102: =(M563*M$7)/Setup!$C$10 -> 0 | N102: =(N563*N$7)/Setup!$C$10 -> 0 | O102: =(O563*O$7)/Setup!$C$10 -> 0 | P102: =(P563*P$7)/Setup!$C$10 -> 0 | Q102: =(Q563*Q$7)/Setup!$C$10 -> 0 | R102: =(R563*R$7)/Setup!$C$10 -> 0 | S102: =(S563*S$7)/Setup!$C$10 -> 0 | T102: =(T563*T$7)/Setup!$C$10 -> 0 | U102: =(U563*U$7)/Setup!$C$10 -> 0 | V102: =(V563*V$7)/Setup!$C$10 -> 0 | W102: =(W563*W$7)/Setup!$C$10 -> 0 | X102: =(X563*X$7)/Setup!$C$10 -> 0 | Y102: 0 | Z102: 0 | AB102: 0 | AC102: 0 | AD102: 0
A103: 2015-01-12 | B103: Week 28 | C103: =(C564*C$7)/Setup!$C$10 -> 0 | D103: =(D564*D$7)/Setup!$C$10 -> 0 | E103: =(E564*E$7)/Setup!$C$10 -> 0 | F103: =(F564*F$7)/Setup!$C$10 -> 0 | G103: =(G564*G$7)/Setup!$C$10 -> 0 | H103: =(H564*H$7)/Setup!$C$10 -> 0 | I103: =(I564*I$7)/Setup!$C$10 -> 0 | J103: =(J564*J$7)/Setup!$C$10 -> 0 | K103: =(K564*K$7)/Setup!$C$10 -> 0 | L103: =(L564*L$7)/Setup!$C$10 -> 0 | M103: =(M564*M$7)/Setup!$C$10 -> 0 | N103: =(N564*N$7)/Setup!$C$10 -> 0 | O103: =(O564*O$7)/Setup!$C$10 -> 0 | P103: =(P564*P$7)/Setup!$C$10 -> 0 | Q103: =(Q564*Q$7)/Setup!$C$10 -> 0 | R103: =(R564*R$7)/Setup!$C$10 -> 0 | S103: =(S564*S$7)/Setup!$C$10 -> 0 | T103: =(T564*T$7)/Setup!$C$10 -> 0 | U103: =(U564*U$7)/Setup!$C$10 -> 0 | V103: =(V564*V$7)/Setup!$C$10 -> 0 | W103: =(W564*W$7)/Setup!$C$10 -> 0 | X103: =(X564*X$7)/Setup!$C$10 -> 0 | Y103: 0 | Z103: 0 | AB103: 0 | AC103: 0 | AD103: 0
A104: 2015-01-19 | B104: Week 29 | C104: =(C565*C$7)/Setup!$C$10 -> 0 | D104: =(D565*D$7)/Setup!$C$10 -> 0 | E104: =(E565*E$7)/Setup!$C$10 -> 0 | F104: =(F565*F$7)/Setup!$C$10 -> 0 | G104: =(G565*G$7)/Setup!$C$10 -> 0 | H104: =(H565*H$7)/Setup!$C$10 -> 0 | I104: =(I565*I$7)/Setup!$C$10 -> 0 | J104: =(J565*J$7)/Setup!$C$10 -> 0 | K104: =(K565*K$7)/Setup!$C$10 -> 0 | L104: =(L565*L$7)/Setup!$C$10 -> 0 | M104: =(M565*M$7)/Setup!$C$10 -> 0 | N104: =(N565*N$7)/Setup!$C$10 -> 0 | O104: =(O565*O$7)/Setup!$C$10 -> 0 | P104: =(P565*P$7)/Setup!$C$10 -> 0 | Q104: =(Q565*Q$7)/Setup!$C$10 -> 0 | R104: =(R565*R$7)/Setup!$C$10 -> 0 | S104: =(S565*S$7)/Setup!$C$10 -> 0 | T104: =(T565*T$7)/Setup!$C$10 -> 0 | U104: =(U565*U$7)/Setup!$C$10 -> 0 | V104: =(V565*V$7)/Setup!$C$10 -> 0 | W104: =(W565*W$7)/Setup!$C$10 -> 0 | X104: =(X565*X$7)/Setup!$C$10 -> 0 | Y104: 0 | Z104: 0 | AB104: 0 | AC104: 0 | AD104: 0
A105: 2015-01-26 | B105: Week 30 | C105: =(C566*C$7)/Setup!$C$10 -> 0 | D105: =(D566*D$7)/Setup!$C$10 -> 0 | E105: =(E566*E$7)/Setup!$C$10 -> 0 | F105: =(F566*F$7)/Setup!$C$10 -> 0 | G105: =(G566*G$7)/Setup!$C$10 -> 0 | H105: =(H566*H$7)/Setup!$C$10 -> 0 | I105: =(I566*I$7)/Setup!$C$10 -> 0 | J105: =(J566*J$7)/Setup!$C$10 -> 0 | K105: =(K566*K$7)/Setup!$C$10 -> 0 | L105: =(L566*L$7)/Setup!$C$10 -> 0 | M105: =(M566*M$7)/Setup!$C$10 -> 0 | N105: =(N566*N$7)/Setup!$C$10 -> 0 | O105: =(O566*O$7)/Setup!$C$10 -> 0 | P105: =(P566*P$7)/Setup!$C$10 -> 0 | Q105: =(Q566*Q$7)/Setup!$C$10 -> 0 | R105: =(R566*R$7)/Setup!$C$10 -> 0 | S105: =(S566*S$7)/Setup!$C$10 -> 0 | T105: =(T566*T$7)/Setup!$C$10 -> 0 | U105: =(U566*U$7)/Setup!$C$10 -> 0 | V105: =(V566*V$7)/Setup!$C$10 -> 0 | W105: =(W566*W$7)/Setup!$C$10 -> 0 | X105: =(X566*X$7)/Setup!$C$10 -> 0 | Y105: =SUM(C105:X105) -> 0 | Z105: 0 | AB105: 0 | AC105: 0 | AD105: 0
A106: 2015-02-02 | B106: Week 31 | C106: =(C567*C$7)/Setup!$C$10 -> 0 | D106: =(D567*D$7)/Setup!$C$10 -> 0 | E106: =(E567*E$7)/Setup!$C$10 -> 0 | F106: =(F567*F$7)/Setup!$C$10 -> 0 | G106: =(G567*G$7)/Setup!$C$10 -> 0 | H106: =(H567*H$7)/Setup!$C$10 -> 0 | I106: =(I567*I$7)/Setup!$C$10 -> 0 | J106: =(J567*J$7)/Setup!$C$10 -> 0 | K106: =(K567*K$7)/Setup!$C$10 -> 0 | L106: =(L567*L$7)/Setup!$C$10 -> 0 | M106: =(M567*M$7)/Setup!$C$10 -> 0 | N106: =(N567*N$7)/Setup!$C$10 -> 0 | O106: =(O567*O$7)/Setup!$C$10 -> 0 | P106: =(P567*P$7)/Setup!$C$10 -> 0 | Q106: =(Q567*Q$7)/Setup!$C$10 -> 0 | R106: =(R567*R$7)/Setup!$C$10 -> 0 | S106: =(S567*S$7)/Setup!$C$10 -> 0 | T106: =(T567*T$7)/Setup!$C$10 -> 0 | U106: =(U567*U$7)/Setup!$C$10 -> 0 | V106: =(V567*V$7)/Setup!$C$10 -> 0 | W106: =(W567*W$7)/Setup!$C$10 -> 0 | X106: =(X567*X$7)/Setup!$C$10 -> 0 | Y106: 0 | Z106: 0 | AB106: 0 | AC106: 0 | AD106: 0
A107: 2015-02-09 | B107: Week 32 | C107: =(C568*C$7)/Setup!$C$10 -> 0 | D107: =(D568*D$7)/Setup!$C$10 -> 0 | E107: =(E568*E$7)/Setup!$C$10 -> 0 | F107: =(F568*F$7)/Setup!$C$10 -> 0 | G107: =(G568*G$7)/Setup!$C$10 -> 0 | H107: =(H568*H$7)/Setup!$C$10 -> 0 | I107: =(I568*I$7)/Setup!$C$10 -> 0 | J107: =(J568*J$7)/Setup!$C$10 -> 0 | K107: =(K568*K$7)/Setup!$C$10 -> 0 | L107: =(L568*L$7)/Setup!$C$10 -> 0 | M107: =(M568*M$7)/Setup!$C$10 -> 0 | N107: =(N568*N$7)/Setup!$C$10 -> 0 | O107: =(O568*O$7)/Setup!$C$10 -> 0 | P107: =(P568*P$7)/Setup!$C$10 -> 0 | Q107: =(Q568*Q$7)/Setup!$C$10 -> 0 | R107: =(R568*R$7)/Setup!$C$10 -> 0 | S107: =(S568*S$7)/Setup!$C$10 -> 0 | T107: =(T568*T$7)/Setup!$C$10 -> 0 | U107: =(U568*U$7)/Setup!$C$10 -> 0 | V107: =(V568*V$7)/Setup!$C$10 -> 0 | W107: =(W568*W$7)/Setup!$C$10 -> 0 | X107: =(X568*X$7)/Setup!$C$10 -> 0 | Y107: 0 | Z107: 0 | AB107: 0 | AC107: 0 | AD107: 0
A108: 2015-02-16 | B108: Week 33 | C108: =(C569*C$7)/Setup!$C$10 -> 0 | D108: =(D569*D$7)/Setup!$C$10 -> 0 | E108: =(E569*E$7)/Setup!$C$10 -> 0 | F108: =(F569*F$7)/Setup!$C$10 -> 0 | G108: =(G569*G$7)/Setup!$C$10 -> 0 | H108: =(H569*H$7)/Setup!$C$10 -> 0 | I108: =(I569*I$7)/Setup!$C$10 -> 0 | J108: =(J569*J$7)/Setup!$C$10 -> 0 | K108: =(K569*K$7)/Setup!$C$10 -> 0 | L108: =(L569*L$7)/Setup!$C$10 -> 0 | M108: =(M569*M$7)/Setup!$C$10 -> 0 | N108: =(N569*N$7)/Setup!$C$10 -> 0 | O108: =(O569*O$7)/Setup!$C$10 -> 0 | P108: =(P569*P$7)/Setup!$C$10 -> 0 | Q108: =(Q569*Q$7)/Setup!$C$10 -> 0 | R108: =(R569*R$7)/Setup!$C$10 -> 0 | S108: =(S569*S$7)/Setup!$C$10 -> 0 | T108: =(T569*T$7)/Setup!$C$10 -> 0 | U108: =(U569*U$7)/Setup!$C$10 -> 0 | V108: =(V569*V$7)/Setup!$C$10 -> 0 | W108: =(W569*W$7)/Setup!$C$10 -> 0 | X108: =(X569*X$7)/Setup!$C$10 -> 0 | Y108: 0 | Z108: 0 | AB108: 0 | AC108: 0 | AD108: 0
A109: 2015-02-23 | B109: Week 34 | C109: =(C570*C$7)/Setup!$C$10 -> 0 | D109: =(D570*D$7)/Setup!$C$10 -> 0 | E109: =(E570*E$7)/Setup!$C$10 -> 0 | F109: =(F570*F$7)/Setup!$C$10 -> 0 | G109: =(G570*G$7)/Setup!$C$10 -> 0 | H109: =(H570*H$7)/Setup!$C$10 -> 0 | I109: =(I570*I$7)/Setup!$C$10 -> 0 | J109: =(J570*J$7)/Setup!$C$10 -> 0 | K109: =(K570*K$7)/Setup!$C$10 -> 0 | L109: =(L570*L$7)/Setup!$C$10 -> 0 | M109: =(M570*M$7)/Setup!$C$10 -> 0 | N109: =(N570*N$7)/Setup!$C$10 -> 0 | O109: =(O570*O$7)/Setup!$C$10 -> 0 | P109: =(P570*P$7)/Setup!$C$10 -> 0 | Q109: =(Q570*Q$7)/Setup!$C$10 -> 0 | R109: =(R570*R$7)/Setup!$C$10 -> 0 | S109: =(S570*S$7)/Setup!$C$10 -> 0 | T109: =(T570*T$7)/Setup!$C$10 -> 0 | U109: =(U570*U$7)/Setup!$C$10 -> 0 | V109: =(V570*V$7)/Setup!$C$10 -> 0 | W109: =(W570*W$7)/Setup!$C$10 -> 0 | X109: =(X570*X$7)/Setup!$C$10 -> 0 | Y109: 0 | Z109: 0 | AB109: 0 | AC109: 0 | AD109: 0
A110: 2015-03-02 | B110: Week 35 | C110: =(C571*C$7)/Setup!$C$10 -> 0 | D110: =(D571*D$7)/Setup!$C$10 -> 0 | E110: =(E571*E$7)/Setup!$C$10 -> 0 | F110: =(F571*F$7)/Setup!$C$10 -> 0 | G110: =(G571*G$7)/Setup!$C$10 -> 0 | H110: =(H571*H$7)/Setup!$C$10 -> 0 | I110: =(I571*I$7)/Setup!$C$10 -> 0 | J110: =(J571*J$7)/Setup!$C$10 -> 0 | K110: =(K571*K$7)/Setup!$C$10 -> 0 | L110: =(L571*L$7)/Setup!$C$10 -> 0 | M110: =(M571*M$7)/Setup!$C$10 -> 0 | N110: =(N571*N$7)/Setup!$C$10 -> 0 | O110: =(O571*O$7)/Setup!$C$10 -> 0 | P110: =(P571*P$7)/Setup!$C$10 -> 0 | Q110: =(Q571*Q$7)/Setup!$C$10 -> 0 | R110: =(R571*R$7)/Setup!$C$10 -> 0 | S110: =(S571*S$7)/Setup!$C$10 -> 0 | T110: =(T571*T$7)/Setup!$C$10 -> 0 | U110: =(U571*U$7)/Setup!$C$10 -> 0 | V110: =(V571*V$7)/Setup!$C$10 -> 0 | W110: =(W571*W$7)/Setup!$C$10 -> 0 | X110: =(X571*X$7)/Setup!$C$10 -> 0 | Y110: 0 | Z110: 0 | AB110: 0 | AC110: 0 | AD110: 0
A111: 2015-03-09 | B111: Week 36 | C111: =(C572*C$7)/Setup!$C$10 -> 0 | D111: =(D572*D$7)/Setup!$C$10 -> 0 | E111: =(E572*E$7)/Setup!$C$10 -> 0 | F111: =(F572*F$7)/Setup!$C$10 -> 0 | G111: =(G572*G$7)/Setup!$C$10 -> 0 | H111: =(H572*H$7)/Setup!$C$10 -> 0 | I111: =(I572*I$7)/Setup!$C$10 -> 0 | J111: =(J572*J$7)/Setup!$C$10 -> 0 | K111: =(K572*K$7)/Setup!$C$10 -> 0 | L111: =(L572*L$7)/Setup!$C$10 -> 0 | M111: =(M572*M$7)/Setup!$C$10 -> 0 | N111: =(N572*N$7)/Setup!$C$10 -> 0 | O111: =(O572*O$7)/Setup!$C$10 -> 0 | P111: =(P572*P$7)/Setup!$C$10 -> 0 | Q111: =(Q572*Q$7)/Setup!$C$10 -> 0 | R111: =(R572*R$7)/Setup!$C$10 -> 0 | S111: =(S572*S$7)/Setup!$C$10 -> 0 | T111: =(T572*T$7)/Setup!$C$10 -> 0 | U111: =(U572*U$7)/Setup!$C$10 -> 0 | V111: =(V572*V$7)/Setup!$C$10 -> 0 | W111: =(W572*W$7)/Setup!$C$10 -> 0 | X111: =(X572*X$7)/Setup!$C$10 -> 0 | Y111: 0 | Z111: 0 | AB111: 0 | AC111: 0 | AD111: 0
A112: 2015-03-16 | B112: Week 37 | C112: =(C573*C$7)/Setup!$C$10 -> 0 | D112: =(D573*D$7)/Setup!$C$10 -> 0 | E112: =(E573*E$7)/Setup!$C$10 -> 0 | F112: =(F573*F$7)/Setup!$C$10 -> 0 | G112: =(G573*G$7)/Setup!$C$10 -> 0 | H112: =(H573*H$7)/Setup!$C$10 -> 0 | I112: =(I573*I$7)/Setup!$C$10 -> 0 | J112: =(J573*J$7)/Setup!$C$10 -> 0 | K112: =(K573*K$7)/Setup!$C$10 -> 0 | L112: =(L573*L$7)/Setup!$C$10 -> 0 | M112: =(M573*M$7)/Setup!$C$10 -> 0 | N112: =(N573*N$7)/Setup!$C$10 -> 0 | O112: =(O573*O$7)/Setup!$C$10 -> 0 | P112: =(P573*P$7)/Setup!$C$10 -> 0 | Q112: =(Q573*Q$7)/Setup!$C$10 -> 0 | R112: =(R573*R$7)/Setup!$C$10 -> 0 | S112: =(S573*S$7)/Setup!$C$10 -> 0 | T112: =(T573*T$7)/Setup!$C$10 -> 0 | U112: =(U573*U$7)/Setup!$C$10 -> 0 | V112: =(V573*V$7)/Setup!$C$10 -> 0 | W112: =(W573*W$7)/Setup!$C$10 -> 0 | X112: =(X573*X$7)/Setup!$C$10 -> 0 | Y112: 0 | Z112: 0 | AB112: 0 | AC112: 0 | AD112: 0
A113: 2015-03-23 | B113: Week 38 | C113: =(C574*C$7)/Setup!$C$10 -> 0 | D113: =(D574*D$7)/Setup!$C$10 -> 0 | E113: =(E574*E$7)/Setup!$C$10 -> 0 | F113: =(F574*F$7)/Setup!$C$10 -> 0 | G113: =(G574*G$7)/Setup!$C$10 -> 0 | H113: =(H574*H$7)/Setup!$C$10 -> 0 | I113: =(I574*I$7)/Setup!$C$10 -> 0 | J113: =(J574*J$7)/Setup!$C$10 -> 0 | K113: =(K574*K$7)/Setup!$C$10 -> 0 | L113: =(L574*L$7)/Setup!$C$10 -> 0 | M113: =(M574*M$7)/Setup!$C$10 -> 0 | N113: =(N574*N$7)/Setup!$C$10 -> 0 | O113: =(O574*O$7)/Setup!$C$10 -> 0 | P113: =(P574*P$7)/Setup!$C$10 -> 0 | Q113: =(Q574*Q$7)/Setup!$C$10 -> 0 | R113: =(R574*R$7)/Setup!$C$10 -> 0 | S113: =(S574*S$7)/Setup!$C$10 -> 0 | T113: =(T574*T$7)/Setup!$C$10 -> 0 | U113: =(U574*U$7)/Setup!$C$10 -> 0 | V113: =(V574*V$7)/Setup!$C$10 -> 0 | W113: =(W574*W$7)/Setup!$C$10 -> 0 | X113: =(X574*X$7)/Setup!$C$10 -> 0 | Y113: 0 | Z113: 0 | AB113: 20.24 | AC113: 20.24 | AD113: 20.24
A114: 2015-03-30 | B114: Week 39 | C114: =(C575*C$7)/Setup!$C$10 -> 0 | D114: =(D575*D$7)/Setup!$C$10 -> 0 | E114: =(E575*E$7)/Setup!$C$10 -> 0 | F114: =(F575*F$7)/Setup!$C$10 -> 0 | G114: =(G575*G$7)/Setup!$C$10 -> 0 | H114: =(H575*H$7)/Setup!$C$10 -> 0 | I114: =(I575*I$7)/Setup!$C$10 -> 0 | J114: =(J575*J$7)/Setup!$C$10 -> 0 | K114: =(K575*K$7)/Setup!$C$10 -> 0 | L114: =(L575*L$7)/Setup!$C$10 -> 0 | M114: =(M575*M$7)/Setup!$C$10 -> 0 | N114: =(N575*N$7)/Setup!$C$10 -> 0 | O114: =(O575*O$7)/Setup!$C$10 -> 0 | P114: =(P575*P$7)/Setup!$C$10 -> 0 | Q114: =(Q575*Q$7)/Setup!$C$10 -> 0 | R114: =(R575*R$7)/Setup!$C$10 -> 0 | S114: =(S575*S$7)/Setup!$C$10 -> 0 | T114: =(T575*T$7)/Setup!$C$10 -> 0 | U114: =(U575*U$7)/Setup!$C$10 -> 0 | V114: =(V575*V$7)/Setup!$C$10 -> 0 | W114: =(W575*W$7)/Setup!$C$10 -> 0 | X114: =(X575*X$7)/Setup!$C$10 -> 0 | Y114: 0 | Z114: 0 | AB114: 19.78 | AC114: 19.78 | AD114: 19.78
A115: 2015-04-06 | B115: Week 40 | C115: =(C576*C$7)/Setup!$C$10 -> 0 | D115: =(D576*D$7)/Setup!$C$10 -> 0 | E115: =(E576*E$7)/Setup!$C$10 -> 0 | F115: =(F576*F$7)/Setup!$C$10 -> 0 | G115: =(G576*G$7)/Setup!$C$10 -> 0 | H115: =(H576*H$7)/Setup!$C$10 -> 0 | I115: =(I576*I$7)/Setup!$C$10 -> 0 | J115: =(J576*J$7)/Setup!$C$10 -> 0 | K115: =(K576*K$7)/Setup!$C$10 -> 0 | L115: =(L576*L$7)/Setup!$C$10 -> 0 | M115: =(M576*M$7)/Setup!$C$10 -> 0 | N115: =(N576*N$7)/Setup!$C$10 -> 0 | O115: =(O576*O$7)/Setup!$C$10 -> 0 | P115: =(P576*P$7)/Setup!$C$10 -> 0 | Q115: =(Q576*Q$7)/Setup!$C$10 -> 0 | R115: =(R576*R$7)/Setup!$C$10 -> 0 | S115: =(S576*S$7)/Setup!$C$10 -> 0 | T115: =(T576*T$7)/Setup!$C$10 -> 0 | U115: =(U576*U$7)/Setup!$C$10 -> 0 | V115: =(V576*V$7)/Setup!$C$10 -> 0 | W115: =(W576*W$7)/Setup!$C$10 -> 0 | X115: =(X576*X$7)/Setup!$C$10 -> 0 | Y115: 0 | Z115: 0 | AB115: 18.86 | AC115: 18.86 | AD115: 18.86
A116: =A461 -> 2015-04-13 | B116: Week 41 | C116: =(C577*C$7)/Setup!$C$10 -> 0 | D116: =(D577*D$7)/Setup!$C$10 -> 0 | E116: =(E577*E$7)/Setup!$C$10 -> 0 | F116: =(F577*F$7)/Setup!$C$10 -> 0 | G116: =(G577*G$7)/Setup!$C$10 -> 0 | H116: =(H577*H$7)/Setup!$C$10 -> 0 | I116: =(I577*I$7)/Setup!$C$10 -> 0 | J116: =(J577*J$7)/Setup!$C$10 -> 0 | K116: =(K577*K$7)/Setup!$C$10 -> 0 | L116: =(L577*L$7)/Setup!$C$10 -> 0 | M116: =(M577*M$7)/Setup!$C$10 -> 0 | N116: =(N577*N$7)/Setup!$C$10 -> 0 | O116: =(O577*O$7)/Setup!$C$10 -> 0 | P116: =(P577*P$7)/Setup!$C$10 -> 0 | Q116: =(Q577*Q$7)/Setup!$C$10 -> 0 | R116: =(R577*R$7)/Setup!$C$10 -> 0 | S116: =(S577*S$7)/Setup!$C$10 -> 0 | T116: =(T577*T$7)/Setup!$C$10 -> 0 | U116: =(U577*U$7)/Setup!$C$10 -> 0 | V116: =(V577*V$7)/Setup!$C$10 -> 0 | W116: =(W577*W$7)/Setup!$C$10 -> 0 | X116: =(X577*X$7)/Setup!$C$10 -> 0 | Y116: 0 | Z116: 0 | AB116: 18.86 | AC116: 18.86 | AD116: 18.86
A117: 2015-04-20 | B117: Week 42 | C117: =(C578*C$7)/Setup!$C$10 -> 0 | D117: =(D578*D$7)/Setup!$C$10 -> 0 | E117: =(E578*E$7)/Setup!$C$10 -> 0 | F117: =(F578*F$7)/Setup!$C$10 -> 0 | G117: =(G578*G$7)/Setup!$C$10 -> 0 | H117: =(H578*H$7)/Setup!$C$10 -> 0 | I117: =(I578*I$7)/Setup!$C$10 -> 0 | J117: =(J578*J$7)/Setup!$C$10 -> 0 | K117: =(K578*K$7)/Setup!$C$10 -> 0 | L117: =(L578*L$7)/Setup!$C$10 -> 0 | M117: =(M578*M$7)/Setup!$C$10 -> 0 | N117: =(N578*N$7)/Setup!$C$10 -> 0 | O117: =(O578*O$7)/Setup!$C$10 -> 0 | P117: =(P578*P$7)/Setup!$C$10 -> 0 | Q117: =(Q578*Q$7)/Setup!$C$10 -> 0 | R117: =(R578*R$7)/Setup!$C$10 -> 0 | S117: =(S578*S$7)/Setup!$C$10 -> 0 | T117: =(T578*T$7)/Setup!$C$10 -> 0 | U117: =(U578*U$7)/Setup!$C$10 -> 0 | V117: =(V578*V$7)/Setup!$C$10 -> 0 | W117: =(W578*W$7)/Setup!$C$10 -> 0 | X117: =(X578*X$7)/Setup!$C$10 -> 0 | Y117: 0 | Z117: 0 | AB117: 0 | AC117: 0 | AD117: 0
A118: 2015-04-27 | B118: Week 43 | C118: =(C579*C$7)/Setup!$C$10 -> 0 | D118: =(D579*D$7)/Setup!$C$10 -> 0 | E118: =(E579*E$7)/Setup!$C$10 -> 0 | F118: =(F579*F$7)/Setup!$C$10 -> 0 | G118: =(G579*G$7)/Setup!$C$10 -> 0 | H118: =(H579*H$7)/Setup!$C$10 -> 0 | I118: =(I579*I$7)/Setup!$C$10 -> 0 | J118: =(J579*J$7)/Setup!$C$10 -> 0 | K118: =(K579*K$7)/Setup!$C$10 -> 0 | L118: =(L579*L$7)/Setup!$C$10 -> 0 | M118: =(M579*M$7)/Setup!$C$10 -> 0 | N118: =(N579*N$7)/Setup!$C$10 -> 0 | O118: =(O579*O$7)/Setup!$C$10 -> 0 | P118: =(P579*P$7)/Setup!$C$10 -> 0 | Q118: =(Q579*Q$7)/Setup!$C$10 -> 0 | R118: =(R579*R$7)/Setup!$C$10 -> 0 | S118: =(S579*S$7)/Setup!$C$10 -> 0 | T118: =(T579*T$7)/Setup!$C$10 -> 0 | U118: =(U579*U$7)/Setup!$C$10 -> 0 | V118: =(V579*V$7)/Setup!$C$10 -> 0 | W118: =(W579*W$7)/Setup!$C$10 -> 0 | X118: =(X579*X$7)/Setup!$C$10 -> 0 | Y118: 0 | Z118: 0 | AB118: 0 | AC118: 0 | AD118: 0
A119: 2015-05-04 | B119: Week 44 | C119: =(C580*C$7)/Setup!$C$10 -> 0 | D119: =(D580*D$7)/Setup!$C$10 -> 0 | E119: =(E580*E$7)/Setup!$C$10 -> 0 | F119: =(F580*F$7)/Setup!$C$10 -> 0 | G119: =(G580*G$7)/Setup!$C$10 -> 0 | H119: =(H580*H$7)/Setup!$C$10 -> 0 | I119: =(I580*I$7)/Setup!$C$10 -> 0 | J119: =(J580*J$7)/Setup!$C$10 -> 0 | K119: =(K580*K$7)/Setup!$C$10 -> 0 | L119: =(L580*L$7)/Setup!$C$10 -> 0 | M119: =(M580*M$7)/Setup!$C$10 -> 0 | N119: =(N580*N$7)/Setup!$C$10 -> 0 | O119: =(O580*O$7)/Setup!$C$10 -> 0 | P119: =(P580*P$7)/Setup!$C$10 -> 0 | Q119: =(Q580*Q$7)/Setup!$C$10 -> 0 | R119: =(R580*R$7)/Setup!$C$10 -> 0 | S119: =(S580*S$7)/Setup!$C$10 -> 0 | T119: =(T580*T$7)/Setup!$C$10 -> 0 | U119: =(U580*U$7)/Setup!$C$10 -> 0 | V119: =(V580*V$7)/Setup!$C$10 -> 0 | W119: =(W580*W$7)/Setup!$C$10 -> 0 | X119: =(X580*X$7)/Setup!$C$10 -> 0 | Y119: 0 | Z119: 0 | AB119: 0 | AC119: 0 | AD119: 0
A120: 2015-05-11 | B120: Week 45 | C120: =(C581*C$7)/Setup!$C$10 -> 0 | D120: =(D581*D$7)/Setup!$C$10 -> 0 | E120: =(E581*E$7)/Setup!$C$10 -> 0 | F120: =(F581*F$7)/Setup!$C$10 -> 0 | G120: =(G581*G$7)/Setup!$C$10 -> 0 | H120: =(H581*H$7)/Setup!$C$10 -> 0 | I120: =(I581*I$7)/Setup!$C$10 -> 0 | J120: =(J581*J$7)/Setup!$C$10 -> 0 | K120: =(K581*K$7)/Setup!$C$10 -> 0 | L120: =(L581*L$7)/Setup!$C$10 -> 0 | M120: =(M581*M$7)/Setup!$C$10 -> 0 | N120: =(N581*N$7)/Setup!$C$10 -> 0 | O120: =(O581*O$7)/Setup!$C$10 -> 0 | P120: =(P581*P$7)/Setup!$C$10 -> 0 | Q120: =(Q581*Q$7)/Setup!$C$10 -> 0 | R120: =(R581*R$7)/Setup!$C$10 -> 0 | S120: =(S581*S$7)/Setup!$C$10 -> 0 | T120: =(T581*T$7)/Setup!$C$10 -> 0 | U120: =(U581*U$7)/Setup!$C$10 -> 0 | V120: =(V581*V$7)/Setup!$C$10 -> 0 | W120: =(W581*W$7)/Setup!$C$10 -> 0 | X120: =(X581*X$7)/Setup!$C$10 -> 0 | Y120: 0 | Z120: 0 | AB120: 0 | AC120: 0 | AD120: 0
A121: 2015-05-18 | B121: Week 46 | C121: =(C582*C$7)/Setup!$C$10 -> 0 | D121: =(D582*D$7)/Setup!$C$10 -> 0 | E121: =(E582*E$7)/Setup!$C$10 -> 0 | F121: =(F582*F$7)/Setup!$C$10 -> 0 | G121: =(G582*G$7)/Setup!$C$10 -> 0 | H121: =(H582*H$7)/Setup!$C$10 -> 0 | I121: =(I582*I$7)/Setup!$C$10 -> 0 | J121: =(J582*J$7)/Setup!$C$10 -> 0 | K121: =(K582*K$7)/Setup!$C$10 -> 0 | L121: =(L582*L$7)/Setup!$C$10 -> 0 | M121: =(M582*M$7)/Setup!$C$10 -> 0 | N121: =(N582*N$7)/Setup!$C$10 -> 0 | O121: =(O582*O$7)/Setup!$C$10 -> 0 | P121: =(P582*P$7)/Setup!$C$10 -> 0 | Q121: =(Q582*Q$7)/Setup!$C$10 -> 0 | R121: =(R582*R$7)/Setup!$C$10 -> 0 | S121: =(S582*S$7)/Setup!$C$10 -> 0 | T121: =(T582*T$7)/Setup!$C$10 -> 0 | U121: =(U582*U$7)/Setup!$C$10 -> 0 | V121: =(V582*V$7)/Setup!$C$10 -> 0 | W121: =(W582*W$7)/Setup!$C$10 -> 0 | X121: =(X582*X$7)/Setup!$C$10 -> 0 | Y121: 0 | Z121: 0 | AB121: 0 | AC121: 0 | AD121: 0
A122: 2015-05-25 | B122: Week 47 | C122: =(C583*C$7)/Setup!$C$10 -> 0 | D122: =(D583*D$7)/Setup!$C$10 -> 0 | E122: =(E583*E$7)/Setup!$C$10 -> 0 | F122: =(F583*F$7)/Setup!$C$10 -> 0 | G122: =(G583*G$7)/Setup!$C$10 -> 0 | H122: =(H583*H$7)/Setup!$C$10 -> 0 | I122: =(I583*I$7)/Setup!$C$10 -> 0 | J122: =(J583*J$7)/Setup!$C$10 -> 0 | K122: =(K583*K$7)/Setup!$C$10 -> 0 | L122: =(L583*L$7)/Setup!$C$10 -> 0 | M122: =(M583*M$7)/Setup!$C$10 -> 0 | N122: =(N583*N$7)/Setup!$C$10 -> 0 | O122: =(O583*O$7)/Setup!$C$10 -> 0 | P122: =(P583*P$7)/Setup!$C$10 -> 0 | Q122: =(Q583*Q$7)/Setup!$C$10 -> 0 | R122: =(R583*R$7)/Setup!$C$10 -> 0 | S122: =(S583*S$7)/Setup!$C$10 -> 0 | T122: =(T583*T$7)/Setup!$C$10 -> 0 | U122: =(U583*U$7)/Setup!$C$10 -> 0 | V122: =(V583*V$7)/Setup!$C$10 -> 0 | W122: =(W583*W$7)/Setup!$C$10 -> 0 | X122: =(X583*X$7)/Setup!$C$10 -> 0 | Y122: 0 | Z122: 0 | AB122: 0 | AC122: 0 | AD122: 0
A123: 2015-06-01 | B123: Week 48 | C123: =(C584*C$7)/Setup!$C$10 -> 0 | D123: =(D584*D$7)/Setup!$C$10 -> 0 | E123: =(E584*E$7)/Setup!$C$10 -> 0 | F123: =(F584*F$7)/Setup!$C$10 -> 0 | G123: =(G584*G$7)/Setup!$C$10 -> 0 | H123: =(H584*H$7)/Setup!$C$10 -> 0 | I123: =(I584*I$7)/Setup!$C$10 -> 0 | J123: =(J584*J$7)/Setup!$C$10 -> 0 | K123: =(K584*K$7)/Setup!$C$10 -> 0 | L123: =(L584*L$7)/Setup!$C$10 -> 0 | M123: =(M584*M$7)/Setup!$C$10 -> 0 | N123: =(N584*N$7)/Setup!$C$10 -> 0 | O123: =(O584*O$7)/Setup!$C$10 -> 0 | P123: =(P584*P$7)/Setup!$C$10 -> 0 | Q123: =(Q584*Q$7)/Setup!$C$10 -> 0 | R123: =(R584*R$7)/Setup!$C$10 -> 0 | S123: =(S584*S$7)/Setup!$C$10 -> 0 | T123: =(T584*T$7)/Setup!$C$10 -> 0 | U123: =(U584*U$7)/Setup!$C$10 -> 0 | V123: =(V584*V$7)/Setup!$C$10 -> 0 | W123: =(W584*W$7)/Setup!$C$10 -> 0 | X123: =(X584*X$7)/Setup!$C$10 -> 0 | Y123: 0 | Z123: 0 | AB123: 0 | AC123: 0 | AD123: 0
A124: 2015-06-08 | B124: Week 49 | C124: =(C585*C$7)/Setup!$C$10 -> 0 | D124: =(D585*D$7)/Setup!$C$10 -> 0 | E124: =(E585*E$7)/Setup!$C$10 -> 0 | F124: =(F585*F$7)/Setup!$C$10 -> 0 | G124: =(G585*G$7)/Setup!$C$10 -> 0 | H124: =(H585*H$7)/Setup!$C$10 -> 0 | I124: =(I585*I$7)/Setup!$C$10 -> 0 | J124: =(J585*J$7)/Setup!$C$10 -> 0 | K124: =(K585*K$7)/Setup!$C$10 -> 0 | L124: =(L585*L$7)/Setup!$C$10 -> 0 | M124: =(M585*M$7)/Setup!$C$10 -> 0 | N124: =(N585*N$7)/Setup!$C$10 -> 0 | O124: =(O585*O$7)/Setup!$C$10 -> 0 | P124: =(P585*P$7)/Setup!$C$10 -> 0 | Q124: =(Q585*Q$7)/Setup!$C$10 -> 0 | R124: =(R585*R$7)/Setup!$C$10 -> 0 | S124: =(S585*S$7)/Setup!$C$10 -> 0 | T124: =(T585*T$7)/Setup!$C$10 -> 0 | U124: =(U585*U$7)/Setup!$C$10 -> 0 | V124: =(V585*V$7)/Setup!$C$10 -> 0 | W124: =(W585*W$7)/Setup!$C$10 -> 0 | X124: =(X585*X$7)/Setup!$C$10 -> 0 | Y124: 0 | Z124: 0 | AB124: 0 | AC124: 0 | AD124: 0
A125: 2015-06-15 | B125: Week 50 | C125: =(C586*C$7)/Setup!$C$10 -> 0 | D125: =(D586*D$7)/Setup!$C$10 -> 0 | E125: =(E586*E$7)/Setup!$C$10 -> 0 | F125: =(F586*F$7)/Setup!$C$10 -> 0 | G125: =(G586*G$7)/Setup!$C$10 -> 0 | H125: =(H586*H$7)/Setup!$C$10 -> 0 | I125: =(I586*I$7)/Setup!$C$10 -> 0 | J125: =(J586*J$7)/Setup!$C$10 -> 0 | K125: =(K586*K$7)/Setup!$C$10 -> 0 | L125: =(L586*L$7)/Setup!$C$10 -> 0 | M125: =(M586*M$7)/Setup!$C$10 -> 0 | N125: =(N586*N$7)/Setup!$C$10 -> 0 | O125: =(O586*O$7)/Setup!$C$10 -> 0 | P125: =(P586*P$7)/Setup!$C$10 -> 0 | Q125: =(Q586*Q$7)/Setup!$C$10 -> 0 | R125: =(R586*R$7)/Setup!$C$10 -> 0 | S125: =(S586*S$7)/Setup!$C$10 -> 0 | T125: =(T586*T$7)/Setup!$C$10 -> 0 | U125: =(U586*U$7)/Setup!$C$10 -> 0 | V125: =(V586*V$7)/Setup!$C$10 -> 0 | W125: =(W586*W$7)/Setup!$C$10 -> 0 | X125: =(X586*X$7)/Setup!$C$10 -> 0 | Y125: 0 | Z125: 0 | AB125: 0 | AC125: 0 | AD125: 0
A126: 2015-06-22 | B126: Week 51 | C126: =(C587*C$7)/Setup!$C$10 -> 0 | D126: =(D587*D$7)/Setup!$C$10 -> 0 | E126: =(E587*E$7)/Setup!$C$10 -> 0 | F126: =(F587*F$7)/Setup!$C$10 -> 0 | G126: =(G587*G$7)/Setup!$C$10 -> 0 | H126: =(H587*H$7)/Setup!$C$10 -> 0 | I126: =(I587*I$7)/Setup!$C$10 -> 0 | J126: =(J587*J$7)/Setup!$C$10 -> 0 | K126: =(K587*K$7)/Setup!$C$10 -> 0 | L126: =(L587*L$7)/Setup!$C$10 -> 0 | M126: =(M587*M$7)/Setup!$C$10 -> 0 | N126: =(N587*N$7)/Setup!$C$10 -> 0 | O126: =(O587*O$7)/Setup!$C$10 -> 0 | P126: =(P587*P$7)/Setup!$C$10 -> 0 | Q126: =(Q587*Q$7)/Setup!$C$10 -> 0 | R126: =(R587*R$7)/Setup!$C$10 -> 0 | S126: =(S587*S$7)/Setup!$C$10 -> 0 | T126: =(T587*T$7)/Setup!$C$10 -> 0 | U126: =(U587*U$7)/Setup!$C$10 -> 0 | V126: =(V587*V$7)/Setup!$C$10 -> 0 | W126: =(W587*W$7)/Setup!$C$10 -> 0 | X126: =(X587*X$7)/Setup!$C$10 -> 0 | Y126: 0 | Z126: 0 | AB126: 0 | AC126: 0 | AD126: 0
A127: 2015-06-29 | B127: Week 52 | C127: =(C588*C$7)/Setup!$C$10 -> 0 | D127: =(D588*D$7)/Setup!$C$10 -> 0 | E127: =(E588*E$7)/Setup!$C$10 -> 0 | F127: =(F588*F$7)/Setup!$C$10 -> 0 | G127: =(G588*G$7)/Setup!$C$10 -> 0 | H127: =(H588*H$7)/Setup!$C$10 -> 0 | I127: =(I588*I$7)/Setup!$C$10 -> 0 | J127: =(J588*J$7)/Setup!$C$10 -> 0 | K127: =(K588*K$7)/Setup!$C$10 -> 0 | L127: =(L588*L$7)/Setup!$C$10 -> 0 | M127: =(M588*M$7)/Setup!$C$10 -> 0 | N127: =(N588*N$7)/Setup!$C$10 -> 0 | O127: =(O588*O$7)/Setup!$C$10 -> 0 | P127: =(P588*P$7)/Setup!$C$10 -> 0 | Q127: =(Q588*Q$7)/Setup!$C$10 -> 0 | R127: =(R588*R$7)/Setup!$C$10 -> 0 | S127: =(S588*S$7)/Setup!$C$10 -> 0 | T127: =(T588*T$7)/Setup!$C$10 -> 0 | U127: =(U588*U$7)/Setup!$C$10 -> 0 | V127: =(V588*V$7)/Setup!$C$10 -> 0 | W127: =(W588*W$7)/Setup!$C$10 -> 0 | X127: =(X588*X$7)/Setup!$C$10 -> 0 | Y127: 0 | Z127: 0 | AB127: 0 | AC127: 0 | AD127: 0
AB128: =SUM(AB76:AB127) -> 240.465 | AC128: =SUM(AC76:AC127) -> 319.94 | AD128: =SUM(AD76:AD127) -> 319.94
A130: Actual Weekly P (Kg) / Hectare (Ha):
C132: Ammonium Nitrate | D132: Ammonium Sulphate | E132: Borax | F132: Calcium Nitrate | G132: Copper Sulphate | H132: FertiMix | I132: Iron Chelate | J132: Iron Sulphate | K132: Magnesium Sulphate | L132: Manganese Sulphate | M132: Mono-Ammonium Phosphate | N132: Mono-Potassium Phosphate | O132: Nitric Acid | P132: Phosphoric Acid | Q132: Potassium Chloride | R132: Potassium Nitrate | S132: Potassium Sulphate | T132: Sodium Molybdenum | U132: Sulphuric Acid | V132: Urea | W132: Zinc Oxide | X132: Zinc Sulphate | Y132: Grower Wkly P | Z132: Grower Cumm P | AB132: 240:400 | AC132: 320:600 | AD132: 320:400
C133: NH4NO3 | D133: (NH4)2SO4 | E133: Na2B4O7.10H2O | F133: Ca(NO3)2 | G133: CuSO4.5H2O | I133: EDDHA | J133: FeSO4.7H2O | K133: MgSO4.7H2O | L133: MnSO4.H2O | M133: NH4H2PO4 | N133: KH2PO4 | O133: HNO3 | P133: PO4H3 | Q133: KCl | R133: KNO3 | S133: K2SO4 | T133: Na2MoO4 | U133: H2SO4 | V133: CO(NH2)2 | W133: ZnO | X133: ZnSO4.7H2O | Z133: TOTAL | AB133: TOTAL | AC133: TOTAL | AD133: TOTAL
A134: =A421 -> 2014-07-07 | B134: Week 1 | C134: =(C537*C$8)/Setup!$C$10 -> 0 | D134: =(D537*D$8)/Setup!$C$10 -> 0 | E134: =(E537*E$8)/Setup!$C$10 -> 0 | F134: =(F537*F$8)/Setup!$C$10 -> 0 | G134: =(G537*G$8)/Setup!$C$10 -> 0 | H134: =(H537*H$8)/Setup!$C$10 -> 0 | I134: =(I537*I$8)/Setup!$C$10 -> 0 | J134: =(J537*J$8)/Setup!$C$10 -> 0 | K134: =(K537*K$8)/Setup!$C$10 -> 0 | L134: =(L537*L$8)/Setup!$C$10 -> 0 | M134: =(M537*M$8)/Setup!$C$10 -> 0 | N134: =(N537*N$8)/Setup!$C$10 -> 0 | O134: =(O537*O$8)/Setup!$C$10 -> 0 | P134: =(P537*P$8)/Setup!$C$10 -> 0 | Q134: =(Q537*Q$8)/Setup!$C$10 -> 0 | R134: =(R537*R$8)/Setup!$C$10 -> 0 | S134: =(S537*S$8)/Setup!$C$10 -> 0 | T134: =(T537*T$8)/Setup!$C$10 -> 0 | U134: =(U537*U$8)/Setup!$C$10 -> 0 | V134: =(V537*V$8)/Setup!$C$10 -> 0 | W134: =(W537*W$8)/Setup!$C$10 -> 0 | X134: =(X537*X$8)/Setup!$C$10 -> 0 | Y134: =SUM(C134:X134) -> 0 | Z134: =Y134 -> 0 | AB134: 0 | AC134: 0 | AD134: 0
A135: 2014-07-14 | B135: Week 2 | C135: =(C538*C$8)/Setup!$C$10 -> 0 | D135: =(D538*D$8)/Setup!$C$10 -> 0 | E135: =(E538*E$8)/Setup!$C$10 -> 0 | F135: =(F538*F$8)/Setup!$C$10 -> 0 | G135: =(G538*G$8)/Setup!$C$10 -> 0 | H135: =(H538*H$8)/Setup!$C$10 -> 0 | I135: =(I538*I$8)/Setup!$C$10 -> 0 | J135: =(J538*J$8)/Setup!$C$10 -> 0 | K135: =(K538*K$8)/Setup!$C$10 -> 0 | L135: =(L538*L$8)/Setup!$C$10 -> 0 | M135: =(M538*M$8)/Setup!$C$10 -> 0 | N135: =(N538*N$8)/Setup!$C$10 -> 0 | O135: =(O538*O$8)/Setup!$C$10 -> 0 | P135: =(P538*P$8)/Setup!$C$10 -> 0 | Q135: =(Q538*Q$8)/Setup!$C$10 -> 0 | R135: =(R538*R$8)/Setup!$C$10 -> 0 | S135: =(S538*S$8)/Setup!$C$10 -> 0 | T135: =(T538*T$8)/Setup!$C$10 -> 0 | U135: =(U538*U$8)/Setup!$C$10 -> 0 | V135: =(V538*V$8)/Setup!$C$10 -> 0 | W135: =(W538*W$8)/Setup!$C$10 -> 0 | X135: =(X538*X$8)/Setup!$C$10 -> 0 | Y135: =SUM(C135:X135) -> 0 | Z135: =Z134+Y135 -> 0 | AB135: 0 | AC135: 0 | AD135: 0
A136: 2014-07-21 | B136: Week 3 | C136: =(C539*C$8)/Setup!$C$10 -> 0 | D136: =(D539*D$8)/Setup!$C$10 -> 0 | E136: =(E539*E$8)/Setup!$C$10 -> 0 | F136: =(F539*F$8)/Setup!$C$10 -> 0 | G136: =(G539*G$8)/Setup!$C$10 -> 0 | H136: =(H539*H$8)/Setup!$C$10 -> 0 | I136: =(I539*I$8)/Setup!$C$10 -> 0 | J136: =(J539*J$8)/Setup!$C$10 -> 0 | K136: =(K539*K$8)/Setup!$C$10 -> 0 | L136: =(L539*L$8)/Setup!$C$10 -> 0 | M136: =(M539*M$8)/Setup!$C$10 -> 0 | N136: =(N539*N$8)/Setup!$C$10 -> 0 | O136: =(O539*O$8)/Setup!$C$10 -> 0 | P136: =(P539*P$8)/Setup!$C$10 -> 0 | Q136: =(Q539*Q$8)/Setup!$C$10 -> 0 | R136: =(R539*R$8)/Setup!$C$10 -> 0 | S136: =(S539*S$8)/Setup!$C$10 -> 0 | T136: =(T539*T$8)/Setup!$C$10 -> 0 | U136: =(U539*U$8)/Setup!$C$10 -> 0 | V136: =(V539*V$8)/Setup!$C$10 -> 0 | W136: =(W539*W$8)/Setup!$C$10 -> 0 | X136: =(X539*X$8)/Setup!$C$10 -> 0 | Y136: 0 | Z136: =Z135+Y136 -> 0 | AB136: 0 | AC136: 0 | AD136: 0
A137: 2014-07-28 | B137: Week 4 | C137: =(C540*C$8)/Setup!$C$10 -> 0 | D137: =(D540*D$8)/Setup!$C$10 -> 0 | E137: =(E540*E$8)/Setup!$C$10 -> 0 | F137: =(F540*F$8)/Setup!$C$10 -> 0 | G137: =(G540*G$8)/Setup!$C$10 -> 0 | H137: =(H540*H$8)/Setup!$C$10 -> 0 | I137: =(I540*I$8)/Setup!$C$10 -> 0 | J137: =(J540*J$8)/Setup!$C$10 -> 0 | K137: =(K540*K$8)/Setup!$C$10 -> 0 | L137: =(L540*L$8)/Setup!$C$10 -> 0 | M137: =(M540*M$8)/Setup!$C$10 -> 0 | N137: =(N540*N$8)/Setup!$C$10 -> 0 | O137: =(O540*O$8)/Setup!$C$10 -> 0 | P137: =(P540*P$8)/Setup!$C$10 -> 0 | Q137: =(Q540*Q$8)/Setup!$C$10 -> 0 | R137: =(R540*R$8)/Setup!$C$10 -> 0 | S137: =(S540*S$8)/Setup!$C$10 -> 0 | T137: =(T540*T$8)/Setup!$C$10 -> 0 | U137: =(U540*U$8)/Setup!$C$10 -> 0 | V137: =(V540*V$8)/Setup!$C$10 -> 0 | W137: =(W540*W$8)/Setup!$C$10 -> 0 | X137: =(X540*X$8)/Setup!$C$10 -> 0 | Y137: 0 | Z137: 0 | AB137: 0 | AC137: 0 | AD137: 0
A138: 2014-08-04 | B138: Week 5 | C138: =(C541*C$8)/Setup!$C$10 -> 0 | D138: =(D541*D$8)/Setup!$C$10 -> 0 | E138: =(E541*E$8)/Setup!$C$10 -> 0 | F138: =(F541*F$8)/Setup!$C$10 -> 0 | G138: =(G541*G$8)/Setup!$C$10 -> 0 | H138: =(H541*H$8)/Setup!$C$10 -> 0 | I138: =(I541*I$8)/Setup!$C$10 -> 0 | J138: =(J541*J$8)/Setup!$C$10 -> 0 | K138: =(K541*K$8)/Setup!$C$10 -> 0 | L138: =(L541*L$8)/Setup!$C$10 -> 0 | M138: =(M541*M$8)/Setup!$C$10 -> 0 | N138: =(N541*N$8)/Setup!$C$10 -> 0 | O138: =(O541*O$8)/Setup!$C$10 -> 0 | P138: =(P541*P$8)/Setup!$C$10 -> 0 | Q138: =(Q541*Q$8)/Setup!$C$10 -> 0 | R138: =(R541*R$8)/Setup!$C$10 -> 0 | S138: =(S541*S$8)/Setup!$C$10 -> 0 | T138: =(T541*T$8)/Setup!$C$10 -> 0 | U138: =(U541*U$8)/Setup!$C$10 -> 0 | V138: =(V541*V$8)/Setup!$C$10 -> 0 | W138: =(W541*W$8)/Setup!$C$10 -> 0 | X138: =(X541*X$8)/Setup!$C$10 -> 0 | Y138: 0 | Z138: 0 | AB138: 0 | AC138: 0 | AD138: 0
A139: 2014-08-11 | B139: Week 6 | C139: =(C542*C$8)/Setup!$C$10 -> 0 | D139: =(D542*D$8)/Setup!$C$10 -> 0 | E139: =(E542*E$8)/Setup!$C$10 -> 0 | F139: =(F542*F$8)/Setup!$C$10 -> 0 | G139: =(G542*G$8)/Setup!$C$10 -> 0 | H139: =(H542*H$8)/Setup!$C$10 -> 0 | I139: =(I542*I$8)/Setup!$C$10 -> 0 | J139: =(J542*J$8)/Setup!$C$10 -> 0 | K139: =(K542*K$8)/Setup!$C$10 -> 0 | L139: =(L542*L$8)/Setup!$C$10 -> 0 | M139: =(M542*M$8)/Setup!$C$10 -> 0 | N139: =(N542*N$8)/Setup!$C$10 -> 0 | O139: =(O542*O$8)/Setup!$C$10 -> 0 | P139: =(P542*P$8)/Setup!$C$10 -> 0 | Q139: =(Q542*Q$8)/Setup!$C$10 -> 0 | R139: =(R542*R$8)/Setup!$C$10 -> 0 | S139: =(S542*S$8)/Setup!$C$10 -> 0 | T139: =(T542*T$8)/Setup!$C$10 -> 0 | U139: =(U542*U$8)/Setup!$C$10 -> 0 | V139: =(V542*V$8)/Setup!$C$10 -> 0 | W139: =(W542*W$8)/Setup!$C$10 -> 0 | X139: =(X542*X$8)/Setup!$C$10 -> 0 | Y139: 0 | Z139: 0 | AB139: 0 | AC139: 0 | AD139: 0
A140: 2014-08-18 | B140: Week 7 | C140: =(C543*C$8)/Setup!$C$10 -> 0 | D140: =(D543*D$8)/Setup!$C$10 -> 0 | E140: =(E543*E$8)/Setup!$C$10 -> 0 | F140: =(F543*F$8)/Setup!$C$10 -> 0 | G140: =(G543*G$8)/Setup!$C$10 -> 0 | H140: =(H543*H$8)/Setup!$C$10 -> 0 | I140: =(I543*I$8)/Setup!$C$10 -> 0 | J140: =(J543*J$8)/Setup!$C$10 -> 0 | K140: =(K543*K$8)/Setup!$C$10 -> 0 | L140: =(L543*L$8)/Setup!$C$10 -> 0 | M140: =(M543*M$8)/Setup!$C$10 -> 0 | N140: =(N543*N$8)/Setup!$C$10 -> 0 | O140: =(O543*O$8)/Setup!$C$10 -> 0 | P140: =(P543*P$8)/Setup!$C$10 -> 0 | Q140: =(Q543*Q$8)/Setup!$C$10 -> 0 | R140: =(R543*R$8)/Setup!$C$10 -> 0 | S140: =(S543*S$8)/Setup!$C$10 -> 0 | T140: =(T543*T$8)/Setup!$C$10 -> 0 | U140: =(U543*U$8)/Setup!$C$10 -> 0 | V140: =(V543*V$8)/Setup!$C$10 -> 0 | W140: =(W543*W$8)/Setup!$C$10 -> 0 | X140: =(X543*X$8)/Setup!$C$10 -> 0 | Y140: 0 | Z140: 0 | AB140: 0 | AC140: 0 | AD140: 0
A141: 2014-08-25 | B141: Week 8 | C141: =(C544*C$8)/Setup!$C$10 -> 0 | D141: =(D544*D$8)/Setup!$C$10 -> 0 | E141: =(E544*E$8)/Setup!$C$10 -> 0 | F141: =(F544*F$8)/Setup!$C$10 -> 0 | G141: =(G544*G$8)/Setup!$C$10 -> 0 | H141: =(H544*H$8)/Setup!$C$10 -> 0 | I141: =(I544*I$8)/Setup!$C$10 -> 0 | J141: =(J544*J$8)/Setup!$C$10 -> 0 | K141: =(K544*K$8)/Setup!$C$10 -> 0 | L141: =(L544*L$8)/Setup!$C$10 -> 0 | M141: =(M544*M$8)/Setup!$C$10 -> 0 | N141: =(N544*N$8)/Setup!$C$10 -> 0 | O141: =(O544*O$8)/Setup!$C$10 -> 0 | P141: =(P544*P$8)/Setup!$C$10 -> 0 | Q141: =(Q544*Q$8)/Setup!$C$10 -> 0 | R141: =(R544*R$8)/Setup!$C$10 -> 0 | S141: =(S544*S$8)/Setup!$C$10 -> 0 | T141: =(T544*T$8)/Setup!$C$10 -> 0 | U141: =(U544*U$8)/Setup!$C$10 -> 0 | V141: =(V544*V$8)/Setup!$C$10 -> 0 | W141: =(W544*W$8)/Setup!$C$10 -> 0 | X141: =(X544*X$8)/Setup!$C$10 -> 0 | Y141: 0 | Z141: 0 | AB141: 0 | AC141: 0 | AD141: 0
A142: 2014-09-01 | B142: Week 9 | C142: =(C545*C$8)/Setup!$C$10 -> 0 | D142: =(D545*D$8)/Setup!$C$10 -> 0 | E142: =(E545*E$8)/Setup!$C$10 -> 0 | F142: =(F545*F$8)/Setup!$C$10 -> 0 | G142: =(G545*G$8)/Setup!$C$10 -> 0 | H142: =(H545*H$8)/Setup!$C$10 -> 0 | I142: =(I545*I$8)/Setup!$C$10 -> 0 | J142: =(J545*J$8)/Setup!$C$10 -> 0 | K142: =(K545*K$8)/Setup!$C$10 -> 0 | L142: =(L545*L$8)/Setup!$C$10 -> 0 | M142: =(M545*M$8)/Setup!$C$10 -> 0 | N142: =(N545*N$8)/Setup!$C$10 -> 0 | O142: =(O545*O$8)/Setup!$C$10 -> 0 | P142: =(P545*P$8)/Setup!$C$10 -> 0 | Q142: =(Q545*Q$8)/Setup!$C$10 -> 0 | R142: =(R545*R$8)/Setup!$C$10 -> 0 | S142: =(S545*S$8)/Setup!$C$10 -> 0 | T142: =(T545*T$8)/Setup!$C$10 -> 0 | U142: =(U545*U$8)/Setup!$C$10 -> 0 | V142: =(V545*V$8)/Setup!$C$10 -> 0 | W142: =(W545*W$8)/Setup!$C$10 -> 0 | X142: =(X545*X$8)/Setup!$C$10 -> 0 | Y142: 0 | Z142: 0 | AB142: 0 | AC142: 0 | AD142: 0
A143: 2014-09-08 | B143: Week 10 | C143: =(C546*C$8)/Setup!$C$10 -> 0 | D143: =(D546*D$8)/Setup!$C$10 -> 0 | E143: =(E546*E$8)/Setup!$C$10 -> 0 | F143: =(F546*F$8)/Setup!$C$10 -> 0 | G143: =(G546*G$8)/Setup!$C$10 -> 0 | H143: =(H546*H$8)/Setup!$C$10 -> 0 | I143: =(I546*I$8)/Setup!$C$10 -> 0 | J143: =(J546*J$8)/Setup!$C$10 -> 0 | K143: =(K546*K$8)/Setup!$C$10 -> 0 | L143: =(L546*L$8)/Setup!$C$10 -> 0 | M143: =(M546*M$8)/Setup!$C$10 -> 0 | N143: =(N546*N$8)/Setup!$C$10 -> 0 | O143: =(O546*O$8)/Setup!$C$10 -> 0 | P143: =(P546*P$8)/Setup!$C$10 -> 0 | Q143: =(Q546*Q$8)/Setup!$C$10 -> 0 | R143: =(R546*R$8)/Setup!$C$10 -> 0 | S143: =(S546*S$8)/Setup!$C$10 -> 0 | T143: =(T546*T$8)/Setup!$C$10 -> 0 | U143: =(U546*U$8)/Setup!$C$10 -> 0 | V143: =(V546*V$8)/Setup!$C$10 -> 0 | W143: =(W546*W$8)/Setup!$C$10 -> 0 | X143: =(X546*X$8)/Setup!$C$10 -> 0 | Y143: 0 | Z143: 0 | AB143: 4.55 | AC143: 4.55 | AD143: 4.55
A144: 2014-09-15 | B144: Week 11 | C144: =(C547*C$8)/Setup!$C$10 -> 0 | D144: =(D547*D$8)/Setup!$C$10 -> 0 | E144: =(E547*E$8)/Setup!$C$10 -> 0 | F144: =(F547*F$8)/Setup!$C$10 -> 0 | G144: =(G547*G$8)/Setup!$C$10 -> 0 | H144: =(H547*H$8)/Setup!$C$10 -> 0 | I144: =(I547*I$8)/Setup!$C$10 -> 0 | J144: =(J547*J$8)/Setup!$C$10 -> 0 | K144: =(K547*K$8)/Setup!$C$10 -> 0 | L144: =(L547*L$8)/Setup!$C$10 -> 0 | M144: =(M547*M$8)/Setup!$C$10 -> 0 | N144: =(N547*N$8)/Setup!$C$10 -> 0 | O144: =(O547*O$8)/Setup!$C$10 -> 0 | P144: =(P547*P$8)/Setup!$C$10 -> 0 | Q144: =(Q547*Q$8)/Setup!$C$10 -> 0 | R144: =(R547*R$8)/Setup!$C$10 -> 0 | S144: =(S547*S$8)/Setup!$C$10 -> 0 | T144: =(T547*T$8)/Setup!$C$10 -> 0 | U144: =(U547*U$8)/Setup!$C$10 -> 0 | V144: =(V547*V$8)/Setup!$C$10 -> 0 | W144: =(W547*W$8)/Setup!$C$10 -> 0 | X144: =(X547*X$8)/Setup!$C$10 -> 0 | Y144: 0 | Z144: 0 | AB144: 4.55 | AC144: 4.55 | AD144: 4.55
A145: 2014-09-22 | B145: Week 12 | C145: =(C548*C$8)/Setup!$C$10 -> 0 | D145: =(D548*D$8)/Setup!$C$10 -> 0 | E145: =(E548*E$8)/Setup!$C$10 -> 0 | F145: =(F548*F$8)/Setup!$C$10 -> 0 | G145: =(G548*G$8)/Setup!$C$10 -> 0 | H145: =(H548*H$8)/Setup!$C$10 -> 0 | I145: =(I548*I$8)/Setup!$C$10 -> 0 | J145: =(J548*J$8)/Setup!$C$10 -> 0 | K145: =(K548*K$8)/Setup!$C$10 -> 0 | L145: =(L548*L$8)/Setup!$C$10 -> 0 | M145: =(M548*M$8)/Setup!$C$10 -> 0 | N145: =(N548*N$8)/Setup!$C$10 -> 0 | O145: =(O548*O$8)/Setup!$C$10 -> 0 | P145: =(P548*P$8)/Setup!$C$10 -> 0 | Q145: =(Q548*Q$8)/Setup!$C$10 -> 0 | R145: =(R548*R$8)/Setup!$C$10 -> 0 | S145: =(S548*S$8)/Setup!$C$10 -> 0 | T145: =(T548*T$8)/Setup!$C$10 -> 0 | U145: =(U548*U$8)/Setup!$C$10 -> 0 | V145: =(V548*V$8)/Setup!$C$10 -> 0 | W145: =(W548*W$8)/Setup!$C$10 -> 0 | X145: =(X548*X$8)/Setup!$C$10 -> 0 | Y145: 0 | Z145: 0 | AB145: 4.55 | AC145: 4.55 | AD145: 4.55
A146: 2014-09-29 | B146: Week 13 | C146: =(C549*C$8)/Setup!$C$10 -> 0 | D146: =(D549*D$8)/Setup!$C$10 -> 0 | E146: =(E549*E$8)/Setup!$C$10 -> 0 | F146: =(F549*F$8)/Setup!$C$10 -> 0 | G146: =(G549*G$8)/Setup!$C$10 -> 0 | H146: =(H549*H$8)/Setup!$C$10 -> 0 | I146: =(I549*I$8)/Setup!$C$10 -> 0 | J146: =(J549*J$8)/Setup!$C$10 -> 0 | K146: =(K549*K$8)/Setup!$C$10 -> 0 | L146: =(L549*L$8)/Setup!$C$10 -> 0 | M146: =(M549*M$8)/Setup!$C$10 -> 0 | N146: =(N549*N$8)/Setup!$C$10 -> 0 | O146: =(O549*O$8)/Setup!$C$10 -> 0 | P146: =(P549*P$8)/Setup!$C$10 -> 0 | Q146: =(Q549*Q$8)/Setup!$C$10 -> 0 | R146: =(R549*R$8)/Setup!$C$10 -> 0 | S146: =(S549*S$8)/Setup!$C$10 -> 0 | T146: =(T549*T$8)/Setup!$C$10 -> 0 | U146: =(U549*U$8)/Setup!$C$10 -> 0 | V146: =(V549*V$8)/Setup!$C$10 -> 0 | W146: =(W549*W$8)/Setup!$C$10 -> 0 | X146: =(X549*X$8)/Setup!$C$10 -> 0 | Y146: 0 | Z146: 0 | AB146: 4.55 | AC146: 4.55 | AD146: 4.55
A147: 2014-10-06 | B147: Week 14 | C147: =(C550*C$8)/Setup!$C$10 -> 0 | D147: =(D550*D$8)/Setup!$C$10 -> 0 | E147: =(E550*E$8)/Setup!$C$10 -> 0 | F147: =(F550*F$8)/Setup!$C$10 -> 0 | G147: =(G550*G$8)/Setup!$C$10 -> 0 | H147: =(H550*H$8)/Setup!$C$10 -> 0 | I147: =(I550*I$8)/Setup!$C$10 -> 0 | J147: =(J550*J$8)/Setup!$C$10 -> 0 | K147: =(K550*K$8)/Setup!$C$10 -> 0 | L147: =(L550*L$8)/Setup!$C$10 -> 0 | M147: =(M550*M$8)/Setup!$C$10 -> 0 | N147: =(N550*N$8)/Setup!$C$10 -> 0 | O147: =(O550*O$8)/Setup!$C$10 -> 0 | P147: =(P550*P$8)/Setup!$C$10 -> 0 | Q147: =(Q550*Q$8)/Setup!$C$10 -> 0 | R147: =(R550*R$8)/Setup!$C$10 -> 0 | S147: =(S550*S$8)/Setup!$C$10 -> 0 | T147: =(T550*T$8)/Setup!$C$10 -> 0 | U147: =(U550*U$8)/Setup!$C$10 -> 0 | V147: =(V550*V$8)/Setup!$C$10 -> 0 | W147: =(W550*W$8)/Setup!$C$10 -> 0 | X147: =(X550*X$8)/Setup!$C$10 -> 0 | Y147: 0 | Z147: 0 | AB147: 4.55 | AC147: 4.55 | AD147: 4.55
A148: 2014-10-13 | B148: Week 15 | C148: =(C551*C$8)/Setup!$C$10 -> 0 | D148: =(D551*D$8)/Setup!$C$10 -> 0 | E148: =(E551*E$8)/Setup!$C$10 -> 0 | F148: =(F551*F$8)/Setup!$C$10 -> 0 | G148: =(G551*G$8)/Setup!$C$10 -> 0 | H148: =(H551*H$8)/Setup!$C$10 -> 0 | I148: =(I551*I$8)/Setup!$C$10 -> 0 | J148: =(J551*J$8)/Setup!$C$10 -> 0 | K148: =(K551*K$8)/Setup!$C$10 -> 0 | L148: =(L551*L$8)/Setup!$C$10 -> 0 | M148: =(M551*M$8)/Setup!$C$10 -> 0 | N148: =(N551*N$8)/Setup!$C$10 -> 0 | O148: =(O551*O$8)/Setup!$C$10 -> 0 | P148: =(P551*P$8)/Setup!$C$10 -> 0 | Q148: =(Q551*Q$8)/Setup!$C$10 -> 0 | R148: =(R551*R$8)/Setup!$C$10 -> 0 | S148: =(S551*S$8)/Setup!$C$10 -> 0 | T148: =(T551*T$8)/Setup!$C$10 -> 0 | U148: =(U551*U$8)/Setup!$C$10 -> 0 | V148: =(V551*V$8)/Setup!$C$10 -> 0 | W148: =(W551*W$8)/Setup!$C$10 -> 0 | X148: =(X551*X$8)/Setup!$C$10 -> 0 | Y148: 0 | Z148: 0 | AB148: 4.55 | AC148: 4.55 | AD148: 4.55
A149: 2014-10-20 | B149: Week 16 | C149: =(C552*C$8)/Setup!$C$10 -> 0 | D149: =(D552*D$8)/Setup!$C$10 -> 0 | E149: =(E552*E$8)/Setup!$C$10 -> 0 | F149: =(F552*F$8)/Setup!$C$10 -> 0 | G149: =(G552*G$8)/Setup!$C$10 -> 0 | H149: =(H552*H$8)/Setup!$C$10 -> 0 | I149: =(I552*I$8)/Setup!$C$10 -> 0 | J149: =(J552*J$8)/Setup!$C$10 -> 0 | K149: =(K552*K$8)/Setup!$C$10 -> 0 | L149: =(L552*L$8)/Setup!$C$10 -> 0 | M149: =(M552*M$8)/Setup!$C$10 -> 0 | N149: =(N552*N$8)/Setup!$C$10 -> 0 | O149: =(O552*O$8)/Setup!$C$10 -> 0 | P149: =(P552*P$8)/Setup!$C$10 -> 0 | Q149: =(Q552*Q$8)/Setup!$C$10 -> 0 | R149: =(R552*R$8)/Setup!$C$10 -> 0 | S149: =(S552*S$8)/Setup!$C$10 -> 0 | T149: =(T552*T$8)/Setup!$C$10 -> 0 | U149: =(U552*U$8)/Setup!$C$10 -> 0 | V149: =(V552*V$8)/Setup!$C$10 -> 0 | W149: =(W552*W$8)/Setup!$C$10 -> 0 | X149: =(X552*X$8)/Setup!$C$10 -> 0 | Y149: 0 | Z149: 0 | AB149: 4.55 | AC149: 4.55 | AD149: 4.55
A150: 2014-10-27 | B150: Week 17 | C150: =(C553*C$8)/Setup!$C$10 -> 0 | D150: =(D553*D$8)/Setup!$C$10 -> 0 | E150: =(E553*E$8)/Setup!$C$10 -> 0 | F150: =(F553*F$8)/Setup!$C$10 -> 0 | G150: =(G553*G$8)/Setup!$C$10 -> 0 | H150: =(H553*H$8)/Setup!$C$10 -> 0 | I150: =(I553*I$8)/Setup!$C$10 -> 0 | J150: =(J553*J$8)/Setup!$C$10 -> 0 | K150: =(K553*K$8)/Setup!$C$10 -> 0 | L150: =(L553*L$8)/Setup!$C$10 -> 0 | M150: =(M553*M$8)/Setup!$C$10 -> 0 | N150: =(N553*N$8)/Setup!$C$10 -> 0 | O150: =(O553*O$8)/Setup!$C$10 -> 0 | P150: =(P553*P$8)/Setup!$C$10 -> 0 | Q150: =(Q553*Q$8)/Setup!$C$10 -> 0 | R150: =(R553*R$8)/Setup!$C$10 -> 0 | S150: =(S553*S$8)/Setup!$C$10 -> 0 | T150: =(T553*T$8)/Setup!$C$10 -> 0 | U150: =(U553*U$8)/Setup!$C$10 -> 0 | V150: =(V553*V$8)/Setup!$C$10 -> 0 | W150: =(W553*W$8)/Setup!$C$10 -> 0 | X150: =(X553*X$8)/Setup!$C$10 -> 0 | Y150: 0 | Z150: 0 | AB150: 4.55 | AC150: 4.55 | AD150: 4.55
A151: 2014-11-03 | B151: Week 18 | C151: =(C554*C$8)/Setup!$C$10 -> 0 | D151: =(D554*D$8)/Setup!$C$10 -> 0 | E151: =(E554*E$8)/Setup!$C$10 -> 0 | F151: =(F554*F$8)/Setup!$C$10 -> 0 | G151: =(G554*G$8)/Setup!$C$10 -> 0 | H151: =(H554*H$8)/Setup!$C$10 -> 0 | I151: =(I554*I$8)/Setup!$C$10 -> 0 | J151: =(J554*J$8)/Setup!$C$10 -> 0 | K151: =(K554*K$8)/Setup!$C$10 -> 0 | L151: =(L554*L$8)/Setup!$C$10 -> 0 | M151: =(M554*M$8)/Setup!$C$10 -> 0 | N151: =(N554*N$8)/Setup!$C$10 -> 0 | O151: =(O554*O$8)/Setup!$C$10 -> 0 | P151: =(P554*P$8)/Setup!$C$10 -> 0 | Q151: =(Q554*Q$8)/Setup!$C$10 -> 0 | R151: =(R554*R$8)/Setup!$C$10 -> 0 | S151: =(S554*S$8)/Setup!$C$10 -> 0 | T151: =(T554*T$8)/Setup!$C$10 -> 0 | U151: =(U554*U$8)/Setup!$C$10 -> 0 | V151: =(V554*V$8)/Setup!$C$10 -> 0 | W151: =(W554*W$8)/Setup!$C$10 -> 0 | X151: =(X554*X$8)/Setup!$C$10 -> 0 | Y151: 0 | Z151: 0 | AB151: 4.55 | AC151: 4.55 | AD151: 4.55
A152: 2014-11-10 | B152: Week 19 | C152: =(C555*C$8)/Setup!$C$10 -> 0 | D152: =(D555*D$8)/Setup!$C$10 -> 0 | E152: =(E555*E$8)/Setup!$C$10 -> 0 | F152: =(F555*F$8)/Setup!$C$10 -> 0 | G152: =(G555*G$8)/Setup!$C$10 -> 0 | H152: =(H555*H$8)/Setup!$C$10 -> 0 | I152: =(I555*I$8)/Setup!$C$10 -> 0 | J152: =(J555*J$8)/Setup!$C$10 -> 0 | K152: =(K555*K$8)/Setup!$C$10 -> 0 | L152: =(L555*L$8)/Setup!$C$10 -> 0 | M152: =(M555*M$8)/Setup!$C$10 -> 0 | N152: =(N555*N$8)/Setup!$C$10 -> 0 | O152: =(O555*O$8)/Setup!$C$10 -> 0 | P152: =(P555*P$8)/Setup!$C$10 -> 0 | Q152: =(Q555*Q$8)/Setup!$C$10 -> 0 | R152: =(R555*R$8)/Setup!$C$10 -> 0 | S152: =(S555*S$8)/Setup!$C$10 -> 0 | T152: =(T555*T$8)/Setup!$C$10 -> 0 | U152: =(U555*U$8)/Setup!$C$10 -> 0 | V152: =(V555*V$8)/Setup!$C$10 -> 0 | W152: =(W555*W$8)/Setup!$C$10 -> 0 | X152: =(X555*X$8)/Setup!$C$10 -> 0 | Y152: 0 | Z152: 0 | AB152: 4.55 | AC152: 4.55 | AD152: 4.55
A153: 2014-11-17 | B153: Week 20 | C153: =(C556*C$8)/Setup!$C$10 -> 0 | D153: =(D556*D$8)/Setup!$C$10 -> 0 | E153: =(E556*E$8)/Setup!$C$10 -> 0 | F153: =(F556*F$8)/Setup!$C$10 -> 0 | G153: =(G556*G$8)/Setup!$C$10 -> 0 | H153: =(H556*H$8)/Setup!$C$10 -> 0 | I153: =(I556*I$8)/Setup!$C$10 -> 0 | J153: =(J556*J$8)/Setup!$C$10 -> 0 | K153: =(K556*K$8)/Setup!$C$10 -> 0 | L153: =(L556*L$8)/Setup!$C$10 -> 0 | M153: =(M556*M$8)/Setup!$C$10 -> 0 | N153: =(N556*N$8)/Setup!$C$10 -> 0 | O153: =(O556*O$8)/Setup!$C$10 -> 0 | P153: =(P556*P$8)/Setup!$C$10 -> 0 | Q153: =(Q556*Q$8)/Setup!$C$10 -> 0 | R153: =(R556*R$8)/Setup!$C$10 -> 0 | S153: =(S556*S$8)/Setup!$C$10 -> 0 | T153: =(T556*T$8)/Setup!$C$10 -> 0 | U153: =(U556*U$8)/Setup!$C$10 -> 0 | V153: =(V556*V$8)/Setup!$C$10 -> 0 | W153: =(W556*W$8)/Setup!$C$10 -> 0 | X153: =(X556*X$8)/Setup!$C$10 -> 0 | Y153: 0 | Z153: 0 | AB153: 4.55 | AC153: 4.55 | AD153: 4.55
A154: =A441 -> 2014-11-24 | B154: Week 21 | C154: =(C557*C$8)/Setup!$C$10 -> 0 | D154: =(D557*D$8)/Setup!$C$10 -> 0 | E154: =(E557*E$8)/Setup!$C$10 -> 0 | F154: =(F557*F$8)/Setup!$C$10 -> 0 | G154: =(G557*G$8)/Setup!$C$10 -> 0 | H154: =(H557*H$8)/Setup!$C$10 -> 0 | I154: =(I557*I$8)/Setup!$C$10 -> 0 | J154: =(J557*J$8)/Setup!$C$10 -> 0 | K154: =(K557*K$8)/Setup!$C$10 -> 0 | L154: =(L557*L$8)/Setup!$C$10 -> 0 | M154: =(M557*M$8)/Setup!$C$10 -> 0 | N154: =(N557*N$8)/Setup!$C$10 -> 0 | O154: =(O557*O$8)/Setup!$C$10 -> 0 | P154: =(P557*P$8)/Setup!$C$10 -> 0 | Q154: =(Q557*Q$8)/Setup!$C$10 -> 0 | R154: =(R557*R$8)/Setup!$C$10 -> 0 | S154: =(S557*S$8)/Setup!$C$10 -> 0 | T154: =(T557*T$8)/Setup!$C$10 -> 0 | U154: =(U557*U$8)/Setup!$C$10 -> 0 | V154: =(V557*V$8)/Setup!$C$10 -> 0 | W154: =(W557*W$8)/Setup!$C$10 -> 0 | X154: =(X557*X$8)/Setup!$C$10 -> 0 | Y154: 0 | Z154: 0 | AB154: 0 | AC154: 0 | AD154: 0
A155: 2014-12-01 | B155: Week 22 | C155: =(C558*C$8)/Setup!$C$10 -> 0 | D155: =(D558*D$8)/Setup!$C$10 -> 0 | E155: =(E558*E$8)/Setup!$C$10 -> 0 | F155: =(F558*F$8)/Setup!$C$10 -> 0 | G155: =(G558*G$8)/Setup!$C$10 -> 0 | H155: =(H558*H$8)/Setup!$C$10 -> 0 | I155: =(I558*I$8)/Setup!$C$10 -> 0 | J155: =(J558*J$8)/Setup!$C$10 -> 0 | K155: =(K558*K$8)/Setup!$C$10 -> 0 | L155: =(L558*L$8)/Setup!$C$10 -> 0 | M155: =(M558*M$8)/Setup!$C$10 -> 0 | N155: =(N558*N$8)/Setup!$C$10 -> 0 | O155: =(O558*O$8)/Setup!$C$10 -> 0 | P155: =(P558*P$8)/Setup!$C$10 -> 0 | Q155: =(Q558*Q$8)/Setup!$C$10 -> 0 | R155: =(R558*R$8)/Setup!$C$10 -> 0 | S155: =(S558*S$8)/Setup!$C$10 -> 0 | T155: =(T558*T$8)/Setup!$C$10 -> 0 | U155: =(U558*U$8)/Setup!$C$10 -> 0 | V155: =(V558*V$8)/Setup!$C$10 -> 0 | W155: =(W558*W$8)/Setup!$C$10 -> 0 | X155: =(X558*X$8)/Setup!$C$10 -> 0 | Y155: 0 | Z155: 0 | AB155: 0 | AC155: 0 | AD155: 0
A156: 2014-12-08 | B156: Week 23 | C156: =(C559*C$8)/Setup!$C$10 -> 0 | D156: =(D559*D$8)/Setup!$C$10 -> 0 | E156: =(E559*E$8)/Setup!$C$10 -> 0 | F156: =(F559*F$8)/Setup!$C$10 -> 0 | G156: =(G559*G$8)/Setup!$C$10 -> 0 | H156: =(H559*H$8)/Setup!$C$10 -> 0 | I156: =(I559*I$8)/Setup!$C$10 -> 0 | J156: =(J559*J$8)/Setup!$C$10 -> 0 | K156: =(K559*K$8)/Setup!$C$10 -> 0 | L156: =(L559*L$8)/Setup!$C$10 -> 0 | M156: =(M559*M$8)/Setup!$C$10 -> 0 | N156: =(N559*N$8)/Setup!$C$10 -> 0 | O156: =(O559*O$8)/Setup!$C$10 -> 0 | P156: =(P559*P$8)/Setup!$C$10 -> 0 | Q156: =(Q559*Q$8)/Setup!$C$10 -> 0 | R156: =(R559*R$8)/Setup!$C$10 -> 0 | S156: =(S559*S$8)/Setup!$C$10 -> 0 | T156: =(T559*T$8)/Setup!$C$10 -> 0 | U156: =(U559*U$8)/Setup!$C$10 -> 0 | V156: =(V559*V$8)/Setup!$C$10 -> 0 | W156: =(W559*W$8)/Setup!$C$10 -> 0 | X156: =(X559*X$8)/Setup!$C$10 -> 0 | Y156: 0 | Z156: 0 | AB156: 0 | AC156: 0 | AD156: 0
A157: 2014-12-15 | B157: Week 24 | C157: =(C560*C$8)/Setup!$C$10 -> 0 | D157: =(D560*D$8)/Setup!$C$10 -> 0 | E157: =(E560*E$8)/Setup!$C$10 -> 0 | F157: =(F560*F$8)/Setup!$C$10 -> 0 | G157: =(G560*G$8)/Setup!$C$10 -> 0 | H157: =(H560*H$8)/Setup!$C$10 -> 0 | I157: =(I560*I$8)/Setup!$C$10 -> 0 | J157: =(J560*J$8)/Setup!$C$10 -> 0 | K157: =(K560*K$8)/Setup!$C$10 -> 0 | L157: =(L560*L$8)/Setup!$C$10 -> 0 | M157: =(M560*M$8)/Setup!$C$10 -> 0 | N157: =(N560*N$8)/Setup!$C$10 -> 0 | O157: =(O560*O$8)/Setup!$C$10 -> 0 | P157: =(P560*P$8)/Setup!$C$10 -> 0 | Q157: =(Q560*Q$8)/Setup!$C$10 -> 0 | R157: =(R560*R$8)/Setup!$C$10 -> 0 | S157: =(S560*S$8)/Setup!$C$10 -> 0 | T157: =(T560*T$8)/Setup!$C$10 -> 0 | U157: =(U560*U$8)/Setup!$C$10 -> 0 | V157: =(V560*V$8)/Setup!$C$10 -> 0 | W157: =(W560*W$8)/Setup!$C$10 -> 0 | X157: =(X560*X$8)/Setup!$C$10 -> 0 | Y157: 0 | Z157: 0 | AB157: 0 | AC157: 0 | AD157: 0
A158: 2014-12-22 | B158: Week 25 | C158: =(C561*C$8)/Setup!$C$10 -> 0 | D158: =(D561*D$8)/Setup!$C$10 -> 0 | E158: =(E561*E$8)/Setup!$C$10 -> 0 | F158: =(F561*F$8)/Setup!$C$10 -> 0 | G158: =(G561*G$8)/Setup!$C$10 -> 0 | H158: =(H561*H$8)/Setup!$C$10 -> 0 | I158: =(I561*I$8)/Setup!$C$10 -> 0 | J158: =(J561*J$8)/Setup!$C$10 -> 0 | K158: =(K561*K$8)/Setup!$C$10 -> 0 | L158: =(L561*L$8)/Setup!$C$10 -> 0 | M158: =(M561*M$8)/Setup!$C$10 -> 0 | N158: =(N561*N$8)/Setup!$C$10 -> 0 | O158: =(O561*O$8)/Setup!$C$10 -> 0 | P158: =(P561*P$8)/Setup!$C$10 -> 0 | Q158: =(Q561*Q$8)/Setup!$C$10 -> 0 | R158: =(R561*R$8)/Setup!$C$10 -> 0 | S158: =(S561*S$8)/Setup!$C$10 -> 0 | T158: =(T561*T$8)/Setup!$C$10 -> 0 | U158: =(U561*U$8)/Setup!$C$10 -> 0 | V158: =(V561*V$8)/Setup!$C$10 -> 0 | W158: =(W561*W$8)/Setup!$C$10 -> 0 | X158: =(X561*X$8)/Setup!$C$10 -> 0 | Y158: 0 | Z158: 0 | AB158: 0 | AC158: 0 | AD158: 0
A159: 2014-12-29 | B159: Week 26 | C159: =(C562*C$8)/Setup!$C$10 -> 0 | D159: =(D562*D$8)/Setup!$C$10 -> 0 | E159: =(E562*E$8)/Setup!$C$10 -> 0 | F159: =(F562*F$8)/Setup!$C$10 -> 0 | G159: =(G562*G$8)/Setup!$C$10 -> 0 | H159: =(H562*H$8)/Setup!$C$10 -> 0 | I159: =(I562*I$8)/Setup!$C$10 -> 0 | J159: =(J562*J$8)/Setup!$C$10 -> 0 | K159: =(K562*K$8)/Setup!$C$10 -> 0 | L159: =(L562*L$8)/Setup!$C$10 -> 0 | M159: =(M562*M$8)/Setup!$C$10 -> 0 | N159: =(N562*N$8)/Setup!$C$10 -> 0 | O159: =(O562*O$8)/Setup!$C$10 -> 0 | P159: =(P562*P$8)/Setup!$C$10 -> 0 | Q159: =(Q562*Q$8)/Setup!$C$10 -> 0 | R159: =(R562*R$8)/Setup!$C$10 -> 0 | S159: =(S562*S$8)/Setup!$C$10 -> 0 | T159: =(T562*T$8)/Setup!$C$10 -> 0 | U159: =(U562*U$8)/Setup!$C$10 -> 0 | V159: =(V562*V$8)/Setup!$C$10 -> 0 | W159: =(W562*W$8)/Setup!$C$10 -> 0 | X159: =(X562*X$8)/Setup!$C$10 -> 0 | Y159: 0 | Z159: 0 | AB159: 0 | AC159: 0 | AD159: 0
A160: 2015-01-05 | B160: Week 27 | C160: =(C563*C$8)/Setup!$C$10 -> 0 | D160: =(D563*D$8)/Setup!$C$10 -> 0 | E160: =(E563*E$8)/Setup!$C$10 -> 0 | F160: =(F563*F$8)/Setup!$C$10 -> 0 | G160: =(G563*G$8)/Setup!$C$10 -> 0 | H160: =(H563*H$8)/Setup!$C$10 -> 0 | I160: =(I563*I$8)/Setup!$C$10 -> 0 | J160: =(J563*J$8)/Setup!$C$10 -> 0 | K160: =(K563*K$8)/Setup!$C$10 -> 0 | L160: =(L563*L$8)/Setup!$C$10 -> 0 | M160: =(M563*M$8)/Setup!$C$10 -> 0 | N160: =(N563*N$8)/Setup!$C$10 -> 0 | O160: =(O563*O$8)/Setup!$C$10 -> 0 | P160: =(P563*P$8)/Setup!$C$10 -> 0 | Q160: =(Q563*Q$8)/Setup!$C$10 -> 0 | R160: =(R563*R$8)/Setup!$C$10 -> 0 | S160: =(S563*S$8)/Setup!$C$10 -> 0 | T160: =(T563*T$8)/Setup!$C$10 -> 0 | U160: =(U563*U$8)/Setup!$C$10 -> 0 | V160: =(V563*V$8)/Setup!$C$10 -> 0 | W160: =(W563*W$8)/Setup!$C$10 -> 0 | X160: =(X563*X$8)/Setup!$C$10 -> 0 | Y160: 0 | Z160: 0 | AB160: 0 | AC160: 0 | AD160: 0
A161: 2015-01-12 | B161: Week 28 | C161: =(C564*C$8)/Setup!$C$10 -> 0 | D161: =(D564*D$8)/Setup!$C$10 -> 0 | E161: =(E564*E$8)/Setup!$C$10 -> 0 | F161: =(F564*F$8)/Setup!$C$10 -> 0 | G161: =(G564*G$8)/Setup!$C$10 -> 0 | H161: =(H564*H$8)/Setup!$C$10 -> 0 | I161: =(I564*I$8)/Setup!$C$10 -> 0 | J161: =(J564*J$8)/Setup!$C$10 -> 0 | K161: =(K564*K$8)/Setup!$C$10 -> 0 | L161: =(L564*L$8)/Setup!$C$10 -> 0 | M161: =(M564*M$8)/Setup!$C$10 -> 0 | N161: =(N564*N$8)/Setup!$C$10 -> 0 | O161: =(O564*O$8)/Setup!$C$10 -> 0 | P161: =(P564*P$8)/Setup!$C$10 -> 0 | Q161: =(Q564*Q$8)/Setup!$C$10 -> 0 | R161: =(R564*R$8)/Setup!$C$10 -> 0 | S161: =(S564*S$8)/Setup!$C$10 -> 0 | T161: =(T564*T$8)/Setup!$C$10 -> 0 | U161: =(U564*U$8)/Setup!$C$10 -> 0 | V161: =(V564*V$8)/Setup!$C$10 -> 0 | W161: =(W564*W$8)/Setup!$C$10 -> 0 | X161: =(X564*X$8)/Setup!$C$10 -> 0 | Y161: 0 | Z161: 0 | AB161: 0 | AC161: 0 | AD161: 0
A162: 2015-01-19 | B162: Week 29 | C162: =(C565*C$8)/Setup!$C$10 -> 0 | D162: =(D565*D$8)/Setup!$C$10 -> 0 | E162: =(E565*E$8)/Setup!$C$10 -> 0 | F162: =(F565*F$8)/Setup!$C$10 -> 0 | G162: =(G565*G$8)/Setup!$C$10 -> 0 | H162: =(H565*H$8)/Setup!$C$10 -> 0 | I162: =(I565*I$8)/Setup!$C$10 -> 0 | J162: =(J565*J$8)/Setup!$C$10 -> 0 | K162: =(K565*K$8)/Setup!$C$10 -> 0 | L162: =(L565*L$8)/Setup!$C$10 -> 0 | M162: =(M565*M$8)/Setup!$C$10 -> 0 | N162: =(N565*N$8)/Setup!$C$10 -> 0 | O162: =(O565*O$8)/Setup!$C$10 -> 0 | P162: =(P565*P$8)/Setup!$C$10 -> 0 | Q162: =(Q565*Q$8)/Setup!$C$10 -> 0 | R162: =(R565*R$8)/Setup!$C$10 -> 0 | S162: =(S565*S$8)/Setup!$C$10 -> 0 | T162: =(T565*T$8)/Setup!$C$10 -> 0 | U162: =(U565*U$8)/Setup!$C$10 -> 0 | V162: =(V565*V$8)/Setup!$C$10 -> 0 | W162: =(W565*W$8)/Setup!$C$10 -> 0 | X162: =(X565*X$8)/Setup!$C$10 -> 0 | Y162: 0 | Z162: 0 | AB162: 0 | AC162: 0 | AD162: 0
A163: 2015-01-26 | B163: Week 30 | C163: =(C566*C$8)/Setup!$C$10 -> 0 | D163: =(D566*D$8)/Setup!$C$10 -> 0 | E163: =(E566*E$8)/Setup!$C$10 -> 0 | F163: =(F566*F$8)/Setup!$C$10 -> 0 | G163: =(G566*G$8)/Setup!$C$10 -> 0 | H163: =(H566*H$8)/Setup!$C$10 -> 0 | I163: =(I566*I$8)/Setup!$C$10 -> 0 | J163: =(J566*J$8)/Setup!$C$10 -> 0 | K163: =(K566*K$8)/Setup!$C$10 -> 0 | L163: =(L566*L$8)/Setup!$C$10 -> 0 | M163: =(M566*M$8)/Setup!$C$10 -> 0 | N163: =(N566*N$8)/Setup!$C$10 -> 0 | O163: =(O566*O$8)/Setup!$C$10 -> 0 | P163: =(P566*P$8)/Setup!$C$10 -> 0 | Q163: =(Q566*Q$8)/Setup!$C$10 -> 0 | R163: =(R566*R$8)/Setup!$C$10 -> 0 | S163: =(S566*S$8)/Setup!$C$10 -> 0 | T163: =(T566*T$8)/Setup!$C$10 -> 0 | U163: =(U566*U$8)/Setup!$C$10 -> 0 | V163: =(V566*V$8)/Setup!$C$10 -> 0 | W163: =(W566*W$8)/Setup!$C$10 -> 0 | X163: =(X566*X$8)/Setup!$C$10 -> 0 | Y163: =SUM(C163:X163) -> 0 | Z163: 0 | AB163: 0 | AC163: 0 | AD163: 0
A164: 2015-02-02 | B164: Week 31 | C164: =(C567*C$8)/Setup!$C$10 -> 0 | D164: =(D567*D$8)/Setup!$C$10 -> 0 | E164: =(E567*E$8)/Setup!$C$10 -> 0 | F164: =(F567*F$8)/Setup!$C$10 -> 0 | G164: =(G567*G$8)/Setup!$C$10 -> 0 | H164: =(H567*H$8)/Setup!$C$10 -> 0 | I164: =(I567*I$8)/Setup!$C$10 -> 0 | J164: =(J567*J$8)/Setup!$C$10 -> 0 | K164: =(K567*K$8)/Setup!$C$10 -> 0 | L164: =(L567*L$8)/Setup!$C$10 -> 0 | M164: =(M567*M$8)/Setup!$C$10 -> 0 | N164: =(N567*N$8)/Setup!$C$10 -> 0 | O164: =(O567*O$8)/Setup!$C$10 -> 0 | P164: =(P567*P$8)/Setup!$C$10 -> 0 | Q164: =(Q567*Q$8)/Setup!$C$10 -> 0 | R164: =(R567*R$8)/Setup!$C$10 -> 0 | S164: =(S567*S$8)/Setup!$C$10 -> 0 | T164: =(T567*T$8)/Setup!$C$10 -> 0 | U164: =(U567*U$8)/Setup!$C$10 -> 0 | V164: =(V567*V$8)/Setup!$C$10 -> 0 | W164: =(W567*W$8)/Setup!$C$10 -> 0 | X164: =(X567*X$8)/Setup!$C$10 -> 0 | Y164: =SUM(C164:X164) -> 0 | Z164: 0 | AB164: 0 | AC164: 0 | AD164: 0
A165: 2015-02-09 | B165: Week 32 | C165: =(C568*C$8)/Setup!$C$10 -> 0 | D165: =(D568*D$8)/Setup!$C$10 -> 0 | E165: =(E568*E$8)/Setup!$C$10 -> 0 | F165: =(F568*F$8)/Setup!$C$10 -> 0 | G165: =(G568*G$8)/Setup!$C$10 -> 0 | H165: =(H568*H$8)/Setup!$C$10 -> 0 | I165: =(I568*I$8)/Setup!$C$10 -> 0 | J165: =(J568*J$8)/Setup!$C$10 -> 0 | K165: =(K568*K$8)/Setup!$C$10 -> 0 | L165: =(L568*L$8)/Setup!$C$10 -> 0 | M165: =(M568*M$8)/Setup!$C$10 -> 0 | N165: =(N568*N$8)/Setup!$C$10 -> 0 | O165: =(O568*O$8)/Setup!$C$10 -> 0 | P165: =(P568*P$8)/Setup!$C$10 -> 0 | Q165: =(Q568*Q$8)/Setup!$C$10 -> 0 | R165: =(R568*R$8)/Setup!$C$10 -> 0 | S165: =(S568*S$8)/Setup!$C$10 -> 0 | T165: =(T568*T$8)/Setup!$C$10 -> 0 | U165: =(U568*U$8)/Setup!$C$10 -> 0 | V165: =(V568*V$8)/Setup!$C$10 -> 0 | W165: =(W568*W$8)/Setup!$C$10 -> 0 | X165: =(X568*X$8)/Setup!$C$10 -> 0 | Y165: 0 | Z165: 0 | AB165: 0 | AC165: 0 | AD165: 0
A166: 2015-02-16 | B166: Week 33 | C166: =(C569*C$8)/Setup!$C$10 -> 0 | D166: =(D569*D$8)/Setup!$C$10 -> 0 | E166: =(E569*E$8)/Setup!$C$10 -> 0 | F166: =(F569*F$8)/Setup!$C$10 -> 0 | G166: =(G569*G$8)/Setup!$C$10 -> 0 | H166: =(H569*H$8)/Setup!$C$10 -> 0 | I166: =(I569*I$8)/Setup!$C$10 -> 0 | J166: =(J569*J$8)/Setup!$C$10 -> 0 | K166: =(K569*K$8)/Setup!$C$10 -> 0 | L166: =(L569*L$8)/Setup!$C$10 -> 0 | M166: =(M569*M$8)/Setup!$C$10 -> 0 | N166: =(N569*N$8)/Setup!$C$10 -> 0 | O166: =(O569*O$8)/Setup!$C$10 -> 0 | P166: =(P569*P$8)/Setup!$C$10 -> 0 | Q166: =(Q569*Q$8)/Setup!$C$10 -> 0 | R166: =(R569*R$8)/Setup!$C$10 -> 0 | S166: =(S569*S$8)/Setup!$C$10 -> 0 | T166: =(T569*T$8)/Setup!$C$10 -> 0 | U166: =(U569*U$8)/Setup!$C$10 -> 0 | V166: =(V569*V$8)/Setup!$C$10 -> 0 | W166: =(W569*W$8)/Setup!$C$10 -> 0 | X166: =(X569*X$8)/Setup!$C$10 -> 0 | Y166: 0 | Z166: 0 | AB166: 0 | AC166: 0 | AD166: 0
A167: 2015-02-23 | B167: Week 34 | C167: =(C570*C$8)/Setup!$C$10 -> 0 | D167: =(D570*D$8)/Setup!$C$10 -> 0 | E167: =(E570*E$8)/Setup!$C$10 -> 0 | F167: =(F570*F$8)/Setup!$C$10 -> 0 | G167: =(G570*G$8)/Setup!$C$10 -> 0 | H167: =(H570*H$8)/Setup!$C$10 -> 0 | I167: =(I570*I$8)/Setup!$C$10 -> 0 | J167: =(J570*J$8)/Setup!$C$10 -> 0 | K167: =(K570*K$8)/Setup!$C$10 -> 0 | L167: =(L570*L$8)/Setup!$C$10 -> 0 | M167: =(M570*M$8)/Setup!$C$10 -> 0 | N167: =(N570*N$8)/Setup!$C$10 -> 0 | O167: =(O570*O$8)/Setup!$C$10 -> 0 | P167: =(P570*P$8)/Setup!$C$10 -> 0 | Q167: =(Q570*Q$8)/Setup!$C$10 -> 0 | R167: =(R570*R$8)/Setup!$C$10 -> 0 | S167: =(S570*S$8)/Setup!$C$10 -> 0 | T167: =(T570*T$8)/Setup!$C$10 -> 0 | U167: =(U570*U$8)/Setup!$C$10 -> 0 | V167: =(V570*V$8)/Setup!$C$10 -> 0 | W167: =(W570*W$8)/Setup!$C$10 -> 0 | X167: =(X570*X$8)/Setup!$C$10 -> 0 | Y167: 0 | Z167: 0 | AB167: 0 | AC167: 0 | AD167: 0
A168: 2015-03-02 | B168: Week 35 | C168: =(C571*C$8)/Setup!$C$10 -> 0 | D168: =(D571*D$8)/Setup!$C$10 -> 0 | E168: =(E571*E$8)/Setup!$C$10 -> 0 | F168: =(F571*F$8)/Setup!$C$10 -> 0 | G168: =(G571*G$8)/Setup!$C$10 -> 0 | H168: =(H571*H$8)/Setup!$C$10 -> 0 | I168: =(I571*I$8)/Setup!$C$10 -> 0 | J168: =(J571*J$8)/Setup!$C$10 -> 0 | K168: =(K571*K$8)/Setup!$C$10 -> 0 | L168: =(L571*L$8)/Setup!$C$10 -> 0 | M168: =(M571*M$8)/Setup!$C$10 -> 0 | N168: =(N571*N$8)/Setup!$C$10 -> 0 | O168: =(O571*O$8)/Setup!$C$10 -> 0 | P168: =(P571*P$8)/Setup!$C$10 -> 0 | Q168: =(Q571*Q$8)/Setup!$C$10 -> 0 | R168: =(R571*R$8)/Setup!$C$10 -> 0 | S168: =(S571*S$8)/Setup!$C$10 -> 0 | T168: =(T571*T$8)/Setup!$C$10 -> 0 | U168: =(U571*U$8)/Setup!$C$10 -> 0 | V168: =(V571*V$8)/Setup!$C$10 -> 0 | W168: =(W571*W$8)/Setup!$C$10 -> 0 | X168: =(X571*X$8)/Setup!$C$10 -> 0 | Y168: 0 | Z168: 0 | AB168: 0 | AC168: 0 | AD168: 0
A169: 2015-03-09 | B169: Week 36 | C169: =(C572*C$8)/Setup!$C$10 -> 0 | D169: =(D572*D$8)/Setup!$C$10 -> 0 | E169: =(E572*E$8)/Setup!$C$10 -> 0 | F169: =(F572*F$8)/Setup!$C$10 -> 0 | G169: =(G572*G$8)/Setup!$C$10 -> 0 | H169: =(H572*H$8)/Setup!$C$10 -> 0 | I169: =(I572*I$8)/Setup!$C$10 -> 0 | J169: =(J572*J$8)/Setup!$C$10 -> 0 | K169: =(K572*K$8)/Setup!$C$10 -> 0 | L169: =(L572*L$8)/Setup!$C$10 -> 0 | M169: =(M572*M$8)/Setup!$C$10 -> 0 | N169: =(N572*N$8)/Setup!$C$10 -> 0 | O169: =(O572*O$8)/Setup!$C$10 -> 0 | P169: =(P572*P$8)/Setup!$C$10 -> 0 | Q169: =(Q572*Q$8)/Setup!$C$10 -> 0 | R169: =(R572*R$8)/Setup!$C$10 -> 0 | S169: =(S572*S$8)/Setup!$C$10 -> 0 | T169: =(T572*T$8)/Setup!$C$10 -> 0 | U169: =(U572*U$8)/Setup!$C$10 -> 0 | V169: =(V572*V$8)/Setup!$C$10 -> 0 | W169: =(W572*W$8)/Setup!$C$10 -> 0 | X169: =(X572*X$8)/Setup!$C$10 -> 0 | Y169: 0 | Z169: 0 | AB169: 0 | AC169: 0 | AD169: 0
A170: 2015-03-16 | B170: Week 37 | C170: =(C573*C$8)/Setup!$C$10 -> 0 | D170: =(D573*D$8)/Setup!$C$10 -> 0 | E170: =(E573*E$8)/Setup!$C$10 -> 0 | F170: =(F573*F$8)/Setup!$C$10 -> 0 | G170: =(G573*G$8)/Setup!$C$10 -> 0 | H170: =(H573*H$8)/Setup!$C$10 -> 0 | I170: =(I573*I$8)/Setup!$C$10 -> 0 | J170: =(J573*J$8)/Setup!$C$10 -> 0 | K170: =(K573*K$8)/Setup!$C$10 -> 0 | L170: =(L573*L$8)/Setup!$C$10 -> 0 | M170: =(M573*M$8)/Setup!$C$10 -> 0 | N170: =(N573*N$8)/Setup!$C$10 -> 0 | O170: =(O573*O$8)/Setup!$C$10 -> 0 | P170: =(P573*P$8)/Setup!$C$10 -> 0 | Q170: =(Q573*Q$8)/Setup!$C$10 -> 0 | R170: =(R573*R$8)/Setup!$C$10 -> 0 | S170: =(S573*S$8)/Setup!$C$10 -> 0 | T170: =(T573*T$8)/Setup!$C$10 -> 0 | U170: =(U573*U$8)/Setup!$C$10 -> 0 | V170: =(V573*V$8)/Setup!$C$10 -> 0 | W170: =(W573*W$8)/Setup!$C$10 -> 0 | X170: =(X573*X$8)/Setup!$C$10 -> 0 | Y170: 0 | Z170: 0 | AB170: 0 | AC170: 0 | AD170: 0
A171: 2015-03-23 | B171: Week 38 | C171: =(C574*C$8)/Setup!$C$10 -> 0 | D171: =(D574*D$8)/Setup!$C$10 -> 0 | E171: =(E574*E$8)/Setup!$C$10 -> 0 | F171: =(F574*F$8)/Setup!$C$10 -> 0 | G171: =(G574*G$8)/Setup!$C$10 -> 0 | H171: =(H574*H$8)/Setup!$C$10 -> 0 | I171: =(I574*I$8)/Setup!$C$10 -> 0 | J171: =(J574*J$8)/Setup!$C$10 -> 0 | K171: =(K574*K$8)/Setup!$C$10 -> 0 | L171: =(L574*L$8)/Setup!$C$10 -> 0 | M171: =(M574*M$8)/Setup!$C$10 -> 0 | N171: =(N574*N$8)/Setup!$C$10 -> 0 | O171: =(O574*O$8)/Setup!$C$10 -> 0 | P171: =(P574*P$8)/Setup!$C$10 -> 0 | Q171: =(Q574*Q$8)/Setup!$C$10 -> 0 | R171: =(R574*R$8)/Setup!$C$10 -> 0 | S171: =(S574*S$8)/Setup!$C$10 -> 0 | T171: =(T574*T$8)/Setup!$C$10 -> 0 | U171: =(U574*U$8)/Setup!$C$10 -> 0 | V171: =(V574*V$8)/Setup!$C$10 -> 0 | W171: =(W574*W$8)/Setup!$C$10 -> 0 | X171: =(X574*X$8)/Setup!$C$10 -> 0 | Y171: 0 | Z171: 0 | AB171: 0 | AC171: 0 | AD171: 0
A172: 2015-03-30 | B172: Week 39 | C172: =(C575*C$8)/Setup!$C$10 -> 0 | D172: =(D575*D$8)/Setup!$C$10 -> 0 | E172: =(E575*E$8)/Setup!$C$10 -> 0 | F172: =(F575*F$8)/Setup!$C$10 -> 0 | G172: =(G575*G$8)/Setup!$C$10 -> 0 | H172: =(H575*H$8)/Setup!$C$10 -> 0 | I172: =(I575*I$8)/Setup!$C$10 -> 0 | J172: =(J575*J$8)/Setup!$C$10 -> 0 | K172: =(K575*K$8)/Setup!$C$10 -> 0 | L172: =(L575*L$8)/Setup!$C$10 -> 0 | M172: =(M575*M$8)/Setup!$C$10 -> 0 | N172: =(N575*N$8)/Setup!$C$10 -> 0 | O172: =(O575*O$8)/Setup!$C$10 -> 0 | P172: =(P575*P$8)/Setup!$C$10 -> 0 | Q172: =(Q575*Q$8)/Setup!$C$10 -> 0 | R172: =(R575*R$8)/Setup!$C$10 -> 0 | S172: =(S575*S$8)/Setup!$C$10 -> 0 | T172: =(T575*T$8)/Setup!$C$10 -> 0 | U172: =(U575*U$8)/Setup!$C$10 -> 0 | V172: =(V575*V$8)/Setup!$C$10 -> 0 | W172: =(W575*W$8)/Setup!$C$10 -> 0 | X172: =(X575*X$8)/Setup!$C$10 -> 0 | Y172: 0 | Z172: 0 | AB172: 0 | AC172: 0 | AD172: 0
A173: 2015-04-06 | B173: Week 40 | C173: =(C576*C$8)/Setup!$C$10 -> 0 | D173: =(D576*D$8)/Setup!$C$10 -> 0 | E173: =(E576*E$8)/Setup!$C$10 -> 0 | F173: =(F576*F$8)/Setup!$C$10 -> 0 | G173: =(G576*G$8)/Setup!$C$10 -> 0 | H173: =(H576*H$8)/Setup!$C$10 -> 0 | I173: =(I576*I$8)/Setup!$C$10 -> 0 | J173: =(J576*J$8)/Setup!$C$10 -> 0 | K173: =(K576*K$8)/Setup!$C$10 -> 0 | L173: =(L576*L$8)/Setup!$C$10 -> 0 | M173: =(M576*M$8)/Setup!$C$10 -> 0 | N173: =(N576*N$8)/Setup!$C$10 -> 0 | O173: =(O576*O$8)/Setup!$C$10 -> 0 | P173: =(P576*P$8)/Setup!$C$10 -> 0 | Q173: =(Q576*Q$8)/Setup!$C$10 -> 0 | R173: =(R576*R$8)/Setup!$C$10 -> 0 | S173: =(S576*S$8)/Setup!$C$10 -> 0 | T173: =(T576*T$8)/Setup!$C$10 -> 0 | U173: =(U576*U$8)/Setup!$C$10 -> 0 | V173: =(V576*V$8)/Setup!$C$10 -> 0 | W173: =(W576*W$8)/Setup!$C$10 -> 0 | X173: =(X576*X$8)/Setup!$C$10 -> 0 | Y173: 0 | Z173: 0 | AB173: 0 | AC173: 0 | AD173: 0
A174: =A461 -> 2015-04-13 | B174: Week 41 | C174: =(C577*C$8)/Setup!$C$10 -> 0 | D174: =(D577*D$8)/Setup!$C$10 -> 0 | E174: =(E577*E$8)/Setup!$C$10 -> 0 | F174: =(F577*F$8)/Setup!$C$10 -> 0 | G174: =(G577*G$8)/Setup!$C$10 -> 0 | H174: =(H577*H$8)/Setup!$C$10 -> 0 | I174: =(I577*I$8)/Setup!$C$10 -> 0 | J174: =(J577*J$8)/Setup!$C$10 -> 0 | K174: =(K577*K$8)/Setup!$C$10 -> 0 | L174: =(L577*L$8)/Setup!$C$10 -> 0 | M174: =(M577*M$8)/Setup!$C$10 -> 0 | N174: =(N577*N$8)/Setup!$C$10 -> 0 | O174: =(O577*O$8)/Setup!$C$10 -> 0 | P174: =(P577*P$8)/Setup!$C$10 -> 0 | Q174: =(Q577*Q$8)/Setup!$C$10 -> 0 | R174: =(R577*R$8)/Setup!$C$10 -> 0 | S174: =(S577*S$8)/Setup!$C$10 -> 0 | T174: =(T577*T$8)/Setup!$C$10 -> 0 | U174: =(U577*U$8)/Setup!$C$10 -> 0 | V174: =(V577*V$8)/Setup!$C$10 -> 0 | W174: =(W577*W$8)/Setup!$C$10 -> 0 | X174: =(X577*X$8)/Setup!$C$10 -> 0 | Y174: 0 | Z174: 0 | AB174: 0 | AC174: 0 | AD174: 0
A175: 2015-04-20 | B175: Week 42 | C175: =(C578*C$8)/Setup!$C$10 -> 0 | D175: =(D578*D$8)/Setup!$C$10 -> 0 | E175: =(E578*E$8)/Setup!$C$10 -> 0 | F175: =(F578*F$8)/Setup!$C$10 -> 0 | G175: =(G578*G$8)/Setup!$C$10 -> 0 | H175: =(H578*H$8)/Setup!$C$10 -> 0 | I175: =(I578*I$8)/Setup!$C$10 -> 0 | J175: =(J578*J$8)/Setup!$C$10 -> 0 | K175: =(K578*K$8)/Setup!$C$10 -> 0 | L175: =(L578*L$8)/Setup!$C$10 -> 0 | M175: =(M578*M$8)/Setup!$C$10 -> 0 | N175: =(N578*N$8)/Setup!$C$10 -> 0 | O175: =(O578*O$8)/Setup!$C$10 -> 0 | P175: =(P578*P$8)/Setup!$C$10 -> 0 | Q175: =(Q578*Q$8)/Setup!$C$10 -> 0 | R175: =(R578*R$8)/Setup!$C$10 -> 0 | S175: =(S578*S$8)/Setup!$C$10 -> 0 | T175: =(T578*T$8)/Setup!$C$10 -> 0 | U175: =(U578*U$8)/Setup!$C$10 -> 0 | V175: =(V578*V$8)/Setup!$C$10 -> 0 | W175: =(W578*W$8)/Setup!$C$10 -> 0 | X175: =(X578*X$8)/Setup!$C$10 -> 0 | Y175: 0 | Z175: 0 | AB175: 0 | AC175: 0 | AD175: 0
A176: 2015-04-27 | B176: Week 43 | C176: =(C579*C$8)/Setup!$C$10 -> 0 | D176: =(D579*D$8)/Setup!$C$10 -> 0 | E176: =(E579*E$8)/Setup!$C$10 -> 0 | F176: =(F579*F$8)/Setup!$C$10 -> 0 | G176: =(G579*G$8)/Setup!$C$10 -> 0 | H176: =(H579*H$8)/Setup!$C$10 -> 0 | I176: =(I579*I$8)/Setup!$C$10 -> 0 | J176: =(J579*J$8)/Setup!$C$10 -> 0 | K176: =(K579*K$8)/Setup!$C$10 -> 0 | L176: =(L579*L$8)/Setup!$C$10 -> 0 | M176: =(M579*M$8)/Setup!$C$10 -> 0 | N176: =(N579*N$8)/Setup!$C$10 -> 0 | O176: =(O579*O$8)/Setup!$C$10 -> 0 | P176: =(P579*P$8)/Setup!$C$10 -> 0 | Q176: =(Q579*Q$8)/Setup!$C$10 -> 0 | R176: =(R579*R$8)/Setup!$C$10 -> 0 | S176: =(S579*S$8)/Setup!$C$10 -> 0 | T176: =(T579*T$8)/Setup!$C$10 -> 0 | U176: =(U579*U$8)/Setup!$C$10 -> 0 | V176: =(V579*V$8)/Setup!$C$10 -> 0 | W176: =(W579*W$8)/Setup!$C$10 -> 0 | X176: =(X579*X$8)/Setup!$C$10 -> 0 | Y176: 0 | Z176: 0 | AB176: 0 | AC176: 0 | AD176: 0
A177: 2015-05-04 | B177: Week 44 | C177: =(C580*C$8)/Setup!$C$10 -> 0 | D177: =(D580*D$8)/Setup!$C$10 -> 0 | E177: =(E580*E$8)/Setup!$C$10 -> 0 | F177: =(F580*F$8)/Setup!$C$10 -> 0 | G177: =(G580*G$8)/Setup!$C$10 -> 0 | H177: =(H580*H$8)/Setup!$C$10 -> 0 | I177: =(I580*I$8)/Setup!$C$10 -> 0 | J177: =(J580*J$8)/Setup!$C$10 -> 0 | K177: =(K580*K$8)/Setup!$C$10 -> 0 | L177: =(L580*L$8)/Setup!$C$10 -> 0 | M177: =(M580*M$8)/Setup!$C$10 -> 0 | N177: =(N580*N$8)/Setup!$C$10 -> 0 | O177: =(O580*O$8)/Setup!$C$10 -> 0 | P177: =(P580*P$8)/Setup!$C$10 -> 0 | Q177: =(Q580*Q$8)/Setup!$C$10 -> 0 | R177: =(R580*R$8)/Setup!$C$10 -> 0 | S177: =(S580*S$8)/Setup!$C$10 -> 0 | T177: =(T580*T$8)/Setup!$C$10 -> 0 | U177: =(U580*U$8)/Setup!$C$10 -> 0 | V177: =(V580*V$8)/Setup!$C$10 -> 0 | W177: =(W580*W$8)/Setup!$C$10 -> 0 | X177: =(X580*X$8)/Setup!$C$10 -> 0 | Y177: 0 | Z177: 0 | AB177: 0 | AC177: 0 | AD177: 0
A178: 2015-05-11 | B178: Week 45 | C178: =(C581*C$8)/Setup!$C$10 -> 0 | D178: =(D581*D$8)/Setup!$C$10 -> 0 | E178: =(E581*E$8)/Setup!$C$10 -> 0 | F178: =(F581*F$8)/Setup!$C$10 -> 0 | G178: =(G581*G$8)/Setup!$C$10 -> 0 | H178: =(H581*H$8)/Setup!$C$10 -> 0 | I178: =(I581*I$8)/Setup!$C$10 -> 0 | J178: =(J581*J$8)/Setup!$C$10 -> 0 | K178: =(K581*K$8)/Setup!$C$10 -> 0 | L178: =(L581*L$8)/Setup!$C$10 -> 0 | M178: =(M581*M$8)/Setup!$C$10 -> 0 | N178: =(N581*N$8)/Setup!$C$10 -> 0 | O178: =(O581*O$8)/Setup!$C$10 -> 0 | P178: =(P581*P$8)/Setup!$C$10 -> 0 | Q178: =(Q581*Q$8)/Setup!$C$10 -> 0 | R178: =(R581*R$8)/Setup!$C$10 -> 0 | S178: =(S581*S$8)/Setup!$C$10 -> 0 | T178: =(T581*T$8)/Setup!$C$10 -> 0 | U178: =(U581*U$8)/Setup!$C$10 -> 0 | V178: =(V581*V$8)/Setup!$C$10 -> 0 | W178: =(W581*W$8)/Setup!$C$10 -> 0 | X178: =(X581*X$8)/Setup!$C$10 -> 0 | Y178: 0 | Z178: 0 | AB178: 0 | AC178: 0 | AD178: 0
A179: 2015-05-18 | B179: Week 46 | C179: =(C582*C$8)/Setup!$C$10 -> 0 | D179: =(D582*D$8)/Setup!$C$10 -> 0 | E179: =(E582*E$8)/Setup!$C$10 -> 0 | F179: =(F582*F$8)/Setup!$C$10 -> 0 | G179: =(G582*G$8)/Setup!$C$10 -> 0 | H179: =(H582*H$8)/Setup!$C$10 -> 0 | I179: =(I582*I$8)/Setup!$C$10 -> 0 | J179: =(J582*J$8)/Setup!$C$10 -> 0 | K179: =(K582*K$8)/Setup!$C$10 -> 0 | L179: =(L582*L$8)/Setup!$C$10 -> 0 | M179: =(M582*M$8)/Setup!$C$10 -> 0 | N179: =(N582*N$8)/Setup!$C$10 -> 0 | O179: =(O582*O$8)/Setup!$C$10 -> 0 | P179: =(P582*P$8)/Setup!$C$10 -> 0 | Q179: =(Q582*Q$8)/Setup!$C$10 -> 0 | R179: =(R582*R$8)/Setup!$C$10 -> 0 | S179: =(S582*S$8)/Setup!$C$10 -> 0 | T179: =(T582*T$8)/Setup!$C$10 -> 0 | U179: =(U582*U$8)/Setup!$C$10 -> 0 | V179: =(V582*V$8)/Setup!$C$10 -> 0 | W179: =(W582*W$8)/Setup!$C$10 -> 0 | X179: =(X582*X$8)/Setup!$C$10 -> 0 | Y179: 0 | Z179: 0 | AB179: 0 | AC179: 0 | AD179: 0
A180: 2015-05-25 | B180: Week 47 | C180: =(C583*C$8)/Setup!$C$10 -> 0 | D180: =(D583*D$8)/Setup!$C$10 -> 0 | E180: =(E583*E$8)/Setup!$C$10 -> 0 | F180: =(F583*F$8)/Setup!$C$10 -> 0 | G180: =(G583*G$8)/Setup!$C$10 -> 0 | H180: =(H583*H$8)/Setup!$C$10 -> 0 | I180: =(I583*I$8)/Setup!$C$10 -> 0 | J180: =(J583*J$8)/Setup!$C$10 -> 0 | K180: =(K583*K$8)/Setup!$C$10 -> 0 | L180: =(L583*L$8)/Setup!$C$10 -> 0 | M180: =(M583*M$8)/Setup!$C$10 -> 0 | N180: =(N583*N$8)/Setup!$C$10 -> 0 | O180: =(O583*O$8)/Setup!$C$10 -> 0 | P180: =(P583*P$8)/Setup!$C$10 -> 0 | Q180: =(Q583*Q$8)/Setup!$C$10 -> 0 | R180: =(R583*R$8)/Setup!$C$10 -> 0 | S180: =(S583*S$8)/Setup!$C$10 -> 0 | T180: =(T583*T$8)/Setup!$C$10 -> 0 | U180: =(U583*U$8)/Setup!$C$10 -> 0 | V180: =(V583*V$8)/Setup!$C$10 -> 0 | W180: =(W583*W$8)/Setup!$C$10 -> 0 | X180: =(X583*X$8)/Setup!$C$10 -> 0 | Y180: 0 | Z180: 0 | AB180: 0 | AC180: 0 | AD180: 0
A181: 2015-06-01 | B181: Week 48 | C181: =(C584*C$8)/Setup!$C$10 -> 0 | D181: =(D584*D$8)/Setup!$C$10 -> 0 | E181: =(E584*E$8)/Setup!$C$10 -> 0 | F181: =(F584*F$8)/Setup!$C$10 -> 0 | G181: =(G584*G$8)/Setup!$C$10 -> 0 | H181: =(H584*H$8)/Setup!$C$10 -> 0 | I181: =(I584*I$8)/Setup!$C$10 -> 0 | J181: =(J584*J$8)/Setup!$C$10 -> 0 | K181: =(K584*K$8)/Setup!$C$10 -> 0 | L181: =(L584*L$8)/Setup!$C$10 -> 0 | M181: =(M584*M$8)/Setup!$C$10 -> 0 | N181: =(N584*N$8)/Setup!$C$10 -> 0 | O181: =(O584*O$8)/Setup!$C$10 -> 0 | P181: =(P584*P$8)/Setup!$C$10 -> 0 | Q181: =(Q584*Q$8)/Setup!$C$10 -> 0 | R181: =(R584*R$8)/Setup!$C$10 -> 0 | S181: =(S584*S$8)/Setup!$C$10 -> 0 | T181: =(T584*T$8)/Setup!$C$10 -> 0 | U181: =(U584*U$8)/Setup!$C$10 -> 0 | V181: =(V584*V$8)/Setup!$C$10 -> 0 | W181: =(W584*W$8)/Setup!$C$10 -> 0 | X181: =(X584*X$8)/Setup!$C$10 -> 0 | Y181: 0 | Z181: 0 | AB181: 0 | AC181: 0 | AD181: 0
A182: 2015-06-08 | B182: Week 49 | C182: =(C585*C$8)/Setup!$C$10 -> 0 | D182: =(D585*D$8)/Setup!$C$10 -> 0 | E182: =(E585*E$8)/Setup!$C$10 -> 0 | F182: =(F585*F$8)/Setup!$C$10 -> 0 | G182: =(G585*G$8)/Setup!$C$10 -> 0 | H182: =(H585*H$8)/Setup!$C$10 -> 0 | I182: =(I585*I$8)/Setup!$C$10 -> 0 | J182: =(J585*J$8)/Setup!$C$10 -> 0 | K182: =(K585*K$8)/Setup!$C$10 -> 0 | L182: =(L585*L$8)/Setup!$C$10 -> 0 | M182: =(M585*M$8)/Setup!$C$10 -> 0 | N182: =(N585*N$8)/Setup!$C$10 -> 0 | O182: =(O585*O$8)/Setup!$C$10 -> 0 | P182: =(P585*P$8)/Setup!$C$10 -> 0 | Q182: =(Q585*Q$8)/Setup!$C$10 -> 0 | R182: =(R585*R$8)/Setup!$C$10 -> 0 | S182: =(S585*S$8)/Setup!$C$10 -> 0 | T182: =(T585*T$8)/Setup!$C$10 -> 0 | U182: =(U585*U$8)/Setup!$C$10 -> 0 | V182: =(V585*V$8)/Setup!$C$10 -> 0 | W182: =(W585*W$8)/Setup!$C$10 -> 0 | X182: =(X585*X$8)/Setup!$C$10 -> 0 | Y182: 0 | Z182: 0 | AB182: 0 | AC182: 0 | AD182: 0
A183: 2015-06-15 | B183: Week 50 | C183: =(C586*C$8)/Setup!$C$10 -> 0 | D183: =(D586*D$8)/Setup!$C$10 -> 0 | E183: =(E586*E$8)/Setup!$C$10 -> 0 | F183: =(F586*F$8)/Setup!$C$10 -> 0 | G183: =(G586*G$8)/Setup!$C$10 -> 0 | H183: =(H586*H$8)/Setup!$C$10 -> 0 | I183: =(I586*I$8)/Setup!$C$10 -> 0 | J183: =(J586*J$8)/Setup!$C$10 -> 0 | K183: =(K586*K$8)/Setup!$C$10 -> 0 | L183: =(L586*L$8)/Setup!$C$10 -> 0 | M183: =(M586*M$8)/Setup!$C$10 -> 0 | N183: =(N586*N$8)/Setup!$C$10 -> 0 | O183: =(O586*O$8)/Setup!$C$10 -> 0 | P183: =(P586*P$8)/Setup!$C$10 -> 0 | Q183: =(Q586*Q$8)/Setup!$C$10 -> 0 | R183: =(R586*R$8)/Setup!$C$10 -> 0 | S183: =(S586*S$8)/Setup!$C$10 -> 0 | T183: =(T586*T$8)/Setup!$C$10 -> 0 | U183: =(U586*U$8)/Setup!$C$10 -> 0 | V183: =(V586*V$8)/Setup!$C$10 -> 0 | W183: =(W586*W$8)/Setup!$C$10 -> 0 | X183: =(X586*X$8)/Setup!$C$10 -> 0 | Y183: 0 | Z183: 0 | AB183: 0 | AC183: 0 | AD183: 0
A184: 2015-06-22 | B184: Week 51 | C184: =(C587*C$8)/Setup!$C$10 -> 0 | D184: =(D587*D$8)/Setup!$C$10 -> 0 | E184: =(E587*E$8)/Setup!$C$10 -> 0 | F184: =(F587*F$8)/Setup!$C$10 -> 0 | G184: =(G587*G$8)/Setup!$C$10 -> 0 | H184: =(H587*H$8)/Setup!$C$10 -> 0 | I184: =(I587*I$8)/Setup!$C$10 -> 0 | J184: =(J587*J$8)/Setup!$C$10 -> 0 | K184: =(K587*K$8)/Setup!$C$10 -> 0 | L184: =(L587*L$8)/Setup!$C$10 -> 0 | M184: =(M587*M$8)/Setup!$C$10 -> 0 | N184: =(N587*N$8)/Setup!$C$10 -> 0 | O184: =(O587*O$8)/Setup!$C$10 -> 0 | P184: =(P587*P$8)/Setup!$C$10 -> 0 | Q184: =(Q587*Q$8)/Setup!$C$10 -> 0 | R184: =(R587*R$8)/Setup!$C$10 -> 0 | S184: =(S587*S$8)/Setup!$C$10 -> 0 | T184: =(T587*T$8)/Setup!$C$10 -> 0 | U184: =(U587*U$8)/Setup!$C$10 -> 0 | V184: =(V587*V$8)/Setup!$C$10 -> 0 | W184: =(W587*W$8)/Setup!$C$10 -> 0 | X184: =(X587*X$8)/Setup!$C$10 -> 0 | Y184: 0 | Z184: 0 | AB184: 0 | AC184: 0 | AD184: 0
A185: 2015-06-29 | B185: Week 52 | C185: =(C588*C$8)/Setup!$C$10 -> 0 | D185: =(D588*D$8)/Setup!$C$10 -> 0 | E185: =(E588*E$8)/Setup!$C$10 -> 0 | F185: =(F588*F$8)/Setup!$C$10 -> 0 | G185: =(G588*G$8)/Setup!$C$10 -> 0 | H185: =(H588*H$8)/Setup!$C$10 -> 0 | I185: =(I588*I$8)/Setup!$C$10 -> 0 | J185: =(J588*J$8)/Setup!$C$10 -> 0 | K185: =(K588*K$8)/Setup!$C$10 -> 0 | L185: =(L588*L$8)/Setup!$C$10 -> 0 | M185: =(M588*M$8)/Setup!$C$10 -> 0 | N185: =(N588*N$8)/Setup!$C$10 -> 0 | O185: =(O588*O$8)/Setup!$C$10 -> 0 | P185: =(P588*P$8)/Setup!$C$10 -> 0 | Q185: =(Q588*Q$8)/Setup!$C$10 -> 0 | R185: =(R588*R$8)/Setup!$C$10 -> 0 | S185: =(S588*S$8)/Setup!$C$10 -> 0 | T185: =(T588*T$8)/Setup!$C$10 -> 0 | U185: =(U588*U$8)/Setup!$C$10 -> 0 | V185: =(V588*V$8)/Setup!$C$10 -> 0 | W185: =(W588*W$8)/Setup!$C$10 -> 0 | X185: =(X588*X$8)/Setup!$C$10 -> 0 | Y185: 0 | Z185: 0 | AB185: 0 | AC185: 0 | AD185: 0
AB186: =SUM(AB134:AB185) -> 50.05 | AC186: =SUM(AC134:AC185) -> 50.05 | AD186: =SUM(AD134:AD185) -> 50.05
A188: Actual Weekly K (Kg) / Hectare (Ha):
C190: Ammonium Nitrate | D190: Ammonium Sulphate | E190: Borax | F190: Calcium Nitrate | G190: Copper Sulphate | H190: FertiMix | I190: Iron Chelate | J190: Iron Sulphate | K190: Magnesium Sulphate | L190: Manganese Sulphate | M190: Mono-Ammonium Phosphate | N190: Mono-Potassium Phosphate | O190: Nitric Acid | P190: Phosphoric Acid | Q190: Potassium Chloride | R190: Potassium Nitrate | S190: Potassium Sulphate | T190: Sodium Molybdenum | U190: Sulphuric Acid | V190: Urea | W190: Zinc Oxide | X190: Zinc Sulphate | Y190: Grower Wkly K | Z190: Grower Cumm K | AB190: 240:400 | AC190: 320:600 | AD190: 320:400
C191: NH4NO3 | D191: (NH4)2SO4 | E191: Na2B4O7.10H2O | F191: Ca(NO3)2 | G191: CuSO4.5H2O | I191: EDDHA | J191: FeSO4.7H2O | K191: MgSO4.7H2O | L191: MnSO4.H2O | M191: NH4H2PO4 | N191: KH2PO4 | O191: HNO3 | P191: PO4H3 | Q191: KCl | R191: KNO3 | S191: K2SO4 | T191: Na2MoO4 | U191: H2SO4 | V191: CO(NH2)2 | W191: ZnO | X191: ZnSO4.7H2O | Z191: TOTAL | AB191: TOTAL | AC191: TOTAL | AD191: TOTAL
A192: =A421 -> 2014-07-07 | B192: Week 1 | C192: =(C537*C$9)/Setup!$C$10 -> 0 | D192: =(D537*D$9)/Setup!$C$10 -> 0 | E192: =(E537*E$9)/Setup!$C$10 -> 0 | F192: =(F537*F$9)/Setup!$C$10 -> 0 | G192: =(G537*G$9)/Setup!$C$10 -> 0 | H192: =(H537*H$9)/Setup!$C$10 -> 0 | I192: =(I537*I$9)/Setup!$C$10 -> 0 | J192: =(J537*J$9)/Setup!$C$10 -> 0 | K192: =(K537*K$9)/Setup!$C$10 -> 0 | L192: =(L537*L$9)/Setup!$C$10 -> 0 | M192: =(M537*M$9)/Setup!$C$10 -> 0 | N192: =(N537*N$9)/Setup!$C$10 -> 0 | O192: =(O537*O$9)/Setup!$C$10 -> 0 | P192: =(P537*P$9)/Setup!$C$10 -> 0 | Q192: =(Q537*Q$9)/Setup!$C$10 -> 0 | R192: =(R537*R$9)/Setup!$C$10 -> 0 | S192: =(S537*S$9)/Setup!$C$10 -> 0 | T192: =(T537*T$9)/Setup!$C$10 -> 0 | U192: =(U537*U$9)/Setup!$C$10 -> 0 | V192: =(V537*V$9)/Setup!$C$10 -> 0 | W192: =(W537*W$9)/Setup!$C$10 -> 0 | X192: =(X537*X$9)/Setup!$C$10 -> 0 | Y192: =SUM(C192:X192) -> 0 | Z192: =Y192 -> 0 | AB192: 0 | AC192: 0 | AD192: 0
A193: 2014-07-14 | B193: Week 2 | C193: =(C538*C$9)/Setup!$C$10 -> 0 | D193: =(D538*D$9)/Setup!$C$10 -> 0 | E193: =(E538*E$9)/Setup!$C$10 -> 0 | F193: =(F538*F$9)/Setup!$C$10 -> 0 | G193: =(G538*G$9)/Setup!$C$10 -> 0 | H193: =(H538*H$9)/Setup!$C$10 -> 0 | I193: =(I538*I$9)/Setup!$C$10 -> 0 | J193: =(J538*J$9)/Setup!$C$10 -> 0 | K193: =(K538*K$9)/Setup!$C$10 -> 0 | L193: =(L538*L$9)/Setup!$C$10 -> 0 | M193: =(M538*M$9)/Setup!$C$10 -> 0 | N193: =(N538*N$9)/Setup!$C$10 -> 0 | O193: =(O538*O$9)/Setup!$C$10 -> 0 | P193: =(P538*P$9)/Setup!$C$10 -> 0 | Q193: =(Q538*Q$9)/Setup!$C$10 -> 0 | R193: =(R538*R$9)/Setup!$C$10 -> 0 | S193: =(S538*S$9)/Setup!$C$10 -> 0 | T193: =(T538*T$9)/Setup!$C$10 -> 0 | U193: =(U538*U$9)/Setup!$C$10 -> 0 | V193: =(V538*V$9)/Setup!$C$10 -> 0 | W193: =(W538*W$9)/Setup!$C$10 -> 0 | X193: =(X538*X$9)/Setup!$C$10 -> 0 | Y193: =SUM(C193:X193) -> 0 | Z193: =Z192+Y193 -> 0 | AB193: 0 | AC193: 0 | AD193: 0
A194: 2014-07-21 | B194: Week 3 | C194: =(C539*C$9)/Setup!$C$10 -> 0 | D194: =(D539*D$9)/Setup!$C$10 -> 0 | E194: =(E539*E$9)/Setup!$C$10 -> 0 | F194: =(F539*F$9)/Setup!$C$10 -> 0 | G194: =(G539*G$9)/Setup!$C$10 -> 0 | H194: =(H539*H$9)/Setup!$C$10 -> 0 | I194: =(I539*I$9)/Setup!$C$10 -> 0 | J194: =(J539*J$9)/Setup!$C$10 -> 0 | K194: =(K539*K$9)/Setup!$C$10 -> 0 | L194: =(L539*L$9)/Setup!$C$10 -> 0 | M194: =(M539*M$9)/Setup!$C$10 -> 0 | N194: =(N539*N$9)/Setup!$C$10 -> 0 | O194: =(O539*O$9)/Setup!$C$10 -> 0 | P194: =(P539*P$9)/Setup!$C$10 -> 0 | Q194: =(Q539*Q$9)/Setup!$C$10 -> 0 | R194: =(R539*R$9)/Setup!$C$10 -> 0 | S194: =(S539*S$9)/Setup!$C$10 -> 0 | T194: =(T539*T$9)/Setup!$C$10 -> 0 | U194: =(U539*U$9)/Setup!$C$10 -> 0 | V194: =(V539*V$9)/Setup!$C$10 -> 0 | W194: =(W539*W$9)/Setup!$C$10 -> 0 | X194: =(X539*X$9)/Setup!$C$10 -> 0 | Y194: 0 | Z194: =Z193+Y194 -> 0 | AB194: 0 | AC194: 0 | AD194: 0
A195: 2014-07-28 | B195: Week 4 | C195: =(C540*C$9)/Setup!$C$10 -> 0 | D195: =(D540*D$9)/Setup!$C$10 -> 0 | E195: =(E540*E$9)/Setup!$C$10 -> 0 | F195: =(F540*F$9)/Setup!$C$10 -> 0 | G195: =(G540*G$9)/Setup!$C$10 -> 0 | H195: =(H540*H$9)/Setup!$C$10 -> 0 | I195: =(I540*I$9)/Setup!$C$10 -> 0 | J195: =(J540*J$9)/Setup!$C$10 -> 0 | K195: =(K540*K$9)/Setup!$C$10 -> 0 | L195: =(L540*L$9)/Setup!$C$10 -> 0 | M195: =(M540*M$9)/Setup!$C$10 -> 0 | N195: =(N540*N$9)/Setup!$C$10 -> 0 | O195: =(O540*O$9)/Setup!$C$10 -> 0 | P195: =(P540*P$9)/Setup!$C$10 -> 0 | Q195: =(Q540*Q$9)/Setup!$C$10 -> 0 | R195: =(R540*R$9)/Setup!$C$10 -> 0 | S195: =(S540*S$9)/Setup!$C$10 -> 0 | T195: =(T540*T$9)/Setup!$C$10 -> 0 | U195: =(U540*U$9)/Setup!$C$10 -> 0 | V195: =(V540*V$9)/Setup!$C$10 -> 0 | W195: =(W540*W$9)/Setup!$C$10 -> 0 | X195: =(X540*X$9)/Setup!$C$10 -> 0 | Y195: 0 | Z195: 0 | AB195: 47.9125 | AC195: 47.9125 | AD195: 47.9125
A196: 2014-08-04 | B196: Week 5 | C196: =(C541*C$9)/Setup!$C$10 -> 0 | D196: =(D541*D$9)/Setup!$C$10 -> 0 | E196: =(E541*E$9)/Setup!$C$10 -> 0 | F196: =(F541*F$9)/Setup!$C$10 -> 0 | G196: =(G541*G$9)/Setup!$C$10 -> 0 | H196: =(H541*H$9)/Setup!$C$10 -> 0 | I196: =(I541*I$9)/Setup!$C$10 -> 0 | J196: =(J541*J$9)/Setup!$C$10 -> 0 | K196: =(K541*K$9)/Setup!$C$10 -> 0 | L196: =(L541*L$9)/Setup!$C$10 -> 0 | M196: =(M541*M$9)/Setup!$C$10 -> 0 | N196: =(N541*N$9)/Setup!$C$10 -> 0 | O196: =(O541*O$9)/Setup!$C$10 -> 0 | P196: =(P541*P$9)/Setup!$C$10 -> 0 | Q196: =(Q541*Q$9)/Setup!$C$10 -> 0 | R196: =(R541*R$9)/Setup!$C$10 -> 0 | S196: =(S541*S$9)/Setup!$C$10 -> 0 | T196: =(T541*T$9)/Setup!$C$10 -> 0 | U196: =(U541*U$9)/Setup!$C$10 -> 0 | V196: =(V541*V$9)/Setup!$C$10 -> 0 | W196: =(W541*W$9)/Setup!$C$10 -> 0 | X196: =(X541*X$9)/Setup!$C$10 -> 0 | Y196: 0 | Z196: 0 | AB196: 47.9125 | AC196: 47.9125 | AD196: 47.9125
A197: 2014-08-11 | B197: Week 6 | C197: =(C542*C$9)/Setup!$C$10 -> 0 | D197: =(D542*D$9)/Setup!$C$10 -> 0 | E197: =(E542*E$9)/Setup!$C$10 -> 0 | F197: =(F542*F$9)/Setup!$C$10 -> 0 | G197: =(G542*G$9)/Setup!$C$10 -> 0 | H197: =(H542*H$9)/Setup!$C$10 -> 0 | I197: =(I542*I$9)/Setup!$C$10 -> 0 | J197: =(J542*J$9)/Setup!$C$10 -> 0 | K197: =(K542*K$9)/Setup!$C$10 -> 0 | L197: =(L542*L$9)/Setup!$C$10 -> 0 | M197: =(M542*M$9)/Setup!$C$10 -> 0 | N197: =(N542*N$9)/Setup!$C$10 -> 0 | O197: =(O542*O$9)/Setup!$C$10 -> 0 | P197: =(P542*P$9)/Setup!$C$10 -> 0 | Q197: =(Q542*Q$9)/Setup!$C$10 -> 0 | R197: =(R542*R$9)/Setup!$C$10 -> 0 | S197: =(S542*S$9)/Setup!$C$10 -> 0 | T197: =(T542*T$9)/Setup!$C$10 -> 0 | U197: =(U542*U$9)/Setup!$C$10 -> 0 | V197: =(V542*V$9)/Setup!$C$10 -> 0 | W197: =(W542*W$9)/Setup!$C$10 -> 0 | X197: =(X542*X$9)/Setup!$C$10 -> 0 | Y197: 0 | Z197: 0 | AB197: 0 | AC197: 0 | AD197: 0
A198: 2014-08-18 | B198: Week 7 | C198: =(C543*C$9)/Setup!$C$10 -> 0 | D198: =(D543*D$9)/Setup!$C$10 -> 0 | E198: =(E543*E$9)/Setup!$C$10 -> 0 | F198: =(F543*F$9)/Setup!$C$10 -> 0 | G198: =(G543*G$9)/Setup!$C$10 -> 0 | H198: =(H543*H$9)/Setup!$C$10 -> 0 | I198: =(I543*I$9)/Setup!$C$10 -> 0 | J198: =(J543*J$9)/Setup!$C$10 -> 0 | K198: =(K543*K$9)/Setup!$C$10 -> 0 | L198: =(L543*L$9)/Setup!$C$10 -> 0 | M198: =(M543*M$9)/Setup!$C$10 -> 0 | N198: =(N543*N$9)/Setup!$C$10 -> 0 | O198: =(O543*O$9)/Setup!$C$10 -> 0 | P198: =(P543*P$9)/Setup!$C$10 -> 0 | Q198: =(Q543*Q$9)/Setup!$C$10 -> 0 | R198: =(R543*R$9)/Setup!$C$10 -> 0 | S198: =(S543*S$9)/Setup!$C$10 -> 0 | T198: =(T543*T$9)/Setup!$C$10 -> 0 | U198: =(U543*U$9)/Setup!$C$10 -> 0 | V198: =(V543*V$9)/Setup!$C$10 -> 0 | W198: =(W543*W$9)/Setup!$C$10 -> 0 | X198: =(X543*X$9)/Setup!$C$10 -> 0 | Y198: 0 | Z198: 0 | AB198: 0 | AC198: 0 | AD198: 0
A199: 2014-08-25 | B199: Week 8 | C199: =(C544*C$9)/Setup!$C$10 -> 0 | D199: =(D544*D$9)/Setup!$C$10 -> 0 | E199: =(E544*E$9)/Setup!$C$10 -> 0 | F199: =(F544*F$9)/Setup!$C$10 -> 0 | G199: =(G544*G$9)/Setup!$C$10 -> 0 | H199: =(H544*H$9)/Setup!$C$10 -> 0 | I199: =(I544*I$9)/Setup!$C$10 -> 0 | J199: =(J544*J$9)/Setup!$C$10 -> 0 | K199: =(K544*K$9)/Setup!$C$10 -> 0 | L199: =(L544*L$9)/Setup!$C$10 -> 0 | M199: =(M544*M$9)/Setup!$C$10 -> 0 | N199: =(N544*N$9)/Setup!$C$10 -> 0 | O199: =(O544*O$9)/Setup!$C$10 -> 0 | P199: =(P544*P$9)/Setup!$C$10 -> 0 | Q199: =(Q544*Q$9)/Setup!$C$10 -> 0 | R199: =(R544*R$9)/Setup!$C$10 -> 0 | S199: =(S544*S$9)/Setup!$C$10 -> 0 | T199: =(T544*T$9)/Setup!$C$10 -> 0 | U199: =(U544*U$9)/Setup!$C$10 -> 0 | V199: =(V544*V$9)/Setup!$C$10 -> 0 | W199: =(W544*W$9)/Setup!$C$10 -> 0 | X199: =(X544*X$9)/Setup!$C$10 -> 0 | Y199: 0 | Z199: 0 | AB199: 0 | AC199: 0 | AD199: 0
A200: 2014-09-01 | B200: Week 9 | C200: =(C545*C$9)/Setup!$C$10 -> 0 | D200: =(D545*D$9)/Setup!$C$10 -> 0 | E200: =(E545*E$9)/Setup!$C$10 -> 0 | F200: =(F545*F$9)/Setup!$C$10 -> 0 | G200: =(G545*G$9)/Setup!$C$10 -> 0 | H200: =(H545*H$9)/Setup!$C$10 -> 0 | I200: =(I545*I$9)/Setup!$C$10 -> 0 | J200: =(J545*J$9)/Setup!$C$10 -> 0 | K200: =(K545*K$9)/Setup!$C$10 -> 0 | L200: =(L545*L$9)/Setup!$C$10 -> 0 | M200: =(M545*M$9)/Setup!$C$10 -> 0 | N200: =(N545*N$9)/Setup!$C$10 -> 0 | O200: =(O545*O$9)/Setup!$C$10 -> 0 | P200: =(P545*P$9)/Setup!$C$10 -> 0 | Q200: =(Q545*Q$9)/Setup!$C$10 -> 0 | R200: =(R545*R$9)/Setup!$C$10 -> 0 | S200: =(S545*S$9)/Setup!$C$10 -> 0 | T200: =(T545*T$9)/Setup!$C$10 -> 0 | U200: =(U545*U$9)/Setup!$C$10 -> 0 | V200: =(V545*V$9)/Setup!$C$10 -> 0 | W200: =(W545*W$9)/Setup!$C$10 -> 0 | X200: =(X545*X$9)/Setup!$C$10 -> 0 | Y200: 0 | Z200: 0 | AB200: 0 | AC200: 0 | AD200: 0
A201: 2014-09-08 | B201: Week 10 | C201: =(C546*C$9)/Setup!$C$10 -> 0 | D201: =(D546*D$9)/Setup!$C$10 -> 0 | E201: =(E546*E$9)/Setup!$C$10 -> 0 | F201: =(F546*F$9)/Setup!$C$10 -> 0 | G201: =(G546*G$9)/Setup!$C$10 -> 0 | H201: =(H546*H$9)/Setup!$C$10 -> 0 | I201: =(I546*I$9)/Setup!$C$10 -> 0 | J201: =(J546*J$9)/Setup!$C$10 -> 0 | K201: =(K546*K$9)/Setup!$C$10 -> 0 | L201: =(L546*L$9)/Setup!$C$10 -> 0 | M201: =(M546*M$9)/Setup!$C$10 -> 0 | N201: =(N546*N$9)/Setup!$C$10 -> 0 | O201: =(O546*O$9)/Setup!$C$10 -> 0 | P201: =(P546*P$9)/Setup!$C$10 -> 0 | Q201: =(Q546*Q$9)/Setup!$C$10 -> 0 | R201: =(R546*R$9)/Setup!$C$10 -> 0 | S201: =(S546*S$9)/Setup!$C$10 -> 0 | T201: =(T546*T$9)/Setup!$C$10 -> 0 | U201: =(U546*U$9)/Setup!$C$10 -> 0 | V201: =(V546*V$9)/Setup!$C$10 -> 0 | W201: =(W546*W$9)/Setup!$C$10 -> 0 | X201: =(X546*X$9)/Setup!$C$10 -> 0 | Y201: 0 | Z201: 0 | AB201: 11.499 | AC201: 11.499 | AD201: 11.499
A202: 2014-09-15 | B202: Week 11 | C202: =(C547*C$9)/Setup!$C$10 -> 0 | D202: =(D547*D$9)/Setup!$C$10 -> 0 | E202: =(E547*E$9)/Setup!$C$10 -> 0 | F202: =(F547*F$9)/Setup!$C$10 -> 0 | G202: =(G547*G$9)/Setup!$C$10 -> 0 | H202: =(H547*H$9)/Setup!$C$10 -> 0 | I202: =(I547*I$9)/Setup!$C$10 -> 0 | J202: =(J547*J$9)/Setup!$C$10 -> 0 | K202: =(K547*K$9)/Setup!$C$10 -> 0 | L202: =(L547*L$9)/Setup!$C$10 -> 0 | M202: =(M547*M$9)/Setup!$C$10 -> 0 | N202: =(N547*N$9)/Setup!$C$10 -> 0 | O202: =(O547*O$9)/Setup!$C$10 -> 0 | P202: =(P547*P$9)/Setup!$C$10 -> 0 | Q202: =(Q547*Q$9)/Setup!$C$10 -> 0 | R202: =(R547*R$9)/Setup!$C$10 -> 0 | S202: =(S547*S$9)/Setup!$C$10 -> 0 | T202: =(T547*T$9)/Setup!$C$10 -> 0 | U202: =(U547*U$9)/Setup!$C$10 -> 0 | V202: =(V547*V$9)/Setup!$C$10 -> 0 | W202: =(W547*W$9)/Setup!$C$10 -> 0 | X202: =(X547*X$9)/Setup!$C$10 -> 0 | Y202: 0 | Z202: 0 | AB202: 11.499 | AC202: 11.499 | AD202: 11.499
A203: 2014-09-22 | B203: Week 12 | C203: =(C548*C$9)/Setup!$C$10 -> 0 | D203: =(D548*D$9)/Setup!$C$10 -> 0 | E203: =(E548*E$9)/Setup!$C$10 -> 0 | F203: =(F548*F$9)/Setup!$C$10 -> 0 | G203: =(G548*G$9)/Setup!$C$10 -> 0 | H203: =(H548*H$9)/Setup!$C$10 -> 0 | I203: =(I548*I$9)/Setup!$C$10 -> 0 | J203: =(J548*J$9)/Setup!$C$10 -> 0 | K203: =(K548*K$9)/Setup!$C$10 -> 0 | L203: =(L548*L$9)/Setup!$C$10 -> 0 | M203: =(M548*M$9)/Setup!$C$10 -> 0 | N203: =(N548*N$9)/Setup!$C$10 -> 0 | O203: =(O548*O$9)/Setup!$C$10 -> 0 | P203: =(P548*P$9)/Setup!$C$10 -> 0 | Q203: =(Q548*Q$9)/Setup!$C$10 -> 0 | R203: =(R548*R$9)/Setup!$C$10 -> 0 | S203: =(S548*S$9)/Setup!$C$10 -> 0 | T203: =(T548*T$9)/Setup!$C$10 -> 0 | U203: =(U548*U$9)/Setup!$C$10 -> 0 | V203: =(V548*V$9)/Setup!$C$10 -> 0 | W203: =(W548*W$9)/Setup!$C$10 -> 0 | X203: =(X548*X$9)/Setup!$C$10 -> 0 | Y203: 0 | Z203: 0 | AB203: 11.499 | AC203: 11.499 | AD203: 11.499
A204: 2014-09-29 | B204: Week 13 | C204: =(C549*C$9)/Setup!$C$10 -> 0 | D204: =(D549*D$9)/Setup!$C$10 -> 0 | E204: =(E549*E$9)/Setup!$C$10 -> 0 | F204: =(F549*F$9)/Setup!$C$10 -> 0 | G204: =(G549*G$9)/Setup!$C$10 -> 0 | H204: =(H549*H$9)/Setup!$C$10 -> 0 | I204: =(I549*I$9)/Setup!$C$10 -> 0 | J204: =(J549*J$9)/Setup!$C$10 -> 0 | K204: =(K549*K$9)/Setup!$C$10 -> 0 | L204: =(L549*L$9)/Setup!$C$10 -> 0 | M204: =(M549*M$9)/Setup!$C$10 -> 0 | N204: =(N549*N$9)/Setup!$C$10 -> 0 | O204: =(O549*O$9)/Setup!$C$10 -> 0 | P204: =(P549*P$9)/Setup!$C$10 -> 0 | Q204: =(Q549*Q$9)/Setup!$C$10 -> 0 | R204: =(R549*R$9)/Setup!$C$10 -> 0 | S204: =(S549*S$9)/Setup!$C$10 -> 0 | T204: =(T549*T$9)/Setup!$C$10 -> 0 | U204: =(U549*U$9)/Setup!$C$10 -> 0 | V204: =(V549*V$9)/Setup!$C$10 -> 0 | W204: =(W549*W$9)/Setup!$C$10 -> 0 | X204: =(X549*X$9)/Setup!$C$10 -> 0 | Y204: 0 | Z204: 0 | AB204: 26.299 | AC204: 28.699 | AD204: 15.499
A205: 2014-10-06 | B205: Week 14 | C205: =(C550*C$9)/Setup!$C$10 -> 0 | D205: =(D550*D$9)/Setup!$C$10 -> 0 | E205: =(E550*E$9)/Setup!$C$10 -> 0 | F205: =(F550*F$9)/Setup!$C$10 -> 0 | G205: =(G550*G$9)/Setup!$C$10 -> 0 | H205: =(H550*H$9)/Setup!$C$10 -> 0 | I205: =(I550*I$9)/Setup!$C$10 -> 0 | J205: =(J550*J$9)/Setup!$C$10 -> 0 | K205: =(K550*K$9)/Setup!$C$10 -> 0 | L205: =(L550*L$9)/Setup!$C$10 -> 0 | M205: =(M550*M$9)/Setup!$C$10 -> 0 | N205: =(N550*N$9)/Setup!$C$10 -> 0 | O205: =(O550*O$9)/Setup!$C$10 -> 0 | P205: =(P550*P$9)/Setup!$C$10 -> 0 | Q205: =(Q550*Q$9)/Setup!$C$10 -> 0 | R205: =(R550*R$9)/Setup!$C$10 -> 0 | S205: =(S550*S$9)/Setup!$C$10 -> 0 | T205: =(T550*T$9)/Setup!$C$10 -> 0 | U205: =(U550*U$9)/Setup!$C$10 -> 0 | V205: =(V550*V$9)/Setup!$C$10 -> 0 | W205: =(W550*W$9)/Setup!$C$10 -> 0 | X205: =(X550*X$9)/Setup!$C$10 -> 0 | Y205: 0 | Z205: 0 | AB205: 26.299 | AC205: 28.699 | AD205: 15.499
A206: 2014-10-13 | B206: Week 15 | C206: =(C551*C$9)/Setup!$C$10 -> 0 | D206: =(D551*D$9)/Setup!$C$10 -> 0 | E206: =(E551*E$9)/Setup!$C$10 -> 0 | F206: =(F551*F$9)/Setup!$C$10 -> 0 | G206: =(G551*G$9)/Setup!$C$10 -> 0 | H206: =(H551*H$9)/Setup!$C$10 -> 0 | I206: =(I551*I$9)/Setup!$C$10 -> 0 | J206: =(J551*J$9)/Setup!$C$10 -> 0 | K206: =(K551*K$9)/Setup!$C$10 -> 0 | L206: =(L551*L$9)/Setup!$C$10 -> 0 | M206: =(M551*M$9)/Setup!$C$10 -> 0 | N206: =(N551*N$9)/Setup!$C$10 -> 0 | O206: =(O551*O$9)/Setup!$C$10 -> 0 | P206: =(P551*P$9)/Setup!$C$10 -> 0 | Q206: =(Q551*Q$9)/Setup!$C$10 -> 0 | R206: =(R551*R$9)/Setup!$C$10 -> 0 | S206: =(S551*S$9)/Setup!$C$10 -> 0 | T206: =(T551*T$9)/Setup!$C$10 -> 0 | U206: =(U551*U$9)/Setup!$C$10 -> 0 | V206: =(V551*V$9)/Setup!$C$10 -> 0 | W206: =(W551*W$9)/Setup!$C$10 -> 0 | X206: =(X551*X$9)/Setup!$C$10 -> 0 | Y206: 0 | Z206: 0 | AB206: 26.299 | AC206: 28.699 | AD206: 15.499
A207: 2014-10-20 | B207: Week 16 | C207: =(C552*C$9)/Setup!$C$10 -> 0 | D207: =(D552*D$9)/Setup!$C$10 -> 0 | E207: =(E552*E$9)/Setup!$C$10 -> 0 | F207: =(F552*F$9)/Setup!$C$10 -> 0 | G207: =(G552*G$9)/Setup!$C$10 -> 0 | H207: =(H552*H$9)/Setup!$C$10 -> 0 | I207: =(I552*I$9)/Setup!$C$10 -> 0 | J207: =(J552*J$9)/Setup!$C$10 -> 0 | K207: =(K552*K$9)/Setup!$C$10 -> 0 | L207: =(L552*L$9)/Setup!$C$10 -> 0 | M207: =(M552*M$9)/Setup!$C$10 -> 0 | N207: =(N552*N$9)/Setup!$C$10 -> 0 | O207: =(O552*O$9)/Setup!$C$10 -> 0 | P207: =(P552*P$9)/Setup!$C$10 -> 0 | Q207: =(Q552*Q$9)/Setup!$C$10 -> 0 | R207: =(R552*R$9)/Setup!$C$10 -> 0 | S207: =(S552*S$9)/Setup!$C$10 -> 0 | T207: =(T552*T$9)/Setup!$C$10 -> 0 | U207: =(U552*U$9)/Setup!$C$10 -> 0 | V207: =(V552*V$9)/Setup!$C$10 -> 0 | W207: =(W552*W$9)/Setup!$C$10 -> 0 | X207: =(X552*X$9)/Setup!$C$10 -> 0 | Y207: 0 | Z207: 0 | AB207: 26.299 | AC207: 28.699 | AD207: 15.499
A208: 2014-10-27 | B208: Week 17 | C208: =(C553*C$9)/Setup!$C$10 -> 0 | D208: =(D553*D$9)/Setup!$C$10 -> 0 | E208: =(E553*E$9)/Setup!$C$10 -> 0 | F208: =(F553*F$9)/Setup!$C$10 -> 0 | G208: =(G553*G$9)/Setup!$C$10 -> 0 | H208: =(H553*H$9)/Setup!$C$10 -> 0 | I208: =(I553*I$9)/Setup!$C$10 -> 0 | J208: =(J553*J$9)/Setup!$C$10 -> 0 | K208: =(K553*K$9)/Setup!$C$10 -> 0 | L208: =(L553*L$9)/Setup!$C$10 -> 0 | M208: =(M553*M$9)/Setup!$C$10 -> 0 | N208: =(N553*N$9)/Setup!$C$10 -> 0 | O208: =(O553*O$9)/Setup!$C$10 -> 0 | P208: =(P553*P$9)/Setup!$C$10 -> 0 | Q208: =(Q553*Q$9)/Setup!$C$10 -> 0 | R208: =(R553*R$9)/Setup!$C$10 -> 0 | S208: =(S553*S$9)/Setup!$C$10 -> 0 | T208: =(T553*T$9)/Setup!$C$10 -> 0 | U208: =(U553*U$9)/Setup!$C$10 -> 0 | V208: =(V553*V$9)/Setup!$C$10 -> 0 | W208: =(W553*W$9)/Setup!$C$10 -> 0 | X208: =(X553*X$9)/Setup!$C$10 -> 0 | Y208: 0 | Z208: 0 | AB208: 24.299 | AC208: 28.699 | AD208: 15.499
A209: 2014-11-03 | B209: Week 18 | C209: =(C554*C$9)/Setup!$C$10 -> 0 | D209: =(D554*D$9)/Setup!$C$10 -> 0 | E209: =(E554*E$9)/Setup!$C$10 -> 0 | F209: =(F554*F$9)/Setup!$C$10 -> 0 | G209: =(G554*G$9)/Setup!$C$10 -> 0 | H209: =(H554*H$9)/Setup!$C$10 -> 0 | I209: =(I554*I$9)/Setup!$C$10 -> 0 | J209: =(J554*J$9)/Setup!$C$10 -> 0 | K209: =(K554*K$9)/Setup!$C$10 -> 0 | L209: =(L554*L$9)/Setup!$C$10 -> 0 | M209: =(M554*M$9)/Setup!$C$10 -> 0 | N209: =(N554*N$9)/Setup!$C$10 -> 0 | O209: =(O554*O$9)/Setup!$C$10 -> 0 | P209: =(P554*P$9)/Setup!$C$10 -> 0 | Q209: =(Q554*Q$9)/Setup!$C$10 -> 0 | R209: =(R554*R$9)/Setup!$C$10 -> 0 | S209: =(S554*S$9)/Setup!$C$10 -> 0 | T209: =(T554*T$9)/Setup!$C$10 -> 0 | U209: =(U554*U$9)/Setup!$C$10 -> 0 | V209: =(V554*V$9)/Setup!$C$10 -> 0 | W209: =(W554*W$9)/Setup!$C$10 -> 0 | X209: =(X554*X$9)/Setup!$C$10 -> 0 | Y209: 0 | Z209: 0 | AB209: 11.499 | AC209: 28.699 | AD209: 15.499
A210: 2014-11-10 | B210: Week 19 | C210: =(C555*C$9)/Setup!$C$10 -> 0 | D210: =(D555*D$9)/Setup!$C$10 -> 0 | E210: =(E555*E$9)/Setup!$C$10 -> 0 | F210: =(F555*F$9)/Setup!$C$10 -> 0 | G210: =(G555*G$9)/Setup!$C$10 -> 0 | H210: =(H555*H$9)/Setup!$C$10 -> 0 | I210: =(I555*I$9)/Setup!$C$10 -> 0 | J210: =(J555*J$9)/Setup!$C$10 -> 0 | K210: =(K555*K$9)/Setup!$C$10 -> 0 | L210: =(L555*L$9)/Setup!$C$10 -> 0 | M210: =(M555*M$9)/Setup!$C$10 -> 0 | N210: =(N555*N$9)/Setup!$C$10 -> 0 | O210: =(O555*O$9)/Setup!$C$10 -> 0 | P210: =(P555*P$9)/Setup!$C$10 -> 0 | Q210: =(Q555*Q$9)/Setup!$C$10 -> 0 | R210: =(R555*R$9)/Setup!$C$10 -> 0 | S210: =(S555*S$9)/Setup!$C$10 -> 0 | T210: =(T555*T$9)/Setup!$C$10 -> 0 | U210: =(U555*U$9)/Setup!$C$10 -> 0 | V210: =(V555*V$9)/Setup!$C$10 -> 0 | W210: =(W555*W$9)/Setup!$C$10 -> 0 | X210: =(X555*X$9)/Setup!$C$10 -> 0 | Y210: 0 | Z210: 0 | AB210: 0 | AC210: 28.699 | AD210: 15.499
A211: 2014-11-17 | B211: Week 20 | C211: =(C556*C$9)/Setup!$C$10 -> 0 | D211: =(D556*D$9)/Setup!$C$10 -> 0 | E211: =(E556*E$9)/Setup!$C$10 -> 0 | F211: =(F556*F$9)/Setup!$C$10 -> 0 | G211: =(G556*G$9)/Setup!$C$10 -> 0 | H211: =(H556*H$9)/Setup!$C$10 -> 0 | I211: =(I556*I$9)/Setup!$C$10 -> 0 | J211: =(J556*J$9)/Setup!$C$10 -> 0 | K211: =(K556*K$9)/Setup!$C$10 -> 0 | L211: =(L556*L$9)/Setup!$C$10 -> 0 | M211: =(M556*M$9)/Setup!$C$10 -> 0 | N211: =(N556*N$9)/Setup!$C$10 -> 0 | O211: =(O556*O$9)/Setup!$C$10 -> 0 | P211: =(P556*P$9)/Setup!$C$10 -> 0 | Q211: =(Q556*Q$9)/Setup!$C$10 -> 0 | R211: =(R556*R$9)/Setup!$C$10 -> 0 | S211: =(S556*S$9)/Setup!$C$10 -> 0 | T211: =(T556*T$9)/Setup!$C$10 -> 0 | U211: =(U556*U$9)/Setup!$C$10 -> 0 | V211: =(V556*V$9)/Setup!$C$10 -> 0 | W211: =(W556*W$9)/Setup!$C$10 -> 0 | X211: =(X556*X$9)/Setup!$C$10 -> 0 | Y211: 0 | Z211: 0 | AB211: 0 | AC211: 28.699 | AD211: 15.499
A212: =A441 -> 2014-11-24 | B212: Week 21 | C212: =(C557*C$9)/Setup!$C$10 -> 0 | D212: =(D557*D$9)/Setup!$C$10 -> 0 | E212: =(E557*E$9)/Setup!$C$10 -> 0 | F212: =(F557*F$9)/Setup!$C$10 -> 0 | G212: =(G557*G$9)/Setup!$C$10 -> 0 | H212: =(H557*H$9)/Setup!$C$10 -> 0 | I212: =(I557*I$9)/Setup!$C$10 -> 0 | J212: =(J557*J$9)/Setup!$C$10 -> 0 | K212: =(K557*K$9)/Setup!$C$10 -> 0 | L212: =(L557*L$9)/Setup!$C$10 -> 0 | M212: =(M557*M$9)/Setup!$C$10 -> 0 | N212: =(N557*N$9)/Setup!$C$10 -> 0 | O212: =(O557*O$9)/Setup!$C$10 -> 0 | P212: =(P557*P$9)/Setup!$C$10 -> 0 | Q212: =(Q557*Q$9)/Setup!$C$10 -> 0 | R212: =(R557*R$9)/Setup!$C$10 -> 0 | S212: =(S557*S$9)/Setup!$C$10 -> 0 | T212: =(T557*T$9)/Setup!$C$10 -> 0 | U212: =(U557*U$9)/Setup!$C$10 -> 0 | V212: =(V557*V$9)/Setup!$C$10 -> 0 | W212: =(W557*W$9)/Setup!$C$10 -> 0 | X212: =(X557*X$9)/Setup!$C$10 -> 0 | Y212: 0 | Z212: 0 | AB212: 0 | AC212: 28.699 | AD212: 15.499
A213: 2014-12-01 | B213: Week 22 | C213: =(C558*C$9)/Setup!$C$10 -> 0 | D213: =(D558*D$9)/Setup!$C$10 -> 0 | E213: =(E558*E$9)/Setup!$C$10 -> 0 | F213: =(F558*F$9)/Setup!$C$10 -> 0 | G213: =(G558*G$9)/Setup!$C$10 -> 0 | H213: =(H558*H$9)/Setup!$C$10 -> 0 | I213: =(I558*I$9)/Setup!$C$10 -> 0 | J213: =(J558*J$9)/Setup!$C$10 -> 0 | K213: =(K558*K$9)/Setup!$C$10 -> 0 | L213: =(L558*L$9)/Setup!$C$10 -> 0 | M213: =(M558*M$9)/Setup!$C$10 -> 0 | N213: =(N558*N$9)/Setup!$C$10 -> 0 | O213: =(O558*O$9)/Setup!$C$10 -> 0 | P213: =(P558*P$9)/Setup!$C$10 -> 0 | Q213: =(Q558*Q$9)/Setup!$C$10 -> 0 | R213: =(R558*R$9)/Setup!$C$10 -> 0 | S213: =(S558*S$9)/Setup!$C$10 -> 0 | T213: =(T558*T$9)/Setup!$C$10 -> 0 | U213: =(U558*U$9)/Setup!$C$10 -> 0 | V213: =(V558*V$9)/Setup!$C$10 -> 0 | W213: =(W558*W$9)/Setup!$C$10 -> 0 | X213: =(X558*X$9)/Setup!$C$10 -> 0 | Y213: 0 | Z213: 0 | AB213: 0 | AC213: 17.2 | AD213: 1.2
... 536 more rows

Sheet Fert Program 4
A3: Fertiliser Active Percentage: | AF3: NOTES / WORKING PAGE
C5: Amm Nitr | D5: Urea | E5: UAN | F5: Pot Nitrate | G5: MAP | H5: Pot Sulphate | I5: Cal Nitrate | J5: Fertimix | K5: User Defined 9 | L5: User Defined 10
A7: N | C7: 0.25 | D7: 0.46 | E7: 0.42 | F7: 0.13 | G7: 0.12 | I7: 0.16
A8: P | G8: 0.26
A9: K | F9: 0.38 | H9: 0.4
A10: S
A11: Na
A12: Ca | I12: 0.19
A13: Mg | J13: 0.02
A14: Cl
A15: Cu
A16: Zn
A17: Mn
A18: Fe
A19: B | J19: 0.01
A20: Al
A21: Mo
A22: NO3-
A23: NH4+
A24: NO3-:NH4+
A26: Actual Seasonal Fertiliser (Kg) / Hectare (Ha):
B28: Total | C28: =C5 -> Amm Nitr | D28: Urea | E28: UAN | F28: Pot Nitrate | G28: MAP | H28: Pot Sulphate | I28: Cal Nitrate | J28: Fertimix | K28: User Defined 9 | L28: User Defined 10
B29: Kg/Ha
A30: N | B30: =SUM(C30:L30) -> 0 | C30: =C7*(SUM(C$589)/$A$534) -> 0 | D30: =D7*(SUM(D$589)/$A$534) -> 0 | E30: 0 | F30: =F7*(SUM(F$589)/$A$534) -> 0 | G30: 0 | H30: 0 | I30: 0 | J30: 0 | K30: =K7*(SUM(K$589)/$A$534) -> 0 | L30: 0
A31: P | B31: =SUM(C31:L31) -> 0 | C31: =C8*(SUM(C$589)/$A$534) -> 0 | D31: =D8*(SUM(D$589)/$A$534) -> 0 | E31: 0 | F31: =F8*(SUM(F$589)/$A$534) -> 0 | G31: 0 | H31: 0 | I31: 0 | J31: 0 | K31: =K8*(SUM(K$589)/$A$534) -> 0 | L31: 0
A32: K | B32: 0 | C32: =C9*(SUM(C$589)/$A$534) -> 0 | D32: =D9*(SUM(D$589)/$A$534) -> 0 | E32: 0 | F32: =F9*(SUM(F$589)/$A$534) -> 0 | G32: 0 | H32: 0 | I32: 0 | J32: 0 | K32: =K9*(SUM(K$589)/$A$534) -> 0 | L32: 0
A33: S | B33: 0 | C33: =C10*(SUM(C$589)/$A$534) -> 0 | D33: 0 | E33: 0 | F33: 0 | G33: 0 | H33: 0 | I33: 0 | J33: 0 | K33: =K10*(SUM(K$589)/$A$534) -> 0 | L33: 0
A34: Na | B34: 0 | C34: =C11*(SUM(C$589)/$A$534) -> 0 | D34: 0 | E34: 0 | F34: 0 | G34: 0 | H34: 0 | I34: 0 | J34: 0 | K34: =K11*(SUM(K$589)/$A$534) -> 0 | L34: 0
A35: Ca | B35: 0 | C35: =C12*(SUM(C$589)/$A$534) -> 0 | D35: 0 | E35: 0 | F35: 0 | G35: 0 | H35: 0 | I35: 0 | J35: 0 | K35: =K12*(SUM(K$589)/$A$534) -> 0 | L35: 0
A36: Mg | B36: 0 | C36: =C13*(SUM(C$589)/$A$534) -> 0 | D36: 0 | E36: 0 | F36: 0 | G36: 0 | H36: 0 | I36: 0 | J36: 0 | K36: =K13*(SUM(K$589)/$A$534) -> 0 | L36: 0
A37: Cl | B37: 0 | C37: =C14*(SUM(C$589)/$A$534) -> 0 | D37: 0 | E37: 0 | F37: 0 | G37: 0 | H37: 0 | I37: 0 | J37: 0 | K37: =K14*(SUM(K$589)/$A$534) -> 0 | L37: 0
A38: Cu | B38: 0 | C38: =C15*(SUM(C$589)/$A$534) -> 0 | D38: 0 | E38: 0 | F38: 0 | G38: 0 | H38: 0 | I38: 0 | J38: 0 | K38: =K15*(SUM(K$589)/$A$534) -> 0 | L38: 0
A39: Zn | B39: 0 | C39: =C16*(SUM(C$589)/$A$534) -> 0 | D39: 0 | E39: 0 | F39: 0 | G39: 0 | H39: 0 | I39: 0 | J39: 0 | K39: =K16*(SUM(K$589)/$A$534) -> 0 | L39: 0
A40: Mn | B40: 0 | C40: =C17*(SUM(C$589)/$A$534) -> 0 | D40: 0 | E40: 0 | F40: 0 | G40: 0 | H40: 0 | I40: 0 | J40: 0 | K40: =K17*(SUM(K$589)/$A$534) -> 0 | L40: 0
A41: Fe | B41: 0 | C41: =C18*(SUM(C$589)/$A$534) -> 0 | D41: 0 | E41: 0 | F41: 0 | G41: 0 | H41: 0 | I41: 0 | J41: 0 | K41: =K18*(SUM(K$589)/$A$534) -> 0 | L41: 0
A42: B | B42: 0 | C42: =C19*(SUM(C$589)/$A$534) -> 0 | D42: 0 | E42: 0 | F42: 0 | G42: 0 | H42: 0 | I42: 0 | J42: 0 | K42: =K19*(SUM(K$589)/$A$534) -> 0 | L42: 0
A43: Al | B43: 0 | C43: =C20*(SUM(C$589)/$A$534) -> 0 | D43: 0 | E43: 0 | F43: 0 | G43: 0 | H43: 0 | I43: 0 | J43: 0 | K43: =K20*(SUM(K$589)/$A$534) -> 0 | L43: 0
A44: Mo | B44: 0 | C44: =C21*(SUM(C$589)/$A$534) -> 0 | D44: 0 | E44: 0 | F44: 0 | G44: 0 | H44: 0 | I44: 0 | J44: 0 | K44: =K21*(SUM(K$589)/$A$534) -> 0 | L44: 0
A45: NO3- | B45: 0 | C45: =C22*(SUM(C$589)/$A$534) -> 0 | D45: 0 | E45: 0 | F45: 0 | G45: 0 | H45: 0 | I45: 0 | J45: 0 | K45: =K22*(SUM(K$589)/$A$534) -> 0 | L45: 0
A46: NH4+ | B46: 0 | C46: =C23*(SUM(C$589)/$A$534) -> 0 | D46: 0 | E46: 0 | F46: 0 | G46: 0 | H46: 0 | I46: 0 | J46: 0 | K46: =K23*(SUM(K$589)/$A$534) -> 0 | L46: 0
A47: NO3-:NH4+ | B47: =B45/B46 -> 
A49: Proposed Seasonal Fertiliser (Kg) / Hectare (Ha):
B51: Total | C51: =C5 -> Amm Nitr | D51: =D5 -> Urea | E51: UAN | F51: Pot Nitrate | G51: MAP | H51: Pot Sulphate | I51: Cal Nitrate | J51: Fertimix | K51: User Defined 9 | L51: User Defined 10
B52: Kg/Ha
A53: N | B53: =SUM(C53:L53) -> 0 | C53: =C7*SUM(C$473) -> 0 | D53: =D7*SUM(D$473) -> 0 | E53: 0 | F53: =F7*SUM(F$473) -> 0 | G53: 0 | H53: 0 | I53: 0 | J53: 0 | K53: =K7*SUM(AC$473) -> 0 | L53: =L7*SUM(AD$473) -> 0
A54: P | B54: =SUM(C54:L54) -> 0 | C54: 0 | D54: =D8*SUM(D$473) -> 0 | E54: 0 | F54: =F8*SUM(F$473) -> 0 | G54: 0 | H54: 0 | I54: 0 | J54: 0 | K54: 0 | L54: 0
A55: K | B55: =SUM(C55:L55) -> 0 | C55: 0 | D55: =D9*SUM(D$473) -> 0 | E55: 0 | F55: =F9*SUM(F$473) -> 0 | G55: 0 | H55: 0 | I55: 0 | J55: 0 | K55: 0 | L55: 0
A56: S | B56: =SUM(C56:L56) -> 0 | C56: 0 | D56: =D10*SUM(D$473) -> 0 | E56: 0 | F56: 0 | G56: 0 | H56: 0 | I56: 0 | J56: 0 | K56: 0 | L56: 0
A57: Na | B57: =SUM(C57:L57) -> 0 | C57: 0 | D57: =D11*SUM(D$473) -> 0 | E57: 0 | F57: 0 | G57: 0 | H57: 0 | I57: 0 | J57: 0 | K57: 0 | L57: 0
A58: Ca | B58: 0 | C58: 0 | D58: =D12*SUM(D$473) -> 0 | E58: 0 | F58: 0 | G58: 0 | H58: 0 | I58: 0 | J58: 0 | K58: 0 | L58: 0
A59: Mg | B59: 0 | C59: 0 | D59: =D13*SUM(D$473) -> 0 | E59: 0 | F59: 0 | G59: 0 | H59: 0 | I59: 0 | J59: 0 | K59: 0 | L59: 0
A60: Cl | B60: 0 | C60: 0 | D60: =D14*SUM(D$473) -> 0 | E60: 0 | F60: 0 | G60: 0 | H60: 0 | I60: 0 | J60: 0 | K60: 0 | L60: 0
A61: Cu | B61: 0 | C61: 0 | D61: =D15*SUM(D$473) -> 0 | E61: 0 | F61: 0 | G61: 0 | H61: 0 | I61: 0 | J61: 0 | K61: 0 | L61: 0
A62: Zn | B62: 0 | C62: 0 | D62: =D16*SUM(D$473) -> 0 | E62: 0 | F62: 0 | G62: 0 | H62: 0 | I62: 0 | J62: 0 | K62: 0 | L62: 0
A63: Mn | B63: 0 | C63: 0 | D63: =D17*SUM(D$473) -> 0 | E63: 0 | F63: 0 | G63: 0 | H63: 0 | I63: 0 | J63: 0 | K63: 0 | L63: 0
A64: Fe | B64: 0 | C64: 0 | D64: =D18*SUM(D$473) -> 0 | E64: 0 | F64: 0 | G64: 0 | H64: 0 | I64: 0 | J64: 0 | K64: 0 | L64: 0
A65: B | B65: 0 | C65: 0 | D65: =D19*SUM(D$473) -> 0 | E65: 0 | F65: 0 | G65: 0 | H65: 0 | I65: 0 | J65: 0 | K65: 0 | L65: 0
A66: Al | B66: 0 | C66: 0 | D66: =D20*SUM(D$473) -> 0 | E66: 0 | F66: 0 | G66: 0 | H66: 0 | I66: 0 | J66: 0 | K66: 0 | L66: 0
A67: Mo | B67: 0 | C67: 0 | D67: =D21*SUM(D$473) -> 0 | E67: 0 | F67: 0 | G67: 0 | H67: 0 | I67: 0 | J67: 0 | K67: 0 | L67: 0
A68: NO3- | B68: 0 | C68: 0 | D68: =D22*SUM(D$473) -> 0 | E68: 0 | F68: 0 | G68: 0 | H68: 0 | I68: 0 | J68: 0 | K68: 0 | L68: 0
A69: NH4+ | B69: 0 | C69: 0 | D69: =D23*SUM(D$473) -> 0 | E69: 0 | F69: 0 | G69: 0 | H69: 0 | I69: 0 | J69: 0 | K69: 0 | L69: 0
A70: NO3-:NH4+ | B70: =B68/B69 -> 
A72: Actual Weekly N (Kg) / Hectare (Ha):
C74: =C5 -> Amm Nitr | D74: Urea | E74: UAN | F74: Pot Nitrate | G74: MAP | H74: Pot Sulphate | I74: Cal Nitrate | J74: Fertimix | K74: User Defined 9 | L74: User Defined 10 | N74: WEEKLY TOTAL | O74: Grower Cumm | Q74: Actual Weekly N
O75: TOTAL | Q75: TOTAL
A76: =A421 -> 2014-07-07 | B76: Week 1 | C76: =(C537*C$7)/Setup!$C$10 -> 0 | D76: =(D537*D$7)/Setup!$C$10 -> 0 | E76: =(E537*E$7)/Setup!$C$10 -> 0 | F76: =(F537*F$7)/Setup!$C$10 -> 0 | G76: =(G537*G$7)/Setup!$C$10 -> 0 | H76: =(H537*H$7)/Setup!$C$10 -> 0 | I76: =(I537*I$7)/Setup!$C$10 -> 0 | J76: =(J537*J$7)/Setup!$C$10 -> 0 | K76: =(K537*K$7)/Setup!$C$10 -> 0 | L76: =(L537*L$7)/Setup!$C$10 -> 0 | N76: =SUM(C76:L76) -> 0 | O76: =N76 -> 0 | Q76: =N76 -> 0
A77: 2014-07-14 | B77: Week 2 | C77: =(C538*C$7)/Setup!$C$10 -> 0 | D77: =(D538*D$7)/Setup!$C$10 -> 0 | E77: =(E538*E$7)/Setup!$C$10 -> 0 | F77: =(F538*F$7)/Setup!$C$10 -> 0 | G77: =(G538*G$7)/Setup!$C$10 -> 0 | H77: =(H538*H$7)/Setup!$C$10 -> 0 | I77: =(I538*I$7)/Setup!$C$10 -> 0 | J77: =(J538*J$7)/Setup!$C$10 -> 0 | K77: =(K538*K$7)/Setup!$C$10 -> 0 | L77: =(L538*L$7)/Setup!$C$10 -> 0 | N77: =SUM(C77:L77) -> 0 | O77: =O76+N77 -> 0 | Q77: =N77 -> 0
A78: 2014-07-21 | B78: Week 3 | C78: =(C539*C$7)/Setup!$C$10 -> 0 | D78: =(D539*D$7)/Setup!$C$10 -> 0 | E78: =(E539*E$7)/Setup!$C$10 -> 0 | F78: =(F539*F$7)/Setup!$C$10 -> 0 | G78: =(G539*G$7)/Setup!$C$10 -> 0 | H78: =(H539*H$7)/Setup!$C$10 -> 0 | I78: =(I539*I$7)/Setup!$C$10 -> 0 | J78: =(J539*J$7)/Setup!$C$10 -> 0 | K78: =(K539*K$7)/Setup!$C$10 -> 0 | L78: =(L539*L$7)/Setup!$C$10 -> 0 | N78: 0 | O78: =O77+N78 -> 0 | Q78: 0
A79: 2014-07-28 | B79: Week 4 | C79: =(C540*C$7)/Setup!$C$10 -> 0 | D79: =(D540*D$7)/Setup!$C$10 -> 0 | E79: =(E540*E$7)/Setup!$C$10 -> 0 | F79: =(F540*F$7)/Setup!$C$10 -> 0 | G79: =(G540*G$7)/Setup!$C$10 -> 0 | H79: =(H540*H$7)/Setup!$C$10 -> 0 | I79: =(I540*I$7)/Setup!$C$10 -> 0 | J79: =(J540*J$7)/Setup!$C$10 -> 0 | K79: =(K540*K$7)/Setup!$C$10 -> 0 | L79: =(L540*L$7)/Setup!$C$10 -> 0 | N79: 0 | O79: 0 | Q79: 0
A80: 2014-08-04 | B80: Week 5 | C80: =(C541*C$7)/Setup!$C$10 -> 0 | D80: =(D541*D$7)/Setup!$C$10 -> 0 | E80: =(E541*E$7)/Setup!$C$10 -> 0 | F80: =(F541*F$7)/Setup!$C$10 -> 0 | G80: =(G541*G$7)/Setup!$C$10 -> 0 | H80: =(H541*H$7)/Setup!$C$10 -> 0 | I80: =(I541*I$7)/Setup!$C$10 -> 0 | J80: =(J541*J$7)/Setup!$C$10 -> 0 | K80: =(K541*K$7)/Setup!$C$10 -> 0 | L80: =(L541*L$7)/Setup!$C$10 -> 0 | N80: 0 | O80: 0 | Q80: 0
A81: 2014-08-11 | B81: Week 6 | C81: =(C542*C$7)/Setup!$C$10 -> 0 | D81: =(D542*D$7)/Setup!$C$10 -> 0 | E81: =(E542*E$7)/Setup!$C$10 -> 0 | F81: =(F542*F$7)/Setup!$C$10 -> 0 | G81: =(G542*G$7)/Setup!$C$10 -> 0 | H81: =(H542*H$7)/Setup!$C$10 -> 0 | I81: =(I542*I$7)/Setup!$C$10 -> 0 | J81: =(J542*J$7)/Setup!$C$10 -> 0 | K81: =(K542*K$7)/Setup!$C$10 -> 0 | L81: =(L542*L$7)/Setup!$C$10 -> 0 | N81: 0 | O81: 0 | Q81: 0
A82: 2014-08-18 | B82: Week 7 | C82: =(C543*C$7)/Setup!$C$10 -> 0 | D82: =(D543*D$7)/Setup!$C$10 -> 0 | E82: =(E543*E$7)/Setup!$C$10 -> 0 | F82: =(F543*F$7)/Setup!$C$10 -> 0 | G82: =(G543*G$7)/Setup!$C$10 -> 0 | H82: =(H543*H$7)/Setup!$C$10 -> 0 | I82: =(I543*I$7)/Setup!$C$10 -> 0 | J82: =(J543*J$7)/Setup!$C$10 -> 0 | K82: =(K543*K$7)/Setup!$C$10 -> 0 | L82: =(L543*L$7)/Setup!$C$10 -> 0 | N82: 0 | O82: 0 | Q82: 0
A83: 2014-08-25 | B83: Week 8 | C83: =(C544*C$7)/Setup!$C$10 -> 0 | D83: =(D544*D$7)/Setup!$C$10 -> 0 | E83: =(E544*E$7)/Setup!$C$10 -> 0 | F83: =(F544*F$7)/Setup!$C$10 -> 0 | G83: =(G544*G$7)/Setup!$C$10 -> 0 | H83: =(H544*H$7)/Setup!$C$10 -> 0 | I83: =(I544*I$7)/Setup!$C$10 -> 0 | J83: =(J544*J$7)/Setup!$C$10 -> 0 | K83: =(K544*K$7)/Setup!$C$10 -> 0 | L83: =(L544*L$7)/Setup!$C$10 -> 0 | N83: 0 | O83: 0 | Q83: 0
A84: 2014-09-01 | B84: Week 9 | C84: =(C545*C$7)/Setup!$C$10 -> 0 | D84: =(D545*D$7)/Setup!$C$10 -> 0 | E84: =(E545*E$7)/Setup!$C$10 -> 0 | F84: =(F545*F$7)/Setup!$C$10 -> 0 | G84: =(G545*G$7)/Setup!$C$10 -> 0 | H84: =(H545*H$7)/Setup!$C$10 -> 0 | I84: =(I545*I$7)/Setup!$C$10 -> 0 | J84: =(J545*J$7)/Setup!$C$10 -> 0 | K84: =(K545*K$7)/Setup!$C$10 -> 0 | L84: =(L545*L$7)/Setup!$C$10 -> 0 | N84: 0 | O84: 0 | Q84: 0
A85: 2014-09-08 | B85: Week 10 | C85: =(C546*C$7)/Setup!$C$10 -> 0 | D85: =(D546*D$7)/Setup!$C$10 -> 0 | E85: =(E546*E$7)/Setup!$C$10 -> 0 | F85: =(F546*F$7)/Setup!$C$10 -> 0 | G85: =(G546*G$7)/Setup!$C$10 -> 0 | H85: =(H546*H$7)/Setup!$C$10 -> 0 | I85: =(I546*I$7)/Setup!$C$10 -> 0 | J85: =(J546*J$7)/Setup!$C$10 -> 0 | K85: =(K546*K$7)/Setup!$C$10 -> 0 | L85: =(L546*L$7)/Setup!$C$10 -> 0 | N85: 0 | O85: 0 | Q85: 0
A86: 2014-09-15 | B86: Week 11 | C86: =(C547*C$7)/Setup!$C$10 -> 0 | D86: =(D547*D$7)/Setup!$C$10 -> 0 | E86: =(E547*E$7)/Setup!$C$10 -> 0 | F86: =(F547*F$7)/Setup!$C$10 -> 0 | G86: =(G547*G$7)/Setup!$C$10 -> 0 | H86: =(H547*H$7)/Setup!$C$10 -> 0 | I86: =(I547*I$7)/Setup!$C$10 -> 0 | J86: =(J547*J$7)/Setup!$C$10 -> 0 | K86: =(K547*K$7)/Setup!$C$10 -> 0 | L86: =(L547*L$7)/Setup!$C$10 -> 0 | N86: 0 | O86: 0 | Q86: 0
A87: 2014-09-22 | B87: Week 12 | C87: =(C548*C$7)/Setup!$C$10 -> 0 | D87: =(D548*D$7)/Setup!$C$10 -> 0 | E87: =(E548*E$7)/Setup!$C$10 -> 0 | F87: =(F548*F$7)/Setup!$C$10 -> 0 | G87: =(G548*G$7)/Setup!$C$10 -> 0 | H87: =(H548*H$7)/Setup!$C$10 -> 0 | I87: =(I548*I$7)/Setup!$C$10 -> 0 | J87: =(J548*J$7)/Setup!$C$10 -> 0 | K87: =(K548*K$7)/Setup!$C$10 -> 0 | L87: =(L548*L$7)/Setup!$C$10 -> 0 | N87: 0 | O87: 0 | Q87: 0
A88: 2014-09-29 | B88: Week 13 | C88: =(C549*C$7)/Setup!$C$10 -> 0 | D88: =(D549*D$7)/Setup!$C$10 -> 0 | E88: =(E549*E$7)/Setup!$C$10 -> 0 | F88: =(F549*F$7)/Setup!$C$10 -> 0 | G88: =(G549*G$7)/Setup!$C$10 -> 0 | H88: =(H549*H$7)/Setup!$C$10 -> 0 | I88: =(I549*I$7)/Setup!$C$10 -> 0 | J88: =(J549*J$7)/Setup!$C$10 -> 0 | K88: =(K549*K$7)/Setup!$C$10 -> 0 | L88: =(L549*L$7)/Setup!$C$10 -> 0 | N88: 0 | O88: 0 | Q88: 0
A89: 2014-10-06 | B89: Week 14 | C89: =(C550*C$7)/Setup!$C$10 -> 0 | D89: =(D550*D$7)/Setup!$C$10 -> 0 | E89: =(E550*E$7)/Setup!$C$10 -> 0 | F89: =(F550*F$7)/Setup!$C$10 -> 0 | G89: =(G550*G$7)/Setup!$C$10 -> 0 | H89: =(H550*H$7)/Setup!$C$10 -> 0 | I89: =(I550*I$7)/Setup!$C$10 -> 0 | J89: =(J550*J$7)/Setup!$C$10 -> 0 | K89: =(K550*K$7)/Setup!$C$10 -> 0 | L89: =(L550*L$7)/Setup!$C$10 -> 0 | N89: 0 | O89: 0 | Q89: 0
A90: 2014-10-13 | B90: Week 15 | C90: =(C551*C$7)/Setup!$C$10 -> 0 | D90: =(D551*D$7)/Setup!$C$10 -> 0 | E90: =(E551*E$7)/Setup!$C$10 -> 0 | F90: =(F551*F$7)/Setup!$C$10 -> 0 | G90: =(G551*G$7)/Setup!$C$10 -> 0 | H90: =(H551*H$7)/Setup!$C$10 -> 0 | I90: =(I551*I$7)/Setup!$C$10 -> 0 | J90: =(J551*J$7)/Setup!$C$10 -> 0 | K90: =(K551*K$7)/Setup!$C$10 -> 0 | L90: =(L551*L$7)/Setup!$C$10 -> 0 | N90: 0 | O90: 0 | Q90: 0
A91: 2014-10-20 | B91: Week 16 | C91: =(C552*C$7)/Setup!$C$10 -> 0 | D91: =(D552*D$7)/Setup!$C$10 -> 0 | E91: =(E552*E$7)/Setup!$C$10 -> 0 | F91: =(F552*F$7)/Setup!$C$10 -> 0 | G91: =(G552*G$7)/Setup!$C$10 -> 0 | H91: =(H552*H$7)/Setup!$C$10 -> 0 | I91: =(I552*I$7)/Setup!$C$10 -> 0 | J91: =(J552*J$7)/Setup!$C$10 -> 0 | K91: =(K552*K$7)/Setup!$C$10 -> 0 | L91: =(L552*L$7)/Setup!$C$10 -> 0 | N91: 0 | O91: 0 | Q91: 0
A92: 2014-10-27 | B92: Week 17 | C92: =(C553*C$7)/Setup!$C$10 -> 0 | D92: =(D553*D$7)/Setup!$C$10 -> 0 | E92: =(E553*E$7)/Setup!$C$10 -> 0 | F92: =(F553*F$7)/Setup!$C$10 -> 0 | G92: =(G553*G$7)/Setup!$C$10 -> 0 | H92: =(H553*H$7)/Setup!$C$10 -> 0 | I92: =(I553*I$7)/Setup!$C$10 -> 0 | J92: =(J553*J$7)/Setup!$C$10 -> 0 | K92: =(K553*K$7)/Setup!$C$10 -> 0 | L92: =(L553*L$7)/Setup!$C$10 -> 0 | N92: 0 | O92: 0 | Q92: 0
A93: 2014-11-03 | B93: Week 18 | C93: =(C554*C$7)/Setup!$C$10 -> 0 | D93: =(D554*D$7)/Setup!$C$10 -> 0 | E93: =(E554*E$7)/Setup!$C$10 -> 0 | F93: =(F554*F$7)/Setup!$C$10 -> 0 | G93: =(G554*G$7)/Setup!$C$10 -> 0 | H93: =(H554*H$7)/Setup!$C$10 -> 0 | I93: =(I554*I$7)/Setup!$C$10 -> 0 | J93: =(J554*J$7)/Setup!$C$10 -> 0 | K93: =(K554*K$7)/Setup!$C$10 -> 0 | L93: =(L554*L$7)/Setup!$C$10 -> 0 | N93: 0 | O93: 0 | Q93: 0
A94: 2014-11-10 | B94: Week 19 | C94: =(C555*C$7)/Setup!$C$10 -> 0 | D94: =(D555*D$7)/Setup!$C$10 -> 0 | E94: =(E555*E$7)/Setup!$C$10 -> 0 | F94: =(F555*F$7)/Setup!$C$10 -> 0 | G94: =(G555*G$7)/Setup!$C$10 -> 0 | H94: =(H555*H$7)/Setup!$C$10 -> 0 | I94: =(I555*I$7)/Setup!$C$10 -> 0 | J94: =(J555*J$7)/Setup!$C$10 -> 0 | K94: =(K555*K$7)/Setup!$C$10 -> 0 | L94: =(L555*L$7)/Setup!$C$10 -> 0 | N94: 0 | O94: 0 | Q94: 0
A95: 2014-11-17 | B95: Week 20 | C95: =(C556*C$7)/Setup!$C$10 -> 0 | D95: =(D556*D$7)/Setup!$C$10 -> 0 | E95: =(E556*E$7)/Setup!$C$10 -> 0 | F95: =(F556*F$7)/Setup!$C$10 -> 0 | G95: =(G556*G$7)/Setup!$C$10 -> 0 | H95: =(H556*H$7)/Setup!$C$10 -> 0 | I95: =(I556*I$7)/Setup!$C$10 -> 0 | J95: =(J556*J$7)/Setup!$C$10 -> 0 | K95: =(K556*K$7)/Setup!$C$10 -> 0 | L95: =(L556*L$7)/Setup!$C$10 -> 0 | N95: 0 | O95: 0 | Q95: 0
A96: =A441 -> 2014-11-24 | B96: Week 21 | C96: =(C557*C$7)/Setup!$C$10 -> 0 | D96: =(D557*D$7)/Setup!$C$10 -> 0 | E96: =(E557*E$7)/Setup!$C$10 -> 0 | F96: =(F557*F$7)/Setup!$C$10 -> 0 | G96: =(G557*G$7)/Setup!$C$10 -> 0 | H96: =(H557*H$7)/Setup!$C$10 -> 0 | I96: =(I557*I$7)/Setup!$C$10 -> 0 | J96: =(J557*J$7)/Setup!$C$10 -> 0 | K96: =(K557*K$7)/Setup!$C$10 -> 0 | L96: =(L557*L$7)/Setup!$C$10 -> 0 | N96: 0 | O96: 0 | Q96: 0
A97: 2014-12-01 | B97: Week 22 | C97: =(C558*C$7)/Setup!$C$10 -> 0 | D97: =(D558*D$7)/Setup!$C$10 -> 0 | E97: =(E558*E$7)/Setup!$C$10 -> 0 | F97: =(F558*F$7)/Setup!$C$10 -> 0 | G97: =(G558*G$7)/Setup!$C$10 -> 0 | H97: =(H558*H$7)/Setup!$C$10 -> 0 | I97: =(I558*I$7)/Setup!$C$10 -> 0 | J97: =(J558*J$7)/Setup!$C$10 -> 0 | K97: =(K558*K$7)/Setup!$C$10 -> 0 | L97: =(L558*L$7)/Setup!$C$10 -> 0 | N97: 0 | O97: 0 | Q97: 0
A98: 2014-12-08 | B98: Week 23 | C98: =(C559*C$7)/Setup!$C$10 -> 0 | D98: =(D559*D$7)/Setup!$C$10 -> 0 | E98: =(E559*E$7)/Setup!$C$10 -> 0 | F98: =(F559*F$7)/Setup!$C$10 -> 0 | G98: =(G559*G$7)/Setup!$C$10 -> 0 | H98: =(H559*H$7)/Setup!$C$10 -> 0 | I98: =(I559*I$7)/Setup!$C$10 -> 0 | J98: =(J559*J$7)/Setup!$C$10 -> 0 | K98: =(K559*K$7)/Setup!$C$10 -> 0 | L98: =(L559*L$7)/Setup!$C$10 -> 0 | N98: 0 | O98: 0 | Q98: 0
A99: 2014-12-15 | B99: Week 24 | C99: =(C560*C$7)/Setup!$C$10 -> 0 | D99: =(D560*D$7)/Setup!$C$10 -> 0 | E99: =(E560*E$7)/Setup!$C$10 -> 0 | F99: =(F560*F$7)/Setup!$C$10 -> 0 | G99: =(G560*G$7)/Setup!$C$10 -> 0 | H99: =(H560*H$7)/Setup!$C$10 -> 0 | I99: =(I560*I$7)/Setup!$C$10 -> 0 | J99: =(J560*J$7)/Setup!$C$10 -> 0 | K99: =(K560*K$7)/Setup!$C$10 -> 0 | L99: =(L560*L$7)/Setup!$C$10 -> 0 | N99: 0 | O99: 0 | Q99: 0
A100: 2014-12-22 | B100: Week 25 | C100: =(C561*C$7)/Setup!$C$10 -> 0 | D100: =(D561*D$7)/Setup!$C$10 -> 0 | E100: =(E561*E$7)/Setup!$C$10 -> 0 | F100: =(F561*F$7)/Setup!$C$10 -> 0 | G100: =(G561*G$7)/Setup!$C$10 -> 0 | H100: =(H561*H$7)/Setup!$C$10 -> 0 | I100: =(I561*I$7)/Setup!$C$10 -> 0 | J100: =(J561*J$7)/Setup!$C$10 -> 0 | K100: =(K561*K$7)/Setup!$C$10 -> 0 | L100: =(L561*L$7)/Setup!$C$10 -> 0 | N100: 0 | O100: 0 | Q100: 0
A101: 2014-12-29 | B101: Week 26 | C101: =(C562*C$7)/Setup!$C$10 -> 0 | D101: =(D562*D$7)/Setup!$C$10 -> 0 | E101: =(E562*E$7)/Setup!$C$10 -> 0 | F101: =(F562*F$7)/Setup!$C$10 -> 0 | G101: =(G562*G$7)/Setup!$C$10 -> 0 | H101: =(H562*H$7)/Setup!$C$10 -> 0 | I101: =(I562*I$7)/Setup!$C$10 -> 0 | J101: =(J562*J$7)/Setup!$C$10 -> 0 | K101: =(K562*K$7)/Setup!$C$10 -> 0 | L101: =(L562*L$7)/Setup!$C$10 -> 0 | N101: 0 | O101: 0 | Q101: 0
A102: 2015-01-05 | B102: Week 27 | C102: =(C563*C$7)/Setup!$C$10 -> 0 | D102: =(D563*D$7)/Setup!$C$10 -> 0 | E102: =(E563*E$7)/Setup!$C$10 -> 0 | F102: =(F563*F$7)/Setup!$C$10 -> 0 | G102: =(G563*G$7)/Setup!$C$10 -> 0 | H102: =(H563*H$7)/Setup!$C$10 -> 0 | I102: =(I563*I$7)/Setup!$C$10 -> 0 | J102: =(J563*J$7)/Setup!$C$10 -> 0 | K102: =(K563*K$7)/Setup!$C$10 -> 0 | L102: =(L563*L$7)/Setup!$C$10 -> 0 | N102: 0 | O102: 0 | Q102: 0
A103: 2015-01-12 | B103: Week 28 | C103: =(C564*C$7)/Setup!$C$10 -> 0 | D103: =(D564*D$7)/Setup!$C$10 -> 0 | E103: =(E564*E$7)/Setup!$C$10 -> 0 | F103: =(F564*F$7)/Setup!$C$10 -> 0 | G103: =(G564*G$7)/Setup!$C$10 -> 0 | H103: =(H564*H$7)/Setup!$C$10 -> 0 | I103: =(I564*I$7)/Setup!$C$10 -> 0 | J103: =(J564*J$7)/Setup!$C$10 -> 0 | K103: =(K564*K$7)/Setup!$C$10 -> 0 | L103: =(L564*L$7)/Setup!$C$10 -> 0 | N103: 0 | O103: 0 | Q103: 0
A104: 2015-01-19 | B104: Week 29 | C104: =(C565*C$7)/Setup!$C$10 -> 0 | D104: =(D565*D$7)/Setup!$C$10 -> 0 | E104: =(E565*E$7)/Setup!$C$10 -> 0 | F104: =(F565*F$7)/Setup!$C$10 -> 0 | G104: =(G565*G$7)/Setup!$C$10 -> 0 | H104: =(H565*H$7)/Setup!$C$10 -> 0 | I104: =(I565*I$7)/Setup!$C$10 -> 0 | J104: =(J565*J$7)/Setup!$C$10 -> 0 | K104: =(K565*K$7)/Setup!$C$10 -> 0 | L104: =(L565*L$7)/Setup!$C$10 -> 0 | N104: 0 | O104: 0 | Q104: 0
A105: 2015-01-26 | B105: Week 30 | C105: =(C566*C$7)/Setup!$C$10 -> 0 | D105: =(D566*D$7)/Setup!$C$10 -> 0 | E105: =(E566*E$7)/Setup!$C$10 -> 0 | F105: =(F566*F$7)/Setup!$C$10 -> 0 | G105: =(G566*G$7)/Setup!$C$10 -> 0 | H105: =(H566*H$7)/Setup!$C$10 -> 0 | I105: =(I566*I$7)/Setup!$C$10 -> 0 | J105: =(J566*J$7)/Setup!$C$10 -> 0 | K105: =(K566*K$7)/Setup!$C$10 -> 0 | L105: =(L566*L$7)/Setup!$C$10 -> 0 | N105: 0 | O105: 0 | Q105: 0
A106: 2015-02-02 | B106: Week 31 | C106: =(C567*C$7)/Setup!$C$10 -> 0 | D106: =(D567*D$7)/Setup!$C$10 -> 0 | E106: =(E567*E$7)/Setup!$C$10 -> 0 | F106: =(F567*F$7)/Setup!$C$10 -> 0 | G106: =(G567*G$7)/Setup!$C$10 -> 0 | H106: =(H567*H$7)/Setup!$C$10 -> 0 | I106: =(I567*I$7)/Setup!$C$10 -> 0 | J106: =(J567*J$7)/Setup!$C$10 -> 0 | K106: =(K567*K$7)/Setup!$C$10 -> 0 | L106: =(L567*L$7)/Setup!$C$10 -> 0 | N106: 0 | O106: 0 | Q106: 0
A107: 2015-02-09 | B107: Week 32 | C107: =(C568*C$7)/Setup!$C$10 -> 0 | D107: =(D568*D$7)/Setup!$C$10 -> 0 | E107: =(E568*E$7)/Setup!$C$10 -> 0 | F107: =(F568*F$7)/Setup!$C$10 -> 0 | G107: =(G568*G$7)/Setup!$C$10 -> 0 | H107: =(H568*H$7)/Setup!$C$10 -> 0 | I107: =(I568*I$7)/Setup!$C$10 -> 0 | J107: =(J568*J$7)/Setup!$C$10 -> 0 | K107: =(K568*K$7)/Setup!$C$10 -> 0 | L107: =(L568*L$7)/Setup!$C$10 -> 0 | N107: 0 | O107: 0 | Q107: 0
A108: 2015-02-16 | B108: Week 33 | C108: =(C569*C$7)/Setup!$C$10 -> 0 | D108: =(D569*D$7)/Setup!$C$10 -> 0 | E108: =(E569*E$7)/Setup!$C$10 -> 0 | F108: =(F569*F$7)/Setup!$C$10 -> 0 | G108: =(G569*G$7)/Setup!$C$10 -> 0 | H108: =(H569*H$7)/Setup!$C$10 -> 0 | I108: =(I569*I$7)/Setup!$C$10 -> 0 | J108: =(J569*J$7)/Setup!$C$10 -> 0 | K108: =(K569*K$7)/Setup!$C$10 -> 0 | L108: =(L569*L$7)/Setup!$C$10 -> 0 | N108: 0 | O108: 0 | Q108: 0
A109: 2015-02-23 | B109: Week 34 | C109: =(C570*C$7)/Setup!$C$10 -> 0 | D109: =(D570*D$7)/Setup!$C$10 -> 0 | E109: =(E570*E$7)/Setup!$C$10 -> 0 | F109: =(F570*F$7)/Setup!$C$10 -> 0 | G109: =(G570*G$7)/Setup!$C$10 -> 0 | H109: =(H570*H$7)/Setup!$C$10 -> 0 | I109: =(I570*I$7)/Setup!$C$10 -> 0 | J109: =(J570*J$7)/Setup!$C$10 -> 0 | K109: =(K570*K$7)/Setup!$C$10 -> 0 | L109: =(L570*L$7)/Setup!$C$10 -> 0 | N109: 0 | O109: 0 | Q109: 0
A110: 2015-03-02 | B110: Week 35 | C110: =(C571*C$7)/Setup!$C$10 -> 0 | D110: =(D571*D$7)/Setup!$C$10 -> 0 | E110: =(E571*E$7)/Setup!$C$10 -> 0 | F110: =(F571*F$7)/Setup!$C$10 -> 0 | G110: =(G571*G$7)/Setup!$C$10 -> 0 | H110: =(H571*H$7)/Setup!$C$10 -> 0 | I110: =(I571*I$7)/Setup!$C$10 -> 0 | J110: =(J571*J$7)/Setup!$C$10 -> 0 | K110: =(K571*K$7)/Setup!$C$10 -> 0 | L110: =(L571*L$7)/Setup!$C$10 -> 0 | N110: 0 | O110: 0 | Q110: 0
A111: 2015-03-09 | B111: Week 36 | C111: =(C572*C$7)/Setup!$C$10 -> 0 | D111: =(D572*D$7)/Setup!$C$10 -> 0 | E111: =(E572*E$7)/Setup!$C$10 -> 0 | F111: =(F572*F$7)/Setup!$C$10 -> 0 | G111: =(G572*G$7)/Setup!$C$10 -> 0 | H111: =(H572*H$7)/Setup!$C$10 -> 0 | I111: =(I572*I$7)/Setup!$C$10 -> 0 | J111: =(J572*J$7)/Setup!$C$10 -> 0 | K111: =(K572*K$7)/Setup!$C$10 -> 0 | L111: =(L572*L$7)/Setup!$C$10 -> 0 | N111: 0 | O111: 0 | Q111: 0
A112: 2015-03-16 | B112: Week 37 | C112: =(C573*C$7)/Setup!$C$10 -> 0 | D112: =(D573*D$7)/Setup!$C$10 -> 0 | E112: =(E573*E$7)/Setup!$C$10 -> 0 | F112: =(F573*F$7)/Setup!$C$10 -> 0 | G112: =(G573*G$7)/Setup!$C$10 -> 0 | H112: =(H573*H$7)/Setup!$C$10 -> 0 | I112: =(I573*I$7)/Setup!$C$10 -> 0 | J112: =(J573*J$7)/Setup!$C$10 -> 0 | K112: =(K573*K$7)/Setup!$C$10 -> 0 | L112: =(L573*L$7)/Setup!$C$10 -> 0 | N112: 0 | O112: 0 | Q112: 0
A113: 2015-03-23 | B113: Week 38 | C113: =(C574*C$7)/Setup!$C$10 -> 0 | D113: =(D574*D$7)/Setup!$C$10 -> 0 | E113: =(E574*E$7)/Setup!$C$10 -> 0 | F113: =(F574*F$7)/Setup!$C$10 -> 0 | G113: =(G574*G$7)/Setup!$C$10 -> 0 | H113: =(H574*H$7)/Setup!$C$10 -> 0 | I113: =(I574*I$7)/Setup!$C$10 -> 0 | J113: =(J574*J$7)/Setup!$C$10 -> 0 | K113: =(K574*K$7)/Setup!$C$10 -> 0 | L113: =(L574*L$7)/Setup!$C$10 -> 0 | N113: 0 | O113: 0 | Q113: 0
A114: 2015-03-30 | B114: Week 39 | C114: =(C575*C$7)/Setup!$C$10 -> 0 | D114: =(D575*D$7)/Setup!$C$10 -> 0 | E114: =(E575*E$7)/Setup!$C$10 -> 0 | F114: =(F575*F$7)/Setup!$C$10 -> 0 | G114: =(G575*G$7)/Setup!$C$10 -> 0 | H114: =(H575*H$7)/Setup!$C$10 -> 0 | I114: =(I575*I$7)/Setup!$C$10 -> 0 | J114: =(J575*J$7)/Setup!$C$10 -> 0 | K114: =(K575*K$7)/Setup!$C$10 -> 0 | L114: =(L575*L$7)/Setup!$C$10 -> 0 | N114: 0 | O114: 0 | Q114: 0
A115: 2015-04-06 | B115: Week 40 | C115: =(C576*C$7)/Setup!$C$10 -> 0 | D115: =(D576*D$7)/Setup!$C$10 -> 0 | E115: =(E576*E$7)/Setup!$C$10 -> 0 | F115: =(F576*F$7)/Setup!$C$10 -> 0 | G115: =(G576*G$7)/Setup!$C$10 -> 0 | H115: =(H576*H$7)/Setup!$C$10 -> 0 | I115: =(I576*I$7)/Setup!$C$10 -> 0 | J115: =(J576*J$7)/Setup!$C$10 -> 0 | K115: =(K576*K$7)/Setup!$C$10 -> 0 | L115: =(L576*L$7)/Setup!$C$10 -> 0 | N115: 0 | O115: 0 | Q115: 0
A116: =A461 -> 2015-04-13 | B116: Week 41 | C116: =(C577*C$7)/Setup!$C$10 -> 0 | D116: =(D577*D$7)/Setup!$C$10 -> 0 | E116: =(E577*E$7)/Setup!$C$10 -> 0 | F116: =(F577*F$7)/Setup!$C$10 -> 0 | G116: =(G577*G$7)/Setup!$C$10 -> 0 | H116: =(H577*H$7)/Setup!$C$10 -> 0 | I116: =(I577*I$7)/Setup!$C$10 -> 0 | J116: =(J577*J$7)/Setup!$C$10 -> 0 | K116: =(K577*K$7)/Setup!$C$10 -> 0 | L116: =(L577*L$7)/Setup!$C$10 -> 0 | N116: 0 | O116: 0 | Q116: 0
A117: 2015-04-20 | B117: Week 42 | C117: =(C578*C$7)/Setup!$C$10 -> 0 | D117: =(D578*D$7)/Setup!$C$10 -> 0 | E117: =(E578*E$7)/Setup!$C$10 -> 0 | F117: =(F578*F$7)/Setup!$C$10 -> 0 | G117: =(G578*G$7)/Setup!$C$10 -> 0 | H117: =(H578*H$7)/Setup!$C$10 -> 0 | I117: =(I578*I$7)/Setup!$C$10 -> 0 | J117: =(J578*J$7)/Setup!$C$10 -> 0 | K117: =(K578*K$7)/Setup!$C$10 -> 0 | L117: =(L578*L$7)/Setup!$C$10 -> 0 | N117: 0 | O117: 0 | Q117: 0
A118: 2015-04-27 | B118: Week 43 | C118: =(C579*C$7)/Setup!$C$10 -> 0 | D118: =(D579*D$7)/Setup!$C$10 -> 0 | E118: =(E579*E$7)/Setup!$C$10 -> 0 | F118: =(F579*F$7)/Setup!$C$10 -> 0 | G118: =(G579*G$7)/Setup!$C$10 -> 0 | H118: =(H579*H$7)/Setup!$C$10 -> 0 | I118: =(I579*I$7)/Setup!$C$10 -> 0 | J118: =(J579*J$7)/Setup!$C$10 -> 0 | K118: =(K579*K$7)/Setup!$C$10 -> 0 | L118: =(L579*L$7)/Setup!$C$10 -> 0 | N118: 0 | O118: 0 | Q118: 0
A119: 2015-05-04 | B119: Week 44 | C119: =(C580*C$7)/Setup!$C$10 -> 0 | D119: =(D580*D$7)/Setup!$C$10 -> 0 | E119: =(E580*E$7)/Setup!$C$10 -> 0 | F119: =(F580*F$7)/Setup!$C$10 -> 0 | G119: =(G580*G$7)/Setup!$C$10 -> 0 | H119: =(H580*H$7)/Setup!$C$10 -> 0 | I119: =(I580*I$7)/Setup!$C$10 -> 0 | J119: =(J580*J$7)/Setup!$C$10 -> 0 | K119: =(K580*K$7)/Setup!$C$10 -> 0 | L119: =(L580*L$7)/Setup!$C$10 -> 0 | N119: 0 | O119: 0 | Q119: 0
A120: 2015-05-11 | B120: Week 45 | C120: =(C581*C$7)/Setup!$C$10 -> 0 | D120: =(D581*D$7)/Setup!$C$10 -> 0 | E120: =(E581*E$7)/Setup!$C$10 -> 0 | F120: =(F581*F$7)/Setup!$C$10 -> 0 | G120: =(G581*G$7)/Setup!$C$10 -> 0 | H120: =(H581*H$7)/Setup!$C$10 -> 0 | I120: =(I581*I$7)/Setup!$C$10 -> 0 | J120: =(J581*J$7)/Setup!$C$10 -> 0 | K120: =(K581*K$7)/Setup!$C$10 -> 0 | L120: =(L581*L$7)/Setup!$C$10 -> 0 | N120: 0 | O120: 0 | Q120: 0
A121: 2015-05-18 | B121: Week 46 | C121: =(C582*C$7)/Setup!$C$10 -> 0 | D121: =(D582*D$7)/Setup!$C$10 -> 0 | E121: =(E582*E$7)/Setup!$C$10 -> 0 | F121: =(F582*F$7)/Setup!$C$10 -> 0 | G121: =(G582*G$7)/Setup!$C$10 -> 0 | H121: =(H582*H$7)/Setup!$C$10 -> 0 | I121: =(I582*I$7)/Setup!$C$10 -> 0 | J121: =(J582*J$7)/Setup!$C$10 -> 0 | K121: =(K582*K$7)/Setup!$C$10 -> 0 | L121: =(L582*L$7)/Setup!$C$10 -> 0 | N121: 0 | O121: 0 | Q121: 0
A122: 2015-05-25 | B122: Week 47 | C122: =(C583*C$7)/Setup!$C$10 -> 0 | D122: =(D583*D$7)/Setup!$C$10 -> 0 | E122: =(E583*E$7)/Setup!$C$10 -> 0 | F122: =(F583*F$7)/Setup!$C$10 -> 0 | G122: =(G583*G$7)/Setup!$C$10 -> 0 | H122: =(H583*H$7)/Setup!$C$10 -> 0 | I122: =(I583*I$7)/Setup!$C$10 -> 0 | J122: =(J583*J$7)/Setup!$C$10 -> 0 | K122: =(K583*K$7)/Setup!$C$10 -> 0 | L122: =(L583*L$7)/Setup!$C$10 -> 0 | N122: 0 | O122: 0 | Q122: 0
A123: 2015-06-01 | B123: Week 48 | C123: =(C584*C$7)/Setup!$C$10 -> 0 | D123: =(D584*D$7)/Setup!$C$10 -> 0 | E123: =(E584*E$7)/Setup!$C$10 -> 0 | F123: =(F584*F$7)/Setup!$C$10 -> 0 | G123: =(G584*G$7)/Setup!$C$10 -> 0 | H123: =(H584*H$7)/Setup!$C$10 -> 0 | I123: =(I584*I$7)/Setup!$C$10 -> 0 | J123: =(J584*J$7)/Setup!$C$10 -> 0 | K123: =(K584*K$7)/Setup!$C$10 -> 0 | L123: =(L584*L$7)/Setup!$C$10 -> 0 | N123: 0 | O123: 0 | Q123: 0
A124: 2015-06-08 | B124: Week 49 | C124: =(C585*C$7)/Setup!$C$10 -> 0 | D124: =(D585*D$7)/Setup!$C$10 -> 0 | E124: =(E585*E$7)/Setup!$C$10 -> 0 | F124: =(F585*F$7)/Setup!$C$10 -> 0 | G124: =(G585*G$7)/Setup!$C$10 -> 0 | H124: =(H585*H$7)/Setup!$C$10 -> 0 | I124: =(I585*I$7)/Setup!$C$10 -> 0 | J124: =(J585*J$7)/Setup!$C$10 -> 0 | K124: =(K585*K$7)/Setup!$C$10 -> 0 | L124: =(L585*L$7)/Setup!$C$10 -> 0 | N124: 0 | O124: 0 | Q124: 0
A125: 2015-06-15 | B125: Week 50 | C125: =(C586*C$7)/Setup!$C$10 -> 0 | D125: =(D586*D$7)/Setup!$C$10 -> 0 | E125: =(E586*E$7)/Setup!$C$10 -> 0 | F125: =(F586*F$7)/Setup!$C$10 -> 0 | G125: =(G586*G$7)/Setup!$C$10 -> 0 | H125: =(H586*H$7)/Setup!$C$10 -> 0 | I125: =(I586*I$7)/Setup!$C$10 -> 0 | J125: =(J586*J$7)/Setup!$C$10 -> 0 | K125: =(K586*K$7)/Setup!$C$10 -> 0 | L125: =(L586*L$7)/Setup!$C$10 -> 0 | N125: 0 | O125: 0 | Q125: 0
A126: 2015-06-22 | B126: Week 51 | C126: =(C587*C$7)/Setup!$C$10 -> 0 | D126: =(D587*D$7)/Setup!$C$10 -> 0 | E126: =(E587*E$7)/Setup!$C$10 -> 0 | F126: =(F587*F$7)/Setup!$C$10 -> 0 | G126: =(G587*G$7)/Setup!$C$10 -> 0 | H126: =(H587*H$7)/Setup!$C$10 -> 0 | I126: =(I587*I$7)/Setup!$C$10 -> 0 | J126: =(J587*J$7)/Setup!$C$10 -> 0 | K126: =(K587*K$7)/Setup!$C$10 -> 0 | L126: =(L587*L$7)/Setup!$C$10 -> 0 | N126: 0 | O126: 0 | Q126: 0
A127: 2015-06-29 | B127: Week 52 | C127: =(C588*C$7)/Setup!$C$10 -> 0 | D127: =(D588*D$7)/Setup!$C$10 -> 0 | E127: =(E588*E$7)/Setup!$C$10 -> 0 | F127: =(F588*F$7)/Setup!$C$10 -> 0 | G127: =(G588*G$7)/Setup!$C$10 -> 0 | H127: =(H588*H$7)/Setup!$C$10 -> 0 | I127: =(I588*I$7)/Setup!$C$10 -> 0 | J127: =(J588*J$7)/Setup!$C$10 -> 0 | K127: =(K588*K$7)/Setup!$C$10 -> 0 | L127: =(L588*L$7)/Setup!$C$10 -> 0 | N127: 0 | O127: 0 | Q127: 0
Q128: =SUM(Q76:Q127) -> 0
A130: Actual Weekly P (Kg) / Hectare (Ha):
C132: =C5 -> Amm Nitr | D132: Urea | E132: UAN | F132: Pot Nitrate | G132: MAP | H132: Pot Sulphate | I132: Cal Nitrate | J132: Fertimix | K132: =K5 -> User Defined 9 | L132: =L5 -> User Defined 10 | N132: WEEKLY TOTAL | O132: Grower Cumm | Q132: Actual Weekly P
N133: TOTAL | O133: TOTAL | Q133: TOTAL
A134: =A421 -> 2014-07-07 | B134: Week 1 | C134: =(C537*C$8)/Setup!$C$10 -> 0 | D134: =(D537*D$8)/Setup!$C$10 -> 0 | E134: =(E537*E$8)/Setup!$C$10 -> 0 | F134: =(F537*F$8)/Setup!$C$10 -> 0 | G134: =(G537*G$8)/Setup!$C$10 -> 0 | H134: =(H537*H$8)/Setup!$C$10 -> 0 | I134: =(I537*I$8)/Setup!$C$10 -> 0 | J134: =(J537*J$8)/Setup!$C$10 -> 0 | K134: =(K537*K$8)/Setup!$C$10 -> 0 | L134: =(L537*L$8)/Setup!$C$10 -> 0 | N134: =SUM(C134:L134) -> 0 | O134: =N134 -> 0 | Q134: =N134 -> 0
A135: 2014-07-14 | B135: Week 2 | C135: =(C538*C$8)/Setup!$C$10 -> 0 | D135: =(D538*D$8)/Setup!$C$10 -> 0 | E135: =(E538*E$8)/Setup!$C$10 -> 0 | F135: =(F538*F$8)/Setup!$C$10 -> 0 | G135: =(G538*G$8)/Setup!$C$10 -> 0 | H135: =(H538*H$8)/Setup!$C$10 -> 0 | I135: =(I538*I$8)/Setup!$C$10 -> 0 | J135: =(J538*J$8)/Setup!$C$10 -> 0 | K135: =(K538*K$8)/Setup!$C$10 -> 0 | L135: =(L538*L$8)/Setup!$C$10 -> 0 | N135: =SUM(C135:L135) -> 0 | O135: =O134+N135 -> 0 | Q135: =N135 -> 0
A136: 2014-07-21 | B136: Week 3 | C136: =(C539*C$8)/Setup!$C$10 -> 0 | D136: =(D539*D$8)/Setup!$C$10 -> 0 | E136: =(E539*E$8)/Setup!$C$10 -> 0 | F136: =(F539*F$8)/Setup!$C$10 -> 0 | G136: =(G539*G$8)/Setup!$C$10 -> 0 | H136: =(H539*H$8)/Setup!$C$10 -> 0 | I136: =(I539*I$8)/Setup!$C$10 -> 0 | J136: =(J539*J$8)/Setup!$C$10 -> 0 | K136: =(K539*K$8)/Setup!$C$10 -> 0 | L136: =(L539*L$8)/Setup!$C$10 -> 0 | N136: 0 | O136: =O135+N136 -> 0 | Q136: 0
A137: 2014-07-28 | B137: Week 4 | C137: =(C540*C$8)/Setup!$C$10 -> 0 | D137: =(D540*D$8)/Setup!$C$10 -> 0 | E137: =(E540*E$8)/Setup!$C$10 -> 0 | F137: =(F540*F$8)/Setup!$C$10 -> 0 | G137: =(G540*G$8)/Setup!$C$10 -> 0 | H137: =(H540*H$8)/Setup!$C$10 -> 0 | I137: =(I540*I$8)/Setup!$C$10 -> 0 | J137: =(J540*J$8)/Setup!$C$10 -> 0 | K137: =(K540*K$8)/Setup!$C$10 -> 0 | L137: =(L540*L$8)/Setup!$C$10 -> 0 | N137: 0 | O137: 0 | Q137: 0
A138: 2014-08-04 | B138: Week 5 | C138: =(C541*C$8)/Setup!$C$10 -> 0 | D138: =(D541*D$8)/Setup!$C$10 -> 0 | E138: =(E541*E$8)/Setup!$C$10 -> 0 | F138: =(F541*F$8)/Setup!$C$10 -> 0 | G138: =(G541*G$8)/Setup!$C$10 -> 0 | H138: =(H541*H$8)/Setup!$C$10 -> 0 | I138: =(I541*I$8)/Setup!$C$10 -> 0 | J138: =(J541*J$8)/Setup!$C$10 -> 0 | K138: =(K541*K$8)/Setup!$C$10 -> 0 | L138: =(L541*L$8)/Setup!$C$10 -> 0 | N138: 0 | O138: 0 | Q138: 0
A139: 2014-08-11 | B139: Week 6 | C139: =(C542*C$8)/Setup!$C$10 -> 0 | D139: =(D542*D$8)/Setup!$C$10 -> 0 | E139: =(E542*E$8)/Setup!$C$10 -> 0 | F139: =(F542*F$8)/Setup!$C$10 -> 0 | G139: =(G542*G$8)/Setup!$C$10 -> 0 | H139: =(H542*H$8)/Setup!$C$10 -> 0 | I139: =(I542*I$8)/Setup!$C$10 -> 0 | J139: =(J542*J$8)/Setup!$C$10 -> 0 | K139: =(K542*K$8)/Setup!$C$10 -> 0 | L139: =(L542*L$8)/Setup!$C$10 -> 0 | N139: 0 | O139: 0 | Q139: 0
A140: 2014-08-18 | B140: Week 7 | C140: =(C543*C$8)/Setup!$C$10 -> 0 | D140: =(D543*D$8)/Setup!$C$10 -> 0 | E140: =(E543*E$8)/Setup!$C$10 -> 0 | F140: =(F543*F$8)/Setup!$C$10 -> 0 | G140: =(G543*G$8)/Setup!$C$10 -> 0 | H140: =(H543*H$8)/Setup!$C$10 -> 0 | I140: =(I543*I$8)/Setup!$C$10 -> 0 | J140: =(J543*J$8)/Setup!$C$10 -> 0 | K140: =(K543*K$8)/Setup!$C$10 -> 0 | L140: =(L543*L$8)/Setup!$C$10 -> 0 | N140: 0 | O140: 0 | Q140: 0
A141: 2014-08-25 | B141: Week 8 | C141: =(C544*C$8)/Setup!$C$10 -> 0 | D141: =(D544*D$8)/Setup!$C$10 -> 0 | E141: =(E544*E$8)/Setup!$C$10 -> 0 | F141: =(F544*F$8)/Setup!$C$10 -> 0 | G141: =(G544*G$8)/Setup!$C$10 -> 0 | H141: =(H544*H$8)/Setup!$C$10 -> 0 | I141: =(I544*I$8)/Setup!$C$10 -> 0 | J141: =(J544*J$8)/Setup!$C$10 -> 0 | K141: =(K544*K$8)/Setup!$C$10 -> 0 | L141: =(L544*L$8)/Setup!$C$10 -> 0 | N141: 0 | O141: 0 | Q141: 0
A142: 2014-09-01 | B142: Week 9 | C142: =(C545*C$8)/Setup!$C$10 -> 0 | D142: =(D545*D$8)/Setup!$C$10 -> 0 | E142: =(E545*E$8)/Setup!$C$10 -> 0 | F142: =(F545*F$8)/Setup!$C$10 -> 0 | G142: =(G545*G$8)/Setup!$C$10 -> 0 | H142: =(H545*H$8)/Setup!$C$10 -> 0 | I142: =(I545*I$8)/Setup!$C$10 -> 0 | J142: =(J545*J$8)/Setup!$C$10 -> 0 | K142: =(K545*K$8)/Setup!$C$10 -> 0 | L142: =(L545*L$8)/Setup!$C$10 -> 0 | N142: 0 | O142: 0 | Q142: 0
A143: 2014-09-08 | B143: Week 10 | C143: =(C546*C$8)/Setup!$C$10 -> 0 | D143: =(D546*D$8)/Setup!$C$10 -> 0 | E143: =(E546*E$8)/Setup!$C$10 -> 0 | F143: =(F546*F$8)/Setup!$C$10 -> 0 | G143: =(G546*G$8)/Setup!$C$10 -> 0 | H143: =(H546*H$8)/Setup!$C$10 -> 0 | I143: =(I546*I$8)/Setup!$C$10 -> 0 | J143: =(J546*J$8)/Setup!$C$10 -> 0 | K143: =(K546*K$8)/Setup!$C$10 -> 0 | L143: =(L546*L$8)/Setup!$C$10 -> 0 | N143: 0 | O143: 0 | Q143: 0
